Workbook

Sheet ICP
A1: NUM | B1: Bedrijfsnaam | C1: BTWnummer | D1: MAAND 1 | E1: MAAND 2 | F1: MAAND 3 | G1: KWARTAAL 1 | H1: MAAND 4 | I1: MAAND 5 | J1: MAAND 6 | K1: KWARTAAL 2 | L1: MAAND 7 | M1: MAAND 8 | N1: MAAND 9 | O1: KWARTAAL 3 | P1: MAAND 10 | Q1: MAAND 11 | R1: MAAND 12 | S1: KWARTAAL 4
A2: 1 | B2: Pietersen | C2: DE12124324 | D2: =SUMPRODUCT((VERKOOP!$C$3:$C$801=1)*(VERKOOP!$L$3:$L$801=$A2)*(VERKOOP!$K$3:$K$801)) -> 1100 | E2: =SUMPRODUCT((VERKOOP!$C$3:$C$801=2)*(VERKOOP!$L$3:$L$801=$A2)*(VERKOOP!$K$3:$K$801)) -> 1100 | F2: =SUMPRODUCT((VERKOOP!$C$3:$C$801=3)*(VERKOOP!$L$3:$L$801=$A2)*(VERKOOP!$K$3:$K$801)) -> 1100 | G2: =SUM(D2:F2) -> 3300 | H2: =SUMPRODUCT((VERKOOP!$C$3:$C$801=4)*(VERKOOP!$L$3:$L$801=$A2)*(VERKOOP!$K$3:$K$801)) -> 1100 | I2: =SUMPRODUCT((VERKOOP!$C$3:$C$801=5)*(VERKOOP!$L$3:$L$801=$A2)*(VERKOOP!$K$3:$K$801)) -> 1100 | J2: =SUMPRODUCT((VERKOOP!$C$3:$C$801=6)*(VERKOOP!$L$3:$L$801=$A2)*(VERKOOP!$K$3:$K$801)) -> 1100 | K2: =SUM(H2:J2) -> 3300 | L2: =SUMPRODUCT((VERKOOP!$C$3:$C$801=7)*(VERKOOP!$L$3:$L$801=$A2)*(VERKOOP!$K$3:$K$801)) -> 1100 | M2: =SUMPRODUCT((VERKOOP!$C$3:$C$801=8)*(VERKOOP!$L$3:$L$801=$A2)*(VERKOOP!$K$3:$K$801)) -> 1100 | N2: =SUMPRODUCT((VERKOOP!$C$3:$C$801=9)*(VERKOOP!$L$3:$L$801=$A2)*(VERKOOP!$K$3:$K$801)) -> 1100 | O2: =SUM(L2:N2) -> 3300 | P2: =SUMPRODUCT((VERKOOP!$C$3:$C$801=10)*(VERKOOP!$L$3:$L$801=$A2)*(VERKOOP!$K$3:$K$801)) -> 1100 | Q2: =SUMPRODUCT((VERKOOP!$C$3:$C$801=11)*(VERKOOP!$L$3:$L$801=$A2)*(VERKOOP!$K$3:$K$801)) -> 1100 | R2: =SUMPRODUCT((VERKOOP!$C$3:$C$801=12)*(VERKOOP!$L$3:$L$801=$A2)*(VERKOOP!$K$3:$K$801)) -> 1100 | S2: =SUM(P2:R2) -> 3300
A3: 2 | B3: Cousteau | C3: FR123456 | D3: =SUMPRODUCT((VERKOOP!$C$3:$C$801=1)*(VERKOOP!$L$3:$L$801=$A3)*(VERKOOP!$K$3:$K$801)) -> 0 | E3: =SUMPRODUCT((VERKOOP!$C$3:$C$801=2)*(VERKOOP!$L$3:$L$801=$A3)*(VERKOOP!$K$3:$K$801)) -> 0 | F3: =SUMPRODUCT((VERKOOP!$C$3:$C$801=3)*(VERKOOP!$L$3:$L$801=$A3)*(VERKOOP!$K$3:$K$801)) -> 0 | G3: =SUM(D3:F3) -> 0 | H3: =SUMPRODUCT((VERKOOP!$C$3:$C$801=4)*(VERKOOP!$L$3:$L$801=$A3)*(VERKOOP!$K$3:$K$801)) -> 0 | I3: =SUMPRODUCT((VERKOOP!$C$3:$C$801=5)*(VERKOOP!$L$3:$L$801=$A3)*(VERKOOP!$K$3:$K$801)) -> 0 | J3: =SUMPRODUCT((VERKOOP!$C$3:$C$801=6)*(VERKOOP!$L$3:$L$801=$A3)*(VERKOOP!$K$3:$K$801)) -> 0 | K3: =SUM(H3:J3) -> 0 | L3: =SUMPRODUCT((VERKOOP!$C$3:$C$801=7)*(VERKOOP!$L$3:$L$801=$A3)*(VERKOOP!$K$3:$K$801)) -> 0 | M3: =SUMPRODUCT((VERKOOP!$C$3:$C$801=8)*(VERKOOP!$L$3:$L$801=$A3)*(VERKOOP!$K$3:$K$801)) -> 0 | N3: =SUMPRODUCT((VERKOOP!$C$3:$C$801=9)*(VERKOOP!$L$3:$L$801=$A3)*(VERKOOP!$K$3:$K$801)) -> 0 | O3: =SUM(L3:N3) -> 0 | P3: =SUMPRODUCT((VERKOOP!$C$3:$C$801=10)*(VERKOOP!$L$3:$L$801=$A3)*(VERKOOP!$K$3:$K$801)) -> 0 | Q3: =SUMPRODUCT((VERKOOP!$C$3:$C$801=11)*(VERKOOP!$L$3:$L$801=$A3)*(VERKOOP!$K$3:$K$801)) -> 0 | R3: =SUMPRODUCT((VERKOOP!$C$3:$C$801=12)*(VERKOOP!$L$3:$L$801=$A3)*(VERKOOP!$K$3:$K$801)) -> 0 | S3: =SUM(P3:R3) -> 0
A4: 3 | B4: Kraneneburg | C4: NLTest en zo | D4: =SUMPRODUCT((VERKOOP!$C$3:$C$801=1)*(VERKOOP!$L$3:$L$801=$A4)*(VERKOOP!$K$3:$K$801)) -> 0 | E4: =SUMPRODUCT((VERKOOP!$C$3:$C$801=2)*(VERKOOP!$L$3:$L$801=$A4)*(VERKOOP!$K$3:$K$801)) -> 0 | F4: =SUMPRODUCT((VERKOOP!$C$3:$C$801=3)*(VERKOOP!$L$3:$L$801=$A4)*(VERKOOP!$K$3:$K$801)) -> 0 | G4: =SUM(D4:F4) -> 0 | H4: =SUMPRODUCT((VERKOOP!$C$3:$C$801=4)*(VERKOOP!$L$3:$L$801=$A4)*(VERKOOP!$K$3:$K$801)) -> 0 | I4: =SUMPRODUCT((VERKOOP!$C$3:$C$801=5)*(VERKOOP!$L$3:$L$801=$A4)*(VERKOOP!$K$3:$K$801)) -> 0 | J4: =SUMPRODUCT((VERKOOP!$C$3:$C$801=6)*(VERKOOP!$L$3:$L$801=$A4)*(VERKOOP!$K$3:$K$801)) -> 0 | K4: =SUM(H4:J4) -> 0 | L4: =SUMPRODUCT((VERKOOP!$C$3:$C$801=7)*(VERKOOP!$L$3:$L$801=$A4)*(VERKOOP!$K$3:$K$801)) -> 0 | M4: =SUMPRODUCT((VERKOOP!$C$3:$C$801=8)*(VERKOOP!$L$3:$L$801=$A4)*(VERKOOP!$K$3:$K$801)) -> 0 | N4: =SUMPRODUCT((VERKOOP!$C$3:$C$801=9)*(VERKOOP!$L$3:$L$801=$A4)*(VERKOOP!$K$3:$K$801)) -> 0 | O4: =SUM(L4:N4) -> 0 | P4: =SUMPRODUCT((VERKOOP!$C$3:$C$801=10)*(VERKOOP!$L$3:$L$801=$A4)*(VERKOOP!$K$3:$K$801)) -> 0 | Q4: =SUMPRODUCT((VERKOOP!$C$3:$C$801=11)*(VERKOOP!$L$3:$L$801=$A4)*(VERKOOP!$K$3:$K$801)) -> 0 | R4: =SUMPRODUCT((VERKOOP!$C$3:$C$801=12)*(VERKOOP!$L$3:$L$801=$A4)*(VERKOOP!$K$3:$K$801)) -> 0 | S4: =SUM(P4:R4) -> 0
A5: 4 | D5: =SUMPRODUCT((VERKOOP!$C$3:$C$801=1)*(VERKOOP!$L$3:$L$801=$A5)*(VERKOOP!$K$3:$K$801)) -> 0 | E5: =SUMPRODUCT((VERKOOP!$C$3:$C$801=2)*(VERKOOP!$L$3:$L$801=$A5)*(VERKOOP!$K$3:$K$801)) -> 0 | F5: =SUMPRODUCT((VERKOOP!$C$3:$C$801=3)*(VERKOOP!$L$3:$L$801=$A5)*(VERKOOP!$K$3:$K$801)) -> 0 | G5: =SUM(D5:F5) -> 0 | H5: =SUMPRODUCT((VERKOOP!$C$3:$C$801=4)*(VERKOOP!$L$3:$L$801=$A5)*(VERKOOP!$K$3:$K$801)) -> 0 | I5: =SUMPRODUCT((VERKOOP!$C$3:$C$801=5)*(VERKOOP!$L$3:$L$801=$A5)*(VERKOOP!$K$3:$K$801)) -> 0 | J5: =SUMPRODUCT((VERKOOP!$C$3:$C$801=6)*(VERKOOP!$L$3:$L$801=$A5)*(VERKOOP!$K$3:$K$801)) -> 0 | K5: =SUM(H5:J5) -> 0 | L5: =SUMPRODUCT((VERKOOP!$C$3:$C$801=7)*(VERKOOP!$L$3:$L$801=$A5)*(VERKOOP!$K$3:$K$801)) -> 0 | M5: =SUMPRODUCT((VERKOOP!$C$3:$C$801=8)*(VERKOOP!$L$3:$L$801=$A5)*(VERKOOP!$K$3:$K$801)) -> 0 | N5: =SUMPRODUCT((VERKOOP!$C$3:$C$801=9)*(VERKOOP!$L$3:$L$801=$A5)*(VERKOOP!$K$3:$K$801)) -> 0 | O5: =SUM(L5:N5) -> 0 | P5: =SUMPRODUCT((VERKOOP!$C$3:$C$801=10)*(VERKOOP!$L$3:$L$801=$A5)*(VERKOOP!$K$3:$K$801)) -> 0 | Q5: =SUMPRODUCT((VERKOOP!$C$3:$C$801=11)*(VERKOOP!$L$3:$L$801=$A5)*(VERKOOP!$K$3:$K$801)) -> 0 | R5: =SUMPRODUCT((VERKOOP!$C$3:$C$801=12)*(VERKOOP!$L$3:$L$801=$A5)*(VERKOOP!$K$3:$K$801)) -> 0 | S5: =SUM(P5:R5) -> 0
A6: 5 | D6: =SUMPRODUCT((VERKOOP!$C$3:$C$801=1)*(VERKOOP!$L$3:$L$801=$A6)*(VERKOOP!$K$3:$K$801)) -> 0 | E6: =SUMPRODUCT((VERKOOP!$C$3:$C$801=2)*(VERKOOP!$L$3:$L$801=$A6)*(VERKOOP!$K$3:$K$801)) -> 0 | F6: =SUMPRODUCT((VERKOOP!$C$3:$C$801=3)*(VERKOOP!$L$3:$L$801=$A6)*(VERKOOP!$K$3:$K$801)) -> 0 | G6: =SUM(D6:F6) -> 0 | H6: =SUMPRODUCT((VERKOOP!$C$3:$C$801=4)*(VERKOOP!$L$3:$L$801=$A6)*(VERKOOP!$K$3:$K$801)) -> 0 | I6: =SUMPRODUCT((VERKOOP!$C$3:$C$801=5)*(VERKOOP!$L$3:$L$801=$A6)*(VERKOOP!$K$3:$K$801)) -> 0 | J6: =SUMPRODUCT((VERKOOP!$C$3:$C$801=6)*(VERKOOP!$L$3:$L$801=$A6)*(VERKOOP!$K$3:$K$801)) -> 0 | K6: =SUM(H6:J6) -> 0 | L6: =SUMPRODUCT((VERKOOP!$C$3:$C$801=7)*(VERKOOP!$L$3:$L$801=$A6)*(VERKOOP!$K$3:$K$801)) -> 0 | M6: =SUMPRODUCT((VERKOOP!$C$3:$C$801=8)*(VERKOOP!$L$3:$L$801=$A6)*(VERKOOP!$K$3:$K$801)) -> 0 | N6: =SUMPRODUCT((VERKOOP!$C$3:$C$801=9)*(VERKOOP!$L$3:$L$801=$A6)*(VERKOOP!$K$3:$K$801)) -> 0 | O6: =SUM(L6:N6) -> 0 | P6: =SUMPRODUCT((VERKOOP!$C$3:$C$801=10)*(VERKOOP!$L$3:$L$801=$A6)*(VERKOOP!$K$3:$K$801)) -> 0 | Q6: =SUMPRODUCT((VERKOOP!$C$3:$C$801=11)*(VERKOOP!$L$3:$L$801=$A6)*(VERKOOP!$K$3:$K$801)) -> 0 | R6: =SUMPRODUCT((VERKOOP!$C$3:$C$801=12)*(VERKOOP!$L$3:$L$801=$A6)*(VERKOOP!$K$3:$K$801)) -> 0 | S6: =SUM(P6:R6) -> 0
A7: 6 | D7: =SUMPRODUCT((VERKOOP!$C$3:$C$801=1)*(VERKOOP!$L$3:$L$801=$A7)*(VERKOOP!$K$3:$K$801)) -> 0 | E7: =SUMPRODUCT((VERKOOP!$C$3:$C$801=2)*(VERKOOP!$L$3:$L$801=$A7)*(VERKOOP!$K$3:$K$801)) -> 0 | F7: =SUMPRODUCT((VERKOOP!$C$3:$C$801=3)*(VERKOOP!$L$3:$L$801=$A7)*(VERKOOP!$K$3:$K$801)) -> 0 | G7: =SUM(D7:F7) -> 0 | H7: =SUMPRODUCT((VERKOOP!$C$3:$C$801=4)*(VERKOOP!$L$3:$L$801=$A7)*(VERKOOP!$K$3:$K$801)) -> 0 | I7: =SUMPRODUCT((VERKOOP!$C$3:$C$801=5)*(VERKOOP!$L$3:$L$801=$A7)*(VERKOOP!$K$3:$K$801)) -> 0 | J7: =SUMPRODUCT((VERKOOP!$C$3:$C$801=6)*(VERKOOP!$L$3:$L$801=$A7)*(VERKOOP!$K$3:$K$801)) -> 0 | K7: =SUM(H7:J7) -> 0 | L7: =SUMPRODUCT((VERKOOP!$C$3:$C$801=7)*(VERKOOP!$L$3:$L$801=$A7)*(VERKOOP!$K$3:$K$801)) -> 0 | M7: =SUMPRODUCT((VERKOOP!$C$3:$C$801=8)*(VERKOOP!$L$3:$L$801=$A7)*(VERKOOP!$K$3:$K$801)) -> 0 | N7: =SUMPRODUCT((VERKOOP!$C$3:$C$801=9)*(VERKOOP!$L$3:$L$801=$A7)*(VERKOOP!$K$3:$K$801)) -> 0 | O7: =SUM(L7:N7) -> 0 | P7: =SUMPRODUCT((VERKOOP!$C$3:$C$801=10)*(VERKOOP!$L$3:$L$801=$A7)*(VERKOOP!$K$3:$K$801)) -> 0 | Q7: =SUMPRODUCT((VERKOOP!$C$3:$C$801=11)*(VERKOOP!$L$3:$L$801=$A7)*(VERKOOP!$K$3:$K$801)) -> 0 | R7: =SUMPRODUCT((VERKOOP!$C$3:$C$801=12)*(VERKOOP!$L$3:$L$801=$A7)*(VERKOOP!$K$3:$K$801)) -> 0 | S7: =SUM(P7:R7) -> 0
A8: 7 | D8: =SUMPRODUCT((VERKOOP!$C$3:$C$801=1)*(VERKOOP!$L$3:$L$801=$A8)*(VERKOOP!$K$3:$K$801)) -> 0 | E8: =SUMPRODUCT((VERKOOP!$C$3:$C$801=2)*(VERKOOP!$L$3:$L$801=$A8)*(VERKOOP!$K$3:$K$801)) -> 0 | F8: =SUMPRODUCT((VERKOOP!$C$3:$C$801=3)*(VERKOOP!$L$3:$L$801=$A8)*(VERKOOP!$K$3:$K$801)) -> 0 | G8: =SUM(D8:F8) -> 0 | H8: =SUMPRODUCT((VERKOOP!$C$3:$C$801=4)*(VERKOOP!$L$3:$L$801=$A8)*(VERKOOP!$K$3:$K$801)) -> 0 | I8: =SUMPRODUCT((VERKOOP!$C$3:$C$801=5)*(VERKOOP!$L$3:$L$801=$A8)*(VERKOOP!$K$3:$K$801)) -> 0 | J8: =SUMPRODUCT((VERKOOP!$C$3:$C$801=6)*(VERKOOP!$L$3:$L$801=$A8)*(VERKOOP!$K$3:$K$801)) -> 0 | K8: =SUM(H8:J8) -> 0 | L8: =SUMPRODUCT((VERKOOP!$C$3:$C$801=7)*(VERKOOP!$L$3:$L$801=$A8)*(VERKOOP!$K$3:$K$801)) -> 0 | M8: =SUMPRODUCT((VERKOOP!$C$3:$C$801=8)*(VERKOOP!$L$3:$L$801=$A8)*(VERKOOP!$K$3:$K$801)) -> 0 | N8: =SUMPRODUCT((VERKOOP!$C$3:$C$801=9)*(VERKOOP!$L$3:$L$801=$A8)*(VERKOOP!$K$3:$K$801)) -> 0 | O8: =SUM(L8:N8) -> 0 | P8: =SUMPRODUCT((VERKOOP!$C$3:$C$801=10)*(VERKOOP!$L$3:$L$801=$A8)*(VERKOOP!$K$3:$K$801)) -> 0 | Q8: =SUMPRODUCT((VERKOOP!$C$3:$C$801=11)*(VERKOOP!$L$3:$L$801=$A8)*(VERKOOP!$K$3:$K$801)) -> 0 | R8: =SUMPRODUCT((VERKOOP!$C$3:$C$801=12)*(VERKOOP!$L$3:$L$801=$A8)*(VERKOOP!$K$3:$K$801)) -> 0 | S8: =SUM(P8:R8) -> 0
A9: 8 | D9: =SUMPRODUCT((VERKOOP!$C$3:$C$801=1)*(VERKOOP!$L$3:$L$801=$A9)*(VERKOOP!$K$3:$K$801)) -> 0 | E9: =SUMPRODUCT((VERKOOP!$C$3:$C$801=2)*(VERKOOP!$L$3:$L$801=$A9)*(VERKOOP!$K$3:$K$801)) -> 0 | F9: =SUMPRODUCT((VERKOOP!$C$3:$C$801=3)*(VERKOOP!$L$3:$L$801=$A9)*(VERKOOP!$K$3:$K$801)) -> 0 | G9: =SUM(D9:F9) -> 0 | H9: =SUMPRODUCT((VERKOOP!$C$3:$C$801=4)*(VERKOOP!$L$3:$L$801=$A9)*(VERKOOP!$K$3:$K$801)) -> 0 | I9: =SUMPRODUCT((VERKOOP!$C$3:$C$801=5)*(VERKOOP!$L$3:$L$801=$A9)*(VERKOOP!$K$3:$K$801)) -> 0 | J9: =SUMPRODUCT((VERKOOP!$C$3:$C$801=6)*(VERKOOP!$L$3:$L$801=$A9)*(VERKOOP!$K$3:$K$801)) -> 0 | K9: =SUM(H9:J9) -> 0 | L9: =SUMPRODUCT((VERKOOP!$C$3:$C$801=7)*(VERKOOP!$L$3:$L$801=$A9)*(VERKOOP!$K$3:$K$801)) -> 0 | M9: =SUMPRODUCT((VERKOOP!$C$3:$C$801=8)*(VERKOOP!$L$3:$L$801=$A9)*(VERKOOP!$K$3:$K$801)) -> 0 | N9: =SUMPRODUCT((VERKOOP!$C$3:$C$801=9)*(VERKOOP!$L$3:$L$801=$A9)*(VERKOOP!$K$3:$K$801)) -> 0 | O9: =SUM(L9:N9) -> 0 | P9: =SUMPRODUCT((VERKOOP!$C$3:$C$801=10)*(VERKOOP!$L$3:$L$801=$A9)*(VERKOOP!$K$3:$K$801)) -> 0 | Q9: =SUMPRODUCT((VERKOOP!$C$3:$C$801=11)*(VERKOOP!$L$3:$L$801=$A9)*(VERKOOP!$K$3:$K$801)) -> 0 | R9: =SUMPRODUCT((VERKOOP!$C$3:$C$801=12)*(VERKOOP!$L$3:$L$801=$A9)*(VERKOOP!$K$3:$K$801)) -> 0 | S9: =SUM(P9:R9) -> 0
A10: 9 | D10: =SUMPRODUCT((VERKOOP!$C$3:$C$801=1)*(VERKOOP!$L$3:$L$801=$A10)*(VERKOOP!$K$3:$K$801)) -> 0 | E10: =SUMPRODUCT((VERKOOP!$C$3:$C$801=2)*(VERKOOP!$L$3:$L$801=$A10)*(VERKOOP!$K$3:$K$801)) -> 0 | F10: =SUMPRODUCT((VERKOOP!$C$3:$C$801=3)*(VERKOOP!$L$3:$L$801=$A10)*(VERKOOP!$K$3:$K$801)) -> 0 | G10: =SUM(D10:F10) -> 0 | H10: =SUMPRODUCT((VERKOOP!$C$3:$C$801=4)*(VERKOOP!$L$3:$L$801=$A10)*(VERKOOP!$K$3:$K$801)) -> 0 | I10: =SUMPRODUCT((VERKOOP!$C$3:$C$801=5)*(VERKOOP!$L$3:$L$801=$A10)*(VERKOOP!$K$3:$K$801)) -> 0 | J10: =SUMPRODUCT((VERKOOP!$C$3:$C$801=6)*(VERKOOP!$L$3:$L$801=$A10)*(VERKOOP!$K$3:$K$801)) -> 0 | K10: =SUM(H10:J10) -> 0 | L10: =SUMPRODUCT((VERKOOP!$C$3:$C$801=7)*(VERKOOP!$L$3:$L$801=$A10)*(VERKOOP!$K$3:$K$801)) -> 0 | M10: =SUMPRODUCT((VERKOOP!$C$3:$C$801=8)*(VERKOOP!$L$3:$L$801=$A10)*(VERKOOP!$K$3:$K$801)) -> 0 | N10: =SUMPRODUCT((VERKOOP!$C$3:$C$801=9)*(VERKOOP!$L$3:$L$801=$A10)*(VERKOOP!$K$3:$K$801)) -> 0 | O10: =SUM(L10:N10) -> 0 | P10: =SUMPRODUCT((VERKOOP!$C$3:$C$801=10)*(VERKOOP!$L$3:$L$801=$A10)*(VERKOOP!$K$3:$K$801)) -> 0 | Q10: =SUMPRODUCT((VERKOOP!$C$3:$C$801=11)*(VERKOOP!$L$3:$L$801=$A10)*(VERKOOP!$K$3:$K$801)) -> 0 | R10: =SUMPRODUCT((VERKOOP!$C$3:$C$801=12)*(VERKOOP!$L$3:$L$801=$A10)*(VERKOOP!$K$3:$K$801)) -> 0 | S10: =SUM(P10:R10) -> 0
A11: 10 | D11: =SUMPRODUCT((VERKOOP!$C$3:$C$801=1)*(VERKOOP!$L$3:$L$801=$A11)*(VERKOOP!$K$3:$K$801)) -> 0 | E11: =SUMPRODUCT((VERKOOP!$C$3:$C$801=2)*(VERKOOP!$L$3:$L$801=$A11)*(VERKOOP!$K$3:$K$801)) -> 0 | F11: =SUMPRODUCT((VERKOOP!$C$3:$C$801=3)*(VERKOOP!$L$3:$L$801=$A11)*(VERKOOP!$K$3:$K$801)) -> 0 | G11: =SUM(D11:F11) -> 0 | H11: =SUMPRODUCT((VERKOOP!$C$3:$C$801=4)*(VERKOOP!$L$3:$L$801=$A11)*(VERKOOP!$K$3:$K$801)) -> 0 | I11: =SUMPRODUCT((VERKOOP!$C$3:$C$801=5)*(VERKOOP!$L$3:$L$801=$A11)*(VERKOOP!$K$3:$K$801)) -> 0 | J11: =SUMPRODUCT((VERKOOP!$C$3:$C$801=6)*(VERKOOP!$L$3:$L$801=$A11)*(VERKOOP!$K$3:$K$801)) -> 0 | K11: =SUM(H11:J11) -> 0 | L11: =SUMPRODUCT((VERKOOP!$C$3:$C$801=7)*(VERKOOP!$L$3:$L$801=$A11)*(VERKOOP!$K$3:$K$801)) -> 0 | M11: =SUMPRODUCT((VERKOOP!$C$3:$C$801=8)*(VERKOOP!$L$3:$L$801=$A11)*(VERKOOP!$K$3:$K$801)) -> 0 | N11: =SUMPRODUCT((VERKOOP!$C$3:$C$801=9)*(VERKOOP!$L$3:$L$801=$A11)*(VERKOOP!$K$3:$K$801)) -> 0 | O11: =SUM(L11:N11) -> 0 | P11: =SUMPRODUCT((VERKOOP!$C$3:$C$801=10)*(VERKOOP!$L$3:$L$801=$A11)*(VERKOOP!$K$3:$K$801)) -> 0 | Q11: =SUMPRODUCT((VERKOOP!$C$3:$C$801=11)*(VERKOOP!$L$3:$L$801=$A11)*(VERKOOP!$K$3:$K$801)) -> 0 | R11: =SUMPRODUCT((VERKOOP!$C$3:$C$801=12)*(VERKOOP!$L$3:$L$801=$A11)*(VERKOOP!$K$3:$K$801)) -> 0 | S11: =SUM(P11:R11) -> 0
A12: 11 | D12: =SUMPRODUCT((VERKOOP!$C$3:$C$801=1)*(VERKOOP!$L$3:$L$801=$A12)*(VERKOOP!$K$3:$K$801)) -> 0 | E12: =SUMPRODUCT((VERKOOP!$C$3:$C$801=2)*(VERKOOP!$L$3:$L$801=$A12)*(VERKOOP!$K$3:$K$801)) -> 0 | F12: =SUMPRODUCT((VERKOOP!$C$3:$C$801=3)*(VERKOOP!$L$3:$L$801=$A12)*(VERKOOP!$K$3:$K$801)) -> 0 | G12: =SUM(D12:F12) -> 0 | H12: =SUMPRODUCT((VERKOOP!$C$3:$C$801=4)*(VERKOOP!$L$3:$L$801=$A12)*(VERKOOP!$K$3:$K$801)) -> 0 | I12: =SUMPRODUCT((VERKOOP!$C$3:$C$801=5)*(VERKOOP!$L$3:$L$801=$A12)*(VERKOOP!$K$3:$K$801)) -> 0 | J12: =SUMPRODUCT((VERKOOP!$C$3:$C$801=6)*(VERKOOP!$L$3:$L$801=$A12)*(VERKOOP!$K$3:$K$801)) -> 0 | K12: =SUM(H12:J12) -> 0 | L12: =SUMPRODUCT((VERKOOP!$C$3:$C$801=7)*(VERKOOP!$L$3:$L$801=$A12)*(VERKOOP!$K$3:$K$801)) -> 0 | M12: =SUMPRODUCT((VERKOOP!$C$3:$C$801=8)*(VERKOOP!$L$3:$L$801=$A12)*(VERKOOP!$K$3:$K$801)) -> 0 | N12: =SUMPRODUCT((VERKOOP!$C$3:$C$801=9)*(VERKOOP!$L$3:$L$801=$A12)*(VERKOOP!$K$3:$K$801)) -> 0 | O12: =SUM(L12:N12) -> 0 | P12: =SUMPRODUCT((VERKOOP!$C$3:$C$801=10)*(VERKOOP!$L$3:$L$801=$A12)*(VERKOOP!$K$3:$K$801)) -> 0 | Q12: =SUMPRODUCT((VERKOOP!$C$3:$C$801=11)*(VERKOOP!$L$3:$L$801=$A12)*(VERKOOP!$K$3:$K$801)) -> 0 | R12: =SUMPRODUCT((VERKOOP!$C$3:$C$801=12)*(VERKOOP!$L$3:$L$801=$A12)*(VERKOOP!$K$3:$K$801)) -> 0 | S12: =SUM(P12:R12) -> 0
A13: 12 | D13: =SUMPRODUCT((VERKOOP!$C$3:$C$801=1)*(VERKOOP!$L$3:$L$801=$A13)*(VERKOOP!$K$3:$K$801)) -> 0 | E13: =SUMPRODUCT((VERKOOP!$C$3:$C$801=2)*(VERKOOP!$L$3:$L$801=$A13)*(VERKOOP!$K$3:$K$801)) -> 0 | F13: =SUMPRODUCT((VERKOOP!$C$3:$C$801=3)*(VERKOOP!$L$3:$L$801=$A13)*(VERKOOP!$K$3:$K$801)) -> 0 | G13: =SUM(D13:F13) -> 0 | H13: =SUMPRODUCT((VERKOOP!$C$3:$C$801=4)*(VERKOOP!$L$3:$L$801=$A13)*(VERKOOP!$K$3:$K$801)) -> 0 | I13: =SUMPRODUCT((VERKOOP!$C$3:$C$801=5)*(VERKOOP!$L$3:$L$801=$A13)*(VERKOOP!$K$3:$K$801)) -> 0 | J13: =SUMPRODUCT((VERKOOP!$C$3:$C$801=6)*(VERKOOP!$L$3:$L$801=$A13)*(VERKOOP!$K$3:$K$801)) -> 0 | K13: =SUM(H13:J13) -> 0 | L13: =SUMPRODUCT((VERKOOP!$C$3:$C$801=7)*(VERKOOP!$L$3:$L$801=$A13)*(VERKOOP!$K$3:$K$801)) -> 0 | M13: =SUMPRODUCT((VERKOOP!$C$3:$C$801=8)*(VERKOOP!$L$3:$L$801=$A13)*(VERKOOP!$K$3:$K$801)) -> 0 | N13: =SUMPRODUCT((VERKOOP!$C$3:$C$801=9)*(VERKOOP!$L$3:$L$801=$A13)*(VERKOOP!$K$3:$K$801)) -> 0 | O13: =SUM(L13:N13) -> 0 | P13: =SUMPRODUCT((VERKOOP!$C$3:$C$801=10)*(VERKOOP!$L$3:$L$801=$A13)*(VERKOOP!$K$3:$K$801)) -> 0 | Q13: =SUMPRODUCT((VERKOOP!$C$3:$C$801=11)*(VERKOOP!$L$3:$L$801=$A13)*(VERKOOP!$K$3:$K$801)) -> 0 | R13: =SUMPRODUCT((VERKOOP!$C$3:$C$801=12)*(VERKOOP!$L$3:$L$801=$A13)*(VERKOOP!$K$3:$K$801)) -> 0 | S13: =SUM(P13:R13) -> 0
A14: 13 | D14: =SUMPRODUCT((VERKOOP!$C$3:$C$801=1)*(VERKOOP!$L$3:$L$801=$A14)*(VERKOOP!$K$3:$K$801)) -> 0 | E14: =SUMPRODUCT((VERKOOP!$C$3:$C$801=2)*(VERKOOP!$L$3:$L$801=$A14)*(VERKOOP!$K$3:$K$801)) -> 0 | F14: =SUMPRODUCT((VERKOOP!$C$3:$C$801=3)*(VERKOOP!$L$3:$L$801=$A14)*(VERKOOP!$K$3:$K$801)) -> 0 | G14: =SUM(D14:F14) -> 0 | H14: =SUMPRODUCT((VERKOOP!$C$3:$C$801=4)*(VERKOOP!$L$3:$L$801=$A14)*(VERKOOP!$K$3:$K$801)) -> 0 | I14: =SUMPRODUCT((VERKOOP!$C$3:$C$801=5)*(VERKOOP!$L$3:$L$801=$A14)*(VERKOOP!$K$3:$K$801)) -> 0 | J14: =SUMPRODUCT((VERKOOP!$C$3:$C$801=6)*(VERKOOP!$L$3:$L$801=$A14)*(VERKOOP!$K$3:$K$801)) -> 0 | K14: =SUM(H14:J14) -> 0 | L14: =SUMPRODUCT((VERKOOP!$C$3:$C$801=7)*(VERKOOP!$L$3:$L$801=$A14)*(VERKOOP!$K$3:$K$801)) -> 0 | M14: =SUMPRODUCT((VERKOOP!$C$3:$C$801=8)*(VERKOOP!$L$3:$L$801=$A14)*(VERKOOP!$K$3:$K$801)) -> 0 | N14: =SUMPRODUCT((VERKOOP!$C$3:$C$801=9)*(VERKOOP!$L$3:$L$801=$A14)*(VERKOOP!$K$3:$K$801)) -> 0 | O14: =SUM(L14:N14) -> 0 | P14: =SUMPRODUCT((VERKOOP!$C$3:$C$801=10)*(VERKOOP!$L$3:$L$801=$A14)*(VERKOOP!$K$3:$K$801)) -> 0 | Q14: =SUMPRODUCT((VERKOOP!$C$3:$C$801=11)*(VERKOOP!$L$3:$L$801=$A14)*(VERKOOP!$K$3:$K$801)) -> 0 | R14: =SUMPRODUCT((VERKOOP!$C$3:$C$801=12)*(VERKOOP!$L$3:$L$801=$A14)*(VERKOOP!$K$3:$K$801)) -> 0 | S14: =SUM(P14:R14) -> 0
A15: 14 | D15: =SUMPRODUCT((VERKOOP!$C$3:$C$801=1)*(VERKOOP!$L$3:$L$801=$A15)*(VERKOOP!$K$3:$K$801)) -> 0 | E15: =SUMPRODUCT((VERKOOP!$C$3:$C$801=2)*(VERKOOP!$L$3:$L$801=$A15)*(VERKOOP!$K$3:$K$801)) -> 0 | F15: =SUMPRODUCT((VERKOOP!$C$3:$C$801=3)*(VERKOOP!$L$3:$L$801=$A15)*(VERKOOP!$K$3:$K$801)) -> 0 | G15: =SUM(D15:F15) -> 0 | H15: =SUMPRODUCT((VERKOOP!$C$3:$C$801=4)*(VERKOOP!$L$3:$L$801=$A15)*(VERKOOP!$K$3:$K$801)) -> 0 | I15: =SUMPRODUCT((VERKOOP!$C$3:$C$801=5)*(VERKOOP!$L$3:$L$801=$A15)*(VERKOOP!$K$3:$K$801)) -> 0 | J15: =SUMPRODUCT((VERKOOP!$C$3:$C$801=6)*(VERKOOP!$L$3:$L$801=$A15)*(VERKOOP!$K$3:$K$801)) -> 0 | K15: =SUM(H15:J15) -> 0 | L15: =SUMPRODUCT((VERKOOP!$C$3:$C$801=7)*(VERKOOP!$L$3:$L$801=$A15)*(VERKOOP!$K$3:$K$801)) -> 0 | M15: =SUMPRODUCT((VERKOOP!$C$3:$C$801=8)*(VERKOOP!$L$3:$L$801=$A15)*(VERKOOP!$K$3:$K$801)) -> 0 | N15: =SUMPRODUCT((VERKOOP!$C$3:$C$801=9)*(VERKOOP!$L$3:$L$801=$A15)*(VERKOOP!$K$3:$K$801)) -> 0 | O15: =SUM(L15:N15) -> 0 | P15: =SUMPRODUCT((VERKOOP!$C$3:$C$801=10)*(VERKOOP!$L$3:$L$801=$A15)*(VERKOOP!$K$3:$K$801)) -> 0 | Q15: =SUMPRODUCT((VERKOOP!$C$3:$C$801=11)*(VERKOOP!$L$3:$L$801=$A15)*(VERKOOP!$K$3:$K$801)) -> 0 | R15: =SUMPRODUCT((VERKOOP!$C$3:$C$801=12)*(VERKOOP!$L$3:$L$801=$A15)*(VERKOOP!$K$3:$K$801)) -> 0 | S15: =SUM(P15:R15) -> 0
A16: 15 | D16: =SUMPRODUCT((VERKOOP!$C$3:$C$801=1)*(VERKOOP!$L$3:$L$801=$A16)*(VERKOOP!$K$3:$K$801)) -> 0 | E16: =SUMPRODUCT((VERKOOP!$C$3:$C$801=2)*(VERKOOP!$L$3:$L$801=$A16)*(VERKOOP!$K$3:$K$801)) -> 0 | F16: =SUMPRODUCT((VERKOOP!$C$3:$C$801=3)*(VERKOOP!$L$3:$L$801=$A16)*(VERKOOP!$K$3:$K$801)) -> 0 | G16: =SUM(D16:F16) -> 0 | H16: =SUMPRODUCT((VERKOOP!$C$3:$C$801=4)*(VERKOOP!$L$3:$L$801=$A16)*(VERKOOP!$K$3:$K$801)) -> 0 | I16: =SUMPRODUCT((VERKOOP!$C$3:$C$801=5)*(VERKOOP!$L$3:$L$801=$A16)*(VERKOOP!$K$3:$K$801)) -> 0 | J16: =SUMPRODUCT((VERKOOP!$C$3:$C$801=6)*(VERKOOP!$L$3:$L$801=$A16)*(VERKOOP!$K$3:$K$801)) -> 0 | K16: =SUM(H16:J16) -> 0 | L16: =SUMPRODUCT((VERKOOP!$C$3:$C$801=7)*(VERKOOP!$L$3:$L$801=$A16)*(VERKOOP!$K$3:$K$801)) -> 0 | M16: =SUMPRODUCT((VERKOOP!$C$3:$C$801=8)*(VERKOOP!$L$3:$L$801=$A16)*(VERKOOP!$K$3:$K$801)) -> 0 | N16: =SUMPRODUCT((VERKOOP!$C$3:$C$801=9)*(VERKOOP!$L$3:$L$801=$A16)*(VERKOOP!$K$3:$K$801)) -> 0 | O16: =SUM(L16:N16) -> 0 | P16: =SUMPRODUCT((VERKOOP!$C$3:$C$801=10)*(VERKOOP!$L$3:$L$801=$A16)*(VERKOOP!$K$3:$K$801)) -> 0 | Q16: =SUMPRODUCT((VERKOOP!$C$3:$C$801=11)*(VERKOOP!$L$3:$L$801=$A16)*(VERKOOP!$K$3:$K$801)) -> 0 | R16: =SUMPRODUCT((VERKOOP!$C$3:$C$801=12)*(VERKOOP!$L$3:$L$801=$A16)*(VERKOOP!$K$3:$K$801)) -> 0 | S16: =SUM(P16:R16) -> 0
A17: 16 | D17: =SUMPRODUCT((VERKOOP!$C$3:$C$801=1)*(VERKOOP!$L$3:$L$801=$A17)*(VERKOOP!$K$3:$K$801)) -> 0 | E17: =SUMPRODUCT((VERKOOP!$C$3:$C$801=2)*(VERKOOP!$L$3:$L$801=$A17)*(VERKOOP!$K$3:$K$801)) -> 0 | F17: =SUMPRODUCT((VERKOOP!$C$3:$C$801=3)*(VERKOOP!$L$3:$L$801=$A17)*(VERKOOP!$K$3:$K$801)) -> 0 | G17: =SUM(D17:F17) -> 0 | H17: =SUMPRODUCT((VERKOOP!$C$3:$C$801=4)*(VERKOOP!$L$3:$L$801=$A17)*(VERKOOP!$K$3:$K$801)) -> 0 | I17: =SUMPRODUCT((VERKOOP!$C$3:$C$801=5)*(VERKOOP!$L$3:$L$801=$A17)*(VERKOOP!$K$3:$K$801)) -> 0 | J17: =SUMPRODUCT((VERKOOP!$C$3:$C$801=6)*(VERKOOP!$L$3:$L$801=$A17)*(VERKOOP!$K$3:$K$801)) -> 0 | K17: =SUM(H17:J17) -> 0 | L17: =SUMPRODUCT((VERKOOP!$C$3:$C$801=7)*(VERKOOP!$L$3:$L$801=$A17)*(VERKOOP!$K$3:$K$801)) -> 0 | M17: =SUMPRODUCT((VERKOOP!$C$3:$C$801=8)*(VERKOOP!$L$3:$L$801=$A17)*(VERKOOP!$K$3:$K$801)) -> 0 | N17: =SUMPRODUCT((VERKOOP!$C$3:$C$801=9)*(VERKOOP!$L$3:$L$801=$A17)*(VERKOOP!$K$3:$K$801)) -> 0 | O17: =SUM(L17:N17) -> 0 | P17: =SUMPRODUCT((VERKOOP!$C$3:$C$801=10)*(VERKOOP!$L$3:$L$801=$A17)*(VERKOOP!$K$3:$K$801)) -> 0 | Q17: =SUMPRODUCT((VERKOOP!$C$3:$C$801=11)*(VERKOOP!$L$3:$L$801=$A17)*(VERKOOP!$K$3:$K$801)) -> 0 | R17: =SUMPRODUCT((VERKOOP!$C$3:$C$801=12)*(VERKOOP!$L$3:$L$801=$A17)*(VERKOOP!$K$3:$K$801)) -> 0 | S17: =SUM(P17:R17) -> 0
A18: 17 | D18: =SUMPRODUCT((VERKOOP!$C$3:$C$801=1)*(VERKOOP!$L$3:$L$801=$A18)*(VERKOOP!$K$3:$K$801)) -> 0 | E18: =SUMPRODUCT((VERKOOP!$C$3:$C$801=2)*(VERKOOP!$L$3:$L$801=$A18)*(VERKOOP!$K$3:$K$801)) -> 0 | F18: =SUMPRODUCT((VERKOOP!$C$3:$C$801=3)*(VERKOOP!$L$3:$L$801=$A18)*(VERKOOP!$K$3:$K$801)) -> 0 | G18: =SUM(D18:F18) -> 0 | H18: =SUMPRODUCT((VERKOOP!$C$3:$C$801=4)*(VERKOOP!$L$3:$L$801=$A18)*(VERKOOP!$K$3:$K$801)) -> 0 | I18: =SUMPRODUCT((VERKOOP!$C$3:$C$801=5)*(VERKOOP!$L$3:$L$801=$A18)*(VERKOOP!$K$3:$K$801)) -> 0 | J18: =SUMPRODUCT((VERKOOP!$C$3:$C$801=6)*(VERKOOP!$L$3:$L$801=$A18)*(VERKOOP!$K$3:$K$801)) -> 0 | K18: =SUM(H18:J18) -> 0 | L18: =SUMPRODUCT((VERKOOP!$C$3:$C$801=7)*(VERKOOP!$L$3:$L$801=$A18)*(VERKOOP!$K$3:$K$801)) -> 0 | M18: =SUMPRODUCT((VERKOOP!$C$3:$C$801=8)*(VERKOOP!$L$3:$L$801=$A18)*(VERKOOP!$K$3:$K$801)) -> 0 | N18: =SUMPRODUCT((VERKOOP!$C$3:$C$801=9)*(VERKOOP!$L$3:$L$801=$A18)*(VERKOOP!$K$3:$K$801)) -> 0 | O18: =SUM(L18:N18) -> 0 | P18: =SUMPRODUCT((VERKOOP!$C$3:$C$801=10)*(VERKOOP!$L$3:$L$801=$A18)*(VERKOOP!$K$3:$K$801)) -> 0 | Q18: =SUMPRODUCT((VERKOOP!$C$3:$C$801=11)*(VERKOOP!$L$3:$L$801=$A18)*(VERKOOP!$K$3:$K$801)) -> 0 | R18: =SUMPRODUCT((VERKOOP!$C$3:$C$801=12)*(VERKOOP!$L$3:$L$801=$A18)*(VERKOOP!$K$3:$K$801)) -> 0 | S18: =SUM(P18:R18) -> 0
A19: 18 | D19: =SUMPRODUCT((VERKOOP!$C$3:$C$801=1)*(VERKOOP!$L$3:$L$801=$A19)*(VERKOOP!$K$3:$K$801)) -> 0 | E19: =SUMPRODUCT((VERKOOP!$C$3:$C$801=2)*(VERKOOP!$L$3:$L$801=$A19)*(VERKOOP!$K$3:$K$801)) -> 0 | F19: =SUMPRODUCT((VERKOOP!$C$3:$C$801=3)*(VERKOOP!$L$3:$L$801=$A19)*(VERKOOP!$K$3:$K$801)) -> 0 | G19: =SUM(D19:F19) -> 0 | H19: =SUMPRODUCT((VERKOOP!$C$3:$C$801=4)*(VERKOOP!$L$3:$L$801=$A19)*(VERKOOP!$K$3:$K$801)) -> 0 | I19: =SUMPRODUCT((VERKOOP!$C$3:$C$801=5)*(VERKOOP!$L$3:$L$801=$A19)*(VERKOOP!$K$3:$K$801)) -> 0 | J19: =SUMPRODUCT((VERKOOP!$C$3:$C$801=6)*(VERKOOP!$L$3:$L$801=$A19)*(VERKOOP!$K$3:$K$801)) -> 0 | K19: =SUM(H19:J19) -> 0 | L19: =SUMPRODUCT((VERKOOP!$C$3:$C$801=7)*(VERKOOP!$L$3:$L$801=$A19)*(VERKOOP!$K$3:$K$801)) -> 0 | M19: =SUMPRODUCT((VERKOOP!$C$3:$C$801=8)*(VERKOOP!$L$3:$L$801=$A19)*(VERKOOP!$K$3:$K$801)) -> 0 | N19: =SUMPRODUCT((VERKOOP!$C$3:$C$801=9)*(VERKOOP!$L$3:$L$801=$A19)*(VERKOOP!$K$3:$K$801)) -> 0 | O19: =SUM(L19:N19) -> 0 | P19: =SUMPRODUCT((VERKOOP!$C$3:$C$801=10)*(VERKOOP!$L$3:$L$801=$A19)*(VERKOOP!$K$3:$K$801)) -> 0 | Q19: =SUMPRODUCT((VERKOOP!$C$3:$C$801=11)*(VERKOOP!$L$3:$L$801=$A19)*(VERKOOP!$K$3:$K$801)) -> 0 | R19: =SUMPRODUCT((VERKOOP!$C$3:$C$801=12)*(VERKOOP!$L$3:$L$801=$A19)*(VERKOOP!$K$3:$K$801)) -> 0 | S19: =SUM(P19:R19) -> 0
A20: 19 | D20: =SUMPRODUCT((VERKOOP!$C$3:$C$801=1)*(VERKOOP!$L$3:$L$801=$A20)*(VERKOOP!$K$3:$K$801)) -> 0 | E20: =SUMPRODUCT((VERKOOP!$C$3:$C$801=2)*(VERKOOP!$L$3:$L$801=$A20)*(VERKOOP!$K$3:$K$801)) -> 0 | F20: =SUMPRODUCT((VERKOOP!$C$3:$C$801=3)*(VERKOOP!$L$3:$L$801=$A20)*(VERKOOP!$K$3:$K$801)) -> 0 | G20: =SUM(D20:F20) -> 0 | H20: =SUMPRODUCT((VERKOOP!$C$3:$C$801=4)*(VERKOOP!$L$3:$L$801=$A20)*(VERKOOP!$K$3:$K$801)) -> 0 | I20: =SUMPRODUCT((VERKOOP!$C$3:$C$801=5)*(VERKOOP!$L$3:$L$801=$A20)*(VERKOOP!$K$3:$K$801)) -> 0 | J20: =SUMPRODUCT((VERKOOP!$C$3:$C$801=6)*(VERKOOP!$L$3:$L$801=$A20)*(VERKOOP!$K$3:$K$801)) -> 0 | K20: =SUM(H20:J20) -> 0 | L20: =SUMPRODUCT((VERKOOP!$C$3:$C$801=7)*(VERKOOP!$L$3:$L$801=$A20)*(VERKOOP!$K$3:$K$801)) -> 0 | M20: =SUMPRODUCT((VERKOOP!$C$3:$C$801=8)*(VERKOOP!$L$3:$L$801=$A20)*(VERKOOP!$K$3:$K$801)) -> 0 | N20: =SUMPRODUCT((VERKOOP!$C$3:$C$801=9)*(VERKOOP!$L$3:$L$801=$A20)*(VERKOOP!$K$3:$K$801)) -> 0 | O20: =SUM(L20:N20) -> 0 | P20: =SUMPRODUCT((VERKOOP!$C$3:$C$801=10)*(VERKOOP!$L$3:$L$801=$A20)*(VERKOOP!$K$3:$K$801)) -> 0 | Q20: =SUMPRODUCT((VERKOOP!$C$3:$C$801=11)*(VERKOOP!$L$3:$L$801=$A20)*(VERKOOP!$K$3:$K$801)) -> 0 | R20: =SUMPRODUCT((VERKOOP!$C$3:$C$801=12)*(VERKOOP!$L$3:$L$801=$A20)*(VERKOOP!$K$3:$K$801)) -> 0 | S20: =SUM(P20:R20) -> 0
A21: 20 | D21: =SUMPRODUCT((VERKOOP!$C$3:$C$801=1)*(VERKOOP!$L$3:$L$801=$A21)*(VERKOOP!$K$3:$K$801)) -> 0 | E21: =SUMPRODUCT((VERKOOP!$C$3:$C$801=2)*(VERKOOP!$L$3:$L$801=$A21)*(VERKOOP!$K$3:$K$801)) -> 0 | F21: =SUMPRODUCT((VERKOOP!$C$3:$C$801=3)*(VERKOOP!$L$3:$L$801=$A21)*(VERKOOP!$K$3:$K$801)) -> 0 | G21: =SUM(D21:F21) -> 0 | H21: =SUMPRODUCT((VERKOOP!$C$3:$C$801=4)*(VERKOOP!$L$3:$L$801=$A21)*(VERKOOP!$K$3:$K$801)) -> 0 | I21: =SUMPRODUCT((VERKOOP!$C$3:$C$801=5)*(VERKOOP!$L$3:$L$801=$A21)*(VERKOOP!$K$3:$K$801)) -> 0 | J21: =SUMPRODUCT((VERKOOP!$C$3:$C$801=6)*(VERKOOP!$L$3:$L$801=$A21)*(VERKOOP!$K$3:$K$801)) -> 0 | K21: =SUM(H21:J21) -> 0 | L21: =SUMPRODUCT((VERKOOP!$C$3:$C$801=7)*(VERKOOP!$L$3:$L$801=$A21)*(VERKOOP!$K$3:$K$801)) -> 0 | M21: =SUMPRODUCT((VERKOOP!$C$3:$C$801=8)*(VERKOOP!$L$3:$L$801=$A21)*(VERKOOP!$K$3:$K$801)) -> 0 | N21: =SUMPRODUCT((VERKOOP!$C$3:$C$801=9)*(VERKOOP!$L$3:$L$801=$A21)*(VERKOOP!$K$3:$K$801)) -> 0 | O21: =SUM(L21:N21) -> 0 | P21: =SUMPRODUCT((VERKOOP!$C$3:$C$801=10)*(VERKOOP!$L$3:$L$801=$A21)*(VERKOOP!$K$3:$K$801)) -> 0 | Q21: =SUMPRODUCT((VERKOOP!$C$3:$C$801=11)*(VERKOOP!$L$3:$L$801=$A21)*(VERKOOP!$K$3:$K$801)) -> 0 | R21: =SUMPRODUCT((VERKOOP!$C$3:$C$801=12)*(VERKOOP!$L$3:$L$801=$A21)*(VERKOOP!$K$3:$K$801)) -> 0 | S21: =SUM(P21:R21) -> 0
A22: 21 | D22: =SUMPRODUCT((VERKOOP!$C$3:$C$801=1)*(VERKOOP!$L$3:$L$801=$A22)*(VERKOOP!$K$3:$K$801)) -> 0 | E22: =SUMPRODUCT((VERKOOP!$C$3:$C$801=2)*(VERKOOP!$L$3:$L$801=$A22)*(VERKOOP!$K$3:$K$801)) -> 0 | F22: =SUMPRODUCT((VERKOOP!$C$3:$C$801=3)*(VERKOOP!$L$3:$L$801=$A22)*(VERKOOP!$K$3:$K$801)) -> 0 | G22: =SUM(D22:F22) -> 0 | H22: =SUMPRODUCT((VERKOOP!$C$3:$C$801=4)*(VERKOOP!$L$3:$L$801=$A22)*(VERKOOP!$K$3:$K$801)) -> 0 | I22: =SUMPRODUCT((VERKOOP!$C$3:$C$801=5)*(VERKOOP!$L$3:$L$801=$A22)*(VERKOOP!$K$3:$K$801)) -> 0 | J22: =SUMPRODUCT((VERKOOP!$C$3:$C$801=6)*(VERKOOP!$L$3:$L$801=$A22)*(VERKOOP!$K$3:$K$801)) -> 0 | K22: =SUM(H22:J22) -> 0 | L22: =SUMPRODUCT((VERKOOP!$C$3:$C$801=7)*(VERKOOP!$L$3:$L$801=$A22)*(VERKOOP!$K$3:$K$801)) -> 0 | M22: =SUMPRODUCT((VERKOOP!$C$3:$C$801=8)*(VERKOOP!$L$3:$L$801=$A22)*(VERKOOP!$K$3:$K$801)) -> 0 | N22: =SUMPRODUCT((VERKOOP!$C$3:$C$801=9)*(VERKOOP!$L$3:$L$801=$A22)*(VERKOOP!$K$3:$K$801)) -> 0 | O22: =SUM(L22:N22) -> 0 | P22: =SUMPRODUCT((VERKOOP!$C$3:$C$801=10)*(VERKOOP!$L$3:$L$801=$A22)*(VERKOOP!$K$3:$K$801)) -> 0 | Q22: =SUMPRODUCT((VERKOOP!$C$3:$C$801=11)*(VERKOOP!$L$3:$L$801=$A22)*(VERKOOP!$K$3:$K$801)) -> 0 | R22: =SUMPRODUCT((VERKOOP!$C$3:$C$801=12)*(VERKOOP!$L$3:$L$801=$A22)*(VERKOOP!$K$3:$K$801)) -> 0 | S22: =SUM(P22:R22) -> 0
A23: 22 | D23: =SUMPRODUCT((VERKOOP!$C$3:$C$801=1)*(VERKOOP!$L$3:$L$801=$A23)*(VERKOOP!$K$3:$K$801)) -> 0 | E23: =SUMPRODUCT((VERKOOP!$C$3:$C$801=2)*(VERKOOP!$L$3:$L$801=$A23)*(VERKOOP!$K$3:$K$801)) -> 0 | F23: =SUMPRODUCT((VERKOOP!$C$3:$C$801=3)*(VERKOOP!$L$3:$L$801=$A23)*(VERKOOP!$K$3:$K$801)) -> 0 | G23: =SUM(D23:F23) -> 0 | H23: =SUMPRODUCT((VERKOOP!$C$3:$C$801=4)*(VERKOOP!$L$3:$L$801=$A23)*(VERKOOP!$K$3:$K$801)) -> 0 | I23: =SUMPRODUCT((VERKOOP!$C$3:$C$801=5)*(VERKOOP!$L$3:$L$801=$A23)*(VERKOOP!$K$3:$K$801)) -> 0 | J23: =SUMPRODUCT((VERKOOP!$C$3:$C$801=6)*(VERKOOP!$L$3:$L$801=$A23)*(VERKOOP!$K$3:$K$801)) -> 0 | K23: =SUM(H23:J23) -> 0 | L23: =SUMPRODUCT((VERKOOP!$C$3:$C$801=7)*(VERKOOP!$L$3:$L$801=$A23)*(VERKOOP!$K$3:$K$801)) -> 0 | M23: =SUMPRODUCT((VERKOOP!$C$3:$C$801=8)*(VERKOOP!$L$3:$L$801=$A23)*(VERKOOP!$K$3:$K$801)) -> 0 | N23: =SUMPRODUCT((VERKOOP!$C$3:$C$801=9)*(VERKOOP!$L$3:$L$801=$A23)*(VERKOOP!$K$3:$K$801)) -> 0 | O23: =SUM(L23:N23) -> 0 | P23: =SUMPRODUCT((VERKOOP!$C$3:$C$801=10)*(VERKOOP!$L$3:$L$801=$A23)*(VERKOOP!$K$3:$K$801)) -> 0 | Q23: =SUMPRODUCT((VERKOOP!$C$3:$C$801=11)*(VERKOOP!$L$3:$L$801=$A23)*(VERKOOP!$K$3:$K$801)) -> 0 | R23: =SUMPRODUCT((VERKOOP!$C$3:$C$801=12)*(VERKOOP!$L$3:$L$801=$A23)*(VERKOOP!$K$3:$K$801)) -> 0 | S23: =SUM(P23:R23) -> 0
A24: 23 | D24: =SUMPRODUCT((VERKOOP!$C$3:$C$801=1)*(VERKOOP!$L$3:$L$801=$A24)*(VERKOOP!$K$3:$K$801)) -> 0 | E24: =SUMPRODUCT((VERKOOP!$C$3:$C$801=2)*(VERKOOP!$L$3:$L$801=$A24)*(VERKOOP!$K$3:$K$801)) -> 0 | F24: =SUMPRODUCT((VERKOOP!$C$3:$C$801=3)*(VERKOOP!$L$3:$L$801=$A24)*(VERKOOP!$K$3:$K$801)) -> 0 | G24: =SUM(D24:F24) -> 0 | H24: =SUMPRODUCT((VERKOOP!$C$3:$C$801=4)*(VERKOOP!$L$3:$L$801=$A24)*(VERKOOP!$K$3:$K$801)) -> 0 | I24: =SUMPRODUCT((VERKOOP!$C$3:$C$801=5)*(VERKOOP!$L$3:$L$801=$A24)*(VERKOOP!$K$3:$K$801)) -> 0 | J24: =SUMPRODUCT((VERKOOP!$C$3:$C$801=6)*(VERKOOP!$L$3:$L$801=$A24)*(VERKOOP!$K$3:$K$801)) -> 0 | K24: =SUM(H24:J24) -> 0 | L24: =SUMPRODUCT((VERKOOP!$C$3:$C$801=7)*(VERKOOP!$L$3:$L$801=$A24)*(VERKOOP!$K$3:$K$801)) -> 0 | M24: =SUMPRODUCT((VERKOOP!$C$3:$C$801=8)*(VERKOOP!$L$3:$L$801=$A24)*(VERKOOP!$K$3:$K$801)) -> 0 | N24: =SUMPRODUCT((VERKOOP!$C$3:$C$801=9)*(VERKOOP!$L$3:$L$801=$A24)*(VERKOOP!$K$3:$K$801)) -> 0 | O24: =SUM(L24:N24) -> 0 | P24: =SUMPRODUCT((VERKOOP!$C$3:$C$801=10)*(VERKOOP!$L$3:$L$801=$A24)*(VERKOOP!$K$3:$K$801)) -> 0 | Q24: =SUMPRODUCT((VERKOOP!$C$3:$C$801=11)*(VERKOOP!$L$3:$L$801=$A24)*(VERKOOP!$K$3:$K$801)) -> 0 | R24: =SUMPRODUCT((VERKOOP!$C$3:$C$801=12)*(VERKOOP!$L$3:$L$801=$A24)*(VERKOOP!$K$3:$K$801)) -> 0 | S24: =SUM(P24:R24) -> 0
A25: 24 | D25: =SUMPRODUCT((VERKOOP!$C$3:$C$801=1)*(VERKOOP!$L$3:$L$801=$A25)*(VERKOOP!$K$3:$K$801)) -> 0 | E25: =SUMPRODUCT((VERKOOP!$C$3:$C$801=2)*(VERKOOP!$L$3:$L$801=$A25)*(VERKOOP!$K$3:$K$801)) -> 0 | F25: =SUMPRODUCT((VERKOOP!$C$3:$C$801=3)*(VERKOOP!$L$3:$L$801=$A25)*(VERKOOP!$K$3:$K$801)) -> 0 | G25: =SUM(D25:F25) -> 0 | H25: =SUMPRODUCT((VERKOOP!$C$3:$C$801=4)*(VERKOOP!$L$3:$L$801=$A25)*(VERKOOP!$K$3:$K$801)) -> 0 | I25: =SUMPRODUCT((VERKOOP!$C$3:$C$801=5)*(VERKOOP!$L$3:$L$801=$A25)*(VERKOOP!$K$3:$K$801)) -> 0 | J25: =SUMPRODUCT((VERKOOP!$C$3:$C$801=6)*(VERKOOP!$L$3:$L$801=$A25)*(VERKOOP!$K$3:$K$801)) -> 0 | K25: =SUM(H25:J25) -> 0 | L25: =SUMPRODUCT((VERKOOP!$C$3:$C$801=7)*(VERKOOP!$L$3:$L$801=$A25)*(VERKOOP!$K$3:$K$801)) -> 0 | M25: =SUMPRODUCT((VERKOOP!$C$3:$C$801=8)*(VERKOOP!$L$3:$L$801=$A25)*(VERKOOP!$K$3:$K$801)) -> 0 | N25: =SUMPRODUCT((VERKOOP!$C$3:$C$801=9)*(VERKOOP!$L$3:$L$801=$A25)*(VERKOOP!$K$3:$K$801)) -> 0 | O25: =SUM(L25:N25) -> 0 | P25: =SUMPRODUCT((VERKOOP!$C$3:$C$801=10)*(VERKOOP!$L$3:$L$801=$A25)*(VERKOOP!$K$3:$K$801)) -> 0 | Q25: =SUMPRODUCT((VERKOOP!$C$3:$C$801=11)*(VERKOOP!$L$3:$L$801=$A25)*(VERKOOP!$K$3:$K$801)) -> 0 | R25: =SUMPRODUCT((VERKOOP!$C$3:$C$801=12)*(VERKOOP!$L$3:$L$801=$A25)*(VERKOOP!$K$3:$K$801)) -> 0 | S25: =SUM(P25:R25) -> 0
A26: 25 | D26: =SUMPRODUCT((VERKOOP!$C$3:$C$801=1)*(VERKOOP!$L$3:$L$801=$A26)*(VERKOOP!$K$3:$K$801)) -> 0 | E26: =SUMPRODUCT((VERKOOP!$C$3:$C$801=2)*(VERKOOP!$L$3:$L$801=$A26)*(VERKOOP!$K$3:$K$801)) -> 0 | F26: =SUMPRODUCT((VERKOOP!$C$3:$C$801=3)*(VERKOOP!$L$3:$L$801=$A26)*(VERKOOP!$K$3:$K$801)) -> 0 | G26: =SUM(D26:F26) -> 0 | H26: =SUMPRODUCT((VERKOOP!$C$3:$C$801=4)*(VERKOOP!$L$3:$L$801=$A26)*(VERKOOP!$K$3:$K$801)) -> 0 | I26: =SUMPRODUCT((VERKOOP!$C$3:$C$801=5)*(VERKOOP!$L$3:$L$801=$A26)*(VERKOOP!$K$3:$K$801)) -> 0 | J26: =SUMPRODUCT((VERKOOP!$C$3:$C$801=6)*(VERKOOP!$L$3:$L$801=$A26)*(VERKOOP!$K$3:$K$801)) -> 0 | K26: =SUM(H26:J26) -> 0 | L26: =SUMPRODUCT((VERKOOP!$C$3:$C$801=7)*(VERKOOP!$L$3:$L$801=$A26)*(VERKOOP!$K$3:$K$801)) -> 0 | M26: =SUMPRODUCT((VERKOOP!$C$3:$C$801=8)*(VERKOOP!$L$3:$L$801=$A26)*(VERKOOP!$K$3:$K$801)) -> 0 | N26: =SUMPRODUCT((VERKOOP!$C$3:$C$801=9)*(VERKOOP!$L$3:$L$801=$A26)*(VERKOOP!$K$3:$K$801)) -> 0 | O26: =SUM(L26:N26) -> 0 | P26: =SUMPRODUCT((VERKOOP!$C$3:$C$801=10)*(VERKOOP!$L$3:$L$801=$A26)*(VERKOOP!$K$3:$K$801)) -> 0 | Q26: =SUMPRODUCT((VERKOOP!$C$3:$C$801=11)*(VERKOOP!$L$3:$L$801=$A26)*(VERKOOP!$K$3:$K$801)) -> 0 | R26: =SUMPRODUCT((VERKOOP!$C$3:$C$801=12)*(VERKOOP!$L$3:$L$801=$A26)*(VERKOOP!$K$3:$K$801)) -> 0 | S26: =SUM(P26:R26) -> 0
A27: 26 | D27: =SUMPRODUCT((VERKOOP!$C$3:$C$801=1)*(VERKOOP!$L$3:$L$801=$A27)*(VERKOOP!$K$3:$K$801)) -> 0 | E27: =SUMPRODUCT((VERKOOP!$C$3:$C$801=2)*(VERKOOP!$L$3:$L$801=$A27)*(VERKOOP!$K$3:$K$801)) -> 0 | F27: =SUMPRODUCT((VERKOOP!$C$3:$C$801=3)*(VERKOOP!$L$3:$L$801=$A27)*(VERKOOP!$K$3:$K$801)) -> 0 | G27: =SUM(D27:F27) -> 0 | H27: =SUMPRODUCT((VERKOOP!$C$3:$C$801=4)*(VERKOOP!$L$3:$L$801=$A27)*(VERKOOP!$K$3:$K$801)) -> 0 | I27: =SUMPRODUCT((VERKOOP!$C$3:$C$801=5)*(VERKOOP!$L$3:$L$801=$A27)*(VERKOOP!$K$3:$K$801)) -> 0 | J27: =SUMPRODUCT((VERKOOP!$C$3:$C$801=6)*(VERKOOP!$L$3:$L$801=$A27)*(VERKOOP!$K$3:$K$801)) -> 0 | K27: =SUM(H27:J27) -> 0 | L27: =SUMPRODUCT((VERKOOP!$C$3:$C$801=7)*(VERKOOP!$L$3:$L$801=$A27)*(VERKOOP!$K$3:$K$801)) -> 0 | M27: =SUMPRODUCT((VERKOOP!$C$3:$C$801=8)*(VERKOOP!$L$3:$L$801=$A27)*(VERKOOP!$K$3:$K$801)) -> 0 | N27: =SUMPRODUCT((VERKOOP!$C$3:$C$801=9)*(VERKOOP!$L$3:$L$801=$A27)*(VERKOOP!$K$3:$K$801)) -> 0 | O27: =SUM(L27:N27) -> 0 | P27: =SUMPRODUCT((VERKOOP!$C$3:$C$801=10)*(VERKOOP!$L$3:$L$801=$A27)*(VERKOOP!$K$3:$K$801)) -> 0 | Q27: =SUMPRODUCT((VERKOOP!$C$3:$C$801=11)*(VERKOOP!$L$3:$L$801=$A27)*(VERKOOP!$K$3:$K$801)) -> 0 | R27: =SUMPRODUCT((VERKOOP!$C$3:$C$801=12)*(VERKOOP!$L$3:$L$801=$A27)*(VERKOOP!$K$3:$K$801)) -> 0 | S27: =SUM(P27:R27) -> 0
A28: 27 | D28: =SUMPRODUCT((VERKOOP!$C$3:$C$801=1)*(VERKOOP!$L$3:$L$801=$A28)*(VERKOOP!$K$3:$K$801)) -> 0 | E28: =SUMPRODUCT((VERKOOP!$C$3:$C$801=2)*(VERKOOP!$L$3:$L$801=$A28)*(VERKOOP!$K$3:$K$801)) -> 0 | F28: =SUMPRODUCT((VERKOOP!$C$3:$C$801=3)*(VERKOOP!$L$3:$L$801=$A28)*(VERKOOP!$K$3:$K$801)) -> 0 | G28: =SUM(D28:F28) -> 0 | H28: =SUMPRODUCT((VERKOOP!$C$3:$C$801=4)*(VERKOOP!$L$3:$L$801=$A28)*(VERKOOP!$K$3:$K$801)) -> 0 | I28: =SUMPRODUCT((VERKOOP!$C$3:$C$801=5)*(VERKOOP!$L$3:$L$801=$A28)*(VERKOOP!$K$3:$K$801)) -> 0 | J28: =SUMPRODUCT((VERKOOP!$C$3:$C$801=6)*(VERKOOP!$L$3:$L$801=$A28)*(VERKOOP!$K$3:$K$801)) -> 0 | K28: =SUM(H28:J28) -> 0 | L28: =SUMPRODUCT((VERKOOP!$C$3:$C$801=7)*(VERKOOP!$L$3:$L$801=$A28)*(VERKOOP!$K$3:$K$801)) -> 0 | M28: =SUMPRODUCT((VERKOOP!$C$3:$C$801=8)*(VERKOOP!$L$3:$L$801=$A28)*(VERKOOP!$K$3:$K$801)) -> 0 | N28: =SUMPRODUCT((VERKOOP!$C$3:$C$801=9)*(VERKOOP!$L$3:$L$801=$A28)*(VERKOOP!$K$3:$K$801)) -> 0 | O28: =SUM(L28:N28) -> 0 | P28: =SUMPRODUCT((VERKOOP!$C$3:$C$801=10)*(VERKOOP!$L$3:$L$801=$A28)*(VERKOOP!$K$3:$K$801)) -> 0 | Q28: =SUMPRODUCT((VERKOOP!$C$3:$C$801=11)*(VERKOOP!$L$3:$L$801=$A28)*(VERKOOP!$K$3:$K$801)) -> 0 | R28: =SUMPRODUCT((VERKOOP!$C$3:$C$801=12)*(VERKOOP!$L$3:$L$801=$A28)*(VERKOOP!$K$3:$K$801)) -> 0 | S28: =SUM(P28:R28) -> 0
A29: 28 | D29: =SUMPRODUCT((VERKOOP!$C$3:$C$801=1)*(VERKOOP!$L$3:$L$801=$A29)*(VERKOOP!$K$3:$K$801)) -> 0 | E29: =SUMPRODUCT((VERKOOP!$C$3:$C$801=2)*(VERKOOP!$L$3:$L$801=$A29)*(VERKOOP!$K$3:$K$801)) -> 0 | F29: =SUMPRODUCT((VERKOOP!$C$3:$C$801=3)*(VERKOOP!$L$3:$L$801=$A29)*(VERKOOP!$K$3:$K$801)) -> 0 | G29: =SUM(D29:F29) -> 0 | H29: =SUMPRODUCT((VERKOOP!$C$3:$C$801=4)*(VERKOOP!$L$3:$L$801=$A29)*(VERKOOP!$K$3:$K$801)) -> 0 | I29: =SUMPRODUCT((VERKOOP!$C$3:$C$801=5)*(VERKOOP!$L$3:$L$801=$A29)*(VERKOOP!$K$3:$K$801)) -> 0 | J29: =SUMPRODUCT((VERKOOP!$C$3:$C$801=6)*(VERKOOP!$L$3:$L$801=$A29)*(VERKOOP!$K$3:$K$801)) -> 0 | K29: =SUM(H29:J29) -> 0 | L29: =SUMPRODUCT((VERKOOP!$C$3:$C$801=7)*(VERKOOP!$L$3:$L$801=$A29)*(VERKOOP!$K$3:$K$801)) -> 0 | M29: =SUMPRODUCT((VERKOOP!$C$3:$C$801=8)*(VERKOOP!$L$3:$L$801=$A29)*(VERKOOP!$K$3:$K$801)) -> 0 | N29: =SUMPRODUCT((VERKOOP!$C$3:$C$801=9)*(VERKOOP!$L$3:$L$801=$A29)*(VERKOOP!$K$3:$K$801)) -> 0 | O29: =SUM(L29:N29) -> 0 | P29: =SUMPRODUCT((VERKOOP!$C$3:$C$801=10)*(VERKOOP!$L$3:$L$801=$A29)*(VERKOOP!$K$3:$K$801)) -> 0 | Q29: =SUMPRODUCT((VERKOOP!$C$3:$C$801=11)*(VERKOOP!$L$3:$L$801=$A29)*(VERKOOP!$K$3:$K$801)) -> 0 | R29: =SUMPRODUCT((VERKOOP!$C$3:$C$801=12)*(VERKOOP!$L$3:$L$801=$A29)*(VERKOOP!$K$3:$K$801)) -> 0 | S29: =SUM(P29:R29) -> 0
A30: 29 | D30: =SUMPRODUCT((VERKOOP!$C$3:$C$801=1)*(VERKOOP!$L$3:$L$801=$A30)*(VERKOOP!$K$3:$K$801)) -> 0 | E30: =SUMPRODUCT((VERKOOP!$C$3:$C$801=2)*(VERKOOP!$L$3:$L$801=$A30)*(VERKOOP!$K$3:$K$801)) -> 0 | F30: =SUMPRODUCT((VERKOOP!$C$3:$C$801=3)*(VERKOOP!$L$3:$L$801=$A30)*(VERKOOP!$K$3:$K$801)) -> 0 | G30: =SUM(D30:F30) -> 0 | H30: =SUMPRODUCT((VERKOOP!$C$3:$C$801=4)*(VERKOOP!$L$3:$L$801=$A30)*(VERKOOP!$K$3:$K$801)) -> 0 | I30: =SUMPRODUCT((VERKOOP!$C$3:$C$801=5)*(VERKOOP!$L$3:$L$801=$A30)*(VERKOOP!$K$3:$K$801)) -> 0 | J30: =SUMPRODUCT((VERKOOP!$C$3:$C$801=6)*(VERKOOP!$L$3:$L$801=$A30)*(VERKOOP!$K$3:$K$801)) -> 0 | K30: =SUM(H30:J30) -> 0 | L30: =SUMPRODUCT((VERKOOP!$C$3:$C$801=7)*(VERKOOP!$L$3:$L$801=$A30)*(VERKOOP!$K$3:$K$801)) -> 0 | M30: =SUMPRODUCT((VERKOOP!$C$3:$C$801=8)*(VERKOOP!$L$3:$L$801=$A30)*(VERKOOP!$K$3:$K$801)) -> 0 | N30: =SUMPRODUCT((VERKOOP!$C$3:$C$801=9)*(VERKOOP!$L$3:$L$801=$A30)*(VERKOOP!$K$3:$K$801)) -> 0 | O30: =SUM(L30:N30) -> 0 | P30: =SUMPRODUCT((VERKOOP!$C$3:$C$801=10)*(VERKOOP!$L$3:$L$801=$A30)*(VERKOOP!$K$3:$K$801)) -> 0 | Q30: =SUMPRODUCT((VERKOOP!$C$3:$C$801=11)*(VERKOOP!$L$3:$L$801=$A30)*(VERKOOP!$K$3:$K$801)) -> 0 | R30: =SUMPRODUCT((VERKOOP!$C$3:$C$801=12)*(VERKOOP!$L$3:$L$801=$A30)*(VERKOOP!$K$3:$K$801)) -> 0 | S30: =SUM(P30:R30) -> 0
A31: 30 | D31: =SUMPRODUCT((VERKOOP!$C$3:$C$801=1)*(VERKOOP!$L$3:$L$801=$A31)*(VERKOOP!$K$3:$K$801)) -> 0 | E31: =SUMPRODUCT((VERKOOP!$C$3:$C$801=2)*(VERKOOP!$L$3:$L$801=$A31)*(VERKOOP!$K$3:$K$801)) -> 0 | F31: =SUMPRODUCT((VERKOOP!$C$3:$C$801=3)*(VERKOOP!$L$3:$L$801=$A31)*(VERKOOP!$K$3:$K$801)) -> 0 | G31: =SUM(D31:F31) -> 0 | H31: =SUMPRODUCT((VERKOOP!$C$3:$C$801=4)*(VERKOOP!$L$3:$L$801=$A31)*(VERKOOP!$K$3:$K$801)) -> 0 | I31: =SUMPRODUCT((VERKOOP!$C$3:$C$801=5)*(VERKOOP!$L$3:$L$801=$A31)*(VERKOOP!$K$3:$K$801)) -> 0 | J31: =SUMPRODUCT((VERKOOP!$C$3:$C$801=6)*(VERKOOP!$L$3:$L$801=$A31)*(VERKOOP!$K$3:$K$801)) -> 0 | K31: =SUM(H31:J31) -> 0 | L31: =SUMPRODUCT((VERKOOP!$C$3:$C$801=7)*(VERKOOP!$L$3:$L$801=$A31)*(VERKOOP!$K$3:$K$801)) -> 0 | M31: =SUMPRODUCT((VERKOOP!$C$3:$C$801=8)*(VERKOOP!$L$3:$L$801=$A31)*(VERKOOP!$K$3:$K$801)) -> 0 | N31: =SUMPRODUCT((VERKOOP!$C$3:$C$801=9)*(VERKOOP!$L$3:$L$801=$A31)*(VERKOOP!$K$3:$K$801)) -> 0 | O31: =SUM(L31:N31) -> 0 | P31: =SUMPRODUCT((VERKOOP!$C$3:$C$801=10)*(VERKOOP!$L$3:$L$801=$A31)*(VERKOOP!$K$3:$K$801)) -> 0 | Q31: =SUMPRODUCT((VERKOOP!$C$3:$C$801=11)*(VERKOOP!$L$3:$L$801=$A31)*(VERKOOP!$K$3:$K$801)) -> 0 | R31: =SUMPRODUCT((VERKOOP!$C$3:$C$801=12)*(VERKOOP!$L$3:$L$801=$A31)*(VERKOOP!$K$3:$K$801)) -> 0 | S31: =SUM(P31:R31) -> 0

Sheet BTWaangifte
A1: BTW AANGIFTE | B1: MAAND1 | C1: MAAND1 | D1: MAAND2 | E1: MAAND2 | F1: MAAND3 | G1: MAAND3 | H1: KWART 1 | I1: KWART 1 | J1: MAAND4 | K1: MAAND4 | L1: MAAND5 | M1: MAAND5 | N1: MAAND6 | O1: MAAND6 | P1: KWART 2 | Q1: KWART 2 | R1: MAAND7 | S1: MAAND7 | T1: MAAND8 | U1: MAAND8 | V1: MAAND9 | W1: MAAND9 | X1: KWART 3 | Y1: KWART 3 | Z1: MAAND10 | AA1: MAAND10 | AB1: MAAND11 | AC1: MAAND11 | AD1: MAAND12 | AE1: MAAND12 | AF1: KWART 4 | AG1: KWART 4
A2: BTW BINNENLAND | B2: OMZET Excl | C2: BTW | D2: OMZET Excl | E2: BTW | F2: OMZET Excl | G2: BTW | H2: OMZET Excl | I2: BTW | J2: OMZET Excl | K2: BTW | L2: OMZET Excl | M2: BTW | N2: OMZET Excl | O2: BTW | P2: OMZET Excl | Q2: BTW | R2: OMZET Excl | S2: BTW | T2: OMZET Excl | U2: BTW | V2: OMZET Excl | W2: BTW | X2: OMZET Excl | Y2: BTW | Z2: OMZET Excl | AA2: BTW | AB2: OMZET Excl | AC2: BTW | AD2: OMZET Excl | AE2: BTW
A3: RUBRIEK 1 PRESTATIES BINNENLAND
A4: 1a Leveringen/diensten belast met 21% | B4: =(SUMIF(VERKOOP!$C:$C,1,VERKOOP!$E:$E )-SUMIF(BANK!$B:$B,1,BANK!$Y:$Y)-SUMIF(KAS!$B:$B,1,KAS!$Y:$Y))/(1+VLOOKUP(221, Hulpvelden!$A:$F, 6,FALSE)) -> 3000 | C4: =VLOOKUP(221, Hulpvelden!$A:$F, 6,FALSE)*B4 -> 630 | D4: =(SUMIF(VERKOOP!$C:$C,2,VERKOOP!$E:$E )-SUMIF(BANK!$B:$B,2,BANK!$Y:$Y)-SUMIF(KAS!$B:$B,2,KAS!$Y:$Y))/(1+VLOOKUP(221, Hulpvelden!$A:$F, 6,FALSE)) -> 3000 | E4: =VLOOKUP(221, Hulpvelden!$A:$F, 6,FALSE)*D4 -> 630 | F4: =(SUMIF(VERKOOP!$C:$C,3,VERKOOP!$E:$E )-SUMIF(BANK!$B:$B,3,BANK!$Y:$Y)-SUMIF(KAS!$B:$B,3,KAS!$Y:$Y))/(1+VLOOKUP(221, Hulpvelden!$A:$F, 6,FALSE)) -> 3000 | G4: =VLOOKUP(221, Hulpvelden!$A:$F, 6,FALSE)*F4 -> 630 | H4: =+F4+D4+B4 -> 9000 | I4: =G4+E4+C4 -> 1890 | J4: =(SUMIF(VERKOOP!$C:$C,4,VERKOOP!$E:$E )-SUMIF(BANK!$B:$B,4,BANK!$Y:$Y)-SUMIF(KAS!$B:$B,4,KAS!$Y:$Y))/(1+VLOOKUP(221, Hulpvelden!$A:$F, 6,FALSE)) -> 3000 | K4: =VLOOKUP(221, Hulpvelden!$A:$F, 6,FALSE)*J4 -> 630 | L4: =(SUMIF(VERKOOP!$C:$C,5,VERKOOP!$E:$E )-SUMIF(BANK!$B:$B,5,BANK!$Y:$Y)-SUMIF(KAS!$B:$B,5,KAS!$Y:$Y))/(1+VLOOKUP(221, Hulpvelden!$A:$F, 6,FALSE)) -> 3000 | M4: =VLOOKUP(221, Hulpvelden!$A:$F, 6,FALSE)*L4 -> 630 | N4: =(SUMIF(VERKOOP!$C:$C,6,VERKOOP!$E:$E )-SUMIF(BANK!$B:$B,6,BANK!$Y:$Y)-SUMIF(KAS!$B:$B,6,KAS!$Y:$Y))/(1+VLOOKUP(221, Hulpvelden!$A:$F, 6,FALSE)) -> 3000 | O4: =VLOOKUP(221, Hulpvelden!$A:$F, 6,FALSE)*N4 -> 630 | P4: =+N4+L4+J4 -> 9000 | Q4: =O4+M4+K4 -> 1890 | R4: =(SUMIF(VERKOOP!$C:$C,7,VERKOOP!$E:$E )-SUMIF(BANK!$B:$B,7,BANK!$Y:$Y)-SUMIF(KAS!$B:$B,7,KAS!$Y:$Y))/(1+VLOOKUP(221, Hulpvelden!$A:$F, 6,FALSE)) -> 3000 | S4: =VLOOKUP(221, Hulpvelden!$A:$F, 6,FALSE)*R4 -> 630 | T4: =(SUMIF(VERKOOP!$C:$C,8,VERKOOP!$E:$E )-SUMIF(BANK!$B:$B,8,BANK!$Y:$Y)-SUMIF(KAS!$B:$B,8,KAS!$Y:$Y))/(1+VLOOKUP(221, Hulpvelden!$A:$F, 6,FALSE)) -> 3000 | U4: =VLOOKUP(221, Hulpvelden!$A:$F, 6,FALSE)*T4 -> 630 | V4: =(SUMIF(VERKOOP!$C:$C,9,VERKOOP!$E:$E )-SUMIF(BANK!$B:$B,9,BANK!$Y:$Y)-SUMIF(KAS!$B:$B,9,KAS!$Y:$Y))/(1+VLOOKUP(221, Hulpvelden!$A:$F, 6,FALSE)) -> 3000 | W4: =VLOOKUP(221, Hulpvelden!$A:$F, 6,FALSE)*V4 -> 630 | X4: =+V4+T4+R4 -> 9000 | Y4: =W4+U4+S4 -> 1890 | Z4: =(SUMIF(VERKOOP!$C:$C,10,VERKOOP!$E:$E )-SUMIF(BANK!$B:$B,10,BANK!$Y:$Y)-SUMIF(KAS!$B:$B,10,KAS!$Y:$Y))/(1+VLOOKUP(221, Hulpvelden!$A:$F, 6,FALSE)) -> 3000 | AA4: =VLOOKUP(221, Hulpvelden!$A:$F, 6,FALSE)*Z4 -> 630 | AB4: =(SUMIF(VERKOOP!$C:$C,11,VERKOOP!$E:$E )-SUMIF(BANK!$B:$B,11,BANK!$Y:$Y)-SUMIF(KAS!$B:$B,11,KAS!$Y:$Y))/(1+VLOOKUP(221, Hulpvelden!$A:$F, 6,FALSE)) -> 3000 | AC4: =VLOOKUP(221, Hulpvelden!$A:$F, 6,FALSE)*AB4 -> 630 | AD4: =(SUMIF(VERKOOP!$C:$C,12,VERKOOP!$E:$E )-SUMIF(BANK!$B:$B,12,BANK!$Y:$Y)-SUMIF(KAS!$B:$B,12,KAS!$Y:$Y))/(1+VLOOKUP(221, Hulpvelden!$A:$F, 6,FALSE)) -> 3000 | AE4: =VLOOKUP(221, Hulpvelden!$A:$F, 6,FALSE)*AD4 -> 630 | AF4: =+AD4+AB4+Z4 -> 9000 | AG4: =AE4+AC4+AA4 -> 1890
A5: 1a leveringen/diensten belast met 19% | B5: =(SUMIF(VERKOOP!$C:$C,1,VERKOOP!$F:$F)-SUMIF(BANK!$B:$B,1,BANK!$Z:$Z)-SUMIF(KAS!$B:$B,1,KAS!$Z:$Z))/(1+VLOOKUP(222, Hulpvelden!$A:$F, 6,FALSE)) -> 1000 | C5: =VLOOKUP(222, Hulpvelden!$A:$F, 6,FALSE)*B5 -> 190 | D5: =(SUMIF(VERKOOP!$C:$C,2,VERKOOP!$F:$F)-SUMIF(BANK!$B:$B,2,BANK!$Z:$Z)-SUMIF(KAS!$B:$B,2,KAS!$Z:$Z))/(1+VLOOKUP(222, Hulpvelden!$A:$F, 6,FALSE)) -> 1000 | E5: =VLOOKUP(222, Hulpvelden!$A:$F, 6,FALSE)*D5 -> 190 | F5: =(SUMIF(VERKOOP!$C:$C,3,VERKOOP!$F:$F)-SUMIF(BANK!$B:$B,3,BANK!$Z:$Z)-SUMIF(KAS!$B:$B,3,KAS!$Z:$Z))/(1+VLOOKUP(222, Hulpvelden!$A:$F, 6,FALSE)) -> 1000 | G5: =VLOOKUP(222, Hulpvelden!$A:$F, 6,FALSE)*F5 -> 190 | H5: =+F5+D5+B5 -> 3000 | I5: =G5+E5+C5 -> 570 | J5: =(SUMIF(VERKOOP!$C:$C,4,VERKOOP!$F:$F)-SUMIF(BANK!$B:$B,4,BANK!$Z:$Z)-SUMIF(KAS!$B:$B,4,KAS!$Z:$Z))/(1+VLOOKUP(222, Hulpvelden!$A:$F, 6,FALSE)) -> 1000 | K5: =VLOOKUP(222, Hulpvelden!$A:$F, 6,FALSE)*J5 -> 190 | L5: =(SUMIF(VERKOOP!$C:$C,5,VERKOOP!$F:$F)-SUMIF(BANK!$B:$B,5,BANK!$Z:$Z)-SUMIF(KAS!$B:$B,5,KAS!$Z:$Z))/(1+VLOOKUP(222, Hulpvelden!$A:$F, 6,FALSE)) -> 1000 | M5: =VLOOKUP(222, Hulpvelden!$A:$F, 6,FALSE)*L5 -> 190 | N5: =(SUMIF(VERKOOP!$C:$C,6,VERKOOP!$F:$F)-SUMIF(BANK!$B:$B,6,BANK!$Z:$Z)-SUMIF(KAS!$B:$B,6,KAS!$Z:$Z))/(1+VLOOKUP(222, Hulpvelden!$A:$F, 6,FALSE)) -> 1000 | O5: =VLOOKUP(222, Hulpvelden!$A:$F, 6,FALSE)*N5 -> 190 | P5: =+N5+L5+J5 -> 3000 | Q5: =O5+M5+K5 -> 570 | R5: =(SUMIF(VERKOOP!$C:$C,7,VERKOOP!$F:$F)-SUMIF(BANK!$B:$B,7,BANK!$Z:$Z)-SUMIF(KAS!$B:$B,7,KAS!$Z:$Z))/(1+VLOOKUP(222, Hulpvelden!$A:$F, 6,FALSE)) -> 1000 | S5: =VLOOKUP(222, Hulpvelden!$A:$F, 6,FALSE)*R5 -> 190 | T5: =(SUMIF(VERKOOP!$C:$C,8,VERKOOP!$F:$F)-SUMIF(BANK!$B:$B,8,BANK!$Z:$Z)-SUMIF(KAS!$B:$B,8,KAS!$Z:$Z))/(1+VLOOKUP(222, Hulpvelden!$A:$F, 6,FALSE)) -> 1000 | U5: =VLOOKUP(222, Hulpvelden!$A:$F, 6,FALSE)*T5 -> 190 | V5: =(SUMIF(VERKOOP!$C:$C,9,VERKOOP!$F:$F)-SUMIF(BANK!$B:$B,9,BANK!$Z:$Z)-SUMIF(KAS!$B:$B,9,KAS!$Z:$Z))/(1+VLOOKUP(222, Hulpvelden!$A:$F, 6,FALSE)) -> 1000 | W5: =VLOOKUP(222, Hulpvelden!$A:$F, 6,FALSE)*V5 -> 190 | X5: =+V5+T5+R5 -> 3000 | Y5: =W5+U5+S5 -> 570 | Z5: =(SUMIF(VERKOOP!$C:$C,10,VERKOOP!$F:$F)-SUMIF(BANK!$B:$B,10,BANK!$Z:$Z)-SUMIF(KAS!$B:$B,10,KAS!$Z:$Z))/(1+VLOOKUP(222, Hulpvelden!$A:$F, 6,FALSE)) -> 1000 | AA5: =VLOOKUP(222, Hulpvelden!$A:$F, 6,FALSE)*Z5 -> 190 | AB5: =(SUMIF(VERKOOP!$C:$C,11,VERKOOP!$F:$F)-SUMIF(BANK!$B:$B,11,BANK!$Z:$Z)-SUMIF(KAS!$B:$B,11,KAS!$Z:$Z))/(1+VLOOKUP(222, Hulpvelden!$A:$F, 6,FALSE)) -> 1000 | AC5: =VLOOKUP(222, Hulpvelden!$A:$F, 6,FALSE)*AB5 -> 190 | AD5: =(SUMIF(VERKOOP!$C:$C,12,VERKOOP!$F:$F)-SUMIF(BANK!$B:$B,12,BANK!$Z:$Z)-SUMIF(KAS!$B:$B,12,KAS!$Z:$Z))/(1+VLOOKUP(222, Hulpvelden!$A:$F, 6,FALSE)) -> 1000 | AE5: =VLOOKUP(222, Hulpvelden!$A:$F, 6,FALSE)*AD5 -> 190 | AF5: =+AD5+AB5+Z5 -> 3000 | AG5: =AE5+AC5+AA5 -> 570
A6: 1b Leveringen/diensten belast met 9% | B6: =(SUMIF(VERKOOP!$C:$C,1,VERKOOP!$G:$G)-SUMIF(BANK!$B:$B,1,BANK!$W:$W)-SUMIF(KAS!$B:$B,1,KAS!$W:$W))/(1+VLOOKUP(211, Hulpvelden!$A:$F, 6,FALSE)) -> 1000 | C6: =VLOOKUP(211, Hulpvelden!$A:$F, 6,FALSE)*B6 -> 90 | D6: =(SUMIF(VERKOOP!$C:$C,2,VERKOOP!$G:$G)-SUMIF(BANK!$B:$B,2,BANK!$W:$W)-SUMIF(KAS!$B:$B,2,KAS!$W:$W))/(1+VLOOKUP(211, Hulpvelden!$A:$F, 6,FALSE)) -> 1000 | E6: =VLOOKUP(211, Hulpvelden!$A:$F, 6,FALSE)*D6 -> 90 | F6: =(SUMIF(VERKOOP!$C:$C,3,VERKOOP!$G:$G)-SUMIF(BANK!$B:$B,3,BANK!$W:$W)-SUMIF(KAS!$B:$B,3,KAS!$W:$W))/(1+VLOOKUP(211, Hulpvelden!$A:$F, 6,FALSE)) -> 1000 | G6: =VLOOKUP(211, Hulpvelden!$A:$F, 6,FALSE)*F6 -> 90 | H6: =+F6+D6+B6 -> 3000 | I6: =G6+E6+C6 -> 270 | J6: =(SUMIF(VERKOOP!$C:$C,4,VERKOOP!$G:$G)-SUMIF(BANK!$B:$B,4,BANK!$W:$W)-SUMIF(KAS!$B:$B,4,KAS!$W:$W))/(1+VLOOKUP(211, Hulpvelden!$A:$F, 6,FALSE)) -> 1000 | K6: =VLOOKUP(211, Hulpvelden!$A:$F, 6,FALSE)*J6 -> 90 | L6: =(SUMIF(VERKOOP!$C:$C,5,VERKOOP!$G:$G)-SUMIF(BANK!$B:$B,5,BANK!$W:$W)-SUMIF(KAS!$B:$B,5,KAS!$W:$W))/(1+VLOOKUP(211, Hulpvelden!$A:$F, 6,FALSE)) -> 1000 | M6: =VLOOKUP(211, Hulpvelden!$A:$F, 6,FALSE)*L6 -> 90 | N6: =(SUMIF(VERKOOP!$C:$C,6,VERKOOP!$G:$G)-SUMIF(BANK!$B:$B,6,BANK!$W:$W)-SUMIF(KAS!$B:$B,6,KAS!$W:$W))/(1+VLOOKUP(211, Hulpvelden!$A:$F, 6,FALSE)) -> 1000 | O6: =VLOOKUP(211, Hulpvelden!$A:$F, 6,FALSE)*N6 -> 90 | P6: =+N6+L6+J6 -> 3000 | Q6: =O6+M6+K6 -> 270 | R6: =(SUMIF(VERKOOP!$C:$C,7,VERKOOP!$G:$G)-SUMIF(BANK!$B:$B,7,BANK!$W:$W)-SUMIF(KAS!$B:$B,7,KAS!$W:$W))/(1+VLOOKUP(211, Hulpvelden!$A:$F, 6,FALSE)) -> 1000 | S6: =VLOOKUP(211, Hulpvelden!$A:$F, 6,FALSE)*R6 -> 90 | T6: =(SUMIF(VERKOOP!$C:$C,8,VERKOOP!$G:$G)-SUMIF(BANK!$B:$B,8,BANK!$W:$W)-SUMIF(KAS!$B:$B,8,KAS!$W:$W))/(1+VLOOKUP(211, Hulpvelden!$A:$F, 6,FALSE)) -> 1000 | U6: =VLOOKUP(211, Hulpvelden!$A:$F, 6,FALSE)*T6 -> 90 | V6: =(SUMIF(VERKOOP!$C:$C,9,VERKOOP!$G:$G)-SUMIF(BANK!$B:$B,9,BANK!$W:$W)-SUMIF(KAS!$B:$B,9,KAS!$W:$W))/(1+VLOOKUP(211, Hulpvelden!$A:$F, 6,FALSE)) -> 1000 | W6: =VLOOKUP(211, Hulpvelden!$A:$F, 6,FALSE)*V6 -> 90 | X6: =+V6+T6+R6 -> 3000 | Y6: =W6+U6+S6 -> 270 | Z6: =(SUMIF(VERKOOP!$C:$C,10,VERKOOP!$G:$G)-SUMIF(BANK!$B:$B,10,BANK!$W:$W)-SUMIF(KAS!$B:$B,10,KAS!$W:$W))/(1+VLOOKUP(211, Hulpvelden!$A:$F, 6,FALSE)) -> 1000 | AA6: =VLOOKUP(211, Hulpvelden!$A:$F, 6,FALSE)*Z6 -> 90 | AB6: =(SUMIF(VERKOOP!$C:$C,11,VERKOOP!$G:$G)-SUMIF(BANK!$B:$B,11,BANK!$W:$W)-SUMIF(KAS!$B:$B,11,KAS!$W:$W))/(1+VLOOKUP(211, Hulpvelden!$A:$F, 6,FALSE)) -> 1000 | AC6: =VLOOKUP(211, Hulpvelden!$A:$F, 6,FALSE)*AB6 -> 90 | AD6: =(SUMIF(VERKOOP!$C:$C,12,VERKOOP!$G:$G)-SUMIF(BANK!$B:$B,12,BANK!$W:$W)-SUMIF(KAS!$B:$B,12,KAS!$W:$W))/(1+VLOOKUP(211, Hulpvelden!$A:$F, 6,FALSE)) -> 1000 | AE6: =VLOOKUP(211, Hulpvelden!$A:$F, 6,FALSE)*AD6 -> 90 | AF6: =+AD6+AB6+Z6 -> 3000 | AG6: =AE6+AC6+AA6 -> 270
A7: 1b Leveringen/diensten belast met 6% | B7: =(SUMIF(VERKOOP!$C:$C,1,VERKOOP!$H:$H)-SUMIF(BANK!$B:$B,1,BANK!$X:$X)-SUMIF(KAS!$B:$B,1,KAS!$X:$X))/(1+VLOOKUP(212, Hulpvelden!$A:$F, 6,FALSE)) -> 1000 | C7: =VLOOKUP(212, Hulpvelden!$A:$F, 6,FALSE)*B7 -> 60 | D7: =(SUMIF(VERKOOP!$C:$C,2,VERKOOP!$H:$H)-SUMIF(BANK!$B:$B,2,BANK!$X:$X)-SUMIF(KAS!$B:$B,2,KAS!$X:$X))/(1+VLOOKUP(212, Hulpvelden!$A:$F, 6,FALSE)) -> 1000 | E7: =VLOOKUP(212, Hulpvelden!$A:$F, 6,FALSE)*D7 -> 60 | F7: =(SUMIF(VERKOOP!$C:$C,3,VERKOOP!$H:$H)-SUMIF(BANK!$B:$B,3,BANK!$X:$X)-SUMIF(KAS!$B:$B,3,KAS!$X:$X))/(1+VLOOKUP(212, Hulpvelden!$A:$F, 6,FALSE)) -> 1000 | G7: =VLOOKUP(212, Hulpvelden!$A:$F, 6,FALSE)*F7 -> 60 | H7: =+F7+D7+B7 -> 3000 | I7: =G7+E7+C7 -> 180 | J7: =(SUMIF(VERKOOP!$C:$C,4,VERKOOP!$H:$H)-SUMIF(BANK!$B:$B,4,BANK!$X:$X)-SUMIF(KAS!$B:$B,4,KAS!$X:$X))/(1+VLOOKUP(212, Hulpvelden!$A:$F, 6,FALSE)) -> 1000 | K7: =VLOOKUP(212, Hulpvelden!$A:$F, 6,FALSE)*J7 -> 60 | L7: =(SUMIF(VERKOOP!$C:$C,5,VERKOOP!$H:$H)-SUMIF(BANK!$B:$B,5,BANK!$X:$X)-SUMIF(KAS!$B:$B,5,KAS!$X:$X))/(1+VLOOKUP(212, Hulpvelden!$A:$F, 6,FALSE)) -> 1000 | M7: =VLOOKUP(212, Hulpvelden!$A:$F, 6,FALSE)*L7 -> 60 | N7: =(SUMIF(VERKOOP!$C:$C,6,VERKOOP!$H:$H)-SUMIF(BANK!$B:$B,6,BANK!$X:$X)-SUMIF(KAS!$B:$B,6,KAS!$X:$X))/(1+VLOOKUP(212, Hulpvelden!$A:$F, 6,FALSE)) -> 1000 | O7: =VLOOKUP(212, Hulpvelden!$A:$F, 6,FALSE)*N7 -> 60 | P7: =+N7+L7+J7 -> 3000 | Q7: =O7+M7+K7 -> 180 | R7: =(SUMIF(VERKOOP!$C:$C,7,VERKOOP!$H:$H)-SUMIF(BANK!$B:$B,7,BANK!$X:$X)-SUMIF(KAS!$B:$B,7,KAS!$X:$X))/(1+VLOOKUP(212, Hulpvelden!$A:$F, 6,FALSE)) -> 1000 | S7: =VLOOKUP(212, Hulpvelden!$A:$F, 6,FALSE)*R7 -> 60 | T7: =(SUMIF(VERKOOP!$C:$C,8,VERKOOP!$H:$H)-SUMIF(BANK!$B:$B,8,BANK!$X:$X)-SUMIF(KAS!$B:$B,8,KAS!$X:$X))/(1+VLOOKUP(212, Hulpvelden!$A:$F, 6,FALSE)) -> 1000 | U7: =VLOOKUP(212, Hulpvelden!$A:$F, 6,FALSE)*T7 -> 60 | V7: =(SUMIF(VERKOOP!$C:$C,9,VERKOOP!$H:$H)-SUMIF(BANK!$B:$B,9,BANK!$X:$X)-SUMIF(KAS!$B:$B,9,KAS!$X:$X))/(1+VLOOKUP(212, Hulpvelden!$A:$F, 6,FALSE)) -> 1000 | W7: =VLOOKUP(212, Hulpvelden!$A:$F, 6,FALSE)*V7 -> 60 | X7: =+V7+T7+R7 -> 3000 | Y7: =W7+U7+S7 -> 180 | Z7: =(SUMIF(VERKOOP!$C:$C,10,VERKOOP!$H:$H)-SUMIF(BANK!$B:$B,10,BANK!$X:$X)-SUMIF(KAS!$B:$B,10,KAS!$X:$X))/(1+VLOOKUP(212, Hulpvelden!$A:$F, 6,FALSE)) -> 1000 | AA7: =VLOOKUP(212, Hulpvelden!$A:$F, 6,FALSE)*Z7 -> 60 | AB7: =(SUMIF(VERKOOP!$C:$C,11,VERKOOP!$H:$H)-SUMIF(BANK!$B:$B,11,BANK!$X:$X)-SUMIF(KAS!$B:$B,11,KAS!$X:$X))/(1+VLOOKUP(212, Hulpvelden!$A:$F, 6,FALSE)) -> 1000 | AC7: =VLOOKUP(212, Hulpvelden!$A:$F, 6,FALSE)*AB7 -> 60 | AD7: =(SUMIF(VERKOOP!$C:$C,12,VERKOOP!$H:$H)-SUMIF(BANK!$B:$B,12,BANK!$X:$X)-SUMIF(KAS!$B:$B,12,KAS!$X:$X))/(1+VLOOKUP(212, Hulpvelden!$A:$F, 6,FALSE)) -> 1000 | AE7: =VLOOKUP(212, Hulpvelden!$A:$F, 6,FALSE)*AD7 -> 60 | AF7: =+AD7+AB7+Z7 -> 3000 | AG7: =AE7+AC7+AA7 -> 180
A8: 1c is niet opgenomen in dit programma
A9: 1d is niet opgenomen in dit programma
A10: 1e Leveringen/diensten belast met 0% of niet bij u belast | B10: =SUMIF(VERKOOP!$C:$C,1,VERKOOP!$I:$I)-SUMIF(BANK!$B:$B,1,BANK!$V:$V)-SUMIF(KAS!$B:$B,1,KAS!$V:$V) -> 1000 | D10: =SUMIF(VERKOOP!$C:$C,2,VERKOOP!$I:$I)-SUMIF(BANK!$B:$B,2,BANK!$V:$V)-SUMIF(KAS!$B:$B,2,KAS!$V:$V) -> 1000 | F10: =SUMIF(VERKOOP!$C:$C,3,VERKOOP!$I:$I)-SUMIF(BANK!$B:$B,3,BANK!$V:$V)-SUMIF(KAS!$B:$B,3,KAS!$V:$V) -> 1000 | H10: =+F10+D10+B10 -> 3000 | J10: =SUMIF(VERKOOP!$C:$C,4,VERKOOP!$I:$I)-SUMIF(BANK!$B:$B,4,BANK!$V:$V)-SUMIF(KAS!$B:$B,4,KAS!$V:$V) -> 1000 | L10: =SUMIF(VERKOOP!$C:$C,5,VERKOOP!$I:$I)-SUMIF(BANK!$B:$B,5,BANK!$V:$V)-SUMIF(KAS!$B:$B,5,KAS!$V:$V) -> 1000 | N10: =SUMIF(VERKOOP!$C:$C,6,VERKOOP!$I:$I)-SUMIF(BANK!$B:$B,6,BANK!$V:$V)-SUMIF(KAS!$B:$B,6,KAS!$V:$V) -> 1000 | P10: =+N10+L10+J10 -> 3000 | R10: =SUMIF(VERKOOP!$C:$C,7,VERKOOP!$I:$I)-SUMIF(BANK!$B:$B,7,BANK!$V:$V)-SUMIF(KAS!$B:$B,7,KAS!$V:$V) -> 1000 | T10: =SUMIF(VERKOOP!$C:$C,8,VERKOOP!$I:$I)-SUMIF(BANK!$B:$B,8,BANK!$V:$V)-SUMIF(KAS!$B:$B,8,KAS!$V:$V) -> 1000 | V10: =SUMIF(VERKOOP!$C:$C,9,VERKOOP!$I:$I)-SUMIF(BANK!$B:$B,9,BANK!$V:$V)-SUMIF(KAS!$B:$B,9,KAS!$V:$V) -> 1000 | X10: =+V10+T10+R10 -> 3000 | Z10: =SUMIF(VERKOOP!$C:$C,10,VERKOOP!$I:$I)-SUMIF(BANK!$B:$B,10,BANK!$V:$V)-SUMIF(KAS!$B:$B,10,KAS!$V:$V) -> 1000 | AB10: =SUMIF(VERKOOP!$C:$C,11,VERKOOP!$I:$I)-SUMIF(BANK!$B:$B,11,BANK!$V:$V)-SUMIF(KAS!$B:$B,11,KAS!$V:$V) -> 1000 | AD10: =SUMIF(VERKOOP!$C:$C,12,VERKOOP!$I:$I)-SUMIF(BANK!$B:$B,12,BANK!$V:$V)-SUMIF(KAS!$B:$B,12,KAS!$V:$V) -> 1000 | AF10: =+AD10+AB10+Z10 -> 3000
A11: Totaal Binnenland | B11: =SUM(B4:B10) -> 7000 | C11: =SUM(C4:C10) -> 970 | D11: =SUM(D4:D10) -> 7000 | E11: =SUM(E4:E10) -> 970 | F11: =SUM(F4:F10) -> 7000 | G11: =SUM(G4:G10) -> 970 | H11: =SUM(H4:H10) -> 21000 | I11: =SUM(I4:I10) -> 2910 | J11: =SUM(J4:J10) -> 7000 | K11: =SUM(K4:K10) -> 970 | L11: =SUM(L4:L10) -> 7000 | M11: =SUM(M4:M10) -> 970 | N11: =SUM(N4:N10) -> 7000 | O11: =SUM(O4:O10) -> 970 | P11: =SUM(P4:P10) -> 21000 | Q11: =SUM(Q4:Q10) -> 2910 | R11: =SUM(R4:R10) -> 7000 | S11: =SUM(S4:S10) -> 970 | T11: =SUM(T4:T10) -> 7000 | U11: =SUM(U4:U10) -> 970 | V11: =SUM(V4:V10) -> 7000 | W11: =SUM(W4:W10) -> 970 | X11: =SUM(X4:X10) -> 21000 | Y11: =SUM(Y4:Y10) -> 2910 | Z11: =SUM(Z4:Z10) -> 7000 | AA11: =SUM(AA4:AA10) -> 970 | AB11: =SUM(AB4:AB10) -> 7000 | AC11: =SUM(AC4:AC10) -> 970 | AD11: =SUM(AD4:AD10) -> 7000 | AE11: =SUM(AE4:AE10) -> 970 | AF11: =SUM(AF4:AF10) -> 21000 | AG11: =SUM(AG4:AG10) -> 2910
A12: Controlemelding | B12: =IF(OR((B13+C11)>0.1,(B13+C11)<-0.1),"Er is iets fout","") ->  | D12: =IF(OR((D13+E11)>0.1,(D13+E11)<-0.1),"Er is iets fout","") ->  | F12: =IF(OR((F13+G11)>0.1,(F13+G11)<-0.1),"Er is iets fout","") ->  | H12: =IF(OR((H13+I11)>0.1,(H13+I11)<-0.1),"Er is iets fout","") ->  | J12: =IF(OR((J13+K11)>0.1,(J13+K11)<-0.1),"Er is iets fout","") ->  | L12: =IF(OR((L13+M11)>0.1,(L13+M11)<-0.1),"Er is iets fout","") ->  | N12: =IF(OR((N13+O11)>0.1,(N13+O11)<-0.1),"Er is iets fout","") ->  | P12: =IF(OR((P13+Q11)>0.1,(P13+Q11)<-0.1),"Er is iets fout","") ->  | R12: =IF(OR((R13+S11)>0.1,(R13+S11)<-0.1),"Er is iets fout","") ->  | T12: =IF(OR((T13+U11)>0.1,(T13+U11)<-0.1),"Er is iets fout","") ->  | V12: =IF(OR((V13+W11)>0.1,(V13+W11)<-0.1),"Er is iets fout","") ->  | X12: =IF(OR((X13+Y11)>0.1,(X13+Y11)<-0.1),"Er is iets fout","") ->  | Z12: =IF(OR((Z13+AA11)>0.1,(Z13+AA11)<-0.1),"Er is iets fout","") ->  | AB12: =IF(OR((AB13+AC11)>0.1,(AB13+AC11)<-0.1),"Er is iets fout","") ->  | AD12: =IF(OR((AD13+AE11)>0.1,(AD13+AE11)<-0.1),"Er is iets fout","") ->  | AF12: =IF(OR((AF13+AG11)>0.1,(AF13+AG11)<-0.1),"Er is iets fout","") -> 
B13: =-SUMIF(VERKOOP!$C:$C,1,VERKOOP!$P:$P)+SUMIF(BANK!$B:$B,1,BANK!$AA:$AA)+SUMIF(KAS!$B:$B,1,KAS!$AA:$AA) -> -970 | D13: =-SUMIF(VERKOOP!$C:$C,2,VERKOOP!$P:$P)+SUMIF(BANK!$B:$B,2,BANK!$AA:$AA)+SUMIF(KAS!$B:$B,2,KAS!$AA:$AA) -> -970 | F13: =-SUMIF(VERKOOP!$C:$C,3,VERKOOP!$P:$P)+SUMIF(BANK!$B:$B,3,BANK!$AA:$AA)+SUMIF(KAS!$B:$B,3,KAS!$AA:$AA) -> -970 | H13: =+F13+D13+B13 -> -2910 | J13: =-SUMIF(VERKOOP!$C:$C,4,VERKOOP!$P:$P)+SUMIF(BANK!$B:$B,4,BANK!$AA:$AA)+SUMIF(KAS!$B:$B,4,KAS!$AA:$AA) -> -970 | L13: =-SUMIF(VERKOOP!$C:$C,5,VERKOOP!$P:$P)+SUMIF(BANK!$B:$B,5,BANK!$AA:$AA)+SUMIF(KAS!$B:$B,5,KAS!$AA:$AA) -> -970 | N13: =-SUMIF(VERKOOP!$C:$C,6,VERKOOP!$P:$P)+SUMIF(BANK!$B:$B,6,BANK!$AA:$AA)+SUMIF(KAS!$B:$B,6,KAS!$AA:$AA) -> -970 | P13: =+N13+L13+J13 -> -2910 | R13: =-SUMIF(VERKOOP!$C:$C,7,VERKOOP!$P:$P)+SUMIF(BANK!$B:$B,7,BANK!$AA:$AA)+SUMIF(KAS!$B:$B,7,KAS!$AA:$AA) -> -970 | T13: =-SUMIF(VERKOOP!$C:$C,8,VERKOOP!$P:$P)+SUMIF(BANK!$B:$B,8,BANK!$AA:$AA)+SUMIF(KAS!$B:$B,8,KAS!$AA:$AA) -> -970 | V13: =-SUMIF(VERKOOP!$C:$C,9,VERKOOP!$P:$P)+SUMIF(BANK!$B:$B,9,BANK!$AA:$AA)+SUMIF(KAS!$B:$B,9,KAS!$AA:$AA) -> -970 | X13: =+V13+T13+R13 -> -2910 | Z13: =-SUMIF(VERKOOP!$C:$C,10,VERKOOP!$P:$P)+SUMIF(BANK!$B:$B,10,BANK!$AA:$AA)+SUMIF(KAS!$B:$B,10,KAS!$AA:$AA) -> -970 | AB13: =-SUMIF(VERKOOP!$C:$C,11,VERKOOP!$P:$P)+SUMIF(BANK!$B:$B,11,BANK!$AA:$AA)+SUMIF(KAS!$B:$B,11,KAS!$AA:$AA) -> -970 | AD13: =-SUMIF(VERKOOP!$C:$C,12,VERKOOP!$P:$P)+SUMIF(BANK!$B:$B,12,BANK!$AA:$AA)+SUMIF(KAS!$B:$B,12,KAS!$AA:$AA) -> -970 | AF13: =+AD13+AB13+Z13 -> -2910
A14: 2 VERLEGGINGSREGELINGEN BINNENLAND
A15: 2a leveringen/diensten waarbij heffing OB naar u is verlegd | B15: =SUMIF(BANK!$B:$B,1,BANK!$I:$I)+SUMIF(KAS!$B:$B,1,KAS!$I:$I)+SUMIF(INKOOP!$C:$C,1,INKOOP!$J:$J) -> 0 | C15: =VLOOKUP(221, Hulpvelden!$A:$F, 6,FALSE)*B15 -> 0 | D15: =SUMIF(BANK!$B:$B,2,BANK!$I:$I)+SUMIF(KAS!$B:$B,2,KAS!$I:$I)+SUMIF(INKOOP!$C:$C,2,INKOOP!$J:$J) -> 0 | E15: =VLOOKUP(221, Hulpvelden!$A:$F, 6,FALSE)*D15 -> 0 | F15: =SUMIF(BANK!$B:$B,3,BANK!$I:$I)+SUMIF(KAS!$B:$B,3,KAS!$I:$I)+SUMIF(INKOOP!$C:$C,3,INKOOP!$J:$J) -> 0 | G15: =VLOOKUP(221, Hulpvelden!$A:$F, 6,FALSE)*F15 -> 0 | H15: =+F15+D15+B15 -> 0 | I15: =G15+E15+C15 -> 0 | J15: =SUMIF(BANK!$B:$B,4,BANK!$I:$I)+SUMIF(KAS!$B:$B,4,KAS!$I:$I)+SUMIF(INKOOP!$C:$C,4,INKOOP!$J:$J) -> 0 | K15: =VLOOKUP(221, Hulpvelden!$A:$F, 6,FALSE)*J15 -> 0 | L15: =SUMIF(BANK!$B:$B,5,BANK!$I:$I)+SUMIF(KAS!$B:$B,5,KAS!$I:$I)+SUMIF(INKOOP!$C:$C,5,INKOOP!$J:$J) -> 0 | M15: =VLOOKUP(221, Hulpvelden!$A:$F, 6,FALSE)*L15 -> 0 | N15: =SUMIF(BANK!$B:$B,6,BANK!$I:$I)+SUMIF(KAS!$B:$B,6,KAS!$I:$I)+SUMIF(INKOOP!$C:$C,6,INKOOP!$J:$J) -> 0 | O15: =VLOOKUP(221, Hulpvelden!$A:$F, 6,FALSE)*N15 -> 0 | P15: =+N15+L15+J15 -> 0 | Q15: =O15+M15+K15 -> 0 | R15: =SUMIF(BANK!$B:$B,7,BANK!$I:$I)+SUMIF(KAS!$B:$B,7,KAS!$I:$I)+SUMIF(INKOOP!$C:$C,7,INKOOP!$J:$J) -> 0 | S15: =VLOOKUP(221, Hulpvelden!$A:$F, 6,FALSE)*R15 -> 0 | T15: =SUMIF(BANK!$B:$B,8,BANK!$I:$I)+SUMIF(KAS!$B:$B,8,KAS!$I:$I)+SUMIF(INKOOP!$C:$C,8,INKOOP!$J:$J) -> 0 | U15: =VLOOKUP(221, Hulpvelden!$A:$F, 6,FALSE)*T15 -> 0 | V15: =SUMIF(BANK!$B:$B,9,BANK!$I:$I)+SUMIF(KAS!$B:$B,9,KAS!$I:$I)+SUMIF(INKOOP!$C:$C,9,INKOOP!$J:$J) -> 0 | W15: =VLOOKUP(221, Hulpvelden!$A:$F, 6,FALSE)*V15 -> 0 | X15: =+V15+T15+R15 -> 0 | Y15: =W15+U15+S15 -> 0 | Z15: =SUMIF(BANK!$B:$B,10,BANK!$I:$I)+SUMIF(KAS!$B:$B,10,KAS!$I:$I)+SUMIF(INKOOP!$C:$C,10,INKOOP!$J:$J) -> 0 | AA15: =VLOOKUP(221, Hulpvelden!$A:$F, 6,FALSE)*Z15 -> 0 | AB15: =SUMIF(BANK!$B:$B,11,BANK!$I:$I)+SUMIF(KAS!$B:$B,11,KAS!$I:$I)+SUMIF(INKOOP!$C:$C,11,INKOOP!$J:$J) -> 0 | AC15: =VLOOKUP(221, Hulpvelden!$A:$F, 6,FALSE)*AB15 -> 0 | AD15: =SUMIF(BANK!$B:$B,12,BANK!$I:$I)+SUMIF(KAS!$B:$B,12,KAS!$I:$I)+SUMIF(INKOOP!$C:$C,12,INKOOP!$J:$J) -> 0 | AE15: =VLOOKUP(221, Hulpvelden!$A:$F, 6,FALSE)*AD15 -> 0 | AF15: =+AD15+AB15+Z15 -> 0 | AG15: =AE15+AC15+AA15 -> 0
A16: Voorbelasting wordt overgenomen bij vraag 5b
A18: 3 PRESTATIES NAAR / IN HET BUITENLAND
A19: 3a Leveringen naar landen buiten de EU | B19: =-SUMIF(BANK!$B:$B,1,BANK!$AC:$AC)-SUMIF(KAS!$B:$B,1,KAS!$AC:$AC) -> 0 | D19: =-SUMIF(BANK!$B:$B,2,BANK!$AC:$AC)-SUMIF(KAS!$B:$B,2,KAS!$AC:$AC) -> 0 | F19: =-SUMIF(BANK!$B:$B,3,BANK!$AC:$AC)-SUMIF(KAS!$B:$B,3,KAS!$AC:$AC) -> 0 | H19: =+F19+D19+B19 -> 0 | J19: =-SUMIF(BANK!$B:$B,4,BANK!$AC:$AC)-SUMIF(KAS!$B:$B,4,KAS!$AC:$AC) -> 0 | L19: =-SUMIF(BANK!$B:$B,5,BANK!$AC:$AC)-SUMIF(KAS!$B:$B,5,KAS!$AC:$AC) -> 0 | N19: =-SUMIF(BANK!$B:$B,6,BANK!$AC:$AC)-SUMIF(KAS!$B:$B,6,KAS!$AC:$AC) -> 0 | P19: =+N19+L19+J19 -> 0 | R19: =-SUMIF(BANK!$B:$B,7,BANK!$AC:$AC)-SUMIF(KAS!$B:$B,7,KAS!$AC:$AC) -> 0 | T19: =-SUMIF(BANK!$B:$B,8,BANK!$AC:$AC)-SUMIF(KAS!$B:$B,8,KAS!$AC:$AC) -> 0 | V19: =-SUMIF(BANK!$B:$B,9,BANK!$AC:$AC)-SUMIF(KAS!$B:$B,9,KAS!$AC:$AC) -> 0 | X19: =+V19+T19+R19 -> 0 | Z19: =-SUMIF(BANK!$B:$B,10,BANK!$AC:$AC)-SUMIF(KAS!$B:$B,10,KAS!$AC:$AC) -> 0 | AB19: =-SUMIF(BANK!$B:$B,11,BANK!$AC:$AC)-SUMIF(KAS!$B:$B,11,KAS!$AC:$AC) -> 0 | AD19: =-SUMIF(BANK!$B:$B,12,BANK!$AC:$AC)-SUMIF(KAS!$B:$B,12,KAS!$AC:$AC) -> 0 | AF19: =+AD19+AB19+Z19 -> 0
A20: 3b Leveringen naar landen in EU | B20: =SUMIF(VERKOOP!$C:$C,1,VERKOOP!$K:$K) -> 1100 | D20: =SUMIF(VERKOOP!$C:$C,2,VERKOOP!$K:$K) -> 1100 | F20: =SUMIF(VERKOOP!$C:$C,3,VERKOOP!$K:$K) -> 1100 | H20: =+F20+D20+B20 -> 3300 | J20: =SUMIF(VERKOOP!$C:$C,4,VERKOOP!$K:$K) -> 1100 | L20: =SUMIF(VERKOOP!$C:$C,5,VERKOOP!$K:$K) -> 1100 | N20: =SUMIF(VERKOOP!$C:$C,6,VERKOOP!$K:$K) -> 1100 | P20: =+N20+L20+J20 -> 3300 | R20: =SUMIF(VERKOOP!$C:$C,7,VERKOOP!$K:$K) -> 1100 | T20: =SUMIF(VERKOOP!$C:$C,8,VERKOOP!$K:$K) -> 1100 | V20: =SUMIF(VERKOOP!$C:$C,9,VERKOOP!$K:$K) -> 1100 | X20: =+V20+T20+R20 -> 3300 | Z20: =SUMIF(VERKOOP!$C:$C,10,VERKOOP!$K:$K) -> 1100 | AB20: =SUMIF(VERKOOP!$C:$C,11,VERKOOP!$K:$K) -> 1100 | AD20: =SUMIF(VERKOOP!$C:$C,12,VERKOOP!$K:$K) -> 1100 | AF20: =+AD20+AB20+Z20 -> 3300
A21: 3c Is niet opgenomen in dit programma
A23: 4 PRESTATIES UIT HET BUITENLAND AAN U VERRICHT
A24: 4a is niet opgenomen in dit programma
A25: 4b leveringen/diensten uit landen binnen de EU | B25: =SUMIF(BANK!$B:$B,1,BANK!$J:$J)+SUMIF(KAS!$B:$B,1,KAS!$J:$J)+SUMIF(INKOOP!$C:$C,1,INKOOP!$K:$K ) -> 0 | C25: =VLOOKUP(221, Hulpvelden!$A:$F, 6,FALSE)*B25 -> 0 | D25: =SUMIF(BANK!$B:$B,2,BANK!$J:$J)+SUMIF(KAS!$B:$B,2,KAS!$J:$J)+SUMIF(INKOOP!$C:$C,2,INKOOP!$K:$K ) -> 0 | E25: =VLOOKUP(221, Hulpvelden!$A:$F, 6,FALSE)*D25 -> 0 | F25: =SUMIF(BANK!$B:$B,3,BANK!$J:$J)+SUMIF(KAS!$B:$B,3,KAS!$J:$J)+SUMIF(INKOOP!$C:$C,3,INKOOP!$K:$K ) -> 0 | G25: =VLOOKUP(221, Hulpvelden!$A:$F, 6,FALSE)*F25 -> 0 | H25: =+F25+D25+B25 -> 0 | I25: =G25+E25+C25 -> 0 | J25: =SUMIF(BANK!$B:$B,4,BANK!$J:$J)+SUMIF(KAS!$B:$B,4,KAS!$J:$J)+SUMIF(INKOOP!$C:$C,4,INKOOP!$K:$K ) -> 0 | K25: =VLOOKUP(221, Hulpvelden!$A:$F, 6,FALSE)*J25 -> 0 | L25: =SUMIF(BANK!$B:$B,5,BANK!$J:$J)+SUMIF(KAS!$B:$B,5,KAS!$J:$J)+SUMIF(INKOOP!$C:$C,5,INKOOP!$K:$K ) -> 0 | M25: =VLOOKUP(221, Hulpvelden!$A:$F, 6,FALSE)*L25 -> 0 | N25: =SUMIF(BANK!$B:$B,6,BANK!$J:$J)+SUMIF(KAS!$B:$B,6,KAS!$J:$J)+SUMIF(INKOOP!$C:$C,6,INKOOP!$K:$K ) -> 0 | O25: =VLOOKUP(221, Hulpvelden!$A:$F, 6,FALSE)*N25 -> 0 | P25: =+N25+L25+J25 -> 0 | Q25: =O25+M25+K25 -> 0 | R25: =SUMIF(BANK!$B:$B,7,BANK!$J:$J)+SUMIF(KAS!$B:$B,7,KAS!$J:$J)+SUMIF(INKOOP!$C:$C,7,INKOOP!$K:$K ) -> 0 | S25: =VLOOKUP(221, Hulpvelden!$A:$F, 6,FALSE)*R25 -> 0 | T25: =SUMIF(BANK!$B:$B,8,BANK!$J:$J)+SUMIF(KAS!$B:$B,8,KAS!$J:$J)+SUMIF(INKOOP!$C:$C,8,INKOOP!$K:$K ) -> 0 | U25: =VLOOKUP(221, Hulpvelden!$A:$F, 6,FALSE)*T25 -> 0 | V25: =SUMIF(BANK!$B:$B,9,BANK!$J:$J)+SUMIF(KAS!$B:$B,9,KAS!$J:$J)+SUMIF(INKOOP!$C:$C,9,INKOOP!$K:$K ) -> 0 | W25: =VLOOKUP(221, Hulpvelden!$A:$F, 6,FALSE)*V25 -> 0 | X25: =+V25+T25+R25 -> 0 | Y25: =W25+U25+S25 -> 0 | Z25: =SUMIF(BANK!$B:$B,10,BANK!$J:$J)+SUMIF(KAS!$B:$B,10,KAS!$J:$J)+SUMIF(INKOOP!$C:$C,10,INKOOP!$K:$K ) -> 0 | AA25: =VLOOKUP(221, Hulpvelden!$A:$F, 6,FALSE)*Z25 -> 0 | AB25: =SUMIF(BANK!$B:$B,11,BANK!$J:$J)+SUMIF(KAS!$B:$B,11,KAS!$J:$J)+SUMIF(INKOOP!$C:$C,11,INKOOP!$K:$K ) -> 0 | AC25: =VLOOKUP(221, Hulpvelden!$A:$F, 6,FALSE)*AB25 -> 0 | AD25: =SUMIF(BANK!$B:$B,12,BANK!$J:$J)+SUMIF(KAS!$B:$B,12,KAS!$J:$J)+SUMIF(INKOOP!$C:$C,12,INKOOP!$K:$K ) -> 0 | AE25: =VLOOKUP(221, Hulpvelden!$A:$F, 6,FALSE)*AD25 -> 0 | AF25: =+AD25+AB25+Z25 -> 0 | AG25: =AE25+AC25+AA25 -> 0
A27: 5 VOORBELASTING KL OND.REGELING EINDTOTAAL
A28: 5a Totaal verschuldige omzetbelasting | C28: =SUM(C11:C27) -> 970 | E28: =SUM(E11:E27) -> 970 | G28: =SUM(G11:G27) -> 970 | I28: =SUM(I11:I27) -> 2910 | K28: =SUM(K11:K27) -> 970 | M28: =SUM(M11:M27) -> 970 | O28: =SUM(O11:O27) -> 970 | Q28: =SUM(Q11:Q27) -> 2910 | S28: =SUM(S11:S27) -> 970 | U28: =SUM(U11:U27) -> 970 | W28: =SUM(W11:W27) -> 970 | Y28: =SUM(Y11:Y27) -> 2910 | AA28: =SUM(AA11:AA27) -> 970 | AC28: =SUM(AC11:AC27) -> 970 | AE28: =SUM(AE11:AE27) -> 970 | AG28: =SUM(AG11:AG27) -> 2910
A29: 5b Vooraftrek binnenland | B29: =-(SUMIF(BANK!$B:$B,1,BANK!$T:$T)+SUMIF(KAS!$B:$B,1,KAS!$T:$T)+SUMIF(INKOOP!$C:$C,1,INKOOP!$S:$S)) -> -4 | D29: =-(SUMIF(BANK!$B:$B,2,BANK!$T:$T)+SUMIF(KAS!$B:$B,2,KAS!$T:$T)+SUMIF(INKOOP!$C:$C,2,INKOOP!$S:$S)) -> -4 | F29: =-(SUMIF(BANK!$B:$B,3,BANK!$T:$T)+SUMIF(KAS!$B:$B,3,KAS!$T:$T)+SUMIF(INKOOP!$C:$C,3,INKOOP!$S:$S)) -> -4 | H29: =+F29+D29+B29 -> -12 | J29: =-(SUMIF(BANK!$B:$B,4,BANK!$T:$T)+SUMIF(KAS!$B:$B,4,KAS!$T:$T)+SUMIF(INKOOP!$C:$C,4,INKOOP!$S:$S)) -> -4 | L29: =-(SUMIF(BANK!$B:$B,5,BANK!$T:$T)+SUMIF(KAS!$B:$B,5,KAS!$T:$T)+SUMIF(INKOOP!$C:$C,5,INKOOP!$S:$S)) -> -4 | N29: =-(SUMIF(BANK!$B:$B,6,BANK!$T:$T)+SUMIF(KAS!$B:$B,6,KAS!$T:$T)+SUMIF(INKOOP!$C:$C,6,INKOOP!$S:$S)) -> -4 | P29: =+N29+L29+J29 -> -12 | R29: =-(SUMIF(BANK!$B:$B,7,BANK!$T:$T)+SUMIF(KAS!$B:$B,7,KAS!$T:$T)+SUMIF(INKOOP!$C:$C,7,INKOOP!$S:$S)) -> -4 | T29: =-(SUMIF(BANK!$B:$B,8,BANK!$T:$T)+SUMIF(KAS!$B:$B,8,KAS!$T:$T)+SUMIF(INKOOP!$C:$C,8,INKOOP!$S:$S)) -> -4 | V29: =-(SUMIF(BANK!$B:$B,9,BANK!$T:$T)+SUMIF(KAS!$B:$B,9,KAS!$T:$T)+SUMIF(INKOOP!$C:$C,9,INKOOP!$S:$S)) -> -4 | X29: =+V29+T29+R29 -> -12 | Z29: =-(SUMIF(BANK!$B:$B,10,BANK!$T:$T)+SUMIF(KAS!$B:$B,10,KAS!$T:$T)+SUMIF(INKOOP!$C:$C,10,INKOOP!$S:$S)) -> -4 | AB29: =-(SUMIF(BANK!$B:$B,11,BANK!$T:$T)+SUMIF(KAS!$B:$B,11,KAS!$T:$T)+SUMIF(INKOOP!$C:$C,11,INKOOP!$S:$S)) -> -4 | AD29: =-(SUMIF(BANK!$B:$B,12,BANK!$T:$T)+SUMIF(KAS!$B:$B,12,KAS!$T:$T)+SUMIF(INKOOP!$C:$C,12,INKOOP!$S:$S)) -> -4 | AF29: =+AD29+AB29+Z29 -> -12
A30: 5b Vooraftrek verwerving btw verlegd | B30: =-C15 -> 0 | D30: =-E15 -> 0 | F30: =-G15 -> 0 | H30: =+F30+D30+B30 -> 0 | J30: =-K15 -> 0 | L30: =-M15 -> 0 | N30: =-O15 -> 0 | P30: =+N30+L30+J30 -> 0 | R30: =-S15 -> 0 | T30: =-U15 -> 0 | V30: =-W15 -> 0 | X30: =+V30+T30+R30 -> 0 | Z30: =-AA15 -> 0 | AB30: =-AC15 -> 0 | AD30: =-AE15 -> 0 | AF30: =+AD30+AB30+Z30 -> 0
A31: 5b Vooraftrek verwervingen uit EU | B31: =-C25 -> 0 | D31: =-E25 -> 0 | F31: =-G25 -> 0 | H31: =+F31+D31+B31 -> 0 | J31: =-K25 -> 0 | L31: =-M25 -> 0 | N31: =-O25 -> 0 | P31: =+N31+L31+J31 -> 0 | R31: =-S25 -> 0 | T31: =-U25 -> 0 | V31: =-W25 -> 0 | X31: =+V31+T31+R31 -> 0 | Z31: =-AA25 -> 0 | AB31: =-AC25 -> 0 | AD31: =-AE25 -> 0 | AF31: =+AD31+AB31+Z31 -> 0
A32: 5b voorbelasting | C32: =SUM(B29:B31) -> -4 | E32: =SUM(D29:D31) -> -4 | G32: =SUM(F29:F31) -> -4 | I32: =G32+E32+C32 -> -12 | K32: =SUM(J29:J31) -> -4 | M32: =SUM(L29:L31) -> -4 | O32: =SUM(N29:N31) -> -4 | Q32: =O32+M32+K32 -> -12 | S32: =SUM(R29:R31) -> -4 | U32: =SUM(T29:T31) -> -4 | W32: =SUM(V29:V31) -> -4 | Y32: =W32+U32+S32 -> -12 | AA32: =SUM(Z29:Z31) -> -4 | AC32: =SUM(AB29:AB31) -> -4 | AE32: =SUM(AD29:AD31) -> -4 | AG32: =AE32+AC32+AA32 -> -12
A33: 5d is niet in programma opgenomen
A34: 5e is niet in programma opgenomen
A35: 5f is niet in programma opgenomen
A36: 5 G BTW te betalen | C36: =SUM(C28:C35) -> 966 | E36: =SUM(E28:E35) -> 966 | G36: =SUM(G28:G35) -> 966 | I36: =G36+E36+C36 -> 2898 | K36: =SUM(K28:K35) -> 966 | M36: =SUM(M28:M35) -> 966 | O36: =SUM(O28:O35) -> 966 | Q36: =O36+M36+K36 -> 2898 | S36: =SUM(S28:S35) -> 966 | U36: =SUM(U28:U35) -> 966 | W36: =SUM(W28:W35) -> 966 | Y36: =W36+U36+S36 -> 2898 | AA36: =SUM(AA28:AA35) -> 966 | AC36: =SUM(AC28:AC35) -> 966 | AE36: =SUM(AE28:AE35) -> 966 | AG36: =AE36+AC36+AA36 -> 2898
C37: =IF(C36<0,"te ontvangen","te betalen") -> te betalen | E37: =IF(E36<0,"te ontvangen","te betalen") -> te betalen | G37: =IF(G36<0,"te ontvangen","te betalen") -> te betalen | I37: =IF(I36<0,"te ontvangen","te betalen") -> te betalen | K37: =IF(K36<0,"te ontvangen","te betalen") -> te betalen | M37: =IF(M36<0,"te ontvangen","te betalen") -> te betalen | O37: =IF(O36<0,"te ontvangen","te betalen") -> te betalen | Q37: =IF(Q36<0,"te ontvangen","te betalen") -> te betalen | S37: =IF(S36<0,"te ontvangen","te betalen") -> te betalen | U37: =IF(U36<0,"te ontvangen","te betalen") -> te betalen | W37: =IF(W36<0,"te ontvangen","te betalen") -> te betalen | Y37: =IF(Y36<0,"te ontvangen","te betalen") -> te betalen | AA37: =IF(AA36<0,"te ontvangen","te betalen") -> te betalen | AC37: =IF(AC36<0,"te ontvangen","te betalen") -> te betalen | AE37: =IF(AE36<0,"te ontvangen","te betalen") -> te betalen | AG37: =IF(AG36<0,"te ontvangen","te betalen") -> te betalen
A39: Vooraftrek buitenland | C39: =-(SUMIF(BANK!$B:$B,1,BANK!$U:$U)+SUMIF(INKOOP!$C:$C,1,INKOOP!$T:$T)) -> 0 | E39: =-(SUMIF(BANK!$B:$B,2,BANK!$U:$U)+SUMIF(INKOOP!$C:$C,2,INKOOP!$T:$T)) -> 0 | G39: =-(SUMIF(BANK!$B:$B,3,BANK!$U:$U)+SUMIF(INKOOP!$C:$C,3,INKOOP!$T:$T)) -> 0 | K39: =-(SUMIF(BANK!$B:$B,4,BANK!$U:$U)+SUMIF(INKOOP!$C:$C,4,INKOOP!$T:$T)) -> 0 | M39: =-(SUMIF(BANK!$B:$B,5,BANK!$U:$U)+SUMIF(INKOOP!$C:$C,5,INKOOP!$T:$T)) -> 0 | O39: =-(SUMIF(BANK!$B:$B,6,BANK!$U:$U)+SUMIF(INKOOP!$C:$C,6,INKOOP!$T:$T)) -> 0 | S39: =-(SUMIF(BANK!$B:$B,7,BANK!$U:$U)+SUMIF(INKOOP!$C:$C,7,INKOOP!$T:$T)) -> 0 | U39: =-(SUMIF(BANK!$B:$B,8,BANK!$U:$U)+SUMIF(INKOOP!$C:$C,8,INKOOP!$T:$T)) -> 0 | W39: =-(SUMIF(BANK!$B:$B,9,BANK!$U:$U)+SUMIF(INKOOP!$C:$C,9,INKOOP!$T:$T)) -> 0 | AA39: =-(SUMIF(BANK!$B:$B,10,BANK!$U:$U)+SUMIF(INKOOP!$C:$C,10,INKOOP!$T:$T)) -> 0 | AC39: =-(SUMIF(BANK!$B:$B,11,BANK!$U:$U)+SUMIF(INKOOP!$C:$C,11,INKOOP!$T:$T)) -> 0 | AE39: =-(SUMIF(BANK!$B:$B,12,BANK!$U:$U)+SUMIF(INKOOP!$C:$C,12,INKOOP!$T:$T)) -> 0
A40: Totaal BTW Buitenland | C40: =-(SUMIF(BANK!$B:$B,1,BANK!$U:$U)-SUMIF(KAS!$B:$B,1,KAS!$U:$U)+SUMIF(INKOOP!$C:$C,1,INKOOP!$T:$T)) -> 0 | E40: =-(SUMIF(BANK!$B:$B,2,BANK!$U:$U)-SUMIF(KAS!$B:$B,2,KAS!$U:$U)+SUMIF(INKOOP!$C:$C,2,INKOOP!$T:$T)) -> 0 | G40: =-(SUMIF(BANK!$B:$B,3,BANK!$U:$U)-SUMIF(KAS!$B:$B,3,KAS!$U:$U)+SUMIF(INKOOP!$C:$C,3,INKOOP!$T:$T)) -> 0 | K40: =-(SUMIF(BANK!$B:$B,4,BANK!$U:$U)-SUMIF(KAS!$B:$B,4,KAS!$U:$U)+SUMIF(INKOOP!$C:$C,4,INKOOP!$T:$T)) -> 0 | M40: =-(SUMIF(BANK!$B:$B,5,BANK!$U:$U)-SUMIF(KAS!$B:$B,5,KAS!$U:$U)+SUMIF(INKOOP!$C:$C,5,INKOOP!$T:$T)) -> 0 | O40: =-(SUMIF(BANK!$B:$B,6,BANK!$U:$U)-SUMIF(KAS!$B:$B,6,KAS!$U:$U)+SUMIF(INKOOP!$C:$C,6,INKOOP!$T:$T)) -> 0 | S40: =-(SUMIF(BANK!$B:$B,7,BANK!$U:$U)-SUMIF(KAS!$B:$B,7,KAS!$U:$U)+SUMIF(INKOOP!$C:$C,7,INKOOP!$T:$T)) -> 0 | U40: =-(SUMIF(BANK!$B:$B,8,BANK!$U:$U)-SUMIF(KAS!$B:$B,8,KAS!$U:$U)+SUMIF(INKOOP!$C:$C,8,INKOOP!$T:$T)) -> 0 | W40: =-(SUMIF(BANK!$B:$B,9,BANK!$U:$U)-SUMIF(KAS!$B:$B,9,KAS!$U:$U)+SUMIF(INKOOP!$C:$C,9,INKOOP!$T:$T)) -> 0 | AA40: =-(SUMIF(BANK!$B:$B,10,BANK!$U:$U)-SUMIF(KAS!$B:$B,10,KAS!$U:$U)+SUMIF(INKOOP!$C:$C,10,INKOOP!$T:$T)) -> 0 | AC40: =-(SUMIF(BANK!$B:$B,11,BANK!$U:$U)-SUMIF(KAS!$B:$B,11,KAS!$U:$U)+SUMIF(INKOOP!$C:$C,11,INKOOP!$T:$T)) -> 0 | AE40: =-(SUMIF(BANK!$B:$B,12,BANK!$U:$U)-SUMIF(KAS!$B:$B,12,KAS!$U:$U)+SUMIF(INKOOP!$C:$C,12,INKOOP!$T:$T)) -> 0
A44: RESULTAAT OVERZICHT
A45: Omzet_BTW belast netto exclusief | C45: =B$11+SUM(B19:B21) -> 8100 | E45: =D$11+SUM(D19:D21) -> 8100 | G45: =F$11+SUM(F19:F21) -> 8100 | I45: =H$11+SUM(H19:H21) -> 24300 | K45: =J$11+SUM(J19:J21) -> 8100 | M45: =L$11+SUM(L19:L21) -> 8100 | O45: =N$11+SUM(N19:N21) -> 8100 | Q45: =P$11+SUM(P19:P21) -> 24300 | S45: =R$11+SUM(R19:R21) -> 8100 | U45: =T$11+SUM(T19:T21) -> 8100 | W45: =V$11+SUM(V19:V21) -> 8100 | Y45: =X$11+SUM(X19:X21) -> 24300 | AA45: =Z$11+SUM(Z19:Z21) -> 8100 | AC45: =AB$11+SUM(AB19:AB21) -> 8100 | AE45: =AD$11+SUM(AD19:AD21) -> 8100 | AG45: =AF$11+SUM(AF19:AF21) -> 24300
A46: Omzet_BTW onbelast | C46: =SUMIF(VERKOOP!$C:$C,1,VERKOOP!$J:$J)-SUMIF(BANK!$B:$B,1,BANK!$V:$V)-SUMIF(KAS!$B:$B,1,KAS!$V:$V) -> 1000 | E46: =SUMIF(VERKOOP!$C:$C,2,VERKOOP!$J:$J)-SUMIF(BANK!$B:$B,2,BANK!$V:$V)-SUMIF(KAS!$B:$B,2,KAS!$V:$V) -> 1000 | G46: =SUMIF(VERKOOP!$C:$C,3,VERKOOP!$J:$J)-SUMIF(BANK!$B:$B,3,BANK!$V:$V)-SUMIF(KAS!$B:$B,3,KAS!$V:$V) -> 1000 | K46: =SUMIF(VERKOOP!$C:$C,4,VERKOOP!$J:$J)-SUMIF(BANK!$B:$B,4,BANK!$V:$V)-SUMIF(KAS!$B:$B,4,KAS!$V:$V) -> 1000 | M46: =SUMIF(VERKOOP!$C:$C,5,VERKOOP!$J:$J)-SUMIF(BANK!$B:$B,5,BANK!$V:$V)-SUMIF(KAS!$B:$B,5,KAS!$V:$V) -> 1000 | O46: =SUMIF(VERKOOP!$C:$C,6,VERKOOP!$J:$J)-SUMIF(BANK!$B:$B,6,BANK!$V:$V)-SUMIF(KAS!$B:$B,6,KAS!$V:$V) -> 1000 | S46: =SUMIF(VERKOOP!$C:$C,7,VERKOOP!$J:$J)-SUMIF(BANK!$B:$B,7,BANK!$V:$V)-SUMIF(KAS!$B:$B,7,KAS!$V:$V) -> 1000 | U46: =SUMIF(VERKOOP!$C:$C,8,VERKOOP!$J:$J)-SUMIF(BANK!$B:$B,8,BANK!$V:$V)-SUMIF(KAS!$B:$B,8,KAS!$V:$V) -> 1000 | W46: =SUMIF(VERKOOP!$C:$C,9,VERKOOP!$J:$J)-SUMIF(BANK!$B:$B,9,BANK!$V:$V)-SUMIF(KAS!$B:$B,9,KAS!$V:$V) -> 1000 | AA46: =SUMIF(VERKOOP!$C:$C,10,VERKOOP!$J:$J)-SUMIF(BANK!$B:$B,10,BANK!$V:$V)-SUMIF(KAS!$B:$B,10,KAS!$V:$V) -> 1000 | AC46: =SUMIF(VERKOOP!$C:$C,11,VERKOOP!$J:$J)-SUMIF(BANK!$B:$B,11,BANK!$V:$V)-SUMIF(KAS!$B:$B,11,KAS!$V:$V) -> 1000 | AE46: =SUMIF(VERKOOP!$C:$C,12,VERKOOP!$J:$J)-SUMIF(BANK!$B:$B,12,BANK!$V:$V)-SUMIF(KAS!$B:$B,12,KAS!$V:$V) -> 1000 | AG46: =SUM(AA46:AE46) -> 3000
A47: Kostprijs Verkopen | C47: =-SUMIF(BANK!$B:$B,1,BANK!$AB:$AB)-SUMIF(KAS!$B:$B,1,KAS!$AB:$AB)-SUMIF(INKOOP!$C:$C,1,INKOOP!$AA:$AA) -> 0 | E47: =-SUMIF(BANK!$B:$B,2,BANK!$AB:$AB)-SUMIF(KAS!$B:$B,2,KAS!$AB:$AB)-SUMIF(INKOOP!$C:$C,2,INKOOP!$AA:$AA) -> 0 | G47: =-SUMIF(BANK!$B:$B,3,BANK!$AB:$AB)-SUMIF(KAS!$B:$B,3,KAS!$AB:$AB)-SUMIF(INKOOP!$C:$C,3,INKOOP!$AA:$AA) -> 0 | I47: =SUM(C47:G47) -> 0 | K47: =-SUMIF(BANK!$B:$B,4,BANK!$AB:$AB)-SUMIF(KAS!$B:$B,4,KAS!$AB:$AB)-SUMIF(INKOOP!$C:$C,4,INKOOP!$AA:$AA) -> 0 | M47: =-SUMIF(BANK!$B:$B,5,BANK!$AB:$AB)-SUMIF(KAS!$B:$B,5,KAS!$AB:$AB)-SUMIF(INKOOP!$C:$C,5,INKOOP!$AA:$AA) -> 0 | O47: =-SUMIF(BANK!$B:$B,6,BANK!$AB:$AB)-SUMIF(KAS!$B:$B,6,KAS!$AB:$AB)-SUMIF(INKOOP!$C:$C,6,INKOOP!$AA:$AA) -> 0 | Q47: =SUM(K47:O47) -> 0 | S47: =-SUMIF(BANK!$B:$B,7,BANK!$AB:$AB)-SUMIF(KAS!$B:$B,7,KAS!$AB:$AB)-SUMIF(INKOOP!$C:$C,7,INKOOP!$AA:$AA) -> 0 | U47: =-SUMIF(BANK!$B:$B,8,BANK!$AB:$AB)-SUMIF(KAS!$B:$B,8,KAS!$AB:$AB)-SUMIF(INKOOP!$C:$C,8,INKOOP!$AA:$AA) -> 0 | W47: =-SUMIF(BANK!$B:$B,9,BANK!$AB:$AB)-SUMIF(KAS!$B:$B,9,KAS!$AB:$AB)-SUMIF(INKOOP!$C:$C,9,INKOOP!$AA:$AA) -> 0 | Y47: =SUM(S47:W47) -> 0 | AA47: =-SUMIF(BANK!$B:$B,10,BANK!$AB:$AB)-SUMIF(KAS!$B:$B,10,KAS!$AB:$AB)-SUMIF(INKOOP!$C:$C,10,INKOOP!$AA:$AA) -> 0 | AC47: =-SUMIF(BANK!$B:$B,11,BANK!$AB:$AB)-SUMIF(KAS!$B:$B,11,KAS!$AB:$AB)-SUMIF(INKOOP!$C:$C,11,INKOOP!$AA:$AA) -> 0 | AE47: =-SUMIF(BANK!$B:$B,12,BANK!$AB:$AB)-SUMIF(KAS!$B:$B,12,KAS!$AB:$AB)-SUMIF(INKOOP!$C:$C,12,INKOOP!$AA:$AA) -> 0 | AG47: =SUM(AA47:AE47) -> 0
A48: Algemene kosten en opbrengsten | C48: =-SUMIF(BANK!$B:$B,1,BANK!$S:$S)-SUMIF(KAS!$B:$B,1,KAS!$S:$S)-SUMIF(INKOOP!$C:$C,1,INKOOP!$R:$R)-C47 -> -20 | E48: =-SUMIF(BANK!$B:$B,2,BANK!$S:$S)-SUMIF(KAS!$B:$B,2,KAS!$S:$S)-SUMIF(INKOOP!$C:$C,2,INKOOP!$R:$R)-E47 -> -20 | G48: =-SUMIF(BANK!$B:$B,3,BANK!$S:$S)-SUMIF(KAS!$B:$B,3,KAS!$S:$S)-SUMIF(INKOOP!$C:$C,3,INKOOP!$R:$R)-G47 -> -20 | I48: =SUM(C48:G48) -> -60 | K48: =-SUMIF(BANK!$B:$B,4,BANK!$S:$S)-SUMIF(KAS!$B:$B,4,KAS!$S:$S)-SUMIF(INKOOP!$C:$C,4,INKOOP!$R:$R)-K47 -> -20 | M48: =-SUMIF(BANK!$B:$B,5,BANK!$S:$S)-SUMIF(KAS!$B:$B,5,KAS!$S:$S)-SUMIF(INKOOP!$C:$C,5,INKOOP!$R:$R)-M47 -> -20 | O48: =-SUMIF(BANK!$B:$B,6,BANK!$S:$S)-SUMIF(KAS!$B:$B,6,KAS!$S:$S)-SUMIF(INKOOP!$C:$C,6,INKOOP!$R:$R)-O47 -> -20 | Q48: =SUM(K48:O48) -> -60 | S48: =-SUMIF(BANK!$B:$B,7,BANK!$S:$S)-SUMIF(KAS!$B:$B,7,KAS!$S:$S)-SUMIF(INKOOP!$C:$C,7,INKOOP!$R:$R)-S47 -> -20 | U48: =-SUMIF(BANK!$B:$B,8,BANK!$S:$S)-SUMIF(KAS!$B:$B,8,KAS!$S:$S)-SUMIF(INKOOP!$C:$C,8,INKOOP!$R:$R)-U47 -> -20 | W48: =-SUMIF(BANK!$B:$B,9,BANK!$S:$S)-SUMIF(KAS!$B:$B,9,KAS!$S:$S)-SUMIF(INKOOP!$C:$C,9,INKOOP!$R:$R)-W47 -> -20 | Y48: =SUM(S48:W48) -> -60 | AA48: =-SUMIF(BANK!$B:$B,10,BANK!$S:$S)-SUMIF(KAS!$B:$B,10,KAS!$S:$S)-SUMIF(INKOOP!$C:$C,10,INKOOP!$R:$R)-AA47 -> -20 | AC48: =-SUMIF(BANK!$B:$B,11,BANK!$S:$S)-SUMIF(KAS!$B:$B,11,KAS!$S:$S)-SUMIF(INKOOP!$C:$C,11,INKOOP!$R:$R)-AC47 -> -20 | AE48: =-SUMIF(BANK!$B:$B,12,BANK!$S:$S)-SUMIF(KAS!$B:$B,12,KAS!$S:$S)-SUMIF(INKOOP!$C:$C,12,INKOOP!$R:$R)-AE47 -> -20 | AG48: =SUM(AA48:AE48) -> -60
A49: Nettowinst voor afschrijvingen | C49: =SUM(C45:C48) -> 9080 | E49: =SUM(E45:E48) -> 9080 | G49: =SUM(G45:G48) -> 9080 | I49: =SUM(I45:I48) -> 24240 | K49: =SUM(K45:K48) -> 9080 | M49: =SUM(M45:M48) -> 9080 | O49: =SUM(O45:O48) -> 9080 | Q49: =SUM(Q45:Q48) -> 24240 | S49: =SUM(S45:S48) -> 9080 | U49: =SUM(U45:U48) -> 9080 | W49: =SUM(W45:W48) -> 9080 | Y49: =SUM(Y45:Y48) -> 24240 | AA49: =SUM(AA45:AA48) -> 9080 | AC49: =SUM(AC45:AC48) -> 9080 | AE49: =SUM(AE45:AE48) -> 9080 | AG49: =SUM(AG45:AG48) -> 27240
A51: LIQUIDITEITEN OVERZICHT
A52: Banksaldo begin periode | C52: =BANK!$L$3 -> 1000 | E52: =C54 -> 0 | G52: =E54 -> 0 | I52: =C52 -> 1000 | K52: =I54 -> 0 | M52: =K54 -> 0 | O52: =M54 -> 0 | Q52: =K52 -> 0 | S52: =Q54 -> 0 | U52: =S54 -> 0 | W52: =U54 -> 0 | Y52: =S52 -> 0 | AA52: =Y54 -> 0 | AC52: =AA54 -> 0 | AE52: =AC54 -> 0 | AG52: =AA52 -> 0
A53: Ontvangsten en uitgaven bank | C53: =-SUMIF(BANK!$B:$B,1,BANK!$K:$K) -> 1197.9 | E53: =-SUMIF(BANK!$B:$B,2,BANK!$K:$K) -> 1197.9 | G53: =-SUMIF(BANK!$B:$B,3,BANK!$K:$K) -> 1197.9 | I53: =SUM(C53:G53) -> 3593.7 | K53: =-SUMIF(BANK!$B:$B,4,BANK!$K:$K) -> 1197.9 | M53: =-SUMIF(BANK!$B:$B,5,BANK!$K:$K) -> 1197.9 | O53: =-SUMIF(BANK!$B:$B,6,BANK!$K:$K) -> 1197.9 | Q53: =SUM(K53:O53) -> 3593.7 | S53: =-SUMIF(BANK!$B:$B,7,BANK!$K:$K) -> 1197.9 | U53: =-SUMIF(BANK!$B:$B,8,BANK!$K:$K) -> 1197.9 | W53: =-SUMIF(BANK!$B:$B,9,BANK!$K:$K) -> 1197.9 | Y53: =SUM(S53:W53) -> 3593.7 | AA53: =-SUMIF(BANK!$B:$B,10,BANK!$K:$K) -> 1197.9 | AC53: =-SUMIF(BANK!$B:$B,11,BANK!$K:$K) -> 1197.9 | AE53: =-SUMIF(BANK!$B:$B,12,BANK!$K:$K) -> 1197.9 | AG53: =SUM(AA53:AE53) -> 3593.7
A56: Kassaldo begin periode | C56: =KAS!$L$3 -> 0 | E56: =C58 -> 1198.1 | G56: =E58 -> 2396.2 | I56: =C56 -> 0 | K56: =I58 -> 3594.3 | M56: =K58 -> 4792.4 | O56: =M58 -> 5990.5 | Q56: =K56 -> 3594.3 | S56: =Q58 -> 7188.6 | U56: =S58 -> 8386.7 | W56: =U58 -> 9584.8 | Y56: =S56 -> 7188.6 | AA56: =Y58 -> 10782.9 | AC56: =AA58 -> 11981 | AE56: =AC58 -> 13179.1 | AG56: =AA56 -> 10782.9
A57: Ontvangsten en uitgaven kas | C57: =-SUMIF(KAS!$B:$B,1,KAS!$K:$K) -> 1198.1 | E57: =-SUMIF(KAS!$B:$B,2,KAS!$K:$K) -> 1198.1 | G57: =-SUMIF(KAS!$B:$B,3,KAS!$K:$K) -> 1198.1 | I57: =SUM(C57:G57) -> 3594.3 | K57: =-SUMIF(KAS!$B:$B,4,KAS!$K:$K) -> 1198.1 | M57: =-SUMIF(KAS!$B:$B,5,KAS!$K:$K) -> 1198.1 | O57: =-SUMIF(KAS!$B:$B,6,KAS!$K:$K) -> 1198.1 | Q57: =SUM(K57:O57) -> 3594.3 | S57: =-SUMIF(KAS!$B:$B,7,KAS!$K:$K) -> 1198.1 | U57: =-SUMIF(KAS!$B:$B,8,KAS!$K:$K) -> 1198.1 | W57: =-SUMIF(KAS!$B:$B,9,KAS!$K:$K) -> 1198.1 | Y57: =SUM(S57:W57) -> 3594.3 | AA57: =-SUMIF(KAS!$B:$B,10,KAS!$K:$K) -> 1198.1 | AC57: =-SUMIF(KAS!$B:$B,11,KAS!$K:$K) -> 1198.1 | AE57: =-SUMIF(KAS!$B:$B,12,KAS!$K:$K) -> 1198.1 | AG57: =SUM(AA57:AE57) -> 3594.3
A58: Kassaldo eind periode | C58: =SUM(C56:C57) -> 1198.1 | E58: =SUM(E56:E57) -> 2396.2 | G58: =SUM(G56:G57) -> 3594.3 | I58: =SUM(I56:I57) -> 3594.3 | K58: =SUM(K56:K57) -> 4792.4 | M58: =SUM(M56:M57) -> 5990.5 | O58: =SUM(O56:O57) -> 7188.6 | Q58: =SUM(Q56:Q57) -> 7188.6 | S58: =SUM(S56:S57) -> 8386.7 | U58: =SUM(U56:U57) -> 9584.8 | W58: =SUM(W56:W57) -> 10782.9 | Y58: =SUM(Y56:Y57) -> 10782.9 | AA58: =SUM(AA56:AA57) -> 11981 | AC58: =SUM(AC56:AC57) -> 13179.1 | AE58: =SUM(AE56:AE57) -> 14377.2 | AG58: =SUM(AG56:AG57) -> 14377.2
A60: Uw liquiditeiten zijn in deze
A61: periode met | C61: =-C52+C54-C56+C58 -> 198.1 | E61: =-E52+E54-E56+E58 -> 1198.1 | G61: =-G52+G54-G56+G58 -> 1198.1 | I61: =-I52+I54-I56+I58 -> 2594.3 | K61: =-K52+K54-K56+K58 -> 1198.1 | M61: =-M52+M54-M56+M58 -> 1198.1 | O61: =-O52+O54-O56+O58 -> 1198.1 | Q61: =-Q52+Q54-Q56+Q58 -> 3594.3 | S61: =-S52+S54-S56+S58 -> 1198.1 | U61: =-U52+U54-U56+U58 -> 1198.1 | W61: =-W52+W54-W56+W58 -> 1198.1 | Y61: =-Y52+Y54-Y56+Y58 -> 3594.3 | AA61: =-AA52+AA54-AA56+AA58 -> 1198.1 | AC61: =-AC52+AC54-AC56+AC58 -> 1198.1 | AE61: =-AE52+AE54-AE56+AE58 -> 1198.1 | AG61: =-AG52+AG54-AG56+AG58 -> 3594.3
C62: =IF(C61=0,"",IF(C61<0,"afgenomen","toegenomen")) -> toegenomen | E62: =IF(E61=0,"",IF(E61<0,"afgenomen","toegenomen")) -> toegenomen | G62: =IF(G61=0,"",IF(G61<0,"afgenomen","toegenomen")) -> toegenomen | I62: =IF(I61=0,"",IF(I61<0,"afgenomen","toegenomen")) -> toegenomen | K62: =IF(K61=0,"",IF(K61<0,"afgenomen","toegenomen")) -> toegenomen | M62: =IF(M61=0,"",IF(M61<0,"afgenomen","toegenomen")) -> toegenomen | O62: =IF(O61=0,"",IF(O61<0,"afgenomen","toegenomen")) -> toegenomen | Q62: =IF(Q61=0,"",IF(Q61<0,"afgenomen","toegenomen")) -> toegenomen | S62: =IF(S61=0,"",IF(S61<0,"afgenomen","toegenomen")) -> toegenomen | U62: =IF(U61=0,"",IF(U61<0,"afgenomen","toegenomen")) -> toegenomen | W62: =IF(W61=0,"",IF(W61<0,"afgenomen","toegenomen")) -> toegenomen | Y62: =IF(Y61=0,"",IF(Y61<0,"afgenomen","toegenomen")) -> toegenomen | AA62: =IF(AA61=0,"",IF(AA61<0,"afgenomen","toegenomen")) -> toegenomen | AC62: =IF(AC61=0,"",IF(AC61<0,"afgenomen","toegenomen")) -> toegenomen | AE62: =IF(AE61=0,"",IF(AE61<0,"afgenomen","toegenomen")) -> toegenomen | AG62: =IF(AG61=0,"",IF(AG61<0,"afgenomen","toegenomen")) -> toegenomen

Sheet Factuur
B4: FACTUUR
B6: Kraneneburg
B7: Tav Pietersen
B8: Bilderdijkstraat 36
B9: 2013 EK Haarlem
E12: 0
B13: BTW nummer EU-klant | E13: NLTest en zo
B14: Nummer : | E14: 2018015
B15: Datum : | E15: =NOW() -> 2019-02-01T15:43:53.290
B16: Omschrijving | C16: B# | D16: Aantal | E16: Stuksprijs | F16: Val | G16: Totaal
B17: 123456789012345678901234567890 | C17: 1 | D17: 1 | E17: 100 | F17: eur | G17: =ROUND(D17*E17,2) -> 100
B18: Weewe | C18: 2 | D18: 2 | E18: 200 | F18: eur | G18: 400
F19: eur | G19: 0
F20: eur | G20: 0
F21: eur | G21: 0
F22: eur | G22: 0
F23: eur | G23: 0
F24: eur | G24: 0
F25: eur | G25: 0
F26: eur | G26: 0
F27: eur | G27: 0
F28: eur | G28: 0
F29: eur | G29: 0
F30: eur | G30: 0
F31: eur | G31: 0
F32: eur | G32: 0
F33: eur | G33: 0
F34: eur | G34: 0
F35: eur | G35: 0
B36: Totaal exclusief btw | F36: eur | G36: =SUM(G$17:G$35) -> 500
B37: BTW | C37: =IF(OR($E$50<>0,$E$51<>0),"btw verlegd naar opdrachtgever","") ->  | F37: eur | G37: =G$52 -> 42
B38: Totaal inclusief btw | F38: eur | G38: =G$36+G$37 -> 542
B39: Gelieve te betalen voor | E39: =$E$15+14 -> 2019-02-15T15:43:53.290
B40: Onder vermelding van | E40: =$E$14 -> 2018015
B41: Op bankrekening | E41: NL88INGB123456789
B44: BTW specificatie | C44: B# | D44: Tarief | E44: Basis | F44: Btw | G44: Btw Totaal
B45: BTW laag 1 | C45: 1 | D45: =6% -> 0.06 | E45: =SUMIF($C$17:$C$35,$C45,$G$17:$G$35) -> 100 | F45: =$D45*$E45 -> 6
B46: BTW laag 2 | C46: 2 | D46: =9% -> 0.09 | E46: 400 | F46: 36
B47: BTW hoog 1 | C47: 3 | D47: =19% -> 0.19 | E47: 0 | F47: 0
B48: BTW hoog 2 | C48: 4 | D48: =21% -> 0.21 | E48: 0 | F48: 0
B49: BTW NL onbelast | C49: 5 | D49: NL-onbelast | E49: 0
B50: BTW NL Verlegd | C50: 6 | D50: NL-verlegd | E50: 0
B51: BTW EU Verlegd | C51: 7 | D51: EU-verlegd | E51: 0
B52: Totaal btw | F52: eur | G52: =SUM($F$45:$F$50) -> 42
B53: Eigen bedrijfsnaam | E53: De Blauwe Papierwinkel | G53: =IF(SUM($E$45:$E$51)<>$G$36,"BTWcode onjuist","") -> 
B54: Bedrijfsadres, PC en woonplaats | E54: Bilderdijkstraat 36, 2013 EK Haarlem
B55: Eigen btw nummer
B56: Eigen kvk nummer

Sheet VERKOOP
A1: NUM | B1: FAKDAT | C1: MND | D1: KLANTNAAM | E1: NL incl % | F1: NL incl % | G1: NL incl % | H1: NL incl % | I1: NL Verlegd | J1: NL Onbelast | K1: EU NETTO | L1: EU_NUM | M1: EU_KLANT | N1: KST DOORBEL | O1: FAC_TOT | P1: BTW_VERK | Q1: BETAALD | R1: NOG OPEN | S1: OMSCHRIJVING | T1: KENMERK | U1: INKOOPORDER | V1: AFSPRAKEN | W1: HERINNERING | X1: HERINNERING
E2: =(VLOOKUP(221, Hulpvelden!$A:$F, 6, FALSE) * 100) -> 21 | F2: =(VLOOKUP(222, Hulpvelden!$A:$F, 6, FALSE) * 100) -> 19 | G2: =(VLOOKUP(211, Hulpvelden!$A:$F, 6, FALSE) * 100) -> 9 | H2: =(VLOOKUP(212, Hulpvelden!$A:$F, 6, FALSE) * 100) -> 6 | I2: 0 | K2: 0
A3: =A2+1 -> 1 | B3: 2019-01-15 | C3: =MONTH(B3) -> 1 | D3: Test 1 | E3: 1210 | F3: 1190 | G3: 1090 | H3: 1060 | I3: 1000 | J3: 1000 | K3: 1100 | L3: 1 | M3: =IF(ISNUMBER($L3),VLOOKUP($L3,ICP!$A:$B,2,FALSE),"") -> Pietersen | O3: =SUM($E3:$K3) -> 7650 | P3: =VLOOKUP(221, Hulpvelden!$A:$F, 6,FALSE)/(1 + VLOOKUP(221, Hulpvelden!$A:$F, 6,FALSE))*$E3+VLOOKUP(222, Hulpvelden!$A:$F, 6,FALSE)/(1 + VLOOKUP(222, Hulpvelden!$A:$F, 6,FALSE))*$F3+VLOOKUP(211, Hulpvelden!$A:$F, 6,FALSE)/(1 + VLOOKUP(211, Hulpvelden!$A:$F, 6,FALSE))*$G3+VLOOKUP(212, Hulpvelden!$A:$F, 6,FALSE)/(1 + VLOOKUP(212, Hulpvelden!$A:$F, 6,FALSE))*$H3 -> 550 | Q3: =SUMIF(BANK!$M:$M,$A3,BANK!$K:$K) -> 0 | R3: =SUM($E3:$K3)+$N3+ $Q3 -> 7650
A4: =A3+1 -> 2 | B4: 2019-02-15 | C4: 2 | D4: Test 2 | E4: 1210 | F4: 1190 | G4: 1090 | H4: 1060 | I4: 1000 | J4: 1000 | K4: 1100 | L4: 1 | M4: =IF(ISNUMBER($L4),VLOOKUP($L4,ICP!$A:$B,2,FALSE),"") -> Pietersen | O4: 7650 | P4: =VLOOKUP(221, Hulpvelden!$A:$F, 6,FALSE)/(1 + VLOOKUP(221, Hulpvelden!$A:$F, 6,FALSE))*$E4+VLOOKUP(222, Hulpvelden!$A:$F, 6,FALSE)/(1 + VLOOKUP(222, Hulpvelden!$A:$F, 6,FALSE))*$F4+VLOOKUP(211, Hulpvelden!$A:$F, 6,FALSE)/(1 + VLOOKUP(211, Hulpvelden!$A:$F, 6,FALSE))*$G4+VLOOKUP(212, Hulpvelden!$A:$F, 6,FALSE)/(1 + VLOOKUP(212, Hulpvelden!$A:$F, 6,FALSE))*$H4 -> 550 | Q4: =SUMIF(BANK!$M:$M,$A4,BANK!$K:$K) -> 0 | R4: 7650
A5: 3 | B5: 2019-03-15 | C5: 3 | D5: Test 3 | E5: 1210 | F5: 1190 | G5: 1090 | H5: 1060 | I5: 1000 | J5: 1000 | K5: 1100 | L5: 1 | M5: =IF(ISNUMBER($L5),VLOOKUP($L5,ICP!$A:$B,2,FALSE),"") -> Pietersen | O5: 7650 | P5: =VLOOKUP(221, Hulpvelden!$A:$F, 6,FALSE)/(1 + VLOOKUP(221, Hulpvelden!$A:$F, 6,FALSE))*$E5+VLOOKUP(222, Hulpvelden!$A:$F, 6,FALSE)/(1 + VLOOKUP(222, Hulpvelden!$A:$F, 6,FALSE))*$F5+VLOOKUP(211, Hulpvelden!$A:$F, 6,FALSE)/(1 + VLOOKUP(211, Hulpvelden!$A:$F, 6,FALSE))*$G5+VLOOKUP(212, Hulpvelden!$A:$F, 6,FALSE)/(1 + VLOOKUP(212, Hulpvelden!$A:$F, 6,FALSE))*$H5 -> 550 | Q5: =SUMIF(BANK!$M:$M,$A5,BANK!$K:$K) -> 0 | R5: 7650
A6: 4 | B6: 2019-04-15 | C6: 4 | D6: Test 4 | E6: 1210 | F6: 1190 | G6: 1090 | H6: 1060 | I6: 1000 | J6: 1000 | K6: 1100 | L6: 1 | M6: =IF(ISNUMBER($L6),VLOOKUP($L6,ICP!$A:$B,2,FALSE),"") -> Pietersen | O6: 7650 | P6: =VLOOKUP(221, Hulpvelden!$A:$F, 6,FALSE)/(1 + VLOOKUP(221, Hulpvelden!$A:$F, 6,FALSE))*$E6+VLOOKUP(222, Hulpvelden!$A:$F, 6,FALSE)/(1 + VLOOKUP(222, Hulpvelden!$A:$F, 6,FALSE))*$F6+VLOOKUP(211, Hulpvelden!$A:$F, 6,FALSE)/(1 + VLOOKUP(211, Hulpvelden!$A:$F, 6,FALSE))*$G6+VLOOKUP(212, Hulpvelden!$A:$F, 6,FALSE)/(1 + VLOOKUP(212, Hulpvelden!$A:$F, 6,FALSE))*$H6 -> 550 | Q6: =SUMIF(BANK!$M:$M,$A6,BANK!$K:$K) -> 0 | R6: 7650
A7: 5 | B7: 2019-05-15 | C7: 5 | D7: Test 5 | E7: 1210 | F7: 1190 | G7: 1090 | H7: 1060 | I7: 1000 | J7: 1000 | K7: 1100 | L7: 1 | M7: =IF(ISNUMBER($L7),VLOOKUP($L7,ICP!$A:$B,2,FALSE),"") -> Pietersen | O7: 7650 | P7: =VLOOKUP(221, Hulpvelden!$A:$F, 6,FALSE)/(1 + VLOOKUP(221, Hulpvelden!$A:$F, 6,FALSE))*$E7+VLOOKUP(222, Hulpvelden!$A:$F, 6,FALSE)/(1 + VLOOKUP(222, Hulpvelden!$A:$F, 6,FALSE))*$F7+VLOOKUP(211, Hulpvelden!$A:$F, 6,FALSE)/(1 + VLOOKUP(211, Hulpvelden!$A:$F, 6,FALSE))*$G7+VLOOKUP(212, Hulpvelden!$A:$F, 6,FALSE)/(1 + VLOOKUP(212, Hulpvelden!$A:$F, 6,FALSE))*$H7 -> 550 | Q7: =SUMIF(BANK!$M:$M,$A7,BANK!$K:$K) -> 0 | R7: 7650
A8: 6 | B8: 2019-06-15 | C8: 6 | D8: Test 6 | E8: 1210 | F8: 1190 | G8: 1090 | H8: 1060 | I8: 1000 | J8: 1000 | K8: 1100 | L8: 1 | M8: =IF(ISNUMBER($L8),VLOOKUP($L8,ICP!$A:$B,2,FALSE),"") -> Pietersen | O8: 7650 | P8: =VLOOKUP(221, Hulpvelden!$A:$F, 6,FALSE)/(1 + VLOOKUP(221, Hulpvelden!$A:$F, 6,FALSE))*$E8+VLOOKUP(222, Hulpvelden!$A:$F, 6,FALSE)/(1 + VLOOKUP(222, Hulpvelden!$A:$F, 6,FALSE))*$F8+VLOOKUP(211, Hulpvelden!$A:$F, 6,FALSE)/(1 + VLOOKUP(211, Hulpvelden!$A:$F, 6,FALSE))*$G8+VLOOKUP(212, Hulpvelden!$A:$F, 6,FALSE)/(1 + VLOOKUP(212, Hulpvelden!$A:$F, 6,FALSE))*$H8 -> 550 | Q8: =SUMIF(BANK!$M:$M,$A8,BANK!$K:$K) -> 0 | R8: 7650
A9: 7 | B9: 2019-07-15 | C9: 7 | D9: Test 7 | E9: 1210 | F9: 1190 | G9: 1090 | H9: 1060 | I9: 1000 | J9: 1000 | K9: 1100 | L9: 1 | M9: =IF(ISNUMBER($L9),VLOOKUP($L9,ICP!$A:$B,2,FALSE),"") -> Pietersen | O9: 7650 | P9: =VLOOKUP(221, Hulpvelden!$A:$F, 6,FALSE)/(1 + VLOOKUP(221, Hulpvelden!$A:$F, 6,FALSE))*$E9+VLOOKUP(222, Hulpvelden!$A:$F, 6,FALSE)/(1 + VLOOKUP(222, Hulpvelden!$A:$F, 6,FALSE))*$F9+VLOOKUP(211, Hulpvelden!$A:$F, 6,FALSE)/(1 + VLOOKUP(211, Hulpvelden!$A:$F, 6,FALSE))*$G9+VLOOKUP(212, Hulpvelden!$A:$F, 6,FALSE)/(1 + VLOOKUP(212, Hulpvelden!$A:$F, 6,FALSE))*$H9 -> 550 | Q9: =SUMIF(BANK!$M:$M,$A9,BANK!$K:$K) -> 0 | R9: 7650
A10: 8 | B10: 2019-08-15 | C10: 8 | D10: Test 8 | E10: 1210 | F10: 1190 | G10: 1090 | H10: 1060 | I10: 1000 | J10: 1000 | K10: 1100 | L10: 1 | M10: =IF(ISNUMBER($L10),VLOOKUP($L10,ICP!$A:$B,2,FALSE),"") -> Pietersen | O10: 7650 | P10: =VLOOKUP(221, Hulpvelden!$A:$F, 6,FALSE)/(1 + VLOOKUP(221, Hulpvelden!$A:$F, 6,FALSE))*$E10+VLOOKUP(222, Hulpvelden!$A:$F, 6,FALSE)/(1 + VLOOKUP(222, Hulpvelden!$A:$F, 6,FALSE))*$F10+VLOOKUP(211, Hulpvelden!$A:$F, 6,FALSE)/(1 + VLOOKUP(211, Hulpvelden!$A:$F, 6,FALSE))*$G10+VLOOKUP(212, Hulpvelden!$A:$F, 6,FALSE)/(1 + VLOOKUP(212, Hulpvelden!$A:$F, 6,FALSE))*$H10 -> 550 | Q10: =SUMIF(BANK!$M:$M,$A10,BANK!$K:$K) -> 0 | R10: 7650
A11: 9 | B11: 2019-09-15 | C11: 9 | D11: Test 9 | E11: 1210 | F11: 1190 | G11: 1090 | H11: 1060 | I11: 1000 | J11: 1000 | K11: 1100 | L11: 1 | M11: =IF(ISNUMBER($L11),VLOOKUP($L11,ICP!$A:$B,2,FALSE),"") -> Pietersen | O11: 7650 | P11: =VLOOKUP(221, Hulpvelden!$A:$F, 6,FALSE)/(1 + VLOOKUP(221, Hulpvelden!$A:$F, 6,FALSE))*$E11+VLOOKUP(222, Hulpvelden!$A:$F, 6,FALSE)/(1 + VLOOKUP(222, Hulpvelden!$A:$F, 6,FALSE))*$F11+VLOOKUP(211, Hulpvelden!$A:$F, 6,FALSE)/(1 + VLOOKUP(211, Hulpvelden!$A:$F, 6,FALSE))*$G11+VLOOKUP(212, Hulpvelden!$A:$F, 6,FALSE)/(1 + VLOOKUP(212, Hulpvelden!$A:$F, 6,FALSE))*$H11 -> 550 | Q11: =SUMIF(BANK!$M:$M,$A11,BANK!$K:$K) -> 0 | R11: 7650
A12: 10 | B12: 2019-10-15 | C12: 10 | D12: Test 10 | E12: 1210 | F12: 1190 | G12: 1090 | H12: 1060 | I12: 1000 | J12: 1000 | K12: 1100 | L12: 1 | M12: =IF(ISNUMBER($L12),VLOOKUP($L12,ICP!$A:$B,2,FALSE),"") -> Pietersen | O12: 7650 | P12: =VLOOKUP(221, Hulpvelden!$A:$F, 6,FALSE)/(1 + VLOOKUP(221, Hulpvelden!$A:$F, 6,FALSE))*$E12+VLOOKUP(222, Hulpvelden!$A:$F, 6,FALSE)/(1 + VLOOKUP(222, Hulpvelden!$A:$F, 6,FALSE))*$F12+VLOOKUP(211, Hulpvelden!$A:$F, 6,FALSE)/(1 + VLOOKUP(211, Hulpvelden!$A:$F, 6,FALSE))*$G12+VLOOKUP(212, Hulpvelden!$A:$F, 6,FALSE)/(1 + VLOOKUP(212, Hulpvelden!$A:$F, 6,FALSE))*$H12 -> 550 | Q12: =SUMIF(BANK!$M:$M,$A12,BANK!$K:$K) -> 0 | R12: 7650
A13: 11 | B13: 2019-11-15 | C13: 11 | D13: Test 11 | E13: 1210 | F13: 1190 | G13: 1090 | H13: 1060 | I13: 1000 | J13: 1000 | K13: 1100 | L13: 1 | M13: =IF(ISNUMBER($L13),VLOOKUP($L13,ICP!$A:$B,2,FALSE),"") -> Pietersen | O13: 7650 | P13: =VLOOKUP(221, Hulpvelden!$A:$F, 6,FALSE)/(1 + VLOOKUP(221, Hulpvelden!$A:$F, 6,FALSE))*$E13+VLOOKUP(222, Hulpvelden!$A:$F, 6,FALSE)/(1 + VLOOKUP(222, Hulpvelden!$A:$F, 6,FALSE))*$F13+VLOOKUP(211, Hulpvelden!$A:$F, 6,FALSE)/(1 + VLOOKUP(211, Hulpvelden!$A:$F, 6,FALSE))*$G13+VLOOKUP(212, Hulpvelden!$A:$F, 6,FALSE)/(1 + VLOOKUP(212, Hulpvelden!$A:$F, 6,FALSE))*$H13 -> 550 | Q13: =SUMIF(BANK!$M:$M,$A13,BANK!$K:$K) -> 0 | R13: 7650
A14: 12 | B14: 2019-12-15 | C14: 12 | D14: Test 12 | E14: 1210 | F14: 1190 | G14: 1090 | H14: 1060 | I14: 1000 | J14: 1000 | K14: 1100 | L14: 1 | M14: =IF(ISNUMBER($L14),VLOOKUP($L14,ICP!$A:$B,2,FALSE),"") -> Pietersen | O14: 7650 | P14: =VLOOKUP(221, Hulpvelden!$A:$F, 6,FALSE)/(1 + VLOOKUP(221, Hulpvelden!$A:$F, 6,FALSE))*$E14+VLOOKUP(222, Hulpvelden!$A:$F, 6,FALSE)/(1 + VLOOKUP(222, Hulpvelden!$A:$F, 6,FALSE))*$F14+VLOOKUP(211, Hulpvelden!$A:$F, 6,FALSE)/(1 + VLOOKUP(211, Hulpvelden!$A:$F, 6,FALSE))*$G14+VLOOKUP(212, Hulpvelden!$A:$F, 6,FALSE)/(1 + VLOOKUP(212, Hulpvelden!$A:$F, 6,FALSE))*$H14 -> 550 | Q14: =SUMIF(BANK!$M:$M,$A14,BANK!$K:$K) -> 0 | R14: 7650
A15: 13 | C15: 1 | J15: 0 | K15: 0 | M15: =IF(ISNUMBER($L15),VLOOKUP($L15,ICP!$A:$B,2,FALSE),"") ->  | O15: 0 | P15: =VLOOKUP(221, Hulpvelden!$A:$F, 6,FALSE)/(1 + VLOOKUP(221, Hulpvelden!$A:$F, 6,FALSE))*$E15+VLOOKUP(222, Hulpvelden!$A:$F, 6,FALSE)/(1 + VLOOKUP(222, Hulpvelden!$A:$F, 6,FALSE))*$F15+VLOOKUP(211, Hulpvelden!$A:$F, 6,FALSE)/(1 + VLOOKUP(211, Hulpvelden!$A:$F, 6,FALSE))*$G15+VLOOKUP(212, Hulpvelden!$A:$F, 6,FALSE)/(1 + VLOOKUP(212, Hulpvelden!$A:$F, 6,FALSE))*$H15 -> 0 | Q15: =SUMIF(BANK!$M:$M,$A15,BANK!$K:$K) -> 0 | R15: 0
A16: 14 | C16: 1 | I16: 0 | J16: 0 | K16: 0 | M16: =IF(ISNUMBER($L16),VLOOKUP($L16,ICP!$A:$B,2,FALSE),"") ->  | O16: 0 | P16: =VLOOKUP(221, Hulpvelden!$A:$F, 6,FALSE)/(1 + VLOOKUP(221, Hulpvelden!$A:$F, 6,FALSE))*$E16+VLOOKUP(222, Hulpvelden!$A:$F, 6,FALSE)/(1 + VLOOKUP(222, Hulpvelden!$A:$F, 6,FALSE))*$F16+VLOOKUP(211, Hulpvelden!$A:$F, 6,FALSE)/(1 + VLOOKUP(211, Hulpvelden!$A:$F, 6,FALSE))*$G16+VLOOKUP(212, Hulpvelden!$A:$F, 6,FALSE)/(1 + VLOOKUP(212, Hulpvelden!$A:$F, 6,FALSE))*$H16 -> 0 | Q16: =SUMIF(BANK!$M:$M,$A16,BANK!$K:$K) -> 0 | R16: 0
A17: 15 | C17: 1 | M17: =IF(ISNUMBER($L17),VLOOKUP($L17,ICP!$A:$B,2,FALSE),"") ->  | O17: 0 | P17: =VLOOKUP(221, Hulpvelden!$A:$F, 6,FALSE)/(1 + VLOOKUP(221, Hulpvelden!$A:$F, 6,FALSE))*$E17+VLOOKUP(222, Hulpvelden!$A:$F, 6,FALSE)/(1 + VLOOKUP(222, Hulpvelden!$A:$F, 6,FALSE))*$F17+VLOOKUP(211, Hulpvelden!$A:$F, 6,FALSE)/(1 + VLOOKUP(211, Hulpvelden!$A:$F, 6,FALSE))*$G17+VLOOKUP(212, Hulpvelden!$A:$F, 6,FALSE)/(1 + VLOOKUP(212, Hulpvelden!$A:$F, 6,FALSE))*$H17 -> 0 | Q17: =SUMIF(BANK!$M:$M,$A17,BANK!$K:$K) -> 0 | R17: 0
A18: 16 | C18: 1 | M18: =IF(ISNUMBER($L18),VLOOKUP($L18,ICP!$A:$B,2,FALSE),"") ->  | O18: 0 | P18: =VLOOKUP(221, Hulpvelden!$A:$F, 6,FALSE)/(1 + VLOOKUP(221, Hulpvelden!$A:$F, 6,FALSE))*$E18+VLOOKUP(222, Hulpvelden!$A:$F, 6,FALSE)/(1 + VLOOKUP(222, Hulpvelden!$A:$F, 6,FALSE))*$F18+VLOOKUP(211, Hulpvelden!$A:$F, 6,FALSE)/(1 + VLOOKUP(211, Hulpvelden!$A:$F, 6,FALSE))*$G18+VLOOKUP(212, Hulpvelden!$A:$F, 6,FALSE)/(1 + VLOOKUP(212, Hulpvelden!$A:$F, 6,FALSE))*$H18 -> 0 | Q18: =SUMIF(BANK!$M:$M,$A18,BANK!$K:$K) -> 0 | R18: 0
A19: 17 | C19: 1 | M19: =IF(ISNUMBER($L19),VLOOKUP($L19,ICP!$A:$B,2,FALSE),"") ->  | O19: 0 | P19: =VLOOKUP(221, Hulpvelden!$A:$F, 6,FALSE)/(1 + VLOOKUP(221, Hulpvelden!$A:$F, 6,FALSE))*$E19+VLOOKUP(222, Hulpvelden!$A:$F, 6,FALSE)/(1 + VLOOKUP(222, Hulpvelden!$A:$F, 6,FALSE))*$F19+VLOOKUP(211, Hulpvelden!$A:$F, 6,FALSE)/(1 + VLOOKUP(211, Hulpvelden!$A:$F, 6,FALSE))*$G19+VLOOKUP(212, Hulpvelden!$A:$F, 6,FALSE)/(1 + VLOOKUP(212, Hulpvelden!$A:$F, 6,FALSE))*$H19 -> 0 | Q19: =SUMIF(BANK!$M:$M,$A19,BANK!$K:$K) -> 0 | R19: 0
A20: 18 | C20: 1 | M20: =IF(ISNUMBER($L20),VLOOKUP($L20,ICP!$A:$B,2,FALSE),"") ->  | O20: 0 | P20: =VLOOKUP(221, Hulpvelden!$A:$F, 6,FALSE)/(1 + VLOOKUP(221, Hulpvelden!$A:$F, 6,FALSE))*$E20+VLOOKUP(222, Hulpvelden!$A:$F, 6,FALSE)/(1 + VLOOKUP(222, Hulpvelden!$A:$F, 6,FALSE))*$F20+VLOOKUP(211, Hulpvelden!$A:$F, 6,FALSE)/(1 + VLOOKUP(211, Hulpvelden!$A:$F, 6,FALSE))*$G20+VLOOKUP(212, Hulpvelden!$A:$F, 6,FALSE)/(1 + VLOOKUP(212, Hulpvelden!$A:$F, 6,FALSE))*$H20 -> 0 | Q20: =SUMIF(BANK!$M:$M,$A20,BANK!$K:$K) -> 0 | R20: 0
A21: 19 | C21: 1 | M21: =IF(ISNUMBER($L21),VLOOKUP($L21,ICP!$A:$B,2,FALSE),"") ->  | O21: 0 | P21: =VLOOKUP(221, Hulpvelden!$A:$F, 6,FALSE)/(1 + VLOOKUP(221, Hulpvelden!$A:$F, 6,FALSE))*$E21+VLOOKUP(222, Hulpvelden!$A:$F, 6,FALSE)/(1 + VLOOKUP(222, Hulpvelden!$A:$F, 6,FALSE))*$F21+VLOOKUP(211, Hulpvelden!$A:$F, 6,FALSE)/(1 + VLOOKUP(211, Hulpvelden!$A:$F, 6,FALSE))*$G21+VLOOKUP(212, Hulpvelden!$A:$F, 6,FALSE)/(1 + VLOOKUP(212, Hulpvelden!$A:$F, 6,FALSE))*$H21 -> 0 | Q21: =SUMIF(BANK!$M:$M,$A21,BANK!$K:$K) -> 0 | R21: 0
A22: 20 | C22: 1 | M22: =IF(ISNUMBER($L22),VLOOKUP($L22,ICP!$A:$B,2,FALSE),"") ->  | O22: 0 | P22: =VLOOKUP(221, Hulpvelden!$A:$F, 6,FALSE)/(1 + VLOOKUP(221, Hulpvelden!$A:$F, 6,FALSE))*$E22+VLOOKUP(222, Hulpvelden!$A:$F, 6,FALSE)/(1 + VLOOKUP(222, Hulpvelden!$A:$F, 6,FALSE))*$F22+VLOOKUP(211, Hulpvelden!$A:$F, 6,FALSE)/(1 + VLOOKUP(211, Hulpvelden!$A:$F, 6,FALSE))*$G22+VLOOKUP(212, Hulpvelden!$A:$F, 6,FALSE)/(1 + VLOOKUP(212, Hulpvelden!$A:$F, 6,FALSE))*$H22 -> 0 | Q22: =SUMIF(BANK!$M:$M,$A22,BANK!$K:$K) -> 0 | R22: 0
A23: 21 | C23: 1 | M23: =IF(ISNUMBER($L23),VLOOKUP($L23,ICP!$A:$B,2,FALSE),"") ->  | O23: 0 | P23: =VLOOKUP(221, Hulpvelden!$A:$F, 6,FALSE)/(1 + VLOOKUP(221, Hulpvelden!$A:$F, 6,FALSE))*$E23+VLOOKUP(222, Hulpvelden!$A:$F, 6,FALSE)/(1 + VLOOKUP(222, Hulpvelden!$A:$F, 6,FALSE))*$F23+VLOOKUP(211, Hulpvelden!$A:$F, 6,FALSE)/(1 + VLOOKUP(211, Hulpvelden!$A:$F, 6,FALSE))*$G23+VLOOKUP(212, Hulpvelden!$A:$F, 6,FALSE)/(1 + VLOOKUP(212, Hulpvelden!$A:$F, 6,FALSE))*$H23 -> 0 | Q23: =SUMIF(BANK!$M:$M,$A23,BANK!$K:$K) -> 0 | R23: 0
A24: 22 | C24: 1 | M24: =IF(ISNUMBER($L24),VLOOKUP($L24,ICP!$A:$B,2,FALSE),"") ->  | O24: 0 | P24: =VLOOKUP(221, Hulpvelden!$A:$F, 6,FALSE)/(1 + VLOOKUP(221, Hulpvelden!$A:$F, 6,FALSE))*$E24+VLOOKUP(222, Hulpvelden!$A:$F, 6,FALSE)/(1 + VLOOKUP(222, Hulpvelden!$A:$F, 6,FALSE))*$F24+VLOOKUP(211, Hulpvelden!$A:$F, 6,FALSE)/(1 + VLOOKUP(211, Hulpvelden!$A:$F, 6,FALSE))*$G24+VLOOKUP(212, Hulpvelden!$A:$F, 6,FALSE)/(1 + VLOOKUP(212, Hulpvelden!$A:$F, 6,FALSE))*$H24 -> 0 | Q24: =SUMIF(BANK!$M:$M,$A24,BANK!$K:$K) -> 0 | R24: 0
A25: 23 | C25: 1 | M25: =IF(ISNUMBER($L25),VLOOKUP($L25,ICP!$A:$B,2,FALSE),"") ->  | O25: 0 | P25: =VLOOKUP(221, Hulpvelden!$A:$F, 6,FALSE)/(1 + VLOOKUP(221, Hulpvelden!$A:$F, 6,FALSE))*$E25+VLOOKUP(222, Hulpvelden!$A:$F, 6,FALSE)/(1 + VLOOKUP(222, Hulpvelden!$A:$F, 6,FALSE))*$F25+VLOOKUP(211, Hulpvelden!$A:$F, 6,FALSE)/(1 + VLOOKUP(211, Hulpvelden!$A:$F, 6,FALSE))*$G25+VLOOKUP(212, Hulpvelden!$A:$F, 6,FALSE)/(1 + VLOOKUP(212, Hulpvelden!$A:$F, 6,FALSE))*$H25 -> 0 | Q25: =SUMIF(BANK!$M:$M,$A25,BANK!$K:$K) -> 0 | R25: 0
A26: 24 | C26: 1 | M26: =IF(ISNUMBER($L26),VLOOKUP($L26,ICP!$A:$B,2,FALSE),"") ->  | O26: 0 | P26: =VLOOKUP(221, Hulpvelden!$A:$F, 6,FALSE)/(1 + VLOOKUP(221, Hulpvelden!$A:$F, 6,FALSE))*$E26+VLOOKUP(222, Hulpvelden!$A:$F, 6,FALSE)/(1 + VLOOKUP(222, Hulpvelden!$A:$F, 6,FALSE))*$F26+VLOOKUP(211, Hulpvelden!$A:$F, 6,FALSE)/(1 + VLOOKUP(211, Hulpvelden!$A:$F, 6,FALSE))*$G26+VLOOKUP(212, Hulpvelden!$A:$F, 6,FALSE)/(1 + VLOOKUP(212, Hulpvelden!$A:$F, 6,FALSE))*$H26 -> 0 | Q26: =SUMIF(BANK!$M:$M,$A26,BANK!$K:$K) -> 0 | R26: 0
A27: 25 | C27: 1 | M27: =IF(ISNUMBER($L27),VLOOKUP($L27,ICP!$A:$B,2,FALSE),"") ->  | O27: 0 | P27: =VLOOKUP(221, Hulpvelden!$A:$F, 6,FALSE)/(1 + VLOOKUP(221, Hulpvelden!$A:$F, 6,FALSE))*$E27+VLOOKUP(222, Hulpvelden!$A:$F, 6,FALSE)/(1 + VLOOKUP(222, Hulpvelden!$A:$F, 6,FALSE))*$F27+VLOOKUP(211, Hulpvelden!$A:$F, 6,FALSE)/(1 + VLOOKUP(211, Hulpvelden!$A:$F, 6,FALSE))*$G27+VLOOKUP(212, Hulpvelden!$A:$F, 6,FALSE)/(1 + VLOOKUP(212, Hulpvelden!$A:$F, 6,FALSE))*$H27 -> 0 | Q27: =SUMIF(BANK!$M:$M,$A27,BANK!$K:$K) -> 0 | R27: 0
A28: 26 | C28: 1 | M28: =IF(ISNUMBER($L28),VLOOKUP($L28,ICP!$A:$B,2,FALSE),"") ->  | O28: 0 | P28: =VLOOKUP(221, Hulpvelden!$A:$F, 6,FALSE)/(1 + VLOOKUP(221, Hulpvelden!$A:$F, 6,FALSE))*$E28+VLOOKUP(222, Hulpvelden!$A:$F, 6,FALSE)/(1 + VLOOKUP(222, Hulpvelden!$A:$F, 6,FALSE))*$F28+VLOOKUP(211, Hulpvelden!$A:$F, 6,FALSE)/(1 + VLOOKUP(211, Hulpvelden!$A:$F, 6,FALSE))*$G28+VLOOKUP(212, Hulpvelden!$A:$F, 6,FALSE)/(1 + VLOOKUP(212, Hulpvelden!$A:$F, 6,FALSE))*$H28 -> 0 | Q28: =SUMIF(BANK!$M:$M,$A28,BANK!$K:$K) -> 0 | R28: 0
A29: 27 | C29: 1 | M29: =IF(ISNUMBER($L29),VLOOKUP($L29,ICP!$A:$B,2,FALSE),"") ->  | O29: 0 | P29: =VLOOKUP(221, Hulpvelden!$A:$F, 6,FALSE)/(1 + VLOOKUP(221, Hulpvelden!$A:$F, 6,FALSE))*$E29+VLOOKUP(222, Hulpvelden!$A:$F, 6,FALSE)/(1 + VLOOKUP(222, Hulpvelden!$A:$F, 6,FALSE))*$F29+VLOOKUP(211, Hulpvelden!$A:$F, 6,FALSE)/(1 + VLOOKUP(211, Hulpvelden!$A:$F, 6,FALSE))*$G29+VLOOKUP(212, Hulpvelden!$A:$F, 6,FALSE)/(1 + VLOOKUP(212, Hulpvelden!$A:$F, 6,FALSE))*$H29 -> 0 | Q29: =SUMIF(BANK!$M:$M,$A29,BANK!$K:$K) -> 0 | R29: 0
A30: 28 | C30: 1 | M30: =IF(ISNUMBER($L30),VLOOKUP($L30,ICP!$A:$B,2,FALSE),"") ->  | O30: 0 | P30: =VLOOKUP(221, Hulpvelden!$A:$F, 6,FALSE)/(1 + VLOOKUP(221, Hulpvelden!$A:$F, 6,FALSE))*$E30+VLOOKUP(222, Hulpvelden!$A:$F, 6,FALSE)/(1 + VLOOKUP(222, Hulpvelden!$A:$F, 6,FALSE))*$F30+VLOOKUP(211, Hulpvelden!$A:$F, 6,FALSE)/(1 + VLOOKUP(211, Hulpvelden!$A:$F, 6,FALSE))*$G30+VLOOKUP(212, Hulpvelden!$A:$F, 6,FALSE)/(1 + VLOOKUP(212, Hulpvelden!$A:$F, 6,FALSE))*$H30 -> 0 | Q30: =SUMIF(BANK!$M:$M,$A30,BANK!$K:$K) -> 0 | R30: 0
A31: 29 | C31: 1 | M31: =IF(ISNUMBER($L31),VLOOKUP($L31,ICP!$A:$B,2,FALSE),"") ->  | O31: 0 | P31: =VLOOKUP(221, Hulpvelden!$A:$F, 6,FALSE)/(1 + VLOOKUP(221, Hulpvelden!$A:$F, 6,FALSE))*$E31+VLOOKUP(222, Hulpvelden!$A:$F, 6,FALSE)/(1 + VLOOKUP(222, Hulpvelden!$A:$F, 6,FALSE))*$F31+VLOOKUP(211, Hulpvelden!$A:$F, 6,FALSE)/(1 + VLOOKUP(211, Hulpvelden!$A:$F, 6,FALSE))*$G31+VLOOKUP(212, Hulpvelden!$A:$F, 6,FALSE)/(1 + VLOOKUP(212, Hulpvelden!$A:$F, 6,FALSE))*$H31 -> 0 | Q31: =SUMIF(BANK!$M:$M,$A31,BANK!$K:$K) -> 0 | R31: 0
A32: 30 | C32: 1 | M32: =IF(ISNUMBER($L32),VLOOKUP($L32,ICP!$A:$B,2,FALSE),"") ->  | O32: 0 | P32: =VLOOKUP(221, Hulpvelden!$A:$F, 6,FALSE)/(1 + VLOOKUP(221, Hulpvelden!$A:$F, 6,FALSE))*$E32+VLOOKUP(222, Hulpvelden!$A:$F, 6,FALSE)/(1 + VLOOKUP(222, Hulpvelden!$A:$F, 6,FALSE))*$F32+VLOOKUP(211, Hulpvelden!$A:$F, 6,FALSE)/(1 + VLOOKUP(211, Hulpvelden!$A:$F, 6,FALSE))*$G32+VLOOKUP(212, Hulpvelden!$A:$F, 6,FALSE)/(1 + VLOOKUP(212, Hulpvelden!$A:$F, 6,FALSE))*$H32 -> 0 | Q32: =SUMIF(BANK!$M:$M,$A32,BANK!$K:$K) -> 0 | R32: 0
A33: 31 | C33: 1 | M33: =IF(ISNUMBER($L33),VLOOKUP($L33,ICP!$A:$B,2,FALSE),"") ->  | O33: 0 | P33: =VLOOKUP(221, Hulpvelden!$A:$F, 6,FALSE)/(1 + VLOOKUP(221, Hulpvelden!$A:$F, 6,FALSE))*$E33+VLOOKUP(222, Hulpvelden!$A:$F, 6,FALSE)/(1 + VLOOKUP(222, Hulpvelden!$A:$F, 6,FALSE))*$F33+VLOOKUP(211, Hulpvelden!$A:$F, 6,FALSE)/(1 + VLOOKUP(211, Hulpvelden!$A:$F, 6,FALSE))*$G33+VLOOKUP(212, Hulpvelden!$A:$F, 6,FALSE)/(1 + VLOOKUP(212, Hulpvelden!$A:$F, 6,FALSE))*$H33 -> 0 | Q33: =SUMIF(BANK!$M:$M,$A33,BANK!$K:$K) -> 0 | R33: 0
A34: 32 | C34: 1 | M34: =IF(ISNUMBER($L34),VLOOKUP($L34,ICP!$A:$B,2,FALSE),"") ->  | O34: 0 | P34: =VLOOKUP(221, Hulpvelden!$A:$F, 6,FALSE)/(1 + VLOOKUP(221, Hulpvelden!$A:$F, 6,FALSE))*$E34+VLOOKUP(222, Hulpvelden!$A:$F, 6,FALSE)/(1 + VLOOKUP(222, Hulpvelden!$A:$F, 6,FALSE))*$F34+VLOOKUP(211, Hulpvelden!$A:$F, 6,FALSE)/(1 + VLOOKUP(211, Hulpvelden!$A:$F, 6,FALSE))*$G34+VLOOKUP(212, Hulpvelden!$A:$F, 6,FALSE)/(1 + VLOOKUP(212, Hulpvelden!$A:$F, 6,FALSE))*$H34 -> 0 | Q34: =SUMIF(BANK!$M:$M,$A34,BANK!$K:$K) -> 0 | R34: 0
A35: 33 | C35: 1 | M35: =IF(ISNUMBER($L35),VLOOKUP($L35,ICP!$A:$B,2,FALSE),"") ->  | O35: 0 | P35: =VLOOKUP(221, Hulpvelden!$A:$F, 6,FALSE)/(1 + VLOOKUP(221, Hulpvelden!$A:$F, 6,FALSE))*$E35+VLOOKUP(222, Hulpvelden!$A:$F, 6,FALSE)/(1 + VLOOKUP(222, Hulpvelden!$A:$F, 6,FALSE))*$F35+VLOOKUP(211, Hulpvelden!$A:$F, 6,FALSE)/(1 + VLOOKUP(211, Hulpvelden!$A:$F, 6,FALSE))*$G35+VLOOKUP(212, Hulpvelden!$A:$F, 6,FALSE)/(1 + VLOOKUP(212, Hulpvelden!$A:$F, 6,FALSE))*$H35 -> 0 | Q35: =SUMIF(BANK!$M:$M,$A35,BANK!$K:$K) -> 0 | R35: 0
A36: 34 | C36: 1 | M36: =IF(ISNUMBER($L36),VLOOKUP($L36,ICP!$A:$B,2,FALSE),"") ->  | O36: 0 | P36: =VLOOKUP(221, Hulpvelden!$A:$F, 6,FALSE)/(1 + VLOOKUP(221, Hulpvelden!$A:$F, 6,FALSE))*$E36+VLOOKUP(222, Hulpvelden!$A:$F, 6,FALSE)/(1 + VLOOKUP(222, Hulpvelden!$A:$F, 6,FALSE))*$F36+VLOOKUP(211, Hulpvelden!$A:$F, 6,FALSE)/(1 + VLOOKUP(211, Hulpvelden!$A:$F, 6,FALSE))*$G36+VLOOKUP(212, Hulpvelden!$A:$F, 6,FALSE)/(1 + VLOOKUP(212, Hulpvelden!$A:$F, 6,FALSE))*$H36 -> 0 | Q36: =SUMIF(BANK!$M:$M,$A36,BANK!$K:$K) -> 0 | R36: 0
A37: 35 | C37: 1 | M37: =IF(ISNUMBER($L37),VLOOKUP($L37,ICP!$A:$B,2,FALSE),"") ->  | O37: 0 | P37: =VLOOKUP(221, Hulpvelden!$A:$F, 6,FALSE)/(1 + VLOOKUP(221, Hulpvelden!$A:$F, 6,FALSE))*$E37+VLOOKUP(222, Hulpvelden!$A:$F, 6,FALSE)/(1 + VLOOKUP(222, Hulpvelden!$A:$F, 6,FALSE))*$F37+VLOOKUP(211, Hulpvelden!$A:$F, 6,FALSE)/(1 + VLOOKUP(211, Hulpvelden!$A:$F, 6,FALSE))*$G37+VLOOKUP(212, Hulpvelden!$A:$F, 6,FALSE)/(1 + VLOOKUP(212, Hulpvelden!$A:$F, 6,FALSE))*$H37 -> 0 | Q37: =SUMIF(BANK!$M:$M,$A37,BANK!$K:$K) -> 0 | R37: 0
A38: 36 | C38: 1 | M38: =IF(ISNUMBER($L38),VLOOKUP($L38,ICP!$A:$B,2,FALSE),"") ->  | O38: 0 | P38: =VLOOKUP(221, Hulpvelden!$A:$F, 6,FALSE)/(1 + VLOOKUP(221, Hulpvelden!$A:$F, 6,FALSE))*$E38+VLOOKUP(222, Hulpvelden!$A:$F, 6,FALSE)/(1 + VLOOKUP(222, Hulpvelden!$A:$F, 6,FALSE))*$F38+VLOOKUP(211, Hulpvelden!$A:$F, 6,FALSE)/(1 + VLOOKUP(211, Hulpvelden!$A:$F, 6,FALSE))*$G38+VLOOKUP(212, Hulpvelden!$A:$F, 6,FALSE)/(1 + VLOOKUP(212, Hulpvelden!$A:$F, 6,FALSE))*$H38 -> 0 | Q38: =SUMIF(BANK!$M:$M,$A38,BANK!$K:$K) -> 0 | R38: 0
A39: 37 | C39: 1 | M39: =IF(ISNUMBER($L39),VLOOKUP($L39,ICP!$A:$B,2,FALSE),"") ->  | O39: 0 | P39: =VLOOKUP(221, Hulpvelden!$A:$F, 6,FALSE)/(1 + VLOOKUP(221, Hulpvelden!$A:$F, 6,FALSE))*$E39+VLOOKUP(222, Hulpvelden!$A:$F, 6,FALSE)/(1 + VLOOKUP(222, Hulpvelden!$A:$F, 6,FALSE))*$F39+VLOOKUP(211, Hulpvelden!$A:$F, 6,FALSE)/(1 + VLOOKUP(211, Hulpvelden!$A:$F, 6,FALSE))*$G39+VLOOKUP(212, Hulpvelden!$A:$F, 6,FALSE)/(1 + VLOOKUP(212, Hulpvelden!$A:$F, 6,FALSE))*$H39 -> 0 | Q39: =SUMIF(BANK!$M:$M,$A39,BANK!$K:$K) -> 0 | R39: 0
A40: 38 | C40: 1 | M40: =IF(ISNUMBER($L40),VLOOKUP($L40,ICP!$A:$B,2,FALSE),"") ->  | O40: 0 | P40: =VLOOKUP(221, Hulpvelden!$A:$F, 6,FALSE)/(1 + VLOOKUP(221, Hulpvelden!$A:$F, 6,FALSE))*$E40+VLOOKUP(222, Hulpvelden!$A:$F, 6,FALSE)/(1 + VLOOKUP(222, Hulpvelden!$A:$F, 6,FALSE))*$F40+VLOOKUP(211, Hulpvelden!$A:$F, 6,FALSE)/(1 + VLOOKUP(211, Hulpvelden!$A:$F, 6,FALSE))*$G40+VLOOKUP(212, Hulpvelden!$A:$F, 6,FALSE)/(1 + VLOOKUP(212, Hulpvelden!$A:$F, 6,FALSE))*$H40 -> 0 | Q40: =SUMIF(BANK!$M:$M,$A40,BANK!$K:$K) -> 0 | R40: 0
A41: 39 | C41: 1 | M41: =IF(ISNUMBER($L41),VLOOKUP($L41,ICP!$A:$B,2,FALSE),"") ->  | O41: 0 | P41: =VLOOKUP(221, Hulpvelden!$A:$F, 6,FALSE)/(1 + VLOOKUP(221, Hulpvelden!$A:$F, 6,FALSE))*$E41+VLOOKUP(222, Hulpvelden!$A:$F, 6,FALSE)/(1 + VLOOKUP(222, Hulpvelden!$A:$F, 6,FALSE))*$F41+VLOOKUP(211, Hulpvelden!$A:$F, 6,FALSE)/(1 + VLOOKUP(211, Hulpvelden!$A:$F, 6,FALSE))*$G41+VLOOKUP(212, Hulpvelden!$A:$F, 6,FALSE)/(1 + VLOOKUP(212, Hulpvelden!$A:$F, 6,FALSE))*$H41 -> 0 | Q41: =SUMIF(BANK!$M:$M,$A41,BANK!$K:$K) -> 0 | R41: 0
A42: 40 | C42: 1 | M42: =IF(ISNUMBER($L42),VLOOKUP($L42,ICP!$A:$B,2,FALSE),"") ->  | O42: 0 | P42: =VLOOKUP(221, Hulpvelden!$A:$F, 6,FALSE)/(1 + VLOOKUP(221, Hulpvelden!$A:$F, 6,FALSE))*$E42+VLOOKUP(222, Hulpvelden!$A:$F, 6,FALSE)/(1 + VLOOKUP(222, Hulpvelden!$A:$F, 6,FALSE))*$F42+VLOOKUP(211, Hulpvelden!$A:$F, 6,FALSE)/(1 + VLOOKUP(211, Hulpvelden!$A:$F, 6,FALSE))*$G42+VLOOKUP(212, Hulpvelden!$A:$F, 6,FALSE)/(1 + VLOOKUP(212, Hulpvelden!$A:$F, 6,FALSE))*$H42 -> 0 | Q42: =SUMIF(BANK!$M:$M,$A42,BANK!$K:$K) -> 0 | R42: 0
A43: 41 | C43: 1 | M43: =IF(ISNUMBER($L43),VLOOKUP($L43,ICP!$A:$B,2,FALSE),"") ->  | O43: 0 | P43: =VLOOKUP(221, Hulpvelden!$A:$F, 6,FALSE)/(1 + VLOOKUP(221, Hulpvelden!$A:$F, 6,FALSE))*$E43+VLOOKUP(222, Hulpvelden!$A:$F, 6,FALSE)/(1 + VLOOKUP(222, Hulpvelden!$A:$F, 6,FALSE))*$F43+VLOOKUP(211, Hulpvelden!$A:$F, 6,FALSE)/(1 + VLOOKUP(211, Hulpvelden!$A:$F, 6,FALSE))*$G43+VLOOKUP(212, Hulpvelden!$A:$F, 6,FALSE)/(1 + VLOOKUP(212, Hulpvelden!$A:$F, 6,FALSE))*$H43 -> 0 | Q43: =SUMIF(BANK!$M:$M,$A43,BANK!$K:$K) -> 0 | R43: 0
A44: 42 | C44: 1 | M44: =IF(ISNUMBER($L44),VLOOKUP($L44,ICP!$A:$B,2,FALSE),"") ->  | O44: 0 | P44: =VLOOKUP(221, Hulpvelden!$A:$F, 6,FALSE)/(1 + VLOOKUP(221, Hulpvelden!$A:$F, 6,FALSE))*$E44+VLOOKUP(222, Hulpvelden!$A:$F, 6,FALSE)/(1 + VLOOKUP(222, Hulpvelden!$A:$F, 6,FALSE))*$F44+VLOOKUP(211, Hulpvelden!$A:$F, 6,FALSE)/(1 + VLOOKUP(211, Hulpvelden!$A:$F, 6,FALSE))*$G44+VLOOKUP(212, Hulpvelden!$A:$F, 6,FALSE)/(1 + VLOOKUP(212, Hulpvelden!$A:$F, 6,FALSE))*$H44 -> 0 | Q44: =SUMIF(BANK!$M:$M,$A44,BANK!$K:$K) -> 0 | R44: 0
A45: 43 | C45: 1 | M45: =IF(ISNUMBER($L45),VLOOKUP($L45,ICP!$A:$B,2,FALSE),"") ->  | O45: 0 | P45: =VLOOKUP(221, Hulpvelden!$A:$F, 6,FALSE)/(1 + VLOOKUP(221, Hulpvelden!$A:$F, 6,FALSE))*$E45+VLOOKUP(222, Hulpvelden!$A:$F, 6,FALSE)/(1 + VLOOKUP(222, Hulpvelden!$A:$F, 6,FALSE))*$F45+VLOOKUP(211, Hulpvelden!$A:$F, 6,FALSE)/(1 + VLOOKUP(211, Hulpvelden!$A:$F, 6,FALSE))*$G45+VLOOKUP(212, Hulpvelden!$A:$F, 6,FALSE)/(1 + VLOOKUP(212, Hulpvelden!$A:$F, 6,FALSE))*$H45 -> 0 | Q45: =SUMIF(BANK!$M:$M,$A45,BANK!$K:$K) -> 0 | R45: 0
A46: 44 | C46: 1 | M46: =IF(ISNUMBER($L46),VLOOKUP($L46,ICP!$A:$B,2,FALSE),"") ->  | O46: 0 | P46: =VLOOKUP(221, Hulpvelden!$A:$F, 6,FALSE)/(1 + VLOOKUP(221, Hulpvelden!$A:$F, 6,FALSE))*$E46+VLOOKUP(222, Hulpvelden!$A:$F, 6,FALSE)/(1 + VLOOKUP(222, Hulpvelden!$A:$F, 6,FALSE))*$F46+VLOOKUP(211, Hulpvelden!$A:$F, 6,FALSE)/(1 + VLOOKUP(211, Hulpvelden!$A:$F, 6,FALSE))*$G46+VLOOKUP(212, Hulpvelden!$A:$F, 6,FALSE)/(1 + VLOOKUP(212, Hulpvelden!$A:$F, 6,FALSE))*$H46 -> 0 | Q46: =SUMIF(BANK!$M:$M,$A46,BANK!$K:$K) -> 0 | R46: 0
A47: 45 | C47: 1 | M47: =IF(ISNUMBER($L47),VLOOKUP($L47,ICP!$A:$B,2,FALSE),"") ->  | O47: 0 | P47: =VLOOKUP(221, Hulpvelden!$A:$F, 6,FALSE)/(1 + VLOOKUP(221, Hulpvelden!$A:$F, 6,FALSE))*$E47+VLOOKUP(222, Hulpvelden!$A:$F, 6,FALSE)/(1 + VLOOKUP(222, Hulpvelden!$A:$F, 6,FALSE))*$F47+VLOOKUP(211, Hulpvelden!$A:$F, 6,FALSE)/(1 + VLOOKUP(211, Hulpvelden!$A:$F, 6,FALSE))*$G47+VLOOKUP(212, Hulpvelden!$A:$F, 6,FALSE)/(1 + VLOOKUP(212, Hulpvelden!$A:$F, 6,FALSE))*$H47 -> 0 | Q47: =SUMIF(BANK!$M:$M,$A47,BANK!$K:$K) -> 0 | R47: 0
A48: 46 | C48: 1 | M48: =IF(ISNUMBER($L48),VLOOKUP($L48,ICP!$A:$B,2,FALSE),"") ->  | O48: 0 | P48: =VLOOKUP(221, Hulpvelden!$A:$F, 6,FALSE)/(1 + VLOOKUP(221, Hulpvelden!$A:$F, 6,FALSE))*$E48+VLOOKUP(222, Hulpvelden!$A:$F, 6,FALSE)/(1 + VLOOKUP(222, Hulpvelden!$A:$F, 6,FALSE))*$F48+VLOOKUP(211, Hulpvelden!$A:$F, 6,FALSE)/(1 + VLOOKUP(211, Hulpvelden!$A:$F, 6,FALSE))*$G48+VLOOKUP(212, Hulpvelden!$A:$F, 6,FALSE)/(1 + VLOOKUP(212, Hulpvelden!$A:$F, 6,FALSE))*$H48 -> 0 | Q48: =SUMIF(BANK!$M:$M,$A48,BANK!$K:$K) -> 0 | R48: 0
A49: 47 | C49: 1 | M49: =IF(ISNUMBER($L49),VLOOKUP($L49,ICP!$A:$B,2,FALSE),"") ->  | O49: 0 | P49: =VLOOKUP(221, Hulpvelden!$A:$F, 6,FALSE)/(1 + VLOOKUP(221, Hulpvelden!$A:$F, 6,FALSE))*$E49+VLOOKUP(222, Hulpvelden!$A:$F, 6,FALSE)/(1 + VLOOKUP(222, Hulpvelden!$A:$F, 6,FALSE))*$F49+VLOOKUP(211, Hulpvelden!$A:$F, 6,FALSE)/(1 + VLOOKUP(211, Hulpvelden!$A:$F, 6,FALSE))*$G49+VLOOKUP(212, Hulpvelden!$A:$F, 6,FALSE)/(1 + VLOOKUP(212, Hulpvelden!$A:$F, 6,FALSE))*$H49 -> 0 | Q49: =SUMIF(BANK!$M:$M,$A49,BANK!$K:$K) -> 0 | R49: 0
A50: 48 | C50: 1 | M50: =IF(ISNUMBER($L50),VLOOKUP($L50,ICP!$A:$B,2,FALSE),"") ->  | O50: 0 | P50: =VLOOKUP(221, Hulpvelden!$A:$F, 6,FALSE)/(1 + VLOOKUP(221, Hulpvelden!$A:$F, 6,FALSE))*$E50+VLOOKUP(222, Hulpvelden!$A:$F, 6,FALSE)/(1 + VLOOKUP(222, Hulpvelden!$A:$F, 6,FALSE))*$F50+VLOOKUP(211, Hulpvelden!$A:$F, 6,FALSE)/(1 + VLOOKUP(211, Hulpvelden!$A:$F, 6,FALSE))*$G50+VLOOKUP(212, Hulpvelden!$A:$F, 6,FALSE)/(1 + VLOOKUP(212, Hulpvelden!$A:$F, 6,FALSE))*$H50 -> 0 | Q50: =SUMIF(BANK!$M:$M,$A50,BANK!$K:$K) -> 0 | R50: 0
A51: 49 | C51: 1 | M51: =IF(ISNUMBER($L51),VLOOKUP($L51,ICP!$A:$B,2,FALSE),"") ->  | O51: 0 | P51: =VLOOKUP(221, Hulpvelden!$A:$F, 6,FALSE)/(1 + VLOOKUP(221, Hulpvelden!$A:$F, 6,FALSE))*$E51+VLOOKUP(222, Hulpvelden!$A:$F, 6,FALSE)/(1 + VLOOKUP(222, Hulpvelden!$A:$F, 6,FALSE))*$F51+VLOOKUP(211, Hulpvelden!$A:$F, 6,FALSE)/(1 + VLOOKUP(211, Hulpvelden!$A:$F, 6,FALSE))*$G51+VLOOKUP(212, Hulpvelden!$A:$F, 6,FALSE)/(1 + VLOOKUP(212, Hulpvelden!$A:$F, 6,FALSE))*$H51 -> 0 | Q51: =SUMIF(BANK!$M:$M,$A51,BANK!$K:$K) -> 0 | R51: 0
A52: 50 | C52: 1 | M52: =IF(ISNUMBER($L52),VLOOKUP($L52,ICP!$A:$B,2,FALSE),"") ->  | O52: 0 | P52: =VLOOKUP(221, Hulpvelden!$A:$F, 6,FALSE)/(1 + VLOOKUP(221, Hulpvelden!$A:$F, 6,FALSE))*$E52+VLOOKUP(222, Hulpvelden!$A:$F, 6,FALSE)/(1 + VLOOKUP(222, Hulpvelden!$A:$F, 6,FALSE))*$F52+VLOOKUP(211, Hulpvelden!$A:$F, 6,FALSE)/(1 + VLOOKUP(211, Hulpvelden!$A:$F, 6,FALSE))*$G52+VLOOKUP(212, Hulpvelden!$A:$F, 6,FALSE)/(1 + VLOOKUP(212, Hulpvelden!$A:$F, 6,FALSE))*$H52 -> 0 | Q52: =SUMIF(BANK!$M:$M,$A52,BANK!$K:$K) -> 0 | R52: 0
A53: 51 | C53: 1 | M53: =IF(ISNUMBER($L53),VLOOKUP($L53,ICP!$A:$B,2,FALSE),"") ->  | O53: 0 | P53: =VLOOKUP(221, Hulpvelden!$A:$F, 6,FALSE)/(1 + VLOOKUP(221, Hulpvelden!$A:$F, 6,FALSE))*$E53+VLOOKUP(222, Hulpvelden!$A:$F, 6,FALSE)/(1 + VLOOKUP(222, Hulpvelden!$A:$F, 6,FALSE))*$F53+VLOOKUP(211, Hulpvelden!$A:$F, 6,FALSE)/(1 + VLOOKUP(211, Hulpvelden!$A:$F, 6,FALSE))*$G53+VLOOKUP(212, Hulpvelden!$A:$F, 6,FALSE)/(1 + VLOOKUP(212, Hulpvelden!$A:$F, 6,FALSE))*$H53 -> 0 | Q53: =SUMIF(BANK!$M:$M,$A53,BANK!$K:$K) -> 0 | R53: 0
A54: 52 | C54: 1 | M54: =IF(ISNUMBER($L54),VLOOKUP($L54,ICP!$A:$B,2,FALSE),"") ->  | O54: 0 | P54: =VLOOKUP(221, Hulpvelden!$A:$F, 6,FALSE)/(1 + VLOOKUP(221, Hulpvelden!$A:$F, 6,FALSE))*$E54+VLOOKUP(222, Hulpvelden!$A:$F, 6,FALSE)/(1 + VLOOKUP(222, Hulpvelden!$A:$F, 6,FALSE))*$F54+VLOOKUP(211, Hulpvelden!$A:$F, 6,FALSE)/(1 + VLOOKUP(211, Hulpvelden!$A:$F, 6,FALSE))*$G54+VLOOKUP(212, Hulpvelden!$A:$F, 6,FALSE)/(1 + VLOOKUP(212, Hulpvelden!$A:$F, 6,FALSE))*$H54 -> 0 | Q54: =SUMIF(BANK!$M:$M,$A54,BANK!$K:$K) -> 0 | R54: 0
A55: 53 | C55: 1 | M55: =IF(ISNUMBER($L55),VLOOKUP($L55,ICP!$A:$B,2,FALSE),"") ->  | O55: 0 | P55: =VLOOKUP(221, Hulpvelden!$A:$F, 6,FALSE)/(1 + VLOOKUP(221, Hulpvelden!$A:$F, 6,FALSE))*$E55+VLOOKUP(222, Hulpvelden!$A:$F, 6,FALSE)/(1 + VLOOKUP(222, Hulpvelden!$A:$F, 6,FALSE))*$F55+VLOOKUP(211, Hulpvelden!$A:$F, 6,FALSE)/(1 + VLOOKUP(211, Hulpvelden!$A:$F, 6,FALSE))*$G55+VLOOKUP(212, Hulpvelden!$A:$F, 6,FALSE)/(1 + VLOOKUP(212, Hulpvelden!$A:$F, 6,FALSE))*$H55 -> 0 | Q55: =SUMIF(BANK!$M:$M,$A55,BANK!$K:$K) -> 0 | R55: 0
A56: 54 | C56: 1 | M56: =IF(ISNUMBER($L56),VLOOKUP($L56,ICP!$A:$B,2,FALSE),"") ->  | O56: 0 | P56: =VLOOKUP(221, Hulpvelden!$A:$F, 6,FALSE)/(1 + VLOOKUP(221, Hulpvelden!$A:$F, 6,FALSE))*$E56+VLOOKUP(222, Hulpvelden!$A:$F, 6,FALSE)/(1 + VLOOKUP(222, Hulpvelden!$A:$F, 6,FALSE))*$F56+VLOOKUP(211, Hulpvelden!$A:$F, 6,FALSE)/(1 + VLOOKUP(211, Hulpvelden!$A:$F, 6,FALSE))*$G56+VLOOKUP(212, Hulpvelden!$A:$F, 6,FALSE)/(1 + VLOOKUP(212, Hulpvelden!$A:$F, 6,FALSE))*$H56 -> 0 | Q56: =SUMIF(BANK!$M:$M,$A56,BANK!$K:$K) -> 0 | R56: 0
A57: 55 | C57: 1 | M57: =IF(ISNUMBER($L57),VLOOKUP($L57,ICP!$A:$B,2,FALSE),"") ->  | O57: 0 | P57: =VLOOKUP(221, Hulpvelden!$A:$F, 6,FALSE)/(1 + VLOOKUP(221, Hulpvelden!$A:$F, 6,FALSE))*$E57+VLOOKUP(222, Hulpvelden!$A:$F, 6,FALSE)/(1 + VLOOKUP(222, Hulpvelden!$A:$F, 6,FALSE))*$F57+VLOOKUP(211, Hulpvelden!$A:$F, 6,FALSE)/(1 + VLOOKUP(211, Hulpvelden!$A:$F, 6,FALSE))*$G57+VLOOKUP(212, Hulpvelden!$A:$F, 6,FALSE)/(1 + VLOOKUP(212, Hulpvelden!$A:$F, 6,FALSE))*$H57 -> 0 | Q57: =SUMIF(BANK!$M:$M,$A57,BANK!$K:$K) -> 0 | R57: 0
A58: 56 | C58: 1 | M58: =IF(ISNUMBER($L58),VLOOKUP($L58,ICP!$A:$B,2,FALSE),"") ->  | O58: 0 | P58: =VLOOKUP(221, Hulpvelden!$A:$F, 6,FALSE)/(1 + VLOOKUP(221, Hulpvelden!$A:$F, 6,FALSE))*$E58+VLOOKUP(222, Hulpvelden!$A:$F, 6,FALSE)/(1 + VLOOKUP(222, Hulpvelden!$A:$F, 6,FALSE))*$F58+VLOOKUP(211, Hulpvelden!$A:$F, 6,FALSE)/(1 + VLOOKUP(211, Hulpvelden!$A:$F, 6,FALSE))*$G58+VLOOKUP(212, Hulpvelden!$A:$F, 6,FALSE)/(1 + VLOOKUP(212, Hulpvelden!$A:$F, 6,FALSE))*$H58 -> 0 | Q58: =SUMIF(BANK!$M:$M,$A58,BANK!$K:$K) -> 0 | R58: 0
A59: 57 | C59: 1 | M59: =IF(ISNUMBER($L59),VLOOKUP($L59,ICP!$A:$B,2,FALSE),"") ->  | O59: 0 | P59: =VLOOKUP(221, Hulpvelden!$A:$F, 6,FALSE)/(1 + VLOOKUP(221, Hulpvelden!$A:$F, 6,FALSE))*$E59+VLOOKUP(222, Hulpvelden!$A:$F, 6,FALSE)/(1 + VLOOKUP(222, Hulpvelden!$A:$F, 6,FALSE))*$F59+VLOOKUP(211, Hulpvelden!$A:$F, 6,FALSE)/(1 + VLOOKUP(211, Hulpvelden!$A:$F, 6,FALSE))*$G59+VLOOKUP(212, Hulpvelden!$A:$F, 6,FALSE)/(1 + VLOOKUP(212, Hulpvelden!$A:$F, 6,FALSE))*$H59 -> 0 | Q59: =SUMIF(BANK!$M:$M,$A59,BANK!$K:$K) -> 0 | R59: 0
A60: 58 | C60: 1 | M60: =IF(ISNUMBER($L60),VLOOKUP($L60,ICP!$A:$B,2,FALSE),"") ->  | O60: 0 | P60: =VLOOKUP(221, Hulpvelden!$A:$F, 6,FALSE)/(1 + VLOOKUP(221, Hulpvelden!$A:$F, 6,FALSE))*$E60+VLOOKUP(222, Hulpvelden!$A:$F, 6,FALSE)/(1 + VLOOKUP(222, Hulpvelden!$A:$F, 6,FALSE))*$F60+VLOOKUP(211, Hulpvelden!$A:$F, 6,FALSE)/(1 + VLOOKUP(211, Hulpvelden!$A:$F, 6,FALSE))*$G60+VLOOKUP(212, Hulpvelden!$A:$F, 6,FALSE)/(1 + VLOOKUP(212, Hulpvelden!$A:$F, 6,FALSE))*$H60 -> 0 | Q60: =SUMIF(BANK!$M:$M,$A60,BANK!$K:$K) -> 0 | R60: 0
A61: 59 | C61: 1 | M61: =IF(ISNUMBER($L61),VLOOKUP($L61,ICP!$A:$B,2,FALSE),"") ->  | O61: 0 | P61: =VLOOKUP(221, Hulpvelden!$A:$F, 6,FALSE)/(1 + VLOOKUP(221, Hulpvelden!$A:$F, 6,FALSE))*$E61+VLOOKUP(222, Hulpvelden!$A:$F, 6,FALSE)/(1 + VLOOKUP(222, Hulpvelden!$A:$F, 6,FALSE))*$F61+VLOOKUP(211, Hulpvelden!$A:$F, 6,FALSE)/(1 + VLOOKUP(211, Hulpvelden!$A:$F, 6,FALSE))*$G61+VLOOKUP(212, Hulpvelden!$A:$F, 6,FALSE)/(1 + VLOOKUP(212, Hulpvelden!$A:$F, 6,FALSE))*$H61 -> 0 | Q61: =SUMIF(BANK!$M:$M,$A61,BANK!$K:$K) -> 0 | R61: 0
A62: 60 | C62: 1 | M62: =IF(ISNUMBER($L62),VLOOKUP($L62,ICP!$A:$B,2,FALSE),"") ->  | O62: 0 | P62: =VLOOKUP(221, Hulpvelden!$A:$F, 6,FALSE)/(1 + VLOOKUP(221, Hulpvelden!$A:$F, 6,FALSE))*$E62+VLOOKUP(222, Hulpvelden!$A:$F, 6,FALSE)/(1 + VLOOKUP(222, Hulpvelden!$A:$F, 6,FALSE))*$F62+VLOOKUP(211, Hulpvelden!$A:$F, 6,FALSE)/(1 + VLOOKUP(211, Hulpvelden!$A:$F, 6,FALSE))*$G62+VLOOKUP(212, Hulpvelden!$A:$F, 6,FALSE)/(1 + VLOOKUP(212, Hulpvelden!$A:$F, 6,FALSE))*$H62 -> 0 | Q62: =SUMIF(BANK!$M:$M,$A62,BANK!$K:$K) -> 0 | R62: 0
A63: 61 | C63: 1 | M63: =IF(ISNUMBER($L63),VLOOKUP($L63,ICP!$A:$B,2,FALSE),"") ->  | O63: 0 | P63: =VLOOKUP(221, Hulpvelden!$A:$F, 6,FALSE)/(1 + VLOOKUP(221, Hulpvelden!$A:$F, 6,FALSE))*$E63+VLOOKUP(222, Hulpvelden!$A:$F, 6,FALSE)/(1 + VLOOKUP(222, Hulpvelden!$A:$F, 6,FALSE))*$F63+VLOOKUP(211, Hulpvelden!$A:$F, 6,FALSE)/(1 + VLOOKUP(211, Hulpvelden!$A:$F, 6,FALSE))*$G63+VLOOKUP(212, Hulpvelden!$A:$F, 6,FALSE)/(1 + VLOOKUP(212, Hulpvelden!$A:$F, 6,FALSE))*$H63 -> 0 | Q63: =SUMIF(BANK!$M:$M,$A63,BANK!$K:$K) -> 0 | R63: 0
A64: 62 | C64: 1 | M64: =IF(ISNUMBER($L64),VLOOKUP($L64,ICP!$A:$B,2,FALSE),"") ->  | O64: 0 | P64: =VLOOKUP(221, Hulpvelden!$A:$F, 6,FALSE)/(1 + VLOOKUP(221, Hulpvelden!$A:$F, 6,FALSE))*$E64+VLOOKUP(222, Hulpvelden!$A:$F, 6,FALSE)/(1 + VLOOKUP(222, Hulpvelden!$A:$F, 6,FALSE))*$F64+VLOOKUP(211, Hulpvelden!$A:$F, 6,FALSE)/(1 + VLOOKUP(211, Hulpvelden!$A:$F, 6,FALSE))*$G64+VLOOKUP(212, Hulpvelden!$A:$F, 6,FALSE)/(1 + VLOOKUP(212, Hulpvelden!$A:$F, 6,FALSE))*$H64 -> 0 | Q64: =SUMIF(BANK!$M:$M,$A64,BANK!$K:$K) -> 0 | R64: 0
A65: 63 | C65: 1 | M65: =IF(ISNUMBER($L65),VLOOKUP($L65,ICP!$A:$B,2,FALSE),"") ->  | O65: 0 | P65: =VLOOKUP(221, Hulpvelden!$A:$F, 6,FALSE)/(1 + VLOOKUP(221, Hulpvelden!$A:$F, 6,FALSE))*$E65+VLOOKUP(222, Hulpvelden!$A:$F, 6,FALSE)/(1 + VLOOKUP(222, Hulpvelden!$A:$F, 6,FALSE))*$F65+VLOOKUP(211, Hulpvelden!$A:$F, 6,FALSE)/(1 + VLOOKUP(211, Hulpvelden!$A:$F, 6,FALSE))*$G65+VLOOKUP(212, Hulpvelden!$A:$F, 6,FALSE)/(1 + VLOOKUP(212, Hulpvelden!$A:$F, 6,FALSE))*$H65 -> 0 | Q65: =SUMIF(BANK!$M:$M,$A65,BANK!$K:$K) -> 0 | R65: 0
A66: 64 | C66: 1 | M66: =IF(ISNUMBER($L66),VLOOKUP($L66,ICP!$A:$B,2,FALSE),"") ->  | O66: 0 | P66: =VLOOKUP(221, Hulpvelden!$A:$F, 6,FALSE)/(1 + VLOOKUP(221, Hulpvelden!$A:$F, 6,FALSE))*$E66+VLOOKUP(222, Hulpvelden!$A:$F, 6,FALSE)/(1 + VLOOKUP(222, Hulpvelden!$A:$F, 6,FALSE))*$F66+VLOOKUP(211, Hulpvelden!$A:$F, 6,FALSE)/(1 + VLOOKUP(211, Hulpvelden!$A:$F, 6,FALSE))*$G66+VLOOKUP(212, Hulpvelden!$A:$F, 6,FALSE)/(1 + VLOOKUP(212, Hulpvelden!$A:$F, 6,FALSE))*$H66 -> 0 | Q66: =SUMIF(BANK!$M:$M,$A66,BANK!$K:$K) -> 0 | R66: 0
A67: 65 | C67: =MONTH(B67) -> 1 | M67: =IF(ISNUMBER($L67),VLOOKUP($L67,ICP!$A:$B,2,FALSE),"") ->  | O67: =SUM($E67:$K67) -> 0 | P67: =VLOOKUP(221, Hulpvelden!$A:$F, 6,FALSE)/(1 + VLOOKUP(221, Hulpvelden!$A:$F, 6,FALSE))*$E67+VLOOKUP(222, Hulpvelden!$A:$F, 6,FALSE)/(1 + VLOOKUP(222, Hulpvelden!$A:$F, 6,FALSE))*$F67+VLOOKUP(211, Hulpvelden!$A:$F, 6,FALSE)/(1 + VLOOKUP(211, Hulpvelden!$A:$F, 6,FALSE))*$G67+VLOOKUP(212, Hulpvelden!$A:$F, 6,FALSE)/(1 + VLOOKUP(212, Hulpvelden!$A:$F, 6,FALSE))*$H67 -> 0 | Q67: =SUMIF(BANK!$M:$M,$A67,BANK!$K:$K) -> 0 | R67: =SUM($E67:$K67)+$N67+ $Q67 -> 0
A68: =A67+1 -> 66 | C68: 1 | M68: =IF(ISNUMBER($L68),VLOOKUP($L68,ICP!$A:$B,2,FALSE),"") ->  | O68: 0 | P68: =VLOOKUP(221, Hulpvelden!$A:$F, 6,FALSE)/(1 + VLOOKUP(221, Hulpvelden!$A:$F, 6,FALSE))*$E68+VLOOKUP(222, Hulpvelden!$A:$F, 6,FALSE)/(1 + VLOOKUP(222, Hulpvelden!$A:$F, 6,FALSE))*$F68+VLOOKUP(211, Hulpvelden!$A:$F, 6,FALSE)/(1 + VLOOKUP(211, Hulpvelden!$A:$F, 6,FALSE))*$G68+VLOOKUP(212, Hulpvelden!$A:$F, 6,FALSE)/(1 + VLOOKUP(212, Hulpvelden!$A:$F, 6,FALSE))*$H68 -> 0 | Q68: =SUMIF(BANK!$M:$M,$A68,BANK!$K:$K) -> 0 | R68: 0
A69: 67 | C69: 1 | M69: =IF(ISNUMBER($L69),VLOOKUP($L69,ICP!$A:$B,2,FALSE),"") ->  | O69: 0 | P69: =VLOOKUP(221, Hulpvelden!$A:$F, 6,FALSE)/(1 + VLOOKUP(221, Hulpvelden!$A:$F, 6,FALSE))*$E69+VLOOKUP(222, Hulpvelden!$A:$F, 6,FALSE)/(1 + VLOOKUP(222, Hulpvelden!$A:$F, 6,FALSE))*$F69+VLOOKUP(211, Hulpvelden!$A:$F, 6,FALSE)/(1 + VLOOKUP(211, Hulpvelden!$A:$F, 6,FALSE))*$G69+VLOOKUP(212, Hulpvelden!$A:$F, 6,FALSE)/(1 + VLOOKUP(212, Hulpvelden!$A:$F, 6,FALSE))*$H69 -> 0 | Q69: =SUMIF(BANK!$M:$M,$A69,BANK!$K:$K) -> 0 | R69: 0
A70: 68 | C70: 1 | M70: =IF(ISNUMBER($L70),VLOOKUP($L70,ICP!$A:$B,2,FALSE),"") ->  | O70: 0 | P70: =VLOOKUP(221, Hulpvelden!$A:$F, 6,FALSE)/(1 + VLOOKUP(221, Hulpvelden!$A:$F, 6,FALSE))*$E70+VLOOKUP(222, Hulpvelden!$A:$F, 6,FALSE)/(1 + VLOOKUP(222, Hulpvelden!$A:$F, 6,FALSE))*$F70+VLOOKUP(211, Hulpvelden!$A:$F, 6,FALSE)/(1 + VLOOKUP(211, Hulpvelden!$A:$F, 6,FALSE))*$G70+VLOOKUP(212, Hulpvelden!$A:$F, 6,FALSE)/(1 + VLOOKUP(212, Hulpvelden!$A:$F, 6,FALSE))*$H70 -> 0 | Q70: =SUMIF(BANK!$M:$M,$A70,BANK!$K:$K) -> 0 | R70: 0
A71: 69 | C71: 1 | M71: =IF(ISNUMBER($L71),VLOOKUP($L71,ICP!$A:$B,2,FALSE),"") ->  | O71: 0 | P71: =VLOOKUP(221, Hulpvelden!$A:$F, 6,FALSE)/(1 + VLOOKUP(221, Hulpvelden!$A:$F, 6,FALSE))*$E71+VLOOKUP(222, Hulpvelden!$A:$F, 6,FALSE)/(1 + VLOOKUP(222, Hulpvelden!$A:$F, 6,FALSE))*$F71+VLOOKUP(211, Hulpvelden!$A:$F, 6,FALSE)/(1 + VLOOKUP(211, Hulpvelden!$A:$F, 6,FALSE))*$G71+VLOOKUP(212, Hulpvelden!$A:$F, 6,FALSE)/(1 + VLOOKUP(212, Hulpvelden!$A:$F, 6,FALSE))*$H71 -> 0 | Q71: =SUMIF(BANK!$M:$M,$A71,BANK!$K:$K) -> 0 | R71: 0
A72: 70 | C72: 1 | M72: =IF(ISNUMBER($L72),VLOOKUP($L72,ICP!$A:$B,2,FALSE),"") ->  | O72: 0 | P72: =VLOOKUP(221, Hulpvelden!$A:$F, 6,FALSE)/(1 + VLOOKUP(221, Hulpvelden!$A:$F, 6,FALSE))*$E72+VLOOKUP(222, Hulpvelden!$A:$F, 6,FALSE)/(1 + VLOOKUP(222, Hulpvelden!$A:$F, 6,FALSE))*$F72+VLOOKUP(211, Hulpvelden!$A:$F, 6,FALSE)/(1 + VLOOKUP(211, Hulpvelden!$A:$F, 6,FALSE))*$G72+VLOOKUP(212, Hulpvelden!$A:$F, 6,FALSE)/(1 + VLOOKUP(212, Hulpvelden!$A:$F, 6,FALSE))*$H72 -> 0 | Q72: =SUMIF(BANK!$M:$M,$A72,BANK!$K:$K) -> 0 | R72: 0
A73: 71 | C73: 1 | M73: =IF(ISNUMBER($L73),VLOOKUP($L73,ICP!$A:$B,2,FALSE),"") ->  | O73: 0 | P73: =VLOOKUP(221, Hulpvelden!$A:$F, 6,FALSE)/(1 + VLOOKUP(221, Hulpvelden!$A:$F, 6,FALSE))*$E73+VLOOKUP(222, Hulpvelden!$A:$F, 6,FALSE)/(1 + VLOOKUP(222, Hulpvelden!$A:$F, 6,FALSE))*$F73+VLOOKUP(211, Hulpvelden!$A:$F, 6,FALSE)/(1 + VLOOKUP(211, Hulpvelden!$A:$F, 6,FALSE))*$G73+VLOOKUP(212, Hulpvelden!$A:$F, 6,FALSE)/(1 + VLOOKUP(212, Hulpvelden!$A:$F, 6,FALSE))*$H73 -> 0 | Q73: =SUMIF(BANK!$M:$M,$A73,BANK!$K:$K) -> 0 | R73: 0
A74: 72 | C74: 1 | M74: =IF(ISNUMBER($L74),VLOOKUP($L74,ICP!$A:$B,2,FALSE),"") ->  | O74: 0 | P74: =VLOOKUP(221, Hulpvelden!$A:$F, 6,FALSE)/(1 + VLOOKUP(221, Hulpvelden!$A:$F, 6,FALSE))*$E74+VLOOKUP(222, Hulpvelden!$A:$F, 6,FALSE)/(1 + VLOOKUP(222, Hulpvelden!$A:$F, 6,FALSE))*$F74+VLOOKUP(211, Hulpvelden!$A:$F, 6,FALSE)/(1 + VLOOKUP(211, Hulpvelden!$A:$F, 6,FALSE))*$G74+VLOOKUP(212, Hulpvelden!$A:$F, 6,FALSE)/(1 + VLOOKUP(212, Hulpvelden!$A:$F, 6,FALSE))*$H74 -> 0 | Q74: =SUMIF(BANK!$M:$M,$A74,BANK!$K:$K) -> 0 | R74: 0
A75: 73 | C75: 1 | M75: =IF(ISNUMBER($L75),VLOOKUP($L75,ICP!$A:$B,2,FALSE),"") ->  | O75: 0 | P75: =VLOOKUP(221, Hulpvelden!$A:$F, 6,FALSE)/(1 + VLOOKUP(221, Hulpvelden!$A:$F, 6,FALSE))*$E75+VLOOKUP(222, Hulpvelden!$A:$F, 6,FALSE)/(1 + VLOOKUP(222, Hulpvelden!$A:$F, 6,FALSE))*$F75+VLOOKUP(211, Hulpvelden!$A:$F, 6,FALSE)/(1 + VLOOKUP(211, Hulpvelden!$A:$F, 6,FALSE))*$G75+VLOOKUP(212, Hulpvelden!$A:$F, 6,FALSE)/(1 + VLOOKUP(212, Hulpvelden!$A:$F, 6,FALSE))*$H75 -> 0 | Q75: =SUMIF(BANK!$M:$M,$A75,BANK!$K:$K) -> 0 | R75: 0
A76: 74 | C76: 1 | M76: =IF(ISNUMBER($L76),VLOOKUP($L76,ICP!$A:$B,2,FALSE),"") ->  | O76: 0 | P76: =VLOOKUP(221, Hulpvelden!$A:$F, 6,FALSE)/(1 + VLOOKUP(221, Hulpvelden!$A:$F, 6,FALSE))*$E76+VLOOKUP(222, Hulpvelden!$A:$F, 6,FALSE)/(1 + VLOOKUP(222, Hulpvelden!$A:$F, 6,FALSE))*$F76+VLOOKUP(211, Hulpvelden!$A:$F, 6,FALSE)/(1 + VLOOKUP(211, Hulpvelden!$A:$F, 6,FALSE))*$G76+VLOOKUP(212, Hulpvelden!$A:$F, 6,FALSE)/(1 + VLOOKUP(212, Hulpvelden!$A:$F, 6,FALSE))*$H76 -> 0 | Q76: =SUMIF(BANK!$M:$M,$A76,BANK!$K:$K) -> 0 | R76: 0
A77: 75 | C77: 1 | M77: =IF(ISNUMBER($L77),VLOOKUP($L77,ICP!$A:$B,2,FALSE),"") ->  | O77: 0 | P77: =VLOOKUP(221, Hulpvelden!$A:$F, 6,FALSE)/(1 + VLOOKUP(221, Hulpvelden!$A:$F, 6,FALSE))*$E77+VLOOKUP(222, Hulpvelden!$A:$F, 6,FALSE)/(1 + VLOOKUP(222, Hulpvelden!$A:$F, 6,FALSE))*$F77+VLOOKUP(211, Hulpvelden!$A:$F, 6,FALSE)/(1 + VLOOKUP(211, Hulpvelden!$A:$F, 6,FALSE))*$G77+VLOOKUP(212, Hulpvelden!$A:$F, 6,FALSE)/(1 + VLOOKUP(212, Hulpvelden!$A:$F, 6,FALSE))*$H77 -> 0 | Q77: =SUMIF(BANK!$M:$M,$A77,BANK!$K:$K) -> 0 | R77: 0
A78: 76 | C78: 1 | M78: =IF(ISNUMBER($L78),VLOOKUP($L78,ICP!$A:$B,2,FALSE),"") ->  | O78: 0 | P78: =VLOOKUP(221, Hulpvelden!$A:$F, 6,FALSE)/(1 + VLOOKUP(221, Hulpvelden!$A:$F, 6,FALSE))*$E78+VLOOKUP(222, Hulpvelden!$A:$F, 6,FALSE)/(1 + VLOOKUP(222, Hulpvelden!$A:$F, 6,FALSE))*$F78+VLOOKUP(211, Hulpvelden!$A:$F, 6,FALSE)/(1 + VLOOKUP(211, Hulpvelden!$A:$F, 6,FALSE))*$G78+VLOOKUP(212, Hulpvelden!$A:$F, 6,FALSE)/(1 + VLOOKUP(212, Hulpvelden!$A:$F, 6,FALSE))*$H78 -> 0 | Q78: =SUMIF(BANK!$M:$M,$A78,BANK!$K:$K) -> 0 | R78: 0
A79: 77 | C79: 1 | M79: =IF(ISNUMBER($L79),VLOOKUP($L79,ICP!$A:$B,2,FALSE),"") ->  | O79: 0 | P79: =VLOOKUP(221, Hulpvelden!$A:$F, 6,FALSE)/(1 + VLOOKUP(221, Hulpvelden!$A:$F, 6,FALSE))*$E79+VLOOKUP(222, Hulpvelden!$A:$F, 6,FALSE)/(1 + VLOOKUP(222, Hulpvelden!$A:$F, 6,FALSE))*$F79+VLOOKUP(211, Hulpvelden!$A:$F, 6,FALSE)/(1 + VLOOKUP(211, Hulpvelden!$A:$F, 6,FALSE))*$G79+VLOOKUP(212, Hulpvelden!$A:$F, 6,FALSE)/(1 + VLOOKUP(212, Hulpvelden!$A:$F, 6,FALSE))*$H79 -> 0 | Q79: =SUMIF(BANK!$M:$M,$A79,BANK!$K:$K) -> 0 | R79: 0
A80: 78 | C80: 1 | M80: =IF(ISNUMBER($L80),VLOOKUP($L80,ICP!$A:$B,2,FALSE),"") ->  | O80: 0 | P80: =VLOOKUP(221, Hulpvelden!$A:$F, 6,FALSE)/(1 + VLOOKUP(221, Hulpvelden!$A:$F, 6,FALSE))*$E80+VLOOKUP(222, Hulpvelden!$A:$F, 6,FALSE)/(1 + VLOOKUP(222, Hulpvelden!$A:$F, 6,FALSE))*$F80+VLOOKUP(211, Hulpvelden!$A:$F, 6,FALSE)/(1 + VLOOKUP(211, Hulpvelden!$A:$F, 6,FALSE))*$G80+VLOOKUP(212, Hulpvelden!$A:$F, 6,FALSE)/(1 + VLOOKUP(212, Hulpvelden!$A:$F, 6,FALSE))*$H80 -> 0 | Q80: =SUMIF(BANK!$M:$M,$A80,BANK!$K:$K) -> 0 | R80: 0
A81: 79 | C81: 1 | M81: =IF(ISNUMBER($L81),VLOOKUP($L81,ICP!$A:$B,2,FALSE),"") ->  | O81: 0 | P81: =VLOOKUP(221, Hulpvelden!$A:$F, 6,FALSE)/(1 + VLOOKUP(221, Hulpvelden!$A:$F, 6,FALSE))*$E81+VLOOKUP(222, Hulpvelden!$A:$F, 6,FALSE)/(1 + VLOOKUP(222, Hulpvelden!$A:$F, 6,FALSE))*$F81+VLOOKUP(211, Hulpvelden!$A:$F, 6,FALSE)/(1 + VLOOKUP(211, Hulpvelden!$A:$F, 6,FALSE))*$G81+VLOOKUP(212, Hulpvelden!$A:$F, 6,FALSE)/(1 + VLOOKUP(212, Hulpvelden!$A:$F, 6,FALSE))*$H81 -> 0 | Q81: =SUMIF(BANK!$M:$M,$A81,BANK!$K:$K) -> 0 | R81: 0
A82: 80 | C82: 1 | M82: =IF(ISNUMBER($L82),VLOOKUP($L82,ICP!$A:$B,2,FALSE),"") ->  | O82: 0 | P82: =VLOOKUP(221, Hulpvelden!$A:$F, 6,FALSE)/(1 + VLOOKUP(221, Hulpvelden!$A:$F, 6,FALSE))*$E82+VLOOKUP(222, Hulpvelden!$A:$F, 6,FALSE)/(1 + VLOOKUP(222, Hulpvelden!$A:$F, 6,FALSE))*$F82+VLOOKUP(211, Hulpvelden!$A:$F, 6,FALSE)/(1 + VLOOKUP(211, Hulpvelden!$A:$F, 6,FALSE))*$G82+VLOOKUP(212, Hulpvelden!$A:$F, 6,FALSE)/(1 + VLOOKUP(212, Hulpvelden!$A:$F, 6,FALSE))*$H82 -> 0 | Q82: =SUMIF(BANK!$M:$M,$A82,BANK!$K:$K) -> 0 | R82: 0
A83: 81 | C83: 1 | M83: =IF(ISNUMBER($L83),VLOOKUP($L83,ICP!$A:$B,2,FALSE),"") ->  | O83: 0 | P83: =VLOOKUP(221, Hulpvelden!$A:$F, 6,FALSE)/(1 + VLOOKUP(221, Hulpvelden!$A:$F, 6,FALSE))*$E83+VLOOKUP(222, Hulpvelden!$A:$F, 6,FALSE)/(1 + VLOOKUP(222, Hulpvelden!$A:$F, 6,FALSE))*$F83+VLOOKUP(211, Hulpvelden!$A:$F, 6,FALSE)/(1 + VLOOKUP(211, Hulpvelden!$A:$F, 6,FALSE))*$G83+VLOOKUP(212, Hulpvelden!$A:$F, 6,FALSE)/(1 + VLOOKUP(212, Hulpvelden!$A:$F, 6,FALSE))*$H83 -> 0 | Q83: =SUMIF(BANK!$M:$M,$A83,BANK!$K:$K) -> 0 | R83: 0
A84: 82 | C84: 1 | M84: =IF(ISNUMBER($L84),VLOOKUP($L84,ICP!$A:$B,2,FALSE),"") ->  | O84: 0 | P84: =VLOOKUP(221, Hulpvelden!$A:$F, 6,FALSE)/(1 + VLOOKUP(221, Hulpvelden!$A:$F, 6,FALSE))*$E84+VLOOKUP(222, Hulpvelden!$A:$F, 6,FALSE)/(1 + VLOOKUP(222, Hulpvelden!$A:$F, 6,FALSE))*$F84+VLOOKUP(211, Hulpvelden!$A:$F, 6,FALSE)/(1 + VLOOKUP(211, Hulpvelden!$A:$F, 6,FALSE))*$G84+VLOOKUP(212, Hulpvelden!$A:$F, 6,FALSE)/(1 + VLOOKUP(212, Hulpvelden!$A:$F, 6,FALSE))*$H84 -> 0 | Q84: =SUMIF(BANK!$M:$M,$A84,BANK!$K:$K) -> 0 | R84: 0
A85: 83 | C85: 1 | M85: =IF(ISNUMBER($L85),VLOOKUP($L85,ICP!$A:$B,2,FALSE),"") ->  | O85: 0 | P85: =VLOOKUP(221, Hulpvelden!$A:$F, 6,FALSE)/(1 + VLOOKUP(221, Hulpvelden!$A:$F, 6,FALSE))*$E85+VLOOKUP(222, Hulpvelden!$A:$F, 6,FALSE)/(1 + VLOOKUP(222, Hulpvelden!$A:$F, 6,FALSE))*$F85+VLOOKUP(211, Hulpvelden!$A:$F, 6,FALSE)/(1 + VLOOKUP(211, Hulpvelden!$A:$F, 6,FALSE))*$G85+VLOOKUP(212, Hulpvelden!$A:$F, 6,FALSE)/(1 + VLOOKUP(212, Hulpvelden!$A:$F, 6,FALSE))*$H85 -> 0 | Q85: =SUMIF(BANK!$M:$M,$A85,BANK!$K:$K) -> 0 | R85: 0
A86: 84 | C86: 1 | M86: =IF(ISNUMBER($L86),VLOOKUP($L86,ICP!$A:$B,2,FALSE),"") ->  | O86: 0 | P86: =VLOOKUP(221, Hulpvelden!$A:$F, 6,FALSE)/(1 + VLOOKUP(221, Hulpvelden!$A:$F, 6,FALSE))*$E86+VLOOKUP(222, Hulpvelden!$A:$F, 6,FALSE)/(1 + VLOOKUP(222, Hulpvelden!$A:$F, 6,FALSE))*$F86+VLOOKUP(211, Hulpvelden!$A:$F, 6,FALSE)/(1 + VLOOKUP(211, Hulpvelden!$A:$F, 6,FALSE))*$G86+VLOOKUP(212, Hulpvelden!$A:$F, 6,FALSE)/(1 + VLOOKUP(212, Hulpvelden!$A:$F, 6,FALSE))*$H86 -> 0 | Q86: =SUMIF(BANK!$M:$M,$A86,BANK!$K:$K) -> 0 | R86: 0
A87: 85 | C87: 1 | M87: =IF(ISNUMBER($L87),VLOOKUP($L87,ICP!$A:$B,2,FALSE),"") ->  | O87: 0 | P87: =VLOOKUP(221, Hulpvelden!$A:$F, 6,FALSE)/(1 + VLOOKUP(221, Hulpvelden!$A:$F, 6,FALSE))*$E87+VLOOKUP(222, Hulpvelden!$A:$F, 6,FALSE)/(1 + VLOOKUP(222, Hulpvelden!$A:$F, 6,FALSE))*$F87+VLOOKUP(211, Hulpvelden!$A:$F, 6,FALSE)/(1 + VLOOKUP(211, Hulpvelden!$A:$F, 6,FALSE))*$G87+VLOOKUP(212, Hulpvelden!$A:$F, 6,FALSE)/(1 + VLOOKUP(212, Hulpvelden!$A:$F, 6,FALSE))*$H87 -> 0 | Q87: =SUMIF(BANK!$M:$M,$A87,BANK!$K:$K) -> 0 | R87: 0
A88: 86 | C88: 1 | M88: =IF(ISNUMBER($L88),VLOOKUP($L88,ICP!$A:$B,2,FALSE),"") ->  | O88: 0 | P88: =VLOOKUP(221, Hulpvelden!$A:$F, 6,FALSE)/(1 + VLOOKUP(221, Hulpvelden!$A:$F, 6,FALSE))*$E88+VLOOKUP(222, Hulpvelden!$A:$F, 6,FALSE)/(1 + VLOOKUP(222, Hulpvelden!$A:$F, 6,FALSE))*$F88+VLOOKUP(211, Hulpvelden!$A:$F, 6,FALSE)/(1 + VLOOKUP(211, Hulpvelden!$A:$F, 6,FALSE))*$G88+VLOOKUP(212, Hulpvelden!$A:$F, 6,FALSE)/(1 + VLOOKUP(212, Hulpvelden!$A:$F, 6,FALSE))*$H88 -> 0 | Q88: =SUMIF(BANK!$M:$M,$A88,BANK!$K:$K) -> 0 | R88: 0
A89: 87 | C89: 1 | M89: =IF(ISNUMBER($L89),VLOOKUP($L89,ICP!$A:$B,2,FALSE),"") ->  | O89: 0 | P89: =VLOOKUP(221, Hulpvelden!$A:$F, 6,FALSE)/(1 + VLOOKUP(221, Hulpvelden!$A:$F, 6,FALSE))*$E89+VLOOKUP(222, Hulpvelden!$A:$F, 6,FALSE)/(1 + VLOOKUP(222, Hulpvelden!$A:$F, 6,FALSE))*$F89+VLOOKUP(211, Hulpvelden!$A:$F, 6,FALSE)/(1 + VLOOKUP(211, Hulpvelden!$A:$F, 6,FALSE))*$G89+VLOOKUP(212, Hulpvelden!$A:$F, 6,FALSE)/(1 + VLOOKUP(212, Hulpvelden!$A:$F, 6,FALSE))*$H89 -> 0 | Q89: =SUMIF(BANK!$M:$M,$A89,BANK!$K:$K) -> 0 | R89: 0
A90: 88 | C90: 1 | M90: =IF(ISNUMBER($L90),VLOOKUP($L90,ICP!$A:$B,2,FALSE),"") ->  | O90: 0 | P90: =VLOOKUP(221, Hulpvelden!$A:$F, 6,FALSE)/(1 + VLOOKUP(221, Hulpvelden!$A:$F, 6,FALSE))*$E90+VLOOKUP(222, Hulpvelden!$A:$F, 6,FALSE)/(1 + VLOOKUP(222, Hulpvelden!$A:$F, 6,FALSE))*$F90+VLOOKUP(211, Hulpvelden!$A:$F, 6,FALSE)/(1 + VLOOKUP(211, Hulpvelden!$A:$F, 6,FALSE))*$G90+VLOOKUP(212, Hulpvelden!$A:$F, 6,FALSE)/(1 + VLOOKUP(212, Hulpvelden!$A:$F, 6,FALSE))*$H90 -> 0 | Q90: =SUMIF(BANK!$M:$M,$A90,BANK!$K:$K) -> 0 | R90: 0
A91: 89 | C91: 1 | M91: =IF(ISNUMBER($L91),VLOOKUP($L91,ICP!$A:$B,2,FALSE),"") ->  | O91: 0 | P91: =VLOOKUP(221, Hulpvelden!$A:$F, 6,FALSE)/(1 + VLOOKUP(221, Hulpvelden!$A:$F, 6,FALSE))*$E91+VLOOKUP(222, Hulpvelden!$A:$F, 6,FALSE)/(1 + VLOOKUP(222, Hulpvelden!$A:$F, 6,FALSE))*$F91+VLOOKUP(211, Hulpvelden!$A:$F, 6,FALSE)/(1 + VLOOKUP(211, Hulpvelden!$A:$F, 6,FALSE))*$G91+VLOOKUP(212, Hulpvelden!$A:$F, 6,FALSE)/(1 + VLOOKUP(212, Hulpvelden!$A:$F, 6,FALSE))*$H91 -> 0 | Q91: =SUMIF(BANK!$M:$M,$A91,BANK!$K:$K) -> 0 | R91: 0
A92: 90 | C92: 1 | M92: =IF(ISNUMBER($L92),VLOOKUP($L92,ICP!$A:$B,2,FALSE),"") ->  | O92: 0 | P92: =VLOOKUP(221, Hulpvelden!$A:$F, 6,FALSE)/(1 + VLOOKUP(221, Hulpvelden!$A:$F, 6,FALSE))*$E92+VLOOKUP(222, Hulpvelden!$A:$F, 6,FALSE)/(1 + VLOOKUP(222, Hulpvelden!$A:$F, 6,FALSE))*$F92+VLOOKUP(211, Hulpvelden!$A:$F, 6,FALSE)/(1 + VLOOKUP(211, Hulpvelden!$A:$F, 6,FALSE))*$G92+VLOOKUP(212, Hulpvelden!$A:$F, 6,FALSE)/(1 + VLOOKUP(212, Hulpvelden!$A:$F, 6,FALSE))*$H92 -> 0 | Q92: =SUMIF(BANK!$M:$M,$A92,BANK!$K:$K) -> 0 | R92: 0
A93: 91 | C93: 1 | M93: =IF(ISNUMBER($L93),VLOOKUP($L93,ICP!$A:$B,2,FALSE),"") ->  | O93: 0 | P93: =VLOOKUP(221, Hulpvelden!$A:$F, 6,FALSE)/(1 + VLOOKUP(221, Hulpvelden!$A:$F, 6,FALSE))*$E93+VLOOKUP(222, Hulpvelden!$A:$F, 6,FALSE)/(1 + VLOOKUP(222, Hulpvelden!$A:$F, 6,FALSE))*$F93+VLOOKUP(211, Hulpvelden!$A:$F, 6,FALSE)/(1 + VLOOKUP(211, Hulpvelden!$A:$F, 6,FALSE))*$G93+VLOOKUP(212, Hulpvelden!$A:$F, 6,FALSE)/(1 + VLOOKUP(212, Hulpvelden!$A:$F, 6,FALSE))*$H93 -> 0 | Q93: =SUMIF(BANK!$M:$M,$A93,BANK!$K:$K) -> 0 | R93: 0
A94: 92 | C94: 1 | M94: =IF(ISNUMBER($L94),VLOOKUP($L94,ICP!$A:$B,2,FALSE),"") ->  | O94: 0 | P94: =VLOOKUP(221, Hulpvelden!$A:$F, 6,FALSE)/(1 + VLOOKUP(221, Hulpvelden!$A:$F, 6,FALSE))*$E94+VLOOKUP(222, Hulpvelden!$A:$F, 6,FALSE)/(1 + VLOOKUP(222, Hulpvelden!$A:$F, 6,FALSE))*$F94+VLOOKUP(211, Hulpvelden!$A:$F, 6,FALSE)/(1 + VLOOKUP(211, Hulpvelden!$A:$F, 6,FALSE))*$G94+VLOOKUP(212, Hulpvelden!$A:$F, 6,FALSE)/(1 + VLOOKUP(212, Hulpvelden!$A:$F, 6,FALSE))*$H94 -> 0 | Q94: =SUMIF(BANK!$M:$M,$A94,BANK!$K:$K) -> 0 | R94: 0
A95: 93 | C95: 1 | M95: =IF(ISNUMBER($L95),VLOOKUP($L95,ICP!$A:$B,2,FALSE),"") ->  | O95: 0 | P95: =VLOOKUP(221, Hulpvelden!$A:$F, 6,FALSE)/(1 + VLOOKUP(221, Hulpvelden!$A:$F, 6,FALSE))*$E95+VLOOKUP(222, Hulpvelden!$A:$F, 6,FALSE)/(1 + VLOOKUP(222, Hulpvelden!$A:$F, 6,FALSE))*$F95+VLOOKUP(211, Hulpvelden!$A:$F, 6,FALSE)/(1 + VLOOKUP(211, Hulpvelden!$A:$F, 6,FALSE))*$G95+VLOOKUP(212, Hulpvelden!$A:$F, 6,FALSE)/(1 + VLOOKUP(212, Hulpvelden!$A:$F, 6,FALSE))*$H95 -> 0 | Q95: =SUMIF(BANK!$M:$M,$A95,BANK!$K:$K) -> 0 | R95: 0
A96: 94 | C96: 1 | M96: =IF(ISNUMBER($L96),VLOOKUP($L96,ICP!$A:$B,2,FALSE),"") ->  | O96: 0 | P96: =VLOOKUP(221, Hulpvelden!$A:$F, 6,FALSE)/(1 + VLOOKUP(221, Hulpvelden!$A:$F, 6,FALSE))*$E96+VLOOKUP(222, Hulpvelden!$A:$F, 6,FALSE)/(1 + VLOOKUP(222, Hulpvelden!$A:$F, 6,FALSE))*$F96+VLOOKUP(211, Hulpvelden!$A:$F, 6,FALSE)/(1 + VLOOKUP(211, Hulpvelden!$A:$F, 6,FALSE))*$G96+VLOOKUP(212, Hulpvelden!$A:$F, 6,FALSE)/(1 + VLOOKUP(212, Hulpvelden!$A:$F, 6,FALSE))*$H96 -> 0 | Q96: =SUMIF(BANK!$M:$M,$A96,BANK!$K:$K) -> 0 | R96: 0
A97: 95 | C97: 1 | M97: =IF(ISNUMBER($L97),VLOOKUP($L97,ICP!$A:$B,2,FALSE),"") ->  | O97: 0 | P97: =VLOOKUP(221, Hulpvelden!$A:$F, 6,FALSE)/(1 + VLOOKUP(221, Hulpvelden!$A:$F, 6,FALSE))*$E97+VLOOKUP(222, Hulpvelden!$A:$F, 6,FALSE)/(1 + VLOOKUP(222, Hulpvelden!$A:$F, 6,FALSE))*$F97+VLOOKUP(211, Hulpvelden!$A:$F, 6,FALSE)/(1 + VLOOKUP(211, Hulpvelden!$A:$F, 6,FALSE))*$G97+VLOOKUP(212, Hulpvelden!$A:$F, 6,FALSE)/(1 + VLOOKUP(212, Hulpvelden!$A:$F, 6,FALSE))*$H97 -> 0 | Q97: =SUMIF(BANK!$M:$M,$A97,BANK!$K:$K) -> 0 | R97: 0
A98: 96 | C98: 1 | M98: =IF(ISNUMBER($L98),VLOOKUP($L98,ICP!$A:$B,2,FALSE),"") ->  | O98: 0 | P98: =VLOOKUP(221, Hulpvelden!$A:$F, 6,FALSE)/(1 + VLOOKUP(221, Hulpvelden!$A:$F, 6,FALSE))*$E98+VLOOKUP(222, Hulpvelden!$A:$F, 6,FALSE)/(1 + VLOOKUP(222, Hulpvelden!$A:$F, 6,FALSE))*$F98+VLOOKUP(211, Hulpvelden!$A:$F, 6,FALSE)/(1 + VLOOKUP(211, Hulpvelden!$A:$F, 6,FALSE))*$G98+VLOOKUP(212, Hulpvelden!$A:$F, 6,FALSE)/(1 + VLOOKUP(212, Hulpvelden!$A:$F, 6,FALSE))*$H98 -> 0 | Q98: =SUMIF(BANK!$M:$M,$A98,BANK!$K:$K) -> 0 | R98: 0
A99: 97 | C99: 1 | M99: =IF(ISNUMBER($L99),VLOOKUP($L99,ICP!$A:$B,2,FALSE),"") ->  | O99: 0 | P99: =VLOOKUP(221, Hulpvelden!$A:$F, 6,FALSE)/(1 + VLOOKUP(221, Hulpvelden!$A:$F, 6,FALSE))*$E99+VLOOKUP(222, Hulpvelden!$A:$F, 6,FALSE)/(1 + VLOOKUP(222, Hulpvelden!$A:$F, 6,FALSE))*$F99+VLOOKUP(211, Hulpvelden!$A:$F, 6,FALSE)/(1 + VLOOKUP(211, Hulpvelden!$A:$F, 6,FALSE))*$G99+VLOOKUP(212, Hulpvelden!$A:$F, 6,FALSE)/(1 + VLOOKUP(212, Hulpvelden!$A:$F, 6,FALSE))*$H99 -> 0 | Q99: =SUMIF(BANK!$M:$M,$A99,BANK!$K:$K) -> 0 | R99: 0
A100: 98 | C100: 1 | M100: =IF(ISNUMBER($L100),VLOOKUP($L100,ICP!$A:$B,2,FALSE),"") ->  | O100: 0 | P100: =VLOOKUP(221, Hulpvelden!$A:$F, 6,FALSE)/(1 + VLOOKUP(221, Hulpvelden!$A:$F, 6,FALSE))*$E100+VLOOKUP(222, Hulpvelden!$A:$F, 6,FALSE)/(1 + VLOOKUP(222, Hulpvelden!$A:$F, 6,FALSE))*$F100+VLOOKUP(211, Hulpvelden!$A:$F, 6,FALSE)/(1 + VLOOKUP(211, Hulpvelden!$A:$F, 6,FALSE))*$G100+VLOOKUP(212, Hulpvelden!$A:$F, 6,FALSE)/(1 + VLOOKUP(212, Hulpvelden!$A:$F, 6,FALSE))*$H100 -> 0 | Q100: =SUMIF(BANK!$M:$M,$A100,BANK!$K:$K) -> 0 | R100: 0
A101: 99 | C101: 1 | M101: =IF(ISNUMBER($L101),VLOOKUP($L101,ICP!$A:$B,2,FALSE),"") ->  | O101: 0 | P101: =VLOOKUP(221, Hulpvelden!$A:$F, 6,FALSE)/(1 + VLOOKUP(221, Hulpvelden!$A:$F, 6,FALSE))*$E101+VLOOKUP(222, Hulpvelden!$A:$F, 6,FALSE)/(1 + VLOOKUP(222, Hulpvelden!$A:$F, 6,FALSE))*$F101+VLOOKUP(211, Hulpvelden!$A:$F, 6,FALSE)/(1 + VLOOKUP(211, Hulpvelden!$A:$F, 6,FALSE))*$G101+VLOOKUP(212, Hulpvelden!$A:$F, 6,FALSE)/(1 + VLOOKUP(212, Hulpvelden!$A:$F, 6,FALSE))*$H101 -> 0 | Q101: =SUMIF(BANK!$M:$M,$A101,BANK!$K:$K) -> 0 | R101: 0
A102: 100 | C102: 1 | M102: =IF(ISNUMBER($L102),VLOOKUP($L102,ICP!$A:$B,2,FALSE),"") ->  | O102: 0 | P102: =VLOOKUP(221, Hulpvelden!$A:$F, 6,FALSE)/(1 + VLOOKUP(221, Hulpvelden!$A:$F, 6,FALSE))*$E102+VLOOKUP(222, Hulpvelden!$A:$F, 6,FALSE)/(1 + VLOOKUP(222, Hulpvelden!$A:$F, 6,FALSE))*$F102+VLOOKUP(211, Hulpvelden!$A:$F, 6,FALSE)/(1 + VLOOKUP(211, Hulpvelden!$A:$F, 6,FALSE))*$G102+VLOOKUP(212, Hulpvelden!$A:$F, 6,FALSE)/(1 + VLOOKUP(212, Hulpvelden!$A:$F, 6,FALSE))*$H102 -> 0 | Q102: =SUMIF(BANK!$M:$M,$A102,BANK!$K:$K) -> 0 | R102: 0
A103: 101 | C103: 1 | M103: =IF(ISNUMBER($L103),VLOOKUP($L103,ICP!$A:$B,2,FALSE),"") ->  | O103: 0 | P103: =VLOOKUP(221, Hulpvelden!$A:$F, 6,FALSE)/(1 + VLOOKUP(221, Hulpvelden!$A:$F, 6,FALSE))*$E103+VLOOKUP(222, Hulpvelden!$A:$F, 6,FALSE)/(1 + VLOOKUP(222, Hulpvelden!$A:$F, 6,FALSE))*$F103+VLOOKUP(211, Hulpvelden!$A:$F, 6,FALSE)/(1 + VLOOKUP(211, Hulpvelden!$A:$F, 6,FALSE))*$G103+VLOOKUP(212, Hulpvelden!$A:$F, 6,FALSE)/(1 + VLOOKUP(212, Hulpvelden!$A:$F, 6,FALSE))*$H103 -> 0 | Q103: =SUMIF(BANK!$M:$M,$A103,BANK!$K:$K) -> 0 | R103: 0
A104: 102 | C104: 1 | M104: =IF(ISNUMBER($L104),VLOOKUP($L104,ICP!$A:$B,2,FALSE),"") ->  | O104: 0 | P104: =VLOOKUP(221, Hulpvelden!$A:$F, 6,FALSE)/(1 + VLOOKUP(221, Hulpvelden!$A:$F, 6,FALSE))*$E104+VLOOKUP(222, Hulpvelden!$A:$F, 6,FALSE)/(1 + VLOOKUP(222, Hulpvelden!$A:$F, 6,FALSE))*$F104+VLOOKUP(211, Hulpvelden!$A:$F, 6,FALSE)/(1 + VLOOKUP(211, Hulpvelden!$A:$F, 6,FALSE))*$G104+VLOOKUP(212, Hulpvelden!$A:$F, 6,FALSE)/(1 + VLOOKUP(212, Hulpvelden!$A:$F, 6,FALSE))*$H104 -> 0 | Q104: =SUMIF(BANK!$M:$M,$A104,BANK!$K:$K) -> 0 | R104: 0
A105: 103 | C105: 1 | M105: =IF(ISNUMBER($L105),VLOOKUP($L105,ICP!$A:$B,2,FALSE),"") ->  | O105: 0 | P105: =VLOOKUP(221, Hulpvelden!$A:$F, 6,FALSE)/(1 + VLOOKUP(221, Hulpvelden!$A:$F, 6,FALSE))*$E105+VLOOKUP(222, Hulpvelden!$A:$F, 6,FALSE)/(1 + VLOOKUP(222, Hulpvelden!$A:$F, 6,FALSE))*$F105+VLOOKUP(211, Hulpvelden!$A:$F, 6,FALSE)/(1 + VLOOKUP(211, Hulpvelden!$A:$F, 6,FALSE))*$G105+VLOOKUP(212, Hulpvelden!$A:$F, 6,FALSE)/(1 + VLOOKUP(212, Hulpvelden!$A:$F, 6,FALSE))*$H105 -> 0 | Q105: =SUMIF(BANK!$M:$M,$A105,BANK!$K:$K) -> 0 | R105: 0
A106: 104 | C106: 1 | M106: =IF(ISNUMBER($L106),VLOOKUP($L106,ICP!$A:$B,2,FALSE),"") ->  | O106: 0 | P106: =VLOOKUP(221, Hulpvelden!$A:$F, 6,FALSE)/(1 + VLOOKUP(221, Hulpvelden!$A:$F, 6,FALSE))*$E106+VLOOKUP(222, Hulpvelden!$A:$F, 6,FALSE)/(1 + VLOOKUP(222, Hulpvelden!$A:$F, 6,FALSE))*$F106+VLOOKUP(211, Hulpvelden!$A:$F, 6,FALSE)/(1 + VLOOKUP(211, Hulpvelden!$A:$F, 6,FALSE))*$G106+VLOOKUP(212, Hulpvelden!$A:$F, 6,FALSE)/(1 + VLOOKUP(212, Hulpvelden!$A:$F, 6,FALSE))*$H106 -> 0 | Q106: =SUMIF(BANK!$M:$M,$A106,BANK!$K:$K) -> 0 | R106: 0
A107: 105 | C107: 1 | M107: =IF(ISNUMBER($L107),VLOOKUP($L107,ICP!$A:$B,2,FALSE),"") ->  | O107: 0 | P107: =VLOOKUP(221, Hulpvelden!$A:$F, 6,FALSE)/(1 + VLOOKUP(221, Hulpvelden!$A:$F, 6,FALSE))*$E107+VLOOKUP(222, Hulpvelden!$A:$F, 6,FALSE)/(1 + VLOOKUP(222, Hulpvelden!$A:$F, 6,FALSE))*$F107+VLOOKUP(211, Hulpvelden!$A:$F, 6,FALSE)/(1 + VLOOKUP(211, Hulpvelden!$A:$F, 6,FALSE))*$G107+VLOOKUP(212, Hulpvelden!$A:$F, 6,FALSE)/(1 + VLOOKUP(212, Hulpvelden!$A:$F, 6,FALSE))*$H107 -> 0 | Q107: =SUMIF(BANK!$M:$M,$A107,BANK!$K:$K) -> 0 | R107: 0
A108: 106 | C108: 1 | M108: =IF(ISNUMBER($L108),VLOOKUP($L108,ICP!$A:$B,2,FALSE),"") ->  | O108: 0 | P108: =VLOOKUP(221, Hulpvelden!$A:$F, 6,FALSE)/(1 + VLOOKUP(221, Hulpvelden!$A:$F, 6,FALSE))*$E108+VLOOKUP(222, Hulpvelden!$A:$F, 6,FALSE)/(1 + VLOOKUP(222, Hulpvelden!$A:$F, 6,FALSE))*$F108+VLOOKUP(211, Hulpvelden!$A:$F, 6,FALSE)/(1 + VLOOKUP(211, Hulpvelden!$A:$F, 6,FALSE))*$G108+VLOOKUP(212, Hulpvelden!$A:$F, 6,FALSE)/(1 + VLOOKUP(212, Hulpvelden!$A:$F, 6,FALSE))*$H108 -> 0 | Q108: =SUMIF(BANK!$M:$M,$A108,BANK!$K:$K) -> 0 | R108: 0
A109: 107 | C109: 1 | M109: =IF(ISNUMBER($L109),VLOOKUP($L109,ICP!$A:$B,2,FALSE),"") ->  | O109: 0 | P109: =VLOOKUP(221, Hulpvelden!$A:$F, 6,FALSE)/(1 + VLOOKUP(221, Hulpvelden!$A:$F, 6,FALSE))*$E109+VLOOKUP(222, Hulpvelden!$A:$F, 6,FALSE)/(1 + VLOOKUP(222, Hulpvelden!$A:$F, 6,FALSE))*$F109+VLOOKUP(211, Hulpvelden!$A:$F, 6,FALSE)/(1 + VLOOKUP(211, Hulpvelden!$A:$F, 6,FALSE))*$G109+VLOOKUP(212, Hulpvelden!$A:$F, 6,FALSE)/(1 + VLOOKUP(212, Hulpvelden!$A:$F, 6,FALSE))*$H109 -> 0 | Q109: =SUMIF(BANK!$M:$M,$A109,BANK!$K:$K) -> 0 | R109: 0
A110: 108 | C110: 1 | M110: =IF(ISNUMBER($L110),VLOOKUP($L110,ICP!$A:$B,2,FALSE),"") ->  | O110: 0 | P110: =VLOOKUP(221, Hulpvelden!$A:$F, 6,FALSE)/(1 + VLOOKUP(221, Hulpvelden!$A:$F, 6,FALSE))*$E110+VLOOKUP(222, Hulpvelden!$A:$F, 6,FALSE)/(1 + VLOOKUP(222, Hulpvelden!$A:$F, 6,FALSE))*$F110+VLOOKUP(211, Hulpvelden!$A:$F, 6,FALSE)/(1 + VLOOKUP(211, Hulpvelden!$A:$F, 6,FALSE))*$G110+VLOOKUP(212, Hulpvelden!$A:$F, 6,FALSE)/(1 + VLOOKUP(212, Hulpvelden!$A:$F, 6,FALSE))*$H110 -> 0 | Q110: =SUMIF(BANK!$M:$M,$A110,BANK!$K:$K) -> 0 | R110: 0
A111: 109 | C111: 1 | M111: =IF(ISNUMBER($L111),VLOOKUP($L111,ICP!$A:$B,2,FALSE),"") ->  | O111: 0 | P111: =VLOOKUP(221, Hulpvelden!$A:$F, 6,FALSE)/(1 + VLOOKUP(221, Hulpvelden!$A:$F, 6,FALSE))*$E111+VLOOKUP(222, Hulpvelden!$A:$F, 6,FALSE)/(1 + VLOOKUP(222, Hulpvelden!$A:$F, 6,FALSE))*$F111+VLOOKUP(211, Hulpvelden!$A:$F, 6,FALSE)/(1 + VLOOKUP(211, Hulpvelden!$A:$F, 6,FALSE))*$G111+VLOOKUP(212, Hulpvelden!$A:$F, 6,FALSE)/(1 + VLOOKUP(212, Hulpvelden!$A:$F, 6,FALSE))*$H111 -> 0 | Q111: =SUMIF(BANK!$M:$M,$A111,BANK!$K:$K) -> 0 | R111: 0
A112: 110 | C112: 1 | M112: =IF(ISNUMBER($L112),VLOOKUP($L112,ICP!$A:$B,2,FALSE),"") ->  | O112: 0 | P112: =VLOOKUP(221, Hulpvelden!$A:$F, 6,FALSE)/(1 + VLOOKUP(221, Hulpvelden!$A:$F, 6,FALSE))*$E112+VLOOKUP(222, Hulpvelden!$A:$F, 6,FALSE)/(1 + VLOOKUP(222, Hulpvelden!$A:$F, 6,FALSE))*$F112+VLOOKUP(211, Hulpvelden!$A:$F, 6,FALSE)/(1 + VLOOKUP(211, Hulpvelden!$A:$F, 6,FALSE))*$G112+VLOOKUP(212, Hulpvelden!$A:$F, 6,FALSE)/(1 + VLOOKUP(212, Hulpvelden!$A:$F, 6,FALSE))*$H112 -> 0 | Q112: =SUMIF(BANK!$M:$M,$A112,BANK!$K:$K) -> 0 | R112: 0
A113: 111 | C113: 1 | M113: =IF(ISNUMBER($L113),VLOOKUP($L113,ICP!$A:$B,2,FALSE),"") ->  | O113: 0 | P113: =VLOOKUP(221, Hulpvelden!$A:$F, 6,FALSE)/(1 + VLOOKUP(221, Hulpvelden!$A:$F, 6,FALSE))*$E113+VLOOKUP(222, Hulpvelden!$A:$F, 6,FALSE)/(1 + VLOOKUP(222, Hulpvelden!$A:$F, 6,FALSE))*$F113+VLOOKUP(211, Hulpvelden!$A:$F, 6,FALSE)/(1 + VLOOKUP(211, Hulpvelden!$A:$F, 6,FALSE))*$G113+VLOOKUP(212, Hulpvelden!$A:$F, 6,FALSE)/(1 + VLOOKUP(212, Hulpvelden!$A:$F, 6,FALSE))*$H113 -> 0 | Q113: =SUMIF(BANK!$M:$M,$A113,BANK!$K:$K) -> 0 | R113: 0
A114: 112 | C114: 1 | M114: =IF(ISNUMBER($L114),VLOOKUP($L114,ICP!$A:$B,2,FALSE),"") ->  | O114: 0 | P114: =VLOOKUP(221, Hulpvelden!$A:$F, 6,FALSE)/(1 + VLOOKUP(221, Hulpvelden!$A:$F, 6,FALSE))*$E114+VLOOKUP(222, Hulpvelden!$A:$F, 6,FALSE)/(1 + VLOOKUP(222, Hulpvelden!$A:$F, 6,FALSE))*$F114+VLOOKUP(211, Hulpvelden!$A:$F, 6,FALSE)/(1 + VLOOKUP(211, Hulpvelden!$A:$F, 6,FALSE))*$G114+VLOOKUP(212, Hulpvelden!$A:$F, 6,FALSE)/(1 + VLOOKUP(212, Hulpvelden!$A:$F, 6,FALSE))*$H114 -> 0 | Q114: =SUMIF(BANK!$M:$M,$A114,BANK!$K:$K) -> 0 | R114: 0
A115: 113 | C115: 1 | M115: =IF(ISNUMBER($L115),VLOOKUP($L115,ICP!$A:$B,2,FALSE),"") ->  | O115: 0 | P115: =VLOOKUP(221, Hulpvelden!$A:$F, 6,FALSE)/(1 + VLOOKUP(221, Hulpvelden!$A:$F, 6,FALSE))*$E115+VLOOKUP(222, Hulpvelden!$A:$F, 6,FALSE)/(1 + VLOOKUP(222, Hulpvelden!$A:$F, 6,FALSE))*$F115+VLOOKUP(211, Hulpvelden!$A:$F, 6,FALSE)/(1 + VLOOKUP(211, Hulpvelden!$A:$F, 6,FALSE))*$G115+VLOOKUP(212, Hulpvelden!$A:$F, 6,FALSE)/(1 + VLOOKUP(212, Hulpvelden!$A:$F, 6,FALSE))*$H115 -> 0 | Q115: =SUMIF(BANK!$M:$M,$A115,BANK!$K:$K) -> 0 | R115: 0
A116: 114 | C116: 1 | M116: =IF(ISNUMBER($L116),VLOOKUP($L116,ICP!$A:$B,2,FALSE),"") ->  | O116: 0 | P116: =VLOOKUP(221, Hulpvelden!$A:$F, 6,FALSE)/(1 + VLOOKUP(221, Hulpvelden!$A:$F, 6,FALSE))*$E116+VLOOKUP(222, Hulpvelden!$A:$F, 6,FALSE)/(1 + VLOOKUP(222, Hulpvelden!$A:$F, 6,FALSE))*$F116+VLOOKUP(211, Hulpvelden!$A:$F, 6,FALSE)/(1 + VLOOKUP(211, Hulpvelden!$A:$F, 6,FALSE))*$G116+VLOOKUP(212, Hulpvelden!$A:$F, 6,FALSE)/(1 + VLOOKUP(212, Hulpvelden!$A:$F, 6,FALSE))*$H116 -> 0 | Q116: =SUMIF(BANK!$M:$M,$A116,BANK!$K:$K) -> 0 | R116: 0
A117: 115 | C117: 1 | M117: =IF(ISNUMBER($L117),VLOOKUP($L117,ICP!$A:$B,2,FALSE),"") ->  | O117: 0 | P117: =VLOOKUP(221, Hulpvelden!$A:$F, 6,FALSE)/(1 + VLOOKUP(221, Hulpvelden!$A:$F, 6,FALSE))*$E117+VLOOKUP(222, Hulpvelden!$A:$F, 6,FALSE)/(1 + VLOOKUP(222, Hulpvelden!$A:$F, 6,FALSE))*$F117+VLOOKUP(211, Hulpvelden!$A:$F, 6,FALSE)/(1 + VLOOKUP(211, Hulpvelden!$A:$F, 6,FALSE))*$G117+VLOOKUP(212, Hulpvelden!$A:$F, 6,FALSE)/(1 + VLOOKUP(212, Hulpvelden!$A:$F, 6,FALSE))*$H117 -> 0 | Q117: =SUMIF(BANK!$M:$M,$A117,BANK!$K:$K) -> 0 | R117: 0
A118: 116 | C118: 1 | M118: =IF(ISNUMBER($L118),VLOOKUP($L118,ICP!$A:$B,2,FALSE),"") ->  | O118: 0 | P118: =VLOOKUP(221, Hulpvelden!$A:$F, 6,FALSE)/(1 + VLOOKUP(221, Hulpvelden!$A:$F, 6,FALSE))*$E118+VLOOKUP(222, Hulpvelden!$A:$F, 6,FALSE)/(1 + VLOOKUP(222, Hulpvelden!$A:$F, 6,FALSE))*$F118+VLOOKUP(211, Hulpvelden!$A:$F, 6,FALSE)/(1 + VLOOKUP(211, Hulpvelden!$A:$F, 6,FALSE))*$G118+VLOOKUP(212, Hulpvelden!$A:$F, 6,FALSE)/(1 + VLOOKUP(212, Hulpvelden!$A:$F, 6,FALSE))*$H118 -> 0 | Q118: =SUMIF(BANK!$M:$M,$A118,BANK!$K:$K) -> 0 | R118: 0
A119: 117 | C119: 1 | M119: =IF(ISNUMBER($L119),VLOOKUP($L119,ICP!$A:$B,2,FALSE),"") ->  | O119: 0 | P119: =VLOOKUP(221, Hulpvelden!$A:$F, 6,FALSE)/(1 + VLOOKUP(221, Hulpvelden!$A:$F, 6,FALSE))*$E119+VLOOKUP(222, Hulpvelden!$A:$F, 6,FALSE)/(1 + VLOOKUP(222, Hulpvelden!$A:$F, 6,FALSE))*$F119+VLOOKUP(211, Hulpvelden!$A:$F, 6,FALSE)/(1 + VLOOKUP(211, Hulpvelden!$A:$F, 6,FALSE))*$G119+VLOOKUP(212, Hulpvelden!$A:$F, 6,FALSE)/(1 + VLOOKUP(212, Hulpvelden!$A:$F, 6,FALSE))*$H119 -> 0 | Q119: =SUMIF(BANK!$M:$M,$A119,BANK!$K:$K) -> 0 | R119: 0
A120: 118 | C120: 1 | M120: =IF(ISNUMBER($L120),VLOOKUP($L120,ICP!$A:$B,2,FALSE),"") ->  | O120: 0 | P120: =VLOOKUP(221, Hulpvelden!$A:$F, 6,FALSE)/(1 + VLOOKUP(221, Hulpvelden!$A:$F, 6,FALSE))*$E120+VLOOKUP(222, Hulpvelden!$A:$F, 6,FALSE)/(1 + VLOOKUP(222, Hulpvelden!$A:$F, 6,FALSE))*$F120+VLOOKUP(211, Hulpvelden!$A:$F, 6,FALSE)/(1 + VLOOKUP(211, Hulpvelden!$A:$F, 6,FALSE))*$G120+VLOOKUP(212, Hulpvelden!$A:$F, 6,FALSE)/(1 + VLOOKUP(212, Hulpvelden!$A:$F, 6,FALSE))*$H120 -> 0 | Q120: =SUMIF(BANK!$M:$M,$A120,BANK!$K:$K) -> 0 | R120: 0
A121: 119 | C121: 1 | M121: =IF(ISNUMBER($L121),VLOOKUP($L121,ICP!$A:$B,2,FALSE),"") ->  | O121: 0 | P121: =VLOOKUP(221, Hulpvelden!$A:$F, 6,FALSE)/(1 + VLOOKUP(221, Hulpvelden!$A:$F, 6,FALSE))*$E121+VLOOKUP(222, Hulpvelden!$A:$F, 6,FALSE)/(1 + VLOOKUP(222, Hulpvelden!$A:$F, 6,FALSE))*$F121+VLOOKUP(211, Hulpvelden!$A:$F, 6,FALSE)/(1 + VLOOKUP(211, Hulpvelden!$A:$F, 6,FALSE))*$G121+VLOOKUP(212, Hulpvelden!$A:$F, 6,FALSE)/(1 + VLOOKUP(212, Hulpvelden!$A:$F, 6,FALSE))*$H121 -> 0 | Q121: =SUMIF(BANK!$M:$M,$A121,BANK!$K:$K) -> 0 | R121: 0
A122: 120 | C122: 1 | M122: =IF(ISNUMBER($L122),VLOOKUP($L122,ICP!$A:$B,2,FALSE),"") ->  | O122: 0 | P122: =VLOOKUP(221, Hulpvelden!$A:$F, 6,FALSE)/(1 + VLOOKUP(221, Hulpvelden!$A:$F, 6,FALSE))*$E122+VLOOKUP(222, Hulpvelden!$A:$F, 6,FALSE)/(1 + VLOOKUP(222, Hulpvelden!$A:$F, 6,FALSE))*$F122+VLOOKUP(211, Hulpvelden!$A:$F, 6,FALSE)/(1 + VLOOKUP(211, Hulpvelden!$A:$F, 6,FALSE))*$G122+VLOOKUP(212, Hulpvelden!$A:$F, 6,FALSE)/(1 + VLOOKUP(212, Hulpvelden!$A:$F, 6,FALSE))*$H122 -> 0 | Q122: =SUMIF(BANK!$M:$M,$A122,BANK!$K:$K) -> 0 | R122: 0
A123: 121 | C123: 1 | M123: =IF(ISNUMBER($L123),VLOOKUP($L123,ICP!$A:$B,2,FALSE),"") ->  | O123: 0 | P123: =VLOOKUP(221, Hulpvelden!$A:$F, 6,FALSE)/(1 + VLOOKUP(221, Hulpvelden!$A:$F, 6,FALSE))*$E123+VLOOKUP(222, Hulpvelden!$A:$F, 6,FALSE)/(1 + VLOOKUP(222, Hulpvelden!$A:$F, 6,FALSE))*$F123+VLOOKUP(211, Hulpvelden!$A:$F, 6,FALSE)/(1 + VLOOKUP(211, Hulpvelden!$A:$F, 6,FALSE))*$G123+VLOOKUP(212, Hulpvelden!$A:$F, 6,FALSE)/(1 + VLOOKUP(212, Hulpvelden!$A:$F, 6,FALSE))*$H123 -> 0 | Q123: =SUMIF(BANK!$M:$M,$A123,BANK!$K:$K) -> 0 | R123: 0
A124: 122 | C124: 1 | M124: =IF(ISNUMBER($L124),VLOOKUP($L124,ICP!$A:$B,2,FALSE),"") ->  | O124: 0 | P124: =VLOOKUP(221, Hulpvelden!$A:$F, 6,FALSE)/(1 + VLOOKUP(221, Hulpvelden!$A:$F, 6,FALSE))*$E124+VLOOKUP(222, Hulpvelden!$A:$F, 6,FALSE)/(1 + VLOOKUP(222, Hulpvelden!$A:$F, 6,FALSE))*$F124+VLOOKUP(211, Hulpvelden!$A:$F, 6,FALSE)/(1 + VLOOKUP(211, Hulpvelden!$A:$F, 6,FALSE))*$G124+VLOOKUP(212, Hulpvelden!$A:$F, 6,FALSE)/(1 + VLOOKUP(212, Hulpvelden!$A:$F, 6,FALSE))*$H124 -> 0 | Q124: =SUMIF(BANK!$M:$M,$A124,BANK!$K:$K) -> 0 | R124: 0
A125: 123 | C125: 1 | M125: =IF(ISNUMBER($L125),VLOOKUP($L125,ICP!$A:$B,2,FALSE),"") ->  | O125: 0 | P125: =VLOOKUP(221, Hulpvelden!$A:$F, 6,FALSE)/(1 + VLOOKUP(221, Hulpvelden!$A:$F, 6,FALSE))*$E125+VLOOKUP(222, Hulpvelden!$A:$F, 6,FALSE)/(1 + VLOOKUP(222, Hulpvelden!$A:$F, 6,FALSE))*$F125+VLOOKUP(211, Hulpvelden!$A:$F, 6,FALSE)/(1 + VLOOKUP(211, Hulpvelden!$A:$F, 6,FALSE))*$G125+VLOOKUP(212, Hulpvelden!$A:$F, 6,FALSE)/(1 + VLOOKUP(212, Hulpvelden!$A:$F, 6,FALSE))*$H125 -> 0 | Q125: =SUMIF(BANK!$M:$M,$A125,BANK!$K:$K) -> 0 | R125: 0
A126: 124 | C126: 1 | M126: =IF(ISNUMBER($L126),VLOOKUP($L126,ICP!$A:$B,2,FALSE),"") ->  | O126: 0 | P126: =VLOOKUP(221, Hulpvelden!$A:$F, 6,FALSE)/(1 + VLOOKUP(221, Hulpvelden!$A:$F, 6,FALSE))*$E126+VLOOKUP(222, Hulpvelden!$A:$F, 6,FALSE)/(1 + VLOOKUP(222, Hulpvelden!$A:$F, 6,FALSE))*$F126+VLOOKUP(211, Hulpvelden!$A:$F, 6,FALSE)/(1 + VLOOKUP(211, Hulpvelden!$A:$F, 6,FALSE))*$G126+VLOOKUP(212, Hulpvelden!$A:$F, 6,FALSE)/(1 + VLOOKUP(212, Hulpvelden!$A:$F, 6,FALSE))*$H126 -> 0 | Q126: =SUMIF(BANK!$M:$M,$A126,BANK!$K:$K) -> 0 | R126: 0
A127: 125 | C127: 1 | M127: =IF(ISNUMBER($L127),VLOOKUP($L127,ICP!$A:$B,2,FALSE),"") ->  | O127: 0 | P127: =VLOOKUP(221, Hulpvelden!$A:$F, 6,FALSE)/(1 + VLOOKUP(221, Hulpvelden!$A:$F, 6,FALSE))*$E127+VLOOKUP(222, Hulpvelden!$A:$F, 6,FALSE)/(1 + VLOOKUP(222, Hulpvelden!$A:$F, 6,FALSE))*$F127+VLOOKUP(211, Hulpvelden!$A:$F, 6,FALSE)/(1 + VLOOKUP(211, Hulpvelden!$A:$F, 6,FALSE))*$G127+VLOOKUP(212, Hulpvelden!$A:$F, 6,FALSE)/(1 + VLOOKUP(212, Hulpvelden!$A:$F, 6,FALSE))*$H127 -> 0 | Q127: =SUMIF(BANK!$M:$M,$A127,BANK!$K:$K) -> 0 | R127: 0
A128: 126 | C128: 1 | M128: =IF(ISNUMBER($L128),VLOOKUP($L128,ICP!$A:$B,2,FALSE),"") ->  | O128: 0 | P128: =VLOOKUP(221, Hulpvelden!$A:$F, 6,FALSE)/(1 + VLOOKUP(221, Hulpvelden!$A:$F, 6,FALSE))*$E128+VLOOKUP(222, Hulpvelden!$A:$F, 6,FALSE)/(1 + VLOOKUP(222, Hulpvelden!$A:$F, 6,FALSE))*$F128+VLOOKUP(211, Hulpvelden!$A:$F, 6,FALSE)/(1 + VLOOKUP(211, Hulpvelden!$A:$F, 6,FALSE))*$G128+VLOOKUP(212, Hulpvelden!$A:$F, 6,FALSE)/(1 + VLOOKUP(212, Hulpvelden!$A:$F, 6,FALSE))*$H128 -> 0 | Q128: =SUMIF(BANK!$M:$M,$A128,BANK!$K:$K) -> 0 | R128: 0
A129: 127 | C129: 1 | M129: =IF(ISNUMBER($L129),VLOOKUP($L129,ICP!$A:$B,2,FALSE),"") ->  | O129: 0 | P129: =VLOOKUP(221, Hulpvelden!$A:$F, 6,FALSE)/(1 + VLOOKUP(221, Hulpvelden!$A:$F, 6,FALSE))*$E129+VLOOKUP(222, Hulpvelden!$A:$F, 6,FALSE)/(1 + VLOOKUP(222, Hulpvelden!$A:$F, 6,FALSE))*$F129+VLOOKUP(211, Hulpvelden!$A:$F, 6,FALSE)/(1 + VLOOKUP(211, Hulpvelden!$A:$F, 6,FALSE))*$G129+VLOOKUP(212, Hulpvelden!$A:$F, 6,FALSE)/(1 + VLOOKUP(212, Hulpvelden!$A:$F, 6,FALSE))*$H129 -> 0 | Q129: =SUMIF(BANK!$M:$M,$A129,BANK!$K:$K) -> 0 | R129: 0
A130: 128 | C130: 1 | M130: =IF(ISNUMBER($L130),VLOOKUP($L130,ICP!$A:$B,2,FALSE),"") ->  | O130: 0 | P130: =VLOOKUP(221, Hulpvelden!$A:$F, 6,FALSE)/(1 + VLOOKUP(221, Hulpvelden!$A:$F, 6,FALSE))*$E130+VLOOKUP(222, Hulpvelden!$A:$F, 6,FALSE)/(1 + VLOOKUP(222, Hulpvelden!$A:$F, 6,FALSE))*$F130+VLOOKUP(211, Hulpvelden!$A:$F, 6,FALSE)/(1 + VLOOKUP(211, Hulpvelden!$A:$F, 6,FALSE))*$G130+VLOOKUP(212, Hulpvelden!$A:$F, 6,FALSE)/(1 + VLOOKUP(212, Hulpvelden!$A:$F, 6,FALSE))*$H130 -> 0 | Q130: =SUMIF(BANK!$M:$M,$A130,BANK!$K:$K) -> 0 | R130: 0
A131: 129 | C131: =MONTH(B131) -> 1 | M131: =IF(ISNUMBER($L131),VLOOKUP($L131,ICP!$A:$B,2,FALSE),"") ->  | O131: =SUM($E131:$K131) -> 0 | P131: =VLOOKUP(221, Hulpvelden!$A:$F, 6,FALSE)/(1 + VLOOKUP(221, Hulpvelden!$A:$F, 6,FALSE))*$E131+VLOOKUP(222, Hulpvelden!$A:$F, 6,FALSE)/(1 + VLOOKUP(222, Hulpvelden!$A:$F, 6,FALSE))*$F131+VLOOKUP(211, Hulpvelden!$A:$F, 6,FALSE)/(1 + VLOOKUP(211, Hulpvelden!$A:$F, 6,FALSE))*$G131+VLOOKUP(212, Hulpvelden!$A:$F, 6,FALSE)/(1 + VLOOKUP(212, Hulpvelden!$A:$F, 6,FALSE))*$H131 -> 0 | Q131: =SUMIF(BANK!$M:$M,$A131,BANK!$K:$K) -> 0 | R131: =SUM($E131:$K131)+$N131+ $Q131 -> 0
A132: =A131+1 -> 130 | C132: 1 | M132: =IF(ISNUMBER($L132),VLOOKUP($L132,ICP!$A:$B,2,FALSE),"") ->  | O132: 0 | P132: =VLOOKUP(221, Hulpvelden!$A:$F, 6,FALSE)/(1 + VLOOKUP(221, Hulpvelden!$A:$F, 6,FALSE))*$E132+VLOOKUP(222, Hulpvelden!$A:$F, 6,FALSE)/(1 + VLOOKUP(222, Hulpvelden!$A:$F, 6,FALSE))*$F132+VLOOKUP(211, Hulpvelden!$A:$F, 6,FALSE)/(1 + VLOOKUP(211, Hulpvelden!$A:$F, 6,FALSE))*$G132+VLOOKUP(212, Hulpvelden!$A:$F, 6,FALSE)/(1 + VLOOKUP(212, Hulpvelden!$A:$F, 6,FALSE))*$H132 -> 0 | Q132: =SUMIF(BANK!$M:$M,$A132,BANK!$K:$K) -> 0 | R132: 0
A133: 131 | C133: 1 | M133: =IF(ISNUMBER($L133),VLOOKUP($L133,ICP!$A:$B,2,FALSE),"") ->  | O133: 0 | P133: =VLOOKUP(221, Hulpvelden!$A:$F, 6,FALSE)/(1 + VLOOKUP(221, Hulpvelden!$A:$F, 6,FALSE))*$E133+VLOOKUP(222, Hulpvelden!$A:$F, 6,FALSE)/(1 + VLOOKUP(222, Hulpvelden!$A:$F, 6,FALSE))*$F133+VLOOKUP(211, Hulpvelden!$A:$F, 6,FALSE)/(1 + VLOOKUP(211, Hulpvelden!$A:$F, 6,FALSE))*$G133+VLOOKUP(212, Hulpvelden!$A:$F, 6,FALSE)/(1 + VLOOKUP(212, Hulpvelden!$A:$F, 6,FALSE))*$H133 -> 0 | Q133: =SUMIF(BANK!$M:$M,$A133,BANK!$K:$K) -> 0 | R133: 0
A134: 132 | C134: 1 | M134: =IF(ISNUMBER($L134),VLOOKUP($L134,ICP!$A:$B,2,FALSE),"") ->  | O134: 0 | P134: =VLOOKUP(221, Hulpvelden!$A:$F, 6,FALSE)/(1 + VLOOKUP(221, Hulpvelden!$A:$F, 6,FALSE))*$E134+VLOOKUP(222, Hulpvelden!$A:$F, 6,FALSE)/(1 + VLOOKUP(222, Hulpvelden!$A:$F, 6,FALSE))*$F134+VLOOKUP(211, Hulpvelden!$A:$F, 6,FALSE)/(1 + VLOOKUP(211, Hulpvelden!$A:$F, 6,FALSE))*$G134+VLOOKUP(212, Hulpvelden!$A:$F, 6,FALSE)/(1 + VLOOKUP(212, Hulpvelden!$A:$F, 6,FALSE))*$H134 -> 0 | Q134: =SUMIF(BANK!$M:$M,$A134,BANK!$K:$K) -> 0 | R134: 0
A135: 133 | C135: 1 | M135: =IF(ISNUMBER($L135),VLOOKUP($L135,ICP!$A:$B,2,FALSE),"") ->  | O135: 0 | P135: =VLOOKUP(221, Hulpvelden!$A:$F, 6,FALSE)/(1 + VLOOKUP(221, Hulpvelden!$A:$F, 6,FALSE))*$E135+VLOOKUP(222, Hulpvelden!$A:$F, 6,FALSE)/(1 + VLOOKUP(222, Hulpvelden!$A:$F, 6,FALSE))*$F135+VLOOKUP(211, Hulpvelden!$A:$F, 6,FALSE)/(1 + VLOOKUP(211, Hulpvelden!$A:$F, 6,FALSE))*$G135+VLOOKUP(212, Hulpvelden!$A:$F, 6,FALSE)/(1 + VLOOKUP(212, Hulpvelden!$A:$F, 6,FALSE))*$H135 -> 0 | Q135: =SUMIF(BANK!$M:$M,$A135,BANK!$K:$K) -> 0 | R135: 0
A136: 134 | C136: 1 | M136: =IF(ISNUMBER($L136),VLOOKUP($L136,ICP!$A:$B,2,FALSE),"") ->  | O136: 0 | P136: =VLOOKUP(221, Hulpvelden!$A:$F, 6,FALSE)/(1 + VLOOKUP(221, Hulpvelden!$A:$F, 6,FALSE))*$E136+VLOOKUP(222, Hulpvelden!$A:$F, 6,FALSE)/(1 + VLOOKUP(222, Hulpvelden!$A:$F, 6,FALSE))*$F136+VLOOKUP(211, Hulpvelden!$A:$F, 6,FALSE)/(1 + VLOOKUP(211, Hulpvelden!$A:$F, 6,FALSE))*$G136+VLOOKUP(212, Hulpvelden!$A:$F, 6,FALSE)/(1 + VLOOKUP(212, Hulpvelden!$A:$F, 6,FALSE))*$H136 -> 0 | Q136: =SUMIF(BANK!$M:$M,$A136,BANK!$K:$K) -> 0 | R136: 0
A137: 135 | C137: 1 | M137: =IF(ISNUMBER($L137),VLOOKUP($L137,ICP!$A:$B,2,FALSE),"") ->  | O137: 0 | P137: =VLOOKUP(221, Hulpvelden!$A:$F, 6,FALSE)/(1 + VLOOKUP(221, Hulpvelden!$A:$F, 6,FALSE))*$E137+VLOOKUP(222, Hulpvelden!$A:$F, 6,FALSE)/(1 + VLOOKUP(222, Hulpvelden!$A:$F, 6,FALSE))*$F137+VLOOKUP(211, Hulpvelden!$A:$F, 6,FALSE)/(1 + VLOOKUP(211, Hulpvelden!$A:$F, 6,FALSE))*$G137+VLOOKUP(212, Hulpvelden!$A:$F, 6,FALSE)/(1 + VLOOKUP(212, Hulpvelden!$A:$F, 6,FALSE))*$H137 -> 0 | Q137: =SUMIF(BANK!$M:$M,$A137,BANK!$K:$K) -> 0 | R137: 0
A138: 136 | C138: 1 | M138: =IF(ISNUMBER($L138),VLOOKUP($L138,ICP!$A:$B,2,FALSE),"") ->  | O138: 0 | P138: =VLOOKUP(221, Hulpvelden!$A:$F, 6,FALSE)/(1 + VLOOKUP(221, Hulpvelden!$A:$F, 6,FALSE))*$E138+VLOOKUP(222, Hulpvelden!$A:$F, 6,FALSE)/(1 + VLOOKUP(222, Hulpvelden!$A:$F, 6,FALSE))*$F138+VLOOKUP(211, Hulpvelden!$A:$F, 6,FALSE)/(1 + VLOOKUP(211, Hulpvelden!$A:$F, 6,FALSE))*$G138+VLOOKUP(212, Hulpvelden!$A:$F, 6,FALSE)/(1 + VLOOKUP(212, Hulpvelden!$A:$F, 6,FALSE))*$H138 -> 0 | Q138: =SUMIF(BANK!$M:$M,$A138,BANK!$K:$K) -> 0 | R138: 0
A139: 137 | C139: 1 | M139: =IF(ISNUMBER($L139),VLOOKUP($L139,ICP!$A:$B,2,FALSE),"") ->  | O139: 0 | P139: =VLOOKUP(221, Hulpvelden!$A:$F, 6,FALSE)/(1 + VLOOKUP(221, Hulpvelden!$A:$F, 6,FALSE))*$E139+VLOOKUP(222, Hulpvelden!$A:$F, 6,FALSE)/(1 + VLOOKUP(222, Hulpvelden!$A:$F, 6,FALSE))*$F139+VLOOKUP(211, Hulpvelden!$A:$F, 6,FALSE)/(1 + VLOOKUP(211, Hulpvelden!$A:$F, 6,FALSE))*$G139+VLOOKUP(212, Hulpvelden!$A:$F, 6,FALSE)/(1 + VLOOKUP(212, Hulpvelden!$A:$F, 6,FALSE))*$H139 -> 0 | Q139: =SUMIF(BANK!$M:$M,$A139,BANK!$K:$K) -> 0 | R139: 0
A140: 138 | C140: 1 | M140: =IF(ISNUMBER($L140),VLOOKUP($L140,ICP!$A:$B,2,FALSE),"") ->  | O140: 0 | P140: =VLOOKUP(221, Hulpvelden!$A:$F, 6,FALSE)/(1 + VLOOKUP(221, Hulpvelden!$A:$F, 6,FALSE))*$E140+VLOOKUP(222, Hulpvelden!$A:$F, 6,FALSE)/(1 + VLOOKUP(222, Hulpvelden!$A:$F, 6,FALSE))*$F140+VLOOKUP(211, Hulpvelden!$A:$F, 6,FALSE)/(1 + VLOOKUP(211, Hulpvelden!$A:$F, 6,FALSE))*$G140+VLOOKUP(212, Hulpvelden!$A:$F, 6,FALSE)/(1 + VLOOKUP(212, Hulpvelden!$A:$F, 6,FALSE))*$H140 -> 0 | Q140: =SUMIF(BANK!$M:$M,$A140,BANK!$K:$K) -> 0 | R140: 0
A141: 139 | C141: 1 | M141: =IF(ISNUMBER($L141),VLOOKUP($L141,ICP!$A:$B,2,FALSE),"") ->  | O141: 0 | P141: =VLOOKUP(221, Hulpvelden!$A:$F, 6,FALSE)/(1 + VLOOKUP(221, Hulpvelden!$A:$F, 6,FALSE))*$E141+VLOOKUP(222, Hulpvelden!$A:$F, 6,FALSE)/(1 + VLOOKUP(222, Hulpvelden!$A:$F, 6,FALSE))*$F141+VLOOKUP(211, Hulpvelden!$A:$F, 6,FALSE)/(1 + VLOOKUP(211, Hulpvelden!$A:$F, 6,FALSE))*$G141+VLOOKUP(212, Hulpvelden!$A:$F, 6,FALSE)/(1 + VLOOKUP(212, Hulpvelden!$A:$F, 6,FALSE))*$H141 -> 0 | Q141: =SUMIF(BANK!$M:$M,$A141,BANK!$K:$K) -> 0 | R141: 0
A142: 140 | C142: 1 | M142: =IF(ISNUMBER($L142),VLOOKUP($L142,ICP!$A:$B,2,FALSE),"") ->  | O142: 0 | P142: =VLOOKUP(221, Hulpvelden!$A:$F, 6,FALSE)/(1 + VLOOKUP(221, Hulpvelden!$A:$F, 6,FALSE))*$E142+VLOOKUP(222, Hulpvelden!$A:$F, 6,FALSE)/(1 + VLOOKUP(222, Hulpvelden!$A:$F, 6,FALSE))*$F142+VLOOKUP(211, Hulpvelden!$A:$F, 6,FALSE)/(1 + VLOOKUP(211, Hulpvelden!$A:$F, 6,FALSE))*$G142+VLOOKUP(212, Hulpvelden!$A:$F, 6,FALSE)/(1 + VLOOKUP(212, Hulpvelden!$A:$F, 6,FALSE))*$H142 -> 0 | Q142: =SUMIF(BANK!$M:$M,$A142,BANK!$K:$K) -> 0 | R142: 0
A143: 141 | C143: 1 | M143: =IF(ISNUMBER($L143),VLOOKUP($L143,ICP!$A:$B,2,FALSE),"") ->  | O143: 0 | P143: =VLOOKUP(221, Hulpvelden!$A:$F, 6,FALSE)/(1 + VLOOKUP(221, Hulpvelden!$A:$F, 6,FALSE))*$E143+VLOOKUP(222, Hulpvelden!$A:$F, 6,FALSE)/(1 + VLOOKUP(222, Hulpvelden!$A:$F, 6,FALSE))*$F143+VLOOKUP(211, Hulpvelden!$A:$F, 6,FALSE)/(1 + VLOOKUP(211, Hulpvelden!$A:$F, 6,FALSE))*$G143+VLOOKUP(212, Hulpvelden!$A:$F, 6,FALSE)/(1 + VLOOKUP(212, Hulpvelden!$A:$F, 6,FALSE))*$H143 -> 0 | Q143: =SUMIF(BANK!$M:$M,$A143,BANK!$K:$K) -> 0 | R143: 0
A144: 142 | C144: 1 | M144: =IF(ISNUMBER($L144),VLOOKUP($L144,ICP!$A:$B,2,FALSE),"") ->  | O144: 0 | P144: =VLOOKUP(221, Hulpvelden!$A:$F, 6,FALSE)/(1 + VLOOKUP(221, Hulpvelden!$A:$F, 6,FALSE))*$E144+VLOOKUP(222, Hulpvelden!$A:$F, 6,FALSE)/(1 + VLOOKUP(222, Hulpvelden!$A:$F, 6,FALSE))*$F144+VLOOKUP(211, Hulpvelden!$A:$F, 6,FALSE)/(1 + VLOOKUP(211, Hulpvelden!$A:$F, 6,FALSE))*$G144+VLOOKUP(212, Hulpvelden!$A:$F, 6,FALSE)/(1 + VLOOKUP(212, Hulpvelden!$A:$F, 6,FALSE))*$H144 -> 0 | Q144: =SUMIF(BANK!$M:$M,$A144,BANK!$K:$K) -> 0 | R144: 0
A145: 143 | C145: 1 | M145: =IF(ISNUMBER($L145),VLOOKUP($L145,ICP!$A:$B,2,FALSE),"") ->  | O145: 0 | P145: =VLOOKUP(221, Hulpvelden!$A:$F, 6,FALSE)/(1 + VLOOKUP(221, Hulpvelden!$A:$F, 6,FALSE))*$E145+VLOOKUP(222, Hulpvelden!$A:$F, 6,FALSE)/(1 + VLOOKUP(222, Hulpvelden!$A:$F, 6,FALSE))*$F145+VLOOKUP(211, Hulpvelden!$A:$F, 6,FALSE)/(1 + VLOOKUP(211, Hulpvelden!$A:$F, 6,FALSE))*$G145+VLOOKUP(212, Hulpvelden!$A:$F, 6,FALSE)/(1 + VLOOKUP(212, Hulpvelden!$A:$F, 6,FALSE))*$H145 -> 0 | Q145: =SUMIF(BANK!$M:$M,$A145,BANK!$K:$K) -> 0 | R145: 0
A146: 144 | C146: 1 | M146: =IF(ISNUMBER($L146),VLOOKUP($L146,ICP!$A:$B,2,FALSE),"") ->  | O146: 0 | P146: =VLOOKUP(221, Hulpvelden!$A:$F, 6,FALSE)/(1 + VLOOKUP(221, Hulpvelden!$A:$F, 6,FALSE))*$E146+VLOOKUP(222, Hulpvelden!$A:$F, 6,FALSE)/(1 + VLOOKUP(222, Hulpvelden!$A:$F, 6,FALSE))*$F146+VLOOKUP(211, Hulpvelden!$A:$F, 6,FALSE)/(1 + VLOOKUP(211, Hulpvelden!$A:$F, 6,FALSE))*$G146+VLOOKUP(212, Hulpvelden!$A:$F, 6,FALSE)/(1 + VLOOKUP(212, Hulpvelden!$A:$F, 6,FALSE))*$H146 -> 0 | Q146: =SUMIF(BANK!$M:$M,$A146,BANK!$K:$K) -> 0 | R146: 0
A147: 145 | C147: 1 | M147: =IF(ISNUMBER($L147),VLOOKUP($L147,ICP!$A:$B,2,FALSE),"") ->  | O147: 0 | P147: =VLOOKUP(221, Hulpvelden!$A:$F, 6,FALSE)/(1 + VLOOKUP(221, Hulpvelden!$A:$F, 6,FALSE))*$E147+VLOOKUP(222, Hulpvelden!$A:$F, 6,FALSE)/(1 + VLOOKUP(222, Hulpvelden!$A:$F, 6,FALSE))*$F147+VLOOKUP(211, Hulpvelden!$A:$F, 6,FALSE)/(1 + VLOOKUP(211, Hulpvelden!$A:$F, 6,FALSE))*$G147+VLOOKUP(212, Hulpvelden!$A:$F, 6,FALSE)/(1 + VLOOKUP(212, Hulpvelden!$A:$F, 6,FALSE))*$H147 -> 0 | Q147: =SUMIF(BANK!$M:$M,$A147,BANK!$K:$K) -> 0 | R147: 0
A148: 146 | C148: 1 | M148: =IF(ISNUMBER($L148),VLOOKUP($L148,ICP!$A:$B,2,FALSE),"") ->  | O148: 0 | P148: =VLOOKUP(221, Hulpvelden!$A:$F, 6,FALSE)/(1 + VLOOKUP(221, Hulpvelden!$A:$F, 6,FALSE))*$E148+VLOOKUP(222, Hulpvelden!$A:$F, 6,FALSE)/(1 + VLOOKUP(222, Hulpvelden!$A:$F, 6,FALSE))*$F148+VLOOKUP(211, Hulpvelden!$A:$F, 6,FALSE)/(1 + VLOOKUP(211, Hulpvelden!$A:$F, 6,FALSE))*$G148+VLOOKUP(212, Hulpvelden!$A:$F, 6,FALSE)/(1 + VLOOKUP(212, Hulpvelden!$A:$F, 6,FALSE))*$H148 -> 0 | Q148: =SUMIF(BANK!$M:$M,$A148,BANK!$K:$K) -> 0 | R148: 0
A149: 147 | C149: 1 | M149: =IF(ISNUMBER($L149),VLOOKUP($L149,ICP!$A:$B,2,FALSE),"") ->  | O149: 0 | P149: =VLOOKUP(221, Hulpvelden!$A:$F, 6,FALSE)/(1 + VLOOKUP(221, Hulpvelden!$A:$F, 6,FALSE))*$E149+VLOOKUP(222, Hulpvelden!$A:$F, 6,FALSE)/(1 + VLOOKUP(222, Hulpvelden!$A:$F, 6,FALSE))*$F149+VLOOKUP(211, Hulpvelden!$A:$F, 6,FALSE)/(1 + VLOOKUP(211, Hulpvelden!$A:$F, 6,FALSE))*$G149+VLOOKUP(212, Hulpvelden!$A:$F, 6,FALSE)/(1 + VLOOKUP(212, Hulpvelden!$A:$F, 6,FALSE))*$H149 -> 0 | Q149: =SUMIF(BANK!$M:$M,$A149,BANK!$K:$K) -> 0 | R149: 0
A150: 148 | C150: 1 | M150: =IF(ISNUMBER($L150),VLOOKUP($L150,ICP!$A:$B,2,FALSE),"") ->  | O150: 0 | P150: =VLOOKUP(221, Hulpvelden!$A:$F, 6,FALSE)/(1 + VLOOKUP(221, Hulpvelden!$A:$F, 6,FALSE))*$E150+VLOOKUP(222, Hulpvelden!$A:$F, 6,FALSE)/(1 + VLOOKUP(222, Hulpvelden!$A:$F, 6,FALSE))*$F150+VLOOKUP(211, Hulpvelden!$A:$F, 6,FALSE)/(1 + VLOOKUP(211, Hulpvelden!$A:$F, 6,FALSE))*$G150+VLOOKUP(212, Hulpvelden!$A:$F, 6,FALSE)/(1 + VLOOKUP(212, Hulpvelden!$A:$F, 6,FALSE))*$H150 -> 0 | Q150: =SUMIF(BANK!$M:$M,$A150,BANK!$K:$K) -> 0 | R150: 0
A151: 149 | C151: 1 | M151: =IF(ISNUMBER($L151),VLOOKUP($L151,ICP!$A:$B,2,FALSE),"") ->  | O151: 0 | P151: =VLOOKUP(221, Hulpvelden!$A:$F, 6,FALSE)/(1 + VLOOKUP(221, Hulpvelden!$A:$F, 6,FALSE))*$E151+VLOOKUP(222, Hulpvelden!$A:$F, 6,FALSE)/(1 + VLOOKUP(222, Hulpvelden!$A:$F, 6,FALSE))*$F151+VLOOKUP(211, Hulpvelden!$A:$F, 6,FALSE)/(1 + VLOOKUP(211, Hulpvelden!$A:$F, 6,FALSE))*$G151+VLOOKUP(212, Hulpvelden!$A:$F, 6,FALSE)/(1 + VLOOKUP(212, Hulpvelden!$A:$F, 6,FALSE))*$H151 -> 0 | Q151: =SUMIF(BANK!$M:$M,$A151,BANK!$K:$K) -> 0 | R151: 0
A152: 150 | C152: 1 | M152: =IF(ISNUMBER($L152),VLOOKUP($L152,ICP!$A:$B,2,FALSE),"") ->  | O152: 0 | P152: =VLOOKUP(221, Hulpvelden!$A:$F, 6,FALSE)/(1 + VLOOKUP(221, Hulpvelden!$A:$F, 6,FALSE))*$E152+VLOOKUP(222, Hulpvelden!$A:$F, 6,FALSE)/(1 + VLOOKUP(222, Hulpvelden!$A:$F, 6,FALSE))*$F152+VLOOKUP(211, Hulpvelden!$A:$F, 6,FALSE)/(1 + VLOOKUP(211, Hulpvelden!$A:$F, 6,FALSE))*$G152+VLOOKUP(212, Hulpvelden!$A:$F, 6,FALSE)/(1 + VLOOKUP(212, Hulpvelden!$A:$F, 6,FALSE))*$H152 -> 0 | Q152: =SUMIF(BANK!$M:$M,$A152,BANK!$K:$K) -> 0 | R152: 0
A153: 151 | C153: 1 | M153: =IF(ISNUMBER($L153),VLOOKUP($L153,ICP!$A:$B,2,FALSE),"") ->  | O153: 0 | P153: =VLOOKUP(221, Hulpvelden!$A:$F, 6,FALSE)/(1 + VLOOKUP(221, Hulpvelden!$A:$F, 6,FALSE))*$E153+VLOOKUP(222, Hulpvelden!$A:$F, 6,FALSE)/(1 + VLOOKUP(222, Hulpvelden!$A:$F, 6,FALSE))*$F153+VLOOKUP(211, Hulpvelden!$A:$F, 6,FALSE)/(1 + VLOOKUP(211, Hulpvelden!$A:$F, 6,FALSE))*$G153+VLOOKUP(212, Hulpvelden!$A:$F, 6,FALSE)/(1 + VLOOKUP(212, Hulpvelden!$A:$F, 6,FALSE))*$H153 -> 0 | Q153: =SUMIF(BANK!$M:$M,$A153,BANK!$K:$K) -> 0 | R153: 0
A154: 152 | C154: 1 | M154: =IF(ISNUMBER($L154),VLOOKUP($L154,ICP!$A:$B,2,FALSE),"") ->  | O154: 0 | P154: =VLOOKUP(221, Hulpvelden!$A:$F, 6,FALSE)/(1 + VLOOKUP(221, Hulpvelden!$A:$F, 6,FALSE))*$E154+VLOOKUP(222, Hulpvelden!$A:$F, 6,FALSE)/(1 + VLOOKUP(222, Hulpvelden!$A:$F, 6,FALSE))*$F154+VLOOKUP(211, Hulpvelden!$A:$F, 6,FALSE)/(1 + VLOOKUP(211, Hulpvelden!$A:$F, 6,FALSE))*$G154+VLOOKUP(212, Hulpvelden!$A:$F, 6,FALSE)/(1 + VLOOKUP(212, Hulpvelden!$A:$F, 6,FALSE))*$H154 -> 0 | Q154: =SUMIF(BANK!$M:$M,$A154,BANK!$K:$K) -> 0 | R154: 0
A155: 153 | C155: 1 | M155: =IF(ISNUMBER($L155),VLOOKUP($L155,ICP!$A:$B,2,FALSE),"") ->  | O155: 0 | P155: =VLOOKUP(221, Hulpvelden!$A:$F, 6,FALSE)/(1 + VLOOKUP(221, Hulpvelden!$A:$F, 6,FALSE))*$E155+VLOOKUP(222, Hulpvelden!$A:$F, 6,FALSE)/(1 + VLOOKUP(222, Hulpvelden!$A:$F, 6,FALSE))*$F155+VLOOKUP(211, Hulpvelden!$A:$F, 6,FALSE)/(1 + VLOOKUP(211, Hulpvelden!$A:$F, 6,FALSE))*$G155+VLOOKUP(212, Hulpvelden!$A:$F, 6,FALSE)/(1 + VLOOKUP(212, Hulpvelden!$A:$F, 6,FALSE))*$H155 -> 0 | Q155: =SUMIF(BANK!$M:$M,$A155,BANK!$K:$K) -> 0 | R155: 0
A156: 154 | C156: 1 | M156: =IF(ISNUMBER($L156),VLOOKUP($L156,ICP!$A:$B,2,FALSE),"") ->  | O156: 0 | P156: =VLOOKUP(221, Hulpvelden!$A:$F, 6,FALSE)/(1 + VLOOKUP(221, Hulpvelden!$A:$F, 6,FALSE))*$E156+VLOOKUP(222, Hulpvelden!$A:$F, 6,FALSE)/(1 + VLOOKUP(222, Hulpvelden!$A:$F, 6,FALSE))*$F156+VLOOKUP(211, Hulpvelden!$A:$F, 6,FALSE)/(1 + VLOOKUP(211, Hulpvelden!$A:$F, 6,FALSE))*$G156+VLOOKUP(212, Hulpvelden!$A:$F, 6,FALSE)/(1 + VLOOKUP(212, Hulpvelden!$A:$F, 6,FALSE))*$H156 -> 0 | Q156: =SUMIF(BANK!$M:$M,$A156,BANK!$K:$K) -> 0 | R156: 0
A157: 155 | C157: 1 | M157: =IF(ISNUMBER($L157),VLOOKUP($L157,ICP!$A:$B,2,FALSE),"") ->  | O157: 0 | P157: =VLOOKUP(221, Hulpvelden!$A:$F, 6,FALSE)/(1 + VLOOKUP(221, Hulpvelden!$A:$F, 6,FALSE))*$E157+VLOOKUP(222, Hulpvelden!$A:$F, 6,FALSE)/(1 + VLOOKUP(222, Hulpvelden!$A:$F, 6,FALSE))*$F157+VLOOKUP(211, Hulpvelden!$A:$F, 6,FALSE)/(1 + VLOOKUP(211, Hulpvelden!$A:$F, 6,FALSE))*$G157+VLOOKUP(212, Hulpvelden!$A:$F, 6,FALSE)/(1 + VLOOKUP(212, Hulpvelden!$A:$F, 6,FALSE))*$H157 -> 0 | Q157: =SUMIF(BANK!$M:$M,$A157,BANK!$K:$K) -> 0 | R157: 0
A158: 156 | C158: 1 | M158: =IF(ISNUMBER($L158),VLOOKUP($L158,ICP!$A:$B,2,FALSE),"") ->  | O158: 0 | P158: =VLOOKUP(221, Hulpvelden!$A:$F, 6,FALSE)/(1 + VLOOKUP(221, Hulpvelden!$A:$F, 6,FALSE))*$E158+VLOOKUP(222, Hulpvelden!$A:$F, 6,FALSE)/(1 + VLOOKUP(222, Hulpvelden!$A:$F, 6,FALSE))*$F158+VLOOKUP(211, Hulpvelden!$A:$F, 6,FALSE)/(1 + VLOOKUP(211, Hulpvelden!$A:$F, 6,FALSE))*$G158+VLOOKUP(212, Hulpvelden!$A:$F, 6,FALSE)/(1 + VLOOKUP(212, Hulpvelden!$A:$F, 6,FALSE))*$H158 -> 0 | Q158: =SUMIF(BANK!$M:$M,$A158,BANK!$K:$K) -> 0 | R158: 0
A159: 157 | C159: 1 | M159: =IF(ISNUMBER($L159),VLOOKUP($L159,ICP!$A:$B,2,FALSE),"") ->  | O159: 0 | P159: =VLOOKUP(221, Hulpvelden!$A:$F, 6,FALSE)/(1 + VLOOKUP(221, Hulpvelden!$A:$F, 6,FALSE))*$E159+VLOOKUP(222, Hulpvelden!$A:$F, 6,FALSE)/(1 + VLOOKUP(222, Hulpvelden!$A:$F, 6,FALSE))*$F159+VLOOKUP(211, Hulpvelden!$A:$F, 6,FALSE)/(1 + VLOOKUP(211, Hulpvelden!$A:$F, 6,FALSE))*$G159+VLOOKUP(212, Hulpvelden!$A:$F, 6,FALSE)/(1 + VLOOKUP(212, Hulpvelden!$A:$F, 6,FALSE))*$H159 -> 0 | Q159: =SUMIF(BANK!$M:$M,$A159,BANK!$K:$K) -> 0 | R159: 0
A160: 158 | C160: 1 | M160: =IF(ISNUMBER($L160),VLOOKUP($L160,ICP!$A:$B,2,FALSE),"") ->  | O160: 0 | P160: =VLOOKUP(221, Hulpvelden!$A:$F, 6,FALSE)/(1 + VLOOKUP(221, Hulpvelden!$A:$F, 6,FALSE))*$E160+VLOOKUP(222, Hulpvelden!$A:$F, 6,FALSE)/(1 + VLOOKUP(222, Hulpvelden!$A:$F, 6,FALSE))*$F160+VLOOKUP(211, Hulpvelden!$A:$F, 6,FALSE)/(1 + VLOOKUP(211, Hulpvelden!$A:$F, 6,FALSE))*$G160+VLOOKUP(212, Hulpvelden!$A:$F, 6,FALSE)/(1 + VLOOKUP(212, Hulpvelden!$A:$F, 6,FALSE))*$H160 -> 0 | Q160: =SUMIF(BANK!$M:$M,$A160,BANK!$K:$K) -> 0 | R160: 0
A161: 159 | C161: 1 | M161: =IF(ISNUMBER($L161),VLOOKUP($L161,ICP!$A:$B,2,FALSE),"") ->  | O161: 0 | P161: =VLOOKUP(221, Hulpvelden!$A:$F, 6,FALSE)/(1 + VLOOKUP(221, Hulpvelden!$A:$F, 6,FALSE))*$E161+VLOOKUP(222, Hulpvelden!$A:$F, 6,FALSE)/(1 + VLOOKUP(222, Hulpvelden!$A:$F, 6,FALSE))*$F161+VLOOKUP(211, Hulpvelden!$A:$F, 6,FALSE)/(1 + VLOOKUP(211, Hulpvelden!$A:$F, 6,FALSE))*$G161+VLOOKUP(212, Hulpvelden!$A:$F, 6,FALSE)/(1 + VLOOKUP(212, Hulpvelden!$A:$F, 6,FALSE))*$H161 -> 0 | Q161: =SUMIF(BANK!$M:$M,$A161,BANK!$K:$K) -> 0 | R161: 0
A162: 160 | C162: 1 | M162: =IF(ISNUMBER($L162),VLOOKUP($L162,ICP!$A:$B,2,FALSE),"") ->  | O162: 0 | P162: =VLOOKUP(221, Hulpvelden!$A:$F, 6,FALSE)/(1 + VLOOKUP(221, Hulpvelden!$A:$F, 6,FALSE))*$E162+VLOOKUP(222, Hulpvelden!$A:$F, 6,FALSE)/(1 + VLOOKUP(222, Hulpvelden!$A:$F, 6,FALSE))*$F162+VLOOKUP(211, Hulpvelden!$A:$F, 6,FALSE)/(1 + VLOOKUP(211, Hulpvelden!$A:$F, 6,FALSE))*$G162+VLOOKUP(212, Hulpvelden!$A:$F, 6,FALSE)/(1 + VLOOKUP(212, Hulpvelden!$A:$F, 6,FALSE))*$H162 -> 0 | Q162: =SUMIF(BANK!$M:$M,$A162,BANK!$K:$K) -> 0 | R162: 0
A163: 161 | C163: 1 | M163: =IF(ISNUMBER($L163),VLOOKUP($L163,ICP!$A:$B,2,FALSE),"") ->  | O163: 0 | P163: =VLOOKUP(221, Hulpvelden!$A:$F, 6,FALSE)/(1 + VLOOKUP(221, Hulpvelden!$A:$F, 6,FALSE))*$E163+VLOOKUP(222, Hulpvelden!$A:$F, 6,FALSE)/(1 + VLOOKUP(222, Hulpvelden!$A:$F, 6,FALSE))*$F163+VLOOKUP(211, Hulpvelden!$A:$F, 6,FALSE)/(1 + VLOOKUP(211, Hulpvelden!$A:$F, 6,FALSE))*$G163+VLOOKUP(212, Hulpvelden!$A:$F, 6,FALSE)/(1 + VLOOKUP(212, Hulpvelden!$A:$F, 6,FALSE))*$H163 -> 0 | Q163: =SUMIF(BANK!$M:$M,$A163,BANK!$K:$K) -> 0 | R163: 0
A164: 162 | C164: 1 | M164: =IF(ISNUMBER($L164),VLOOKUP($L164,ICP!$A:$B,2,FALSE),"") ->  | O164: 0 | P164: =VLOOKUP(221, Hulpvelden!$A:$F, 6,FALSE)/(1 + VLOOKUP(221, Hulpvelden!$A:$F, 6,FALSE))*$E164+VLOOKUP(222, Hulpvelden!$A:$F, 6,FALSE)/(1 + VLOOKUP(222, Hulpvelden!$A:$F, 6,FALSE))*$F164+VLOOKUP(211, Hulpvelden!$A:$F, 6,FALSE)/(1 + VLOOKUP(211, Hulpvelden!$A:$F, 6,FALSE))*$G164+VLOOKUP(212, Hulpvelden!$A:$F, 6,FALSE)/(1 + VLOOKUP(212, Hulpvelden!$A:$F, 6,FALSE))*$H164 -> 0 | Q164: =SUMIF(BANK!$M:$M,$A164,BANK!$K:$K) -> 0 | R164: 0
A165: 163 | C165: 1 | M165: =IF(ISNUMBER($L165),VLOOKUP($L165,ICP!$A:$B,2,FALSE),"") ->  | O165: 0 | P165: =VLOOKUP(221, Hulpvelden!$A:$F, 6,FALSE)/(1 + VLOOKUP(221, Hulpvelden!$A:$F, 6,FALSE))*$E165+VLOOKUP(222, Hulpvelden!$A:$F, 6,FALSE)/(1 + VLOOKUP(222, Hulpvelden!$A:$F, 6,FALSE))*$F165+VLOOKUP(211, Hulpvelden!$A:$F, 6,FALSE)/(1 + VLOOKUP(211, Hulpvelden!$A:$F, 6,FALSE))*$G165+VLOOKUP(212, Hulpvelden!$A:$F, 6,FALSE)/(1 + VLOOKUP(212, Hulpvelden!$A:$F, 6,FALSE))*$H165 -> 0 | Q165: =SUMIF(BANK!$M:$M,$A165,BANK!$K:$K) -> 0 | R165: 0
A166: 164 | C166: 1 | M166: =IF(ISNUMBER($L166),VLOOKUP($L166,ICP!$A:$B,2,FALSE),"") ->  | O166: 0 | P166: =VLOOKUP(221, Hulpvelden!$A:$F, 6,FALSE)/(1 + VLOOKUP(221, Hulpvelden!$A:$F, 6,FALSE))*$E166+VLOOKUP(222, Hulpvelden!$A:$F, 6,FALSE)/(1 + VLOOKUP(222, Hulpvelden!$A:$F, 6,FALSE))*$F166+VLOOKUP(211, Hulpvelden!$A:$F, 6,FALSE)/(1 + VLOOKUP(211, Hulpvelden!$A:$F, 6,FALSE))*$G166+VLOOKUP(212, Hulpvelden!$A:$F, 6,FALSE)/(1 + VLOOKUP(212, Hulpvelden!$A:$F, 6,FALSE))*$H166 -> 0 | Q166: =SUMIF(BANK!$M:$M,$A166,BANK!$K:$K) -> 0 | R166: 0
A167: 165 | C167: 1 | M167: =IF(ISNUMBER($L167),VLOOKUP($L167,ICP!$A:$B,2,FALSE),"") ->  | O167: 0 | P167: =VLOOKUP(221, Hulpvelden!$A:$F, 6,FALSE)/(1 + VLOOKUP(221, Hulpvelden!$A:$F, 6,FALSE))*$E167+VLOOKUP(222, Hulpvelden!$A:$F, 6,FALSE)/(1 + VLOOKUP(222, Hulpvelden!$A:$F, 6,FALSE))*$F167+VLOOKUP(211, Hulpvelden!$A:$F, 6,FALSE)/(1 + VLOOKUP(211, Hulpvelden!$A:$F, 6,FALSE))*$G167+VLOOKUP(212, Hulpvelden!$A:$F, 6,FALSE)/(1 + VLOOKUP(212, Hulpvelden!$A:$F, 6,FALSE))*$H167 -> 0 | Q167: =SUMIF(BANK!$M:$M,$A167,BANK!$K:$K) -> 0 | R167: 0
A168: 166 | C168: 1 | M168: =IF(ISNUMBER($L168),VLOOKUP($L168,ICP!$A:$B,2,FALSE),"") ->  | O168: 0 | P168: =VLOOKUP(221, Hulpvelden!$A:$F, 6,FALSE)/(1 + VLOOKUP(221, Hulpvelden!$A:$F, 6,FALSE))*$E168+VLOOKUP(222, Hulpvelden!$A:$F, 6,FALSE)/(1 + VLOOKUP(222, Hulpvelden!$A:$F, 6,FALSE))*$F168+VLOOKUP(211, Hulpvelden!$A:$F, 6,FALSE)/(1 + VLOOKUP(211, Hulpvelden!$A:$F, 6,FALSE))*$G168+VLOOKUP(212, Hulpvelden!$A:$F, 6,FALSE)/(1 + VLOOKUP(212, Hulpvelden!$A:$F, 6,FALSE))*$H168 -> 0 | Q168: =SUMIF(BANK!$M:$M,$A168,BANK!$K:$K) -> 0 | R168: 0
A169: 167 | C169: 1 | M169: =IF(ISNUMBER($L169),VLOOKUP($L169,ICP!$A:$B,2,FALSE),"") ->  | O169: 0 | P169: =VLOOKUP(221, Hulpvelden!$A:$F, 6,FALSE)/(1 + VLOOKUP(221, Hulpvelden!$A:$F, 6,FALSE))*$E169+VLOOKUP(222, Hulpvelden!$A:$F, 6,FALSE)/(1 + VLOOKUP(222, Hulpvelden!$A:$F, 6,FALSE))*$F169+VLOOKUP(211, Hulpvelden!$A:$F, 6,FALSE)/(1 + VLOOKUP(211, Hulpvelden!$A:$F, 6,FALSE))*$G169+VLOOKUP(212, Hulpvelden!$A:$F, 6,FALSE)/(1 + VLOOKUP(212, Hulpvelden!$A:$F, 6,FALSE))*$H169 -> 0 | Q169: =SUMIF(BANK!$M:$M,$A169,BANK!$K:$K) -> 0 | R169: 0
A170: 168 | C170: 1 | M170: =IF(ISNUMBER($L170),VLOOKUP($L170,ICP!$A:$B,2,FALSE),"") ->  | O170: 0 | P170: =VLOOKUP(221, Hulpvelden!$A:$F, 6,FALSE)/(1 + VLOOKUP(221, Hulpvelden!$A:$F, 6,FALSE))*$E170+VLOOKUP(222, Hulpvelden!$A:$F, 6,FALSE)/(1 + VLOOKUP(222, Hulpvelden!$A:$F, 6,FALSE))*$F170+VLOOKUP(211, Hulpvelden!$A:$F, 6,FALSE)/(1 + VLOOKUP(211, Hulpvelden!$A:$F, 6,FALSE))*$G170+VLOOKUP(212, Hulpvelden!$A:$F, 6,FALSE)/(1 + VLOOKUP(212, Hulpvelden!$A:$F, 6,FALSE))*$H170 -> 0 | Q170: =SUMIF(BANK!$M:$M,$A170,BANK!$K:$K) -> 0 | R170: 0
A171: 169 | C171: 1 | M171: =IF(ISNUMBER($L171),VLOOKUP($L171,ICP!$A:$B,2,FALSE),"") ->  | O171: 0 | P171: =VLOOKUP(221, Hulpvelden!$A:$F, 6,FALSE)/(1 + VLOOKUP(221, Hulpvelden!$A:$F, 6,FALSE))*$E171+VLOOKUP(222, Hulpvelden!$A:$F, 6,FALSE)/(1 + VLOOKUP(222, Hulpvelden!$A:$F, 6,FALSE))*$F171+VLOOKUP(211, Hulpvelden!$A:$F, 6,FALSE)/(1 + VLOOKUP(211, Hulpvelden!$A:$F, 6,FALSE))*$G171+VLOOKUP(212, Hulpvelden!$A:$F, 6,FALSE)/(1 + VLOOKUP(212, Hulpvelden!$A:$F, 6,FALSE))*$H171 -> 0 | Q171: =SUMIF(BANK!$M:$M,$A171,BANK!$K:$K) -> 0 | R171: 0
A172: 170 | C172: 1 | M172: =IF(ISNUMBER($L172),VLOOKUP($L172,ICP!$A:$B,2,FALSE),"") ->  | O172: 0 | P172: =VLOOKUP(221, Hulpvelden!$A:$F, 6,FALSE)/(1 + VLOOKUP(221, Hulpvelden!$A:$F, 6,FALSE))*$E172+VLOOKUP(222, Hulpvelden!$A:$F, 6,FALSE)/(1 + VLOOKUP(222, Hulpvelden!$A:$F, 6,FALSE))*$F172+VLOOKUP(211, Hulpvelden!$A:$F, 6,FALSE)/(1 + VLOOKUP(211, Hulpvelden!$A:$F, 6,FALSE))*$G172+VLOOKUP(212, Hulpvelden!$A:$F, 6,FALSE)/(1 + VLOOKUP(212, Hulpvelden!$A:$F, 6,FALSE))*$H172 -> 0 | Q172: =SUMIF(BANK!$M:$M,$A172,BANK!$K:$K) -> 0 | R172: 0
A173: 171 | C173: 1 | M173: =IF(ISNUMBER($L173),VLOOKUP($L173,ICP!$A:$B,2,FALSE),"") ->  | O173: 0 | P173: =VLOOKUP(221, Hulpvelden!$A:$F, 6,FALSE)/(1 + VLOOKUP(221, Hulpvelden!$A:$F, 6,FALSE))*$E173+VLOOKUP(222, Hulpvelden!$A:$F, 6,FALSE)/(1 + VLOOKUP(222, Hulpvelden!$A:$F, 6,FALSE))*$F173+VLOOKUP(211, Hulpvelden!$A:$F, 6,FALSE)/(1 + VLOOKUP(211, Hulpvelden!$A:$F, 6,FALSE))*$G173+VLOOKUP(212, Hulpvelden!$A:$F, 6,FALSE)/(1 + VLOOKUP(212, Hulpvelden!$A:$F, 6,FALSE))*$H173 -> 0 | Q173: =SUMIF(BANK!$M:$M,$A173,BANK!$K:$K) -> 0 | R173: 0
A174: 172 | C174: 1 | M174: =IF(ISNUMBER($L174),VLOOKUP($L174,ICP!$A:$B,2,FALSE),"") ->  | O174: 0 | P174: =VLOOKUP(221, Hulpvelden!$A:$F, 6,FALSE)/(1 + VLOOKUP(221, Hulpvelden!$A:$F, 6,FALSE))*$E174+VLOOKUP(222, Hulpvelden!$A:$F, 6,FALSE)/(1 + VLOOKUP(222, Hulpvelden!$A:$F, 6,FALSE))*$F174+VLOOKUP(211, Hulpvelden!$A:$F, 6,FALSE)/(1 + VLOOKUP(211, Hulpvelden!$A:$F, 6,FALSE))*$G174+VLOOKUP(212, Hulpvelden!$A:$F, 6,FALSE)/(1 + VLOOKUP(212, Hulpvelden!$A:$F, 6,FALSE))*$H174 -> 0 | Q174: =SUMIF(BANK!$M:$M,$A174,BANK!$K:$K) -> 0 | R174: 0
A175: 173 | C175: 1 | M175: =IF(ISNUMBER($L175),VLOOKUP($L175,ICP!$A:$B,2,FALSE),"") ->  | O175: 0 | P175: =VLOOKUP(221, Hulpvelden!$A:$F, 6,FALSE)/(1 + VLOOKUP(221, Hulpvelden!$A:$F, 6,FALSE))*$E175+VLOOKUP(222, Hulpvelden!$A:$F, 6,FALSE)/(1 + VLOOKUP(222, Hulpvelden!$A:$F, 6,FALSE))*$F175+VLOOKUP(211, Hulpvelden!$A:$F, 6,FALSE)/(1 + VLOOKUP(211, Hulpvelden!$A:$F, 6,FALSE))*$G175+VLOOKUP(212, Hulpvelden!$A:$F, 6,FALSE)/(1 + VLOOKUP(212, Hulpvelden!$A:$F, 6,FALSE))*$H175 -> 0 | Q175: =SUMIF(BANK!$M:$M,$A175,BANK!$K:$K) -> 0 | R175: 0
A176: 174 | C176: 1 | M176: =IF(ISNUMBER($L176),VLOOKUP($L176,ICP!$A:$B,2,FALSE),"") ->  | O176: 0 | P176: =VLOOKUP(221, Hulpvelden!$A:$F, 6,FALSE)/(1 + VLOOKUP(221, Hulpvelden!$A:$F, 6,FALSE))*$E176+VLOOKUP(222, Hulpvelden!$A:$F, 6,FALSE)/(1 + VLOOKUP(222, Hulpvelden!$A:$F, 6,FALSE))*$F176+VLOOKUP(211, Hulpvelden!$A:$F, 6,FALSE)/(1 + VLOOKUP(211, Hulpvelden!$A:$F, 6,FALSE))*$G176+VLOOKUP(212, Hulpvelden!$A:$F, 6,FALSE)/(1 + VLOOKUP(212, Hulpvelden!$A:$F, 6,FALSE))*$H176 -> 0 | Q176: =SUMIF(BANK!$M:$M,$A176,BANK!$K:$K) -> 0 | R176: 0
A177: 175 | C177: 1 | M177: =IF(ISNUMBER($L177),VLOOKUP($L177,ICP!$A:$B,2,FALSE),"") ->  | O177: 0 | P177: =VLOOKUP(221, Hulpvelden!$A:$F, 6,FALSE)/(1 + VLOOKUP(221, Hulpvelden!$A:$F, 6,FALSE))*$E177+VLOOKUP(222, Hulpvelden!$A:$F, 6,FALSE)/(1 + VLOOKUP(222, Hulpvelden!$A:$F, 6,FALSE))*$F177+VLOOKUP(211, Hulpvelden!$A:$F, 6,FALSE)/(1 + VLOOKUP(211, Hulpvelden!$A:$F, 6,FALSE))*$G177+VLOOKUP(212, Hulpvelden!$A:$F, 6,FALSE)/(1 + VLOOKUP(212, Hulpvelden!$A:$F, 6,FALSE))*$H177 -> 0 | Q177: =SUMIF(BANK!$M:$M,$A177,BANK!$K:$K) -> 0 | R177: 0
A178: 176 | C178: 1 | M178: =IF(ISNUMBER($L178),VLOOKUP($L178,ICP!$A:$B,2,FALSE),"") ->  | O178: 0 | P178: =VLOOKUP(221, Hulpvelden!$A:$F, 6,FALSE)/(1 + VLOOKUP(221, Hulpvelden!$A:$F, 6,FALSE))*$E178+VLOOKUP(222, Hulpvelden!$A:$F, 6,FALSE)/(1 + VLOOKUP(222, Hulpvelden!$A:$F, 6,FALSE))*$F178+VLOOKUP(211, Hulpvelden!$A:$F, 6,FALSE)/(1 + VLOOKUP(211, Hulpvelden!$A:$F, 6,FALSE))*$G178+VLOOKUP(212, Hulpvelden!$A:$F, 6,FALSE)/(1 + VLOOKUP(212, Hulpvelden!$A:$F, 6,FALSE))*$H178 -> 0 | Q178: =SUMIF(BANK!$M:$M,$A178,BANK!$K:$K) -> 0 | R178: 0
A179: 177 | C179: 1 | M179: =IF(ISNUMBER($L179),VLOOKUP($L179,ICP!$A:$B,2,FALSE),"") ->  | O179: 0 | P179: =VLOOKUP(221, Hulpvelden!$A:$F, 6,FALSE)/(1 + VLOOKUP(221, Hulpvelden!$A:$F, 6,FALSE))*$E179+VLOOKUP(222, Hulpvelden!$A:$F, 6,FALSE)/(1 + VLOOKUP(222, Hulpvelden!$A:$F, 6,FALSE))*$F179+VLOOKUP(211, Hulpvelden!$A:$F, 6,FALSE)/(1 + VLOOKUP(211, Hulpvelden!$A:$F, 6,FALSE))*$G179+VLOOKUP(212, Hulpvelden!$A:$F, 6,FALSE)/(1 + VLOOKUP(212, Hulpvelden!$A:$F, 6,FALSE))*$H179 -> 0 | Q179: =SUMIF(BANK!$M:$M,$A179,BANK!$K:$K) -> 0 | R179: 0
A180: 178 | C180: 1 | M180: =IF(ISNUMBER($L180),VLOOKUP($L180,ICP!$A:$B,2,FALSE),"") ->  | O180: 0 | P180: =VLOOKUP(221, Hulpvelden!$A:$F, 6,FALSE)/(1 + VLOOKUP(221, Hulpvelden!$A:$F, 6,FALSE))*$E180+VLOOKUP(222, Hulpvelden!$A:$F, 6,FALSE)/(1 + VLOOKUP(222, Hulpvelden!$A:$F, 6,FALSE))*$F180+VLOOKUP(211, Hulpvelden!$A:$F, 6,FALSE)/(1 + VLOOKUP(211, Hulpvelden!$A:$F, 6,FALSE))*$G180+VLOOKUP(212, Hulpvelden!$A:$F, 6,FALSE)/(1 + VLOOKUP(212, Hulpvelden!$A:$F, 6,FALSE))*$H180 -> 0 | Q180: =SUMIF(BANK!$M:$M,$A180,BANK!$K:$K) -> 0 | R180: 0
A181: 179 | C181: 1 | M181: =IF(ISNUMBER($L181),VLOOKUP($L181,ICP!$A:$B,2,FALSE),"") ->  | O181: 0 | P181: =VLOOKUP(221, Hulpvelden!$A:$F, 6,FALSE)/(1 + VLOOKUP(221, Hulpvelden!$A:$F, 6,FALSE))*$E181+VLOOKUP(222, Hulpvelden!$A:$F, 6,FALSE)/(1 + VLOOKUP(222, Hulpvelden!$A:$F, 6,FALSE))*$F181+VLOOKUP(211, Hulpvelden!$A:$F, 6,FALSE)/(1 + VLOOKUP(211, Hulpvelden!$A:$F, 6,FALSE))*$G181+VLOOKUP(212, Hulpvelden!$A:$F, 6,FALSE)/(1 + VLOOKUP(212, Hulpvelden!$A:$F, 6,FALSE))*$H181 -> 0 | Q181: =SUMIF(BANK!$M:$M,$A181,BANK!$K:$K) -> 0 | R181: 0
A182: 180 | C182: 1 | M182: =IF(ISNUMBER($L182),VLOOKUP($L182,ICP!$A:$B,2,FALSE),"") ->  | O182: 0 | P182: =VLOOKUP(221, Hulpvelden!$A:$F, 6,FALSE)/(1 + VLOOKUP(221, Hulpvelden!$A:$F, 6,FALSE))*$E182+VLOOKUP(222, Hulpvelden!$A:$F, 6,FALSE)/(1 + VLOOKUP(222, Hulpvelden!$A:$F, 6,FALSE))*$F182+VLOOKUP(211, Hulpvelden!$A:$F, 6,FALSE)/(1 + VLOOKUP(211, Hulpvelden!$A:$F, 6,FALSE))*$G182+VLOOKUP(212, Hulpvelden!$A:$F, 6,FALSE)/(1 + VLOOKUP(212, Hulpvelden!$A:$F, 6,FALSE))*$H182 -> 0 | Q182: =SUMIF(BANK!$M:$M,$A182,BANK!$K:$K) -> 0 | R182: 0
A183: 181 | C183: 1 | M183: =IF(ISNUMBER($L183),VLOOKUP($L183,ICP!$A:$B,2,FALSE),"") ->  | O183: 0 | P183: =VLOOKUP(221, Hulpvelden!$A:$F, 6,FALSE)/(1 + VLOOKUP(221, Hulpvelden!$A:$F, 6,FALSE))*$E183+VLOOKUP(222, Hulpvelden!$A:$F, 6,FALSE)/(1 + VLOOKUP(222, Hulpvelden!$A:$F, 6,FALSE))*$F183+VLOOKUP(211, Hulpvelden!$A:$F, 6,FALSE)/(1 + VLOOKUP(211, Hulpvelden!$A:$F, 6,FALSE))*$G183+VLOOKUP(212, Hulpvelden!$A:$F, 6,FALSE)/(1 + VLOOKUP(212, Hulpvelden!$A:$F, 6,FALSE))*$H183 -> 0 | Q183: =SUMIF(BANK!$M:$M,$A183,BANK!$K:$K) -> 0 | R183: 0
A184: 182 | C184: 1 | M184: =IF(ISNUMBER($L184),VLOOKUP($L184,ICP!$A:$B,2,FALSE),"") ->  | O184: 0 | P184: =VLOOKUP(221, Hulpvelden!$A:$F, 6,FALSE)/(1 + VLOOKUP(221, Hulpvelden!$A:$F, 6,FALSE))*$E184+VLOOKUP(222, Hulpvelden!$A:$F, 6,FALSE)/(1 + VLOOKUP(222, Hulpvelden!$A:$F, 6,FALSE))*$F184+VLOOKUP(211, Hulpvelden!$A:$F, 6,FALSE)/(1 + VLOOKUP(211, Hulpvelden!$A:$F, 6,FALSE))*$G184+VLOOKUP(212, Hulpvelden!$A:$F, 6,FALSE)/(1 + VLOOKUP(212, Hulpvelden!$A:$F, 6,FALSE))*$H184 -> 0 | Q184: =SUMIF(BANK!$M:$M,$A184,BANK!$K:$K) -> 0 | R184: 0
A185: 183 | C185: 1 | M185: =IF(ISNUMBER($L185),VLOOKUP($L185,ICP!$A:$B,2,FALSE),"") ->  | O185: 0 | P185: =VLOOKUP(221, Hulpvelden!$A:$F, 6,FALSE)/(1 + VLOOKUP(221, Hulpvelden!$A:$F, 6,FALSE))*$E185+VLOOKUP(222, Hulpvelden!$A:$F, 6,FALSE)/(1 + VLOOKUP(222, Hulpvelden!$A:$F, 6,FALSE))*$F185+VLOOKUP(211, Hulpvelden!$A:$F, 6,FALSE)/(1 + VLOOKUP(211, Hulpvelden!$A:$F, 6,FALSE))*$G185+VLOOKUP(212, Hulpvelden!$A:$F, 6,FALSE)/(1 + VLOOKUP(212, Hulpvelden!$A:$F, 6,FALSE))*$H185 -> 0 | Q185: =SUMIF(BANK!$M:$M,$A185,BANK!$K:$K) -> 0 | R185: 0
A186: 184 | C186: 1 | M186: =IF(ISNUMBER($L186),VLOOKUP($L186,ICP!$A:$B,2,FALSE),"") ->  | O186: 0 | P186: =VLOOKUP(221, Hulpvelden!$A:$F, 6,FALSE)/(1 + VLOOKUP(221, Hulpvelden!$A:$F, 6,FALSE))*$E186+VLOOKUP(222, Hulpvelden!$A:$F, 6,FALSE)/(1 + VLOOKUP(222, Hulpvelden!$A:$F, 6,FALSE))*$F186+VLOOKUP(211, Hulpvelden!$A:$F, 6,FALSE)/(1 + VLOOKUP(211, Hulpvelden!$A:$F, 6,FALSE))*$G186+VLOOKUP(212, Hulpvelden!$A:$F, 6,FALSE)/(1 + VLOOKUP(212, Hulpvelden!$A:$F, 6,FALSE))*$H186 -> 0 | Q186: =SUMIF(BANK!$M:$M,$A186,BANK!$K:$K) -> 0 | R186: 0
A187: 185 | C187: 1 | M187: =IF(ISNUMBER($L187),VLOOKUP($L187,ICP!$A:$B,2,FALSE),"") ->  | O187: 0 | P187: =VLOOKUP(221, Hulpvelden!$A:$F, 6,FALSE)/(1 + VLOOKUP(221, Hulpvelden!$A:$F, 6,FALSE))*$E187+VLOOKUP(222, Hulpvelden!$A:$F, 6,FALSE)/(1 + VLOOKUP(222, Hulpvelden!$A:$F, 6,FALSE))*$F187+VLOOKUP(211, Hulpvelden!$A:$F, 6,FALSE)/(1 + VLOOKUP(211, Hulpvelden!$A:$F, 6,FALSE))*$G187+VLOOKUP(212, Hulpvelden!$A:$F, 6,FALSE)/(1 + VLOOKUP(212, Hulpvelden!$A:$F, 6,FALSE))*$H187 -> 0 | Q187: =SUMIF(BANK!$M:$M,$A187,BANK!$K:$K) -> 0 | R187: 0
A188: 186 | C188: 1 | M188: =IF(ISNUMBER($L188),VLOOKUP($L188,ICP!$A:$B,2,FALSE),"") ->  | O188: 0 | P188: =VLOOKUP(221, Hulpvelden!$A:$F, 6,FALSE)/(1 + VLOOKUP(221, Hulpvelden!$A:$F, 6,FALSE))*$E188+VLOOKUP(222, Hulpvelden!$A:$F, 6,FALSE)/(1 + VLOOKUP(222, Hulpvelden!$A:$F, 6,FALSE))*$F188+VLOOKUP(211, Hulpvelden!$A:$F, 6,FALSE)/(1 + VLOOKUP(211, Hulpvelden!$A:$F, 6,FALSE))*$G188+VLOOKUP(212, Hulpvelden!$A:$F, 6,FALSE)/(1 + VLOOKUP(212, Hulpvelden!$A:$F, 6,FALSE))*$H188 -> 0 | Q188: =SUMIF(BANK!$M:$M,$A188,BANK!$K:$K) -> 0 | R188: 0
A189: 187 | C189: 1 | M189: =IF(ISNUMBER($L189),VLOOKUP($L189,ICP!$A:$B,2,FALSE),"") ->  | O189: 0 | P189: =VLOOKUP(221, Hulpvelden!$A:$F, 6,FALSE)/(1 + VLOOKUP(221, Hulpvelden!$A:$F, 6,FALSE))*$E189+VLOOKUP(222, Hulpvelden!$A:$F, 6,FALSE)/(1 + VLOOKUP(222, Hulpvelden!$A:$F, 6,FALSE))*$F189+VLOOKUP(211, Hulpvelden!$A:$F, 6,FALSE)/(1 + VLOOKUP(211, Hulpvelden!$A:$F, 6,FALSE))*$G189+VLOOKUP(212, Hulpvelden!$A:$F, 6,FALSE)/(1 + VLOOKUP(212, Hulpvelden!$A:$F, 6,FALSE))*$H189 -> 0 | Q189: =SUMIF(BANK!$M:$M,$A189,BANK!$K:$K) -> 0 | R189: 0
A190: 188 | C190: 1 | M190: =IF(ISNUMBER($L190),VLOOKUP($L190,ICP!$A:$B,2,FALSE),"") ->  | O190: 0 | P190: =VLOOKUP(221, Hulpvelden!$A:$F, 6,FALSE)/(1 + VLOOKUP(221, Hulpvelden!$A:$F, 6,FALSE))*$E190+VLOOKUP(222, Hulpvelden!$A:$F, 6,FALSE)/(1 + VLOOKUP(222, Hulpvelden!$A:$F, 6,FALSE))*$F190+VLOOKUP(211, Hulpvelden!$A:$F, 6,FALSE)/(1 + VLOOKUP(211, Hulpvelden!$A:$F, 6,FALSE))*$G190+VLOOKUP(212, Hulpvelden!$A:$F, 6,FALSE)/(1 + VLOOKUP(212, Hulpvelden!$A:$F, 6,FALSE))*$H190 -> 0 | Q190: =SUMIF(BANK!$M:$M,$A190,BANK!$K:$K) -> 0 | R190: 0
A191: 189 | C191: 1 | M191: =IF(ISNUMBER($L191),VLOOKUP($L191,ICP!$A:$B,2,FALSE),"") ->  | O191: 0 | P191: =VLOOKUP(221, Hulpvelden!$A:$F, 6,FALSE)/(1 + VLOOKUP(221, Hulpvelden!$A:$F, 6,FALSE))*$E191+VLOOKUP(222, Hulpvelden!$A:$F, 6,FALSE)/(1 + VLOOKUP(222, Hulpvelden!$A:$F, 6,FALSE))*$F191+VLOOKUP(211, Hulpvelden!$A:$F, 6,FALSE)/(1 + VLOOKUP(211, Hulpvelden!$A:$F, 6,FALSE))*$G191+VLOOKUP(212, Hulpvelden!$A:$F, 6,FALSE)/(1 + VLOOKUP(212, Hulpvelden!$A:$F, 6,FALSE))*$H191 -> 0 | Q191: =SUMIF(BANK!$M:$M,$A191,BANK!$K:$K) -> 0 | R191: 0
A192: 190 | C192: 1 | M192: =IF(ISNUMBER($L192),VLOOKUP($L192,ICP!$A:$B,2,FALSE),"") ->  | O192: 0 | P192: =VLOOKUP(221, Hulpvelden!$A:$F, 6,FALSE)/(1 + VLOOKUP(221, Hulpvelden!$A:$F, 6,FALSE))*$E192+VLOOKUP(222, Hulpvelden!$A:$F, 6,FALSE)/(1 + VLOOKUP(222, Hulpvelden!$A:$F, 6,FALSE))*$F192+VLOOKUP(211, Hulpvelden!$A:$F, 6,FALSE)/(1 + VLOOKUP(211, Hulpvelden!$A:$F, 6,FALSE))*$G192+VLOOKUP(212, Hulpvelden!$A:$F, 6,FALSE)/(1 + VLOOKUP(212, Hulpvelden!$A:$F, 6,FALSE))*$H192 -> 0 | Q192: =SUMIF(BANK!$M:$M,$A192,BANK!$K:$K) -> 0 | R192: 0
A193: 191 | C193: 1 | M193: =IF(ISNUMBER($L193),VLOOKUP($L193,ICP!$A:$B,2,FALSE),"") ->  | O193: 0 | P193: =VLOOKUP(221, Hulpvelden!$A:$F, 6,FALSE)/(1 + VLOOKUP(221, Hulpvelden!$A:$F, 6,FALSE))*$E193+VLOOKUP(222, Hulpvelden!$A:$F, 6,FALSE)/(1 + VLOOKUP(222, Hulpvelden!$A:$F, 6,FALSE))*$F193+VLOOKUP(211, Hulpvelden!$A:$F, 6,FALSE)/(1 + VLOOKUP(211, Hulpvelden!$A:$F, 6,FALSE))*$G193+VLOOKUP(212, Hulpvelden!$A:$F, 6,FALSE)/(1 + VLOOKUP(212, Hulpvelden!$A:$F, 6,FALSE))*$H193 -> 0 | Q193: =SUMIF(BANK!$M:$M,$A193,BANK!$K:$K) -> 0 | R193: 0
A194: 192 | C194: 1 | M194: =IF(ISNUMBER($L194),VLOOKUP($L194,ICP!$A:$B,2,FALSE),"") ->  | O194: 0 | P194: =VLOOKUP(221, Hulpvelden!$A:$F, 6,FALSE)/(1 + VLOOKUP(221, Hulpvelden!$A:$F, 6,FALSE))*$E194+VLOOKUP(222, Hulpvelden!$A:$F, 6,FALSE)/(1 + VLOOKUP(222, Hulpvelden!$A:$F, 6,FALSE))*$F194+VLOOKUP(211, Hulpvelden!$A:$F, 6,FALSE)/(1 + VLOOKUP(211, Hulpvelden!$A:$F, 6,FALSE))*$G194+VLOOKUP(212, Hulpvelden!$A:$F, 6,FALSE)/(1 + VLOOKUP(212, Hulpvelden!$A:$F, 6,FALSE))*$H194 -> 0 | Q194: =SUMIF(BANK!$M:$M,$A194,BANK!$K:$K) -> 0 | R194: 0
A195: 193 | C195: =MONTH(B195) -> 1 | M195: =IF(ISNUMBER($L195),VLOOKUP($L195,ICP!$A:$B,2,FALSE),"") ->  | O195: =SUM($E195:$K195) -> 0 | P195: =VLOOKUP(221, Hulpvelden!$A:$F, 6,FALSE)/(1 + VLOOKUP(221, Hulpvelden!$A:$F, 6,FALSE))*$E195+VLOOKUP(222, Hulpvelden!$A:$F, 6,FALSE)/(1 + VLOOKUP(222, Hulpvelden!$A:$F, 6,FALSE))*$F195+VLOOKUP(211, Hulpvelden!$A:$F, 6,FALSE)/(1 + VLOOKUP(211, Hulpvelden!$A:$F, 6,FALSE))*$G195+VLOOKUP(212, Hulpvelden!$A:$F, 6,FALSE)/(1 + VLOOKUP(212, Hulpvelden!$A:$F, 6,FALSE))*$H195 -> 0 | Q195: =SUMIF(BANK!$M:$M,$A195,BANK!$K:$K) -> 0 | R195: =SUM($E195:$K195)+$N195+ $Q195 -> 0
A196: =A195+1 -> 194 | C196: 1 | M196: =IF(ISNUMBER($L196),VLOOKUP($L196,ICP!$A:$B,2,FALSE),"") ->  | O196: 0 | P196: =VLOOKUP(221, Hulpvelden!$A:$F, 6,FALSE)/(1 + VLOOKUP(221, Hulpvelden!$A:$F, 6,FALSE))*$E196+VLOOKUP(222, Hulpvelden!$A:$F, 6,FALSE)/(1 + VLOOKUP(222, Hulpvelden!$A:$F, 6,FALSE))*$F196+VLOOKUP(211, Hulpvelden!$A:$F, 6,FALSE)/(1 + VLOOKUP(211, Hulpvelden!$A:$F, 6,FALSE))*$G196+VLOOKUP(212, Hulpvelden!$A:$F, 6,FALSE)/(1 + VLOOKUP(212, Hulpvelden!$A:$F, 6,FALSE))*$H196 -> 0 | Q196: =SUMIF(BANK!$M:$M,$A196,BANK!$K:$K) -> 0 | R196: 0
A197: 195 | C197: 1 | M197: =IF(ISNUMBER($L197),VLOOKUP($L197,ICP!$A:$B,2,FALSE),"") ->  | O197: 0 | P197: =VLOOKUP(221, Hulpvelden!$A:$F, 6,FALSE)/(1 + VLOOKUP(221, Hulpvelden!$A:$F, 6,FALSE))*$E197+VLOOKUP(222, Hulpvelden!$A:$F, 6,FALSE)/(1 + VLOOKUP(222, Hulpvelden!$A:$F, 6,FALSE))*$F197+VLOOKUP(211, Hulpvelden!$A:$F, 6,FALSE)/(1 + VLOOKUP(211, Hulpvelden!$A:$F, 6,FALSE))*$G197+VLOOKUP(212, Hulpvelden!$A:$F, 6,FALSE)/(1 + VLOOKUP(212, Hulpvelden!$A:$F, 6,FALSE))*$H197 -> 0 | Q197: =SUMIF(BANK!$M:$M,$A197,BANK!$K:$K) -> 0 | R197: 0
A198: 196 | C198: 1 | M198: =IF(ISNUMBER($L198),VLOOKUP($L198,ICP!$A:$B,2,FALSE),"") ->  | O198: 0 | P198: =VLOOKUP(221, Hulpvelden!$A:$F, 6,FALSE)/(1 + VLOOKUP(221, Hulpvelden!$A:$F, 6,FALSE))*$E198+VLOOKUP(222, Hulpvelden!$A:$F, 6,FALSE)/(1 + VLOOKUP(222, Hulpvelden!$A:$F, 6,FALSE))*$F198+VLOOKUP(211, Hulpvelden!$A:$F, 6,FALSE)/(1 + VLOOKUP(211, Hulpvelden!$A:$F, 6,FALSE))*$G198+VLOOKUP(212, Hulpvelden!$A:$F, 6,FALSE)/(1 + VLOOKUP(212, Hulpvelden!$A:$F, 6,FALSE))*$H198 -> 0 | Q198: =SUMIF(BANK!$M:$M,$A198,BANK!$K:$K) -> 0 | R198: 0
A199: 197 | C199: 1 | M199: =IF(ISNUMBER($L199),VLOOKUP($L199,ICP!$A:$B,2,FALSE),"") ->  | O199: 0 | P199: =VLOOKUP(221, Hulpvelden!$A:$F, 6,FALSE)/(1 + VLOOKUP(221, Hulpvelden!$A:$F, 6,FALSE))*$E199+VLOOKUP(222, Hulpvelden!$A:$F, 6,FALSE)/(1 + VLOOKUP(222, Hulpvelden!$A:$F, 6,FALSE))*$F199+VLOOKUP(211, Hulpvelden!$A:$F, 6,FALSE)/(1 + VLOOKUP(211, Hulpvelden!$A:$F, 6,FALSE))*$G199+VLOOKUP(212, Hulpvelden!$A:$F, 6,FALSE)/(1 + VLOOKUP(212, Hulpvelden!$A:$F, 6,FALSE))*$H199 -> 0 | Q199: =SUMIF(BANK!$M:$M,$A199,BANK!$K:$K) -> 0 | R199: 0
A200: 198 | C200: 1 | M200: =IF(ISNUMBER($L200),VLOOKUP($L200,ICP!$A:$B,2,FALSE),"") ->  | O200: 0 | P200: =VLOOKUP(221, Hulpvelden!$A:$F, 6,FALSE)/(1 + VLOOKUP(221, Hulpvelden!$A:$F, 6,FALSE))*$E200+VLOOKUP(222, Hulpvelden!$A:$F, 6,FALSE)/(1 + VLOOKUP(222, Hulpvelden!$A:$F, 6,FALSE))*$F200+VLOOKUP(211, Hulpvelden!$A:$F, 6,FALSE)/(1 + VLOOKUP(211, Hulpvelden!$A:$F, 6,FALSE))*$G200+VLOOKUP(212, Hulpvelden!$A:$F, 6,FALSE)/(1 + VLOOKUP(212, Hulpvelden!$A:$F, 6,FALSE))*$H200 -> 0 | Q200: =SUMIF(BANK!$M:$M,$A200,BANK!$K:$K) -> 0 | R200: 0
... 401 more rows

Sheet KAS
A1: DATUM | B1: MA | C1: OMSCHRIJVING | D1: NUM | E1: KOSTENSOORT | F1: NETTO | G1: NL_B.T.W. | H1: EU_B.T.W | I1: NL_VERLEGD | J1: EU_VERLEGD | K1: BRUTO | L1: SALDO- CHECK | M1: VERKOOP FAKT_NUM | N1: INKOOP- FAKT_NUM | O1: EU LAND | P1: KEN- MERK | S1: Kosten | T1: BTW NL | U1: BTW EU | V1: Omzet 0 | W1: Omzet L1 | X1: Omzet L2 | Y1: Omzet H1 | Z1: Omzet H2 | AA1: BTW OMZ | AB1: KV | AC1: Omzet U
A2: 2019 | C2: 100 | E2: Gebruiksaanwijzing | H2: Contact
A3: 1900-01-01 | C3: BEGINSALDO
A4: 2019-01-15 | B4: =MONTH(A4) -> 1 | C4: Test 1 | D4: 1 | E4: =IF(ISNUMBER($D4),VLOOKUP($D4,Hulpvelden!$A:$D,2,FALSE),"") -> Bureaukosten kantoorkosten | F4: 10 | G4: 1.9 | K4: =IF(ISNUMBER($D4),SUM($F4:$J4),0) -> 11.9 | L4: =$L$3-SUM($K$4:$K4) -> -11.9 | S4: =IF($D4="",0,IF(AND(VLOOKUP($D4,Hulpvelden!$A:$D,3,FALSE)="J",OR(VLOOKUP($D4,Hulpvelden!$A:$D,4,FALSE)="H",VLOOKUP($D4,Hulpvelden!$A:$D,4,FALSE)="L")),$F4+$I4+$J4,IF(VLOOKUP($D4,Hulpvelden!$A:$D,3,FALSE)="J",SUM($F4:$J4),0))) -> 10 | T4: =IF($D4="",0,IF(OR(VLOOKUP($D4,Hulpvelden!$A:$D,4,FALSE)="H",VLOOKUP($D4,Hulpvelden!$A:$D,4,FALSE)="L"),$G4,IF(VLOOKUP($D4,Hulpvelden!$A:$D,4,FALSE)="50",0.5*$G4,0))) -> 1.9 | U4: =IF($D4="",0,IF(VLOOKUP($D4,Hulpvelden!$A:$D,4,FALSE)="J",$H4,0)) -> 0 | V4: =IF($D4="",0,IF(VLOOKUP($D4,Hulpvelden!$A:$D,4,FALSE)="O",SUM($F4:$J4),0)) -> 0 | W4: =IF($D4="",0,IF(VLOOKUP($D4,Hulpvelden!$A:$D,4,FALSE)="L1",SUM($F4:$J4),0)) -> 0 | X4: =IF($D4="",0,IF(VLOOKUP($D4,Hulpvelden!$A:$D,4,FALSE)="L2",SUM($F4:$J4),0)) -> 0 | Y4: =IF($D4="",0,IF(VLOOKUP($D4,Hulpvelden!$A:$D,4,FALSE)="H1",SUM($F4:$J4),0)) -> 0 | Z4: =IF($D4="",0,IF(VLOOKUP($D4,Hulpvelden!$A:$D,4,FALSE)="H2",SUM($F4:$J4),0)) -> 0 | AA4: =(VLOOKUP(211, Hulpvelden!$A:$F, 6,FALSE)/(1+VLOOKUP(211, Hulpvelden!$A:$F, 6,FALSE)))*$W4+(VLOOKUP(212, Hulpvelden!$A:$F, 6,FALSE)/(1 +VLOOKUP(212, Hulpvelden!$A:$F, 6,FALSE)))*$X4+(VLOOKUP(221, Hulpvelden!$A:$F, 6,FALSE)/(1+VLOOKUP(221, Hulpvelden!$A:$F, 6,FALSE)))*$Y4+(VLOOKUP(222, Hulpvelden!$A:$F, 6,FALSE)/(1+VLOOKUP(222, Hulpvelden!$A:$F, 6,FALSE)))*$Z4 -> 0 | AB4: =IF(OR($D4=73,$D4=74,$D4=75),$F4+$J4,0) -> 0 | AC4: =IF($D4="",0,IF(VLOOKUP($D4,Hulpvelden!$A:$D,4,FALSE)="U",SUM($F4:$I4),0)) -> 0
A5: 2019-02-15 | B5: 2 | C5: Test 2 | D5: 1 | E5: =IF(ISNUMBER($D5),VLOOKUP($D5,Hulpvelden!$A:$D,2,FALSE),"") -> Bureaukosten kantoorkosten | F5: 10 | G5: 1.9 | K5: 11.9 | L5: =$L$3-SUM($K$4:$K5) -> -23.8 | S5: =IF($D5="",0,IF(AND(VLOOKUP($D5,Hulpvelden!$A:$D,3,FALSE)="J",OR(VLOOKUP($D5,Hulpvelden!$A:$D,4,FALSE)="H",VLOOKUP($D5,Hulpvelden!$A:$D,4,FALSE)="L")),$F5+$I5+$J5,IF(VLOOKUP($D5,Hulpvelden!$A:$D,3,FALSE)="J",SUM($F5:$J5),0))) -> 10 | T5: =IF($D5="",0,IF(OR(VLOOKUP($D5,Hulpvelden!$A:$D,4,FALSE)="H",VLOOKUP($D5,Hulpvelden!$A:$D,4,FALSE)="L"),$G5,IF(VLOOKUP($D5,Hulpvelden!$A:$D,4,FALSE)="50",0.5*$G5,0))) -> 1.9 | U5: =IF($D5="",0,IF(VLOOKUP($D5,Hulpvelden!$A:$D,4,FALSE)="J",$H5,0)) -> 0 | V5: =IF($D5="",0,IF(VLOOKUP($D5,Hulpvelden!$A:$D,4,FALSE)="O",SUM($F5:$J5),0)) -> 0 | W5: =IF($D5="",0,IF(VLOOKUP($D5,Hulpvelden!$A:$D,4,FALSE)="L1",SUM($F5:$J5),0)) -> 0 | X5: =IF($D5="",0,IF(VLOOKUP($D5,Hulpvelden!$A:$D,4,FALSE)="L2",SUM($F5:$J5),0)) -> 0 | Y5: =IF($D5="",0,IF(VLOOKUP($D5,Hulpvelden!$A:$D,4,FALSE)="H1",SUM($F5:$J5),0)) -> 0 | Z5: =IF($D5="",0,IF(VLOOKUP($D5,Hulpvelden!$A:$D,4,FALSE)="H2",SUM($F5:$J5),0)) -> 0 | AA5: =(VLOOKUP(211, Hulpvelden!$A:$F, 6,FALSE)/(1+VLOOKUP(211, Hulpvelden!$A:$F, 6,FALSE)))*$W5+(VLOOKUP(212, Hulpvelden!$A:$F, 6,FALSE)/(1 +VLOOKUP(212, Hulpvelden!$A:$F, 6,FALSE)))*$X5+(VLOOKUP(221, Hulpvelden!$A:$F, 6,FALSE)/(1+VLOOKUP(221, Hulpvelden!$A:$F, 6,FALSE)))*$Y5+(VLOOKUP(222, Hulpvelden!$A:$F, 6,FALSE)/(1+VLOOKUP(222, Hulpvelden!$A:$F, 6,FALSE)))*$Z5 -> 0 | AB5: 0 | AC5: =IF($D5="",0,IF(VLOOKUP($D5,Hulpvelden!$A:$D,4,FALSE)="U",SUM($F5:$I5),0)) -> 0
A6: 2019-03-15 | B6: 3 | C6: Test 3 | D6: 1 | E6: =IF(ISNUMBER($D6),VLOOKUP($D6,Hulpvelden!$A:$D,2,FALSE),"") -> Bureaukosten kantoorkosten | F6: 10 | G6: 1.9 | K6: 11.9 | L6: =$L$3-SUM($K$4:$K6) -> -35.7 | S6: =IF($D6="",0,IF(AND(VLOOKUP($D6,Hulpvelden!$A:$D,3,FALSE)="J",OR(VLOOKUP($D6,Hulpvelden!$A:$D,4,FALSE)="H",VLOOKUP($D6,Hulpvelden!$A:$D,4,FALSE)="L")),$F6+$I6+$J6,IF(VLOOKUP($D6,Hulpvelden!$A:$D,3,FALSE)="J",SUM($F6:$J6),0))) -> 10 | T6: =IF($D6="",0,IF(OR(VLOOKUP($D6,Hulpvelden!$A:$D,4,FALSE)="H",VLOOKUP($D6,Hulpvelden!$A:$D,4,FALSE)="L"),$G6,IF(VLOOKUP($D6,Hulpvelden!$A:$D,4,FALSE)="50",0.5*$G6,0))) -> 1.9 | U6: =IF($D6="",0,IF(VLOOKUP($D6,Hulpvelden!$A:$D,4,FALSE)="J",$H6,0)) -> 0 | V6: =IF($D6="",0,IF(VLOOKUP($D6,Hulpvelden!$A:$D,4,FALSE)="O",SUM($F6:$J6),0)) -> 0 | W6: =IF($D6="",0,IF(VLOOKUP($D6,Hulpvelden!$A:$D,4,FALSE)="L1",SUM($F6:$J6),0)) -> 0 | X6: =IF($D6="",0,IF(VLOOKUP($D6,Hulpvelden!$A:$D,4,FALSE)="L2",SUM($F6:$J6),0)) -> 0 | Y6: =IF($D6="",0,IF(VLOOKUP($D6,Hulpvelden!$A:$D,4,FALSE)="H1",SUM($F6:$J6),0)) -> 0 | Z6: =IF($D6="",0,IF(VLOOKUP($D6,Hulpvelden!$A:$D,4,FALSE)="H2",SUM($F6:$J6),0)) -> 0 | AA6: =(VLOOKUP(211, Hulpvelden!$A:$F, 6,FALSE)/(1+VLOOKUP(211, Hulpvelden!$A:$F, 6,FALSE)))*$W6+(VLOOKUP(212, Hulpvelden!$A:$F, 6,FALSE)/(1 +VLOOKUP(212, Hulpvelden!$A:$F, 6,FALSE)))*$X6+(VLOOKUP(221, Hulpvelden!$A:$F, 6,FALSE)/(1+VLOOKUP(221, Hulpvelden!$A:$F, 6,FALSE)))*$Y6+(VLOOKUP(222, Hulpvelden!$A:$F, 6,FALSE)/(1+VLOOKUP(222, Hulpvelden!$A:$F, 6,FALSE)))*$Z6 -> 0 | AB6: 0 | AC6: =IF($D6="",0,IF(VLOOKUP($D6,Hulpvelden!$A:$D,4,FALSE)="U",SUM($F6:$I6),0)) -> 0
A7: 2019-04-15 | B7: 4 | C7: Test 4 | D7: 1 | E7: =IF(ISNUMBER($D7),VLOOKUP($D7,Hulpvelden!$A:$D,2,FALSE),"") -> Bureaukosten kantoorkosten | F7: 10 | G7: 1.9 | K7: 11.9 | L7: =$L$3-SUM($K$4:$K7) -> -47.6 | S7: =IF($D7="",0,IF(AND(VLOOKUP($D7,Hulpvelden!$A:$D,3,FALSE)="J",OR(VLOOKUP($D7,Hulpvelden!$A:$D,4,FALSE)="H",VLOOKUP($D7,Hulpvelden!$A:$D,4,FALSE)="L")),$F7+$I7+$J7,IF(VLOOKUP($D7,Hulpvelden!$A:$D,3,FALSE)="J",SUM($F7:$J7),0))) -> 10 | T7: =IF($D7="",0,IF(OR(VLOOKUP($D7,Hulpvelden!$A:$D,4,FALSE)="H",VLOOKUP($D7,Hulpvelden!$A:$D,4,FALSE)="L"),$G7,IF(VLOOKUP($D7,Hulpvelden!$A:$D,4,FALSE)="50",0.5*$G7,0))) -> 1.9 | U7: =IF($D7="",0,IF(VLOOKUP($D7,Hulpvelden!$A:$D,4,FALSE)="J",$H7,0)) -> 0 | V7: =IF($D7="",0,IF(VLOOKUP($D7,Hulpvelden!$A:$D,4,FALSE)="O",SUM($F7:$J7),0)) -> 0 | W7: =IF($D7="",0,IF(VLOOKUP($D7,Hulpvelden!$A:$D,4,FALSE)="L1",SUM($F7:$J7),0)) -> 0 | X7: =IF($D7="",0,IF(VLOOKUP($D7,Hulpvelden!$A:$D,4,FALSE)="L2",SUM($F7:$J7),0)) -> 0 | Y7: =IF($D7="",0,IF(VLOOKUP($D7,Hulpvelden!$A:$D,4,FALSE)="H1",SUM($F7:$J7),0)) -> 0 | Z7: =IF($D7="",0,IF(VLOOKUP($D7,Hulpvelden!$A:$D,4,FALSE)="H2",SUM($F7:$J7),0)) -> 0 | AA7: =(VLOOKUP(211, Hulpvelden!$A:$F, 6,FALSE)/(1+VLOOKUP(211, Hulpvelden!$A:$F, 6,FALSE)))*$W7+(VLOOKUP(212, Hulpvelden!$A:$F, 6,FALSE)/(1 +VLOOKUP(212, Hulpvelden!$A:$F, 6,FALSE)))*$X7+(VLOOKUP(221, Hulpvelden!$A:$F, 6,FALSE)/(1+VLOOKUP(221, Hulpvelden!$A:$F, 6,FALSE)))*$Y7+(VLOOKUP(222, Hulpvelden!$A:$F, 6,FALSE)/(1+VLOOKUP(222, Hulpvelden!$A:$F, 6,FALSE)))*$Z7 -> 0 | AB7: 0 | AC7: =IF($D7="",0,IF(VLOOKUP($D7,Hulpvelden!$A:$D,4,FALSE)="U",SUM($F7:$I7),0)) -> 0
A8: 2019-05-15 | B8: 5 | C8: Test 5 | D8: 1 | E8: =IF(ISNUMBER($D8),VLOOKUP($D8,Hulpvelden!$A:$D,2,FALSE),"") -> Bureaukosten kantoorkosten | F8: 10 | G8: 1.9 | K8: 11.9 | L8: =$L$3-SUM($K$4:$K8) -> -59.5 | S8: =IF($D8="",0,IF(AND(VLOOKUP($D8,Hulpvelden!$A:$D,3,FALSE)="J",OR(VLOOKUP($D8,Hulpvelden!$A:$D,4,FALSE)="H",VLOOKUP($D8,Hulpvelden!$A:$D,4,FALSE)="L")),$F8+$I8+$J8,IF(VLOOKUP($D8,Hulpvelden!$A:$D,3,FALSE)="J",SUM($F8:$J8),0))) -> 10 | T8: =IF($D8="",0,IF(OR(VLOOKUP($D8,Hulpvelden!$A:$D,4,FALSE)="H",VLOOKUP($D8,Hulpvelden!$A:$D,4,FALSE)="L"),$G8,IF(VLOOKUP($D8,Hulpvelden!$A:$D,4,FALSE)="50",0.5*$G8,0))) -> 1.9 | U8: =IF($D8="",0,IF(VLOOKUP($D8,Hulpvelden!$A:$D,4,FALSE)="J",$H8,0)) -> 0 | V8: =IF($D8="",0,IF(VLOOKUP($D8,Hulpvelden!$A:$D,4,FALSE)="O",SUM($F8:$J8),0)) -> 0 | W8: =IF($D8="",0,IF(VLOOKUP($D8,Hulpvelden!$A:$D,4,FALSE)="L1",SUM($F8:$J8),0)) -> 0 | X8: =IF($D8="",0,IF(VLOOKUP($D8,Hulpvelden!$A:$D,4,FALSE)="L2",SUM($F8:$J8),0)) -> 0 | Y8: =IF($D8="",0,IF(VLOOKUP($D8,Hulpvelden!$A:$D,4,FALSE)="H1",SUM($F8:$J8),0)) -> 0 | Z8: =IF($D8="",0,IF(VLOOKUP($D8,Hulpvelden!$A:$D,4,FALSE)="H2",SUM($F8:$J8),0)) -> 0 | AA8: =(VLOOKUP(211, Hulpvelden!$A:$F, 6,FALSE)/(1+VLOOKUP(211, Hulpvelden!$A:$F, 6,FALSE)))*$W8+(VLOOKUP(212, Hulpvelden!$A:$F, 6,FALSE)/(1 +VLOOKUP(212, Hulpvelden!$A:$F, 6,FALSE)))*$X8+(VLOOKUP(221, Hulpvelden!$A:$F, 6,FALSE)/(1+VLOOKUP(221, Hulpvelden!$A:$F, 6,FALSE)))*$Y8+(VLOOKUP(222, Hulpvelden!$A:$F, 6,FALSE)/(1+VLOOKUP(222, Hulpvelden!$A:$F, 6,FALSE)))*$Z8 -> 0 | AB8: 0 | AC8: =IF($D8="",0,IF(VLOOKUP($D8,Hulpvelden!$A:$D,4,FALSE)="U",SUM($F8:$I8),0)) -> 0
A9: 2019-06-15 | B9: 6 | C9: Test 6 | D9: 1 | E9: =IF(ISNUMBER($D9),VLOOKUP($D9,Hulpvelden!$A:$D,2,FALSE),"") -> Bureaukosten kantoorkosten | F9: 10 | G9: 1.9 | K9: 11.9 | L9: =$L$3-SUM($K$4:$K9) -> -71.4 | S9: =IF($D9="",0,IF(AND(VLOOKUP($D9,Hulpvelden!$A:$D,3,FALSE)="J",OR(VLOOKUP($D9,Hulpvelden!$A:$D,4,FALSE)="H",VLOOKUP($D9,Hulpvelden!$A:$D,4,FALSE)="L")),$F9+$I9+$J9,IF(VLOOKUP($D9,Hulpvelden!$A:$D,3,FALSE)="J",SUM($F9:$J9),0))) -> 10 | T9: =IF($D9="",0,IF(OR(VLOOKUP($D9,Hulpvelden!$A:$D,4,FALSE)="H",VLOOKUP($D9,Hulpvelden!$A:$D,4,FALSE)="L"),$G9,IF(VLOOKUP($D9,Hulpvelden!$A:$D,4,FALSE)="50",0.5*$G9,0))) -> 1.9 | U9: =IF($D9="",0,IF(VLOOKUP($D9,Hulpvelden!$A:$D,4,FALSE)="J",$H9,0)) -> 0 | V9: =IF($D9="",0,IF(VLOOKUP($D9,Hulpvelden!$A:$D,4,FALSE)="O",SUM($F9:$J9),0)) -> 0 | W9: =IF($D9="",0,IF(VLOOKUP($D9,Hulpvelden!$A:$D,4,FALSE)="L1",SUM($F9:$J9),0)) -> 0 | X9: =IF($D9="",0,IF(VLOOKUP($D9,Hulpvelden!$A:$D,4,FALSE)="L2",SUM($F9:$J9),0)) -> 0 | Y9: =IF($D9="",0,IF(VLOOKUP($D9,Hulpvelden!$A:$D,4,FALSE)="H1",SUM($F9:$J9),0)) -> 0 | Z9: =IF($D9="",0,IF(VLOOKUP($D9,Hulpvelden!$A:$D,4,FALSE)="H2",SUM($F9:$J9),0)) -> 0 | AA9: =(VLOOKUP(211, Hulpvelden!$A:$F, 6,FALSE)/(1+VLOOKUP(211, Hulpvelden!$A:$F, 6,FALSE)))*$W9+(VLOOKUP(212, Hulpvelden!$A:$F, 6,FALSE)/(1 +VLOOKUP(212, Hulpvelden!$A:$F, 6,FALSE)))*$X9+(VLOOKUP(221, Hulpvelden!$A:$F, 6,FALSE)/(1+VLOOKUP(221, Hulpvelden!$A:$F, 6,FALSE)))*$Y9+(VLOOKUP(222, Hulpvelden!$A:$F, 6,FALSE)/(1+VLOOKUP(222, Hulpvelden!$A:$F, 6,FALSE)))*$Z9 -> 0 | AB9: 0 | AC9: =IF($D9="",0,IF(VLOOKUP($D9,Hulpvelden!$A:$D,4,FALSE)="U",SUM($F9:$I9),0)) -> 0
A10: 2019-07-15 | B10: 7 | C10: Test 7 | D10: 1 | E10: =IF(ISNUMBER($D10),VLOOKUP($D10,Hulpvelden!$A:$D,2,FALSE),"") -> Bureaukosten kantoorkosten | F10: 10 | G10: 1.9 | K10: 11.9 | L10: =$L$3-SUM($K$4:$K10) -> -83.3 | S10: =IF($D10="",0,IF(AND(VLOOKUP($D10,Hulpvelden!$A:$D,3,FALSE)="J",OR(VLOOKUP($D10,Hulpvelden!$A:$D,4,FALSE)="H",VLOOKUP($D10,Hulpvelden!$A:$D,4,FALSE)="L")),$F10+$I10+$J10,IF(VLOOKUP($D10,Hulpvelden!$A:$D,3,FALSE)="J",SUM($F10:$J10),0))) -> 10 | T10: =IF($D10="",0,IF(OR(VLOOKUP($D10,Hulpvelden!$A:$D,4,FALSE)="H",VLOOKUP($D10,Hulpvelden!$A:$D,4,FALSE)="L"),$G10,IF(VLOOKUP($D10,Hulpvelden!$A:$D,4,FALSE)="50",0.5*$G10,0))) -> 1.9 | U10: =IF($D10="",0,IF(VLOOKUP($D10,Hulpvelden!$A:$D,4,FALSE)="J",$H10,0)) -> 0 | V10: =IF($D10="",0,IF(VLOOKUP($D10,Hulpvelden!$A:$D,4,FALSE)="O",SUM($F10:$J10),0)) -> 0 | W10: =IF($D10="",0,IF(VLOOKUP($D10,Hulpvelden!$A:$D,4,FALSE)="L1",SUM($F10:$J10),0)) -> 0 | X10: =IF($D10="",0,IF(VLOOKUP($D10,Hulpvelden!$A:$D,4,FALSE)="L2",SUM($F10:$J10),0)) -> 0 | Y10: =IF($D10="",0,IF(VLOOKUP($D10,Hulpvelden!$A:$D,4,FALSE)="H1",SUM($F10:$J10),0)) -> 0 | Z10: =IF($D10="",0,IF(VLOOKUP($D10,Hulpvelden!$A:$D,4,FALSE)="H2",SUM($F10:$J10),0)) -> 0 | AA10: =(VLOOKUP(211, Hulpvelden!$A:$F, 6,FALSE)/(1+VLOOKUP(211, Hulpvelden!$A:$F, 6,FALSE)))*$W10+(VLOOKUP(212, Hulpvelden!$A:$F, 6,FALSE)/(1 +VLOOKUP(212, Hulpvelden!$A:$F, 6,FALSE)))*$X10+(VLOOKUP(221, Hulpvelden!$A:$F, 6,FALSE)/(1+VLOOKUP(221, Hulpvelden!$A:$F, 6,FALSE)))*$Y10+(VLOOKUP(222, Hulpvelden!$A:$F, 6,FALSE)/(1+VLOOKUP(222, Hulpvelden!$A:$F, 6,FALSE)))*$Z10 -> 0 | AB10: 0 | AC10: =IF($D10="",0,IF(VLOOKUP($D10,Hulpvelden!$A:$D,4,FALSE)="U",SUM($F10:$I10),0)) -> 0
A11: 2019-08-15 | B11: 8 | C11: Test 8 | D11: 1 | E11: =IF(ISNUMBER($D11),VLOOKUP($D11,Hulpvelden!$A:$D,2,FALSE),"") -> Bureaukosten kantoorkosten | F11: 10 | G11: 1.9 | K11: 11.9 | L11: =$L$3-SUM($K$4:$K11) -> -95.2 | S11: =IF($D11="",0,IF(AND(VLOOKUP($D11,Hulpvelden!$A:$D,3,FALSE)="J",OR(VLOOKUP($D11,Hulpvelden!$A:$D,4,FALSE)="H",VLOOKUP($D11,Hulpvelden!$A:$D,4,FALSE)="L")),$F11+$I11+$J11,IF(VLOOKUP($D11,Hulpvelden!$A:$D,3,FALSE)="J",SUM($F11:$J11),0))) -> 10 | T11: =IF($D11="",0,IF(OR(VLOOKUP($D11,Hulpvelden!$A:$D,4,FALSE)="H",VLOOKUP($D11,Hulpvelden!$A:$D,4,FALSE)="L"),$G11,IF(VLOOKUP($D11,Hulpvelden!$A:$D,4,FALSE)="50",0.5*$G11,0))) -> 1.9 | U11: =IF($D11="",0,IF(VLOOKUP($D11,Hulpvelden!$A:$D,4,FALSE)="J",$H11,0)) -> 0 | V11: =IF($D11="",0,IF(VLOOKUP($D11,Hulpvelden!$A:$D,4,FALSE)="O",SUM($F11:$J11),0)) -> 0 | W11: =IF($D11="",0,IF(VLOOKUP($D11,Hulpvelden!$A:$D,4,FALSE)="L1",SUM($F11:$J11),0)) -> 0 | X11: =IF($D11="",0,IF(VLOOKUP($D11,Hulpvelden!$A:$D,4,FALSE)="L2",SUM($F11:$J11),0)) -> 0 | Y11: =IF($D11="",0,IF(VLOOKUP($D11,Hulpvelden!$A:$D,4,FALSE)="H1",SUM($F11:$J11),0)) -> 0 | Z11: =IF($D11="",0,IF(VLOOKUP($D11,Hulpvelden!$A:$D,4,FALSE)="H2",SUM($F11:$J11),0)) -> 0 | AA11: =(VLOOKUP(211, Hulpvelden!$A:$F, 6,FALSE)/(1+VLOOKUP(211, Hulpvelden!$A:$F, 6,FALSE)))*$W11+(VLOOKUP(212, Hulpvelden!$A:$F, 6,FALSE)/(1 +VLOOKUP(212, Hulpvelden!$A:$F, 6,FALSE)))*$X11+(VLOOKUP(221, Hulpvelden!$A:$F, 6,FALSE)/(1+VLOOKUP(221, Hulpvelden!$A:$F, 6,FALSE)))*$Y11+(VLOOKUP(222, Hulpvelden!$A:$F, 6,FALSE)/(1+VLOOKUP(222, Hulpvelden!$A:$F, 6,FALSE)))*$Z11 -> 0 | AB11: 0 | AC11: =IF($D11="",0,IF(VLOOKUP($D11,Hulpvelden!$A:$D,4,FALSE)="U",SUM($F11:$I11),0)) -> 0
A12: 2019-09-15 | B12: 9 | C12: Test 9 | D12: 1 | E12: =IF(ISNUMBER($D12),VLOOKUP($D12,Hulpvelden!$A:$D,2,FALSE),"") -> Bureaukosten kantoorkosten | F12: 10 | G12: 1.9 | K12: 11.9 | L12: =$L$3-SUM($K$4:$K12) -> -107.1 | S12: =IF($D12="",0,IF(AND(VLOOKUP($D12,Hulpvelden!$A:$D,3,FALSE)="J",OR(VLOOKUP($D12,Hulpvelden!$A:$D,4,FALSE)="H",VLOOKUP($D12,Hulpvelden!$A:$D,4,FALSE)="L")),$F12+$I12+$J12,IF(VLOOKUP($D12,Hulpvelden!$A:$D,3,FALSE)="J",SUM($F12:$J12),0))) -> 10 | T12: =IF($D12="",0,IF(OR(VLOOKUP($D12,Hulpvelden!$A:$D,4,FALSE)="H",VLOOKUP($D12,Hulpvelden!$A:$D,4,FALSE)="L"),$G12,IF(VLOOKUP($D12,Hulpvelden!$A:$D,4,FALSE)="50",0.5*$G12,0))) -> 1.9 | U12: =IF($D12="",0,IF(VLOOKUP($D12,Hulpvelden!$A:$D,4,FALSE)="J",$H12,0)) -> 0 | V12: =IF($D12="",0,IF(VLOOKUP($D12,Hulpvelden!$A:$D,4,FALSE)="O",SUM($F12:$J12),0)) -> 0 | W12: =IF($D12="",0,IF(VLOOKUP($D12,Hulpvelden!$A:$D,4,FALSE)="L1",SUM($F12:$J12),0)) -> 0 | X12: =IF($D12="",0,IF(VLOOKUP($D12,Hulpvelden!$A:$D,4,FALSE)="L2",SUM($F12:$J12),0)) -> 0 | Y12: =IF($D12="",0,IF(VLOOKUP($D12,Hulpvelden!$A:$D,4,FALSE)="H1",SUM($F12:$J12),0)) -> 0 | Z12: =IF($D12="",0,IF(VLOOKUP($D12,Hulpvelden!$A:$D,4,FALSE)="H2",SUM($F12:$J12),0)) -> 0 | AA12: =(VLOOKUP(211, Hulpvelden!$A:$F, 6,FALSE)/(1+VLOOKUP(211, Hulpvelden!$A:$F, 6,FALSE)))*$W12+(VLOOKUP(212, Hulpvelden!$A:$F, 6,FALSE)/(1 +VLOOKUP(212, Hulpvelden!$A:$F, 6,FALSE)))*$X12+(VLOOKUP(221, Hulpvelden!$A:$F, 6,FALSE)/(1+VLOOKUP(221, Hulpvelden!$A:$F, 6,FALSE)))*$Y12+(VLOOKUP(222, Hulpvelden!$A:$F, 6,FALSE)/(1+VLOOKUP(222, Hulpvelden!$A:$F, 6,FALSE)))*$Z12 -> 0 | AB12: 0 | AC12: =IF($D12="",0,IF(VLOOKUP($D12,Hulpvelden!$A:$D,4,FALSE)="U",SUM($F12:$I12),0)) -> 0
A13: 2019-10-15 | B13: 10 | C13: Test 10 | D13: 1 | E13: =IF(ISNUMBER($D13),VLOOKUP($D13,Hulpvelden!$A:$D,2,FALSE),"") -> Bureaukosten kantoorkosten | F13: 10 | G13: 1.9 | K13: 11.9 | L13: =$L$3-SUM($K$4:$K13) -> -119 | S13: =IF($D13="",0,IF(AND(VLOOKUP($D13,Hulpvelden!$A:$D,3,FALSE)="J",OR(VLOOKUP($D13,Hulpvelden!$A:$D,4,FALSE)="H",VLOOKUP($D13,Hulpvelden!$A:$D,4,FALSE)="L")),$F13+$I13+$J13,IF(VLOOKUP($D13,Hulpvelden!$A:$D,3,FALSE)="J",SUM($F13:$J13),0))) -> 10 | T13: =IF($D13="",0,IF(OR(VLOOKUP($D13,Hulpvelden!$A:$D,4,FALSE)="H",VLOOKUP($D13,Hulpvelden!$A:$D,4,FALSE)="L"),$G13,IF(VLOOKUP($D13,Hulpvelden!$A:$D,4,FALSE)="50",0.5*$G13,0))) -> 1.9 | U13: =IF($D13="",0,IF(VLOOKUP($D13,Hulpvelden!$A:$D,4,FALSE)="J",$H13,0)) -> 0 | V13: =IF($D13="",0,IF(VLOOKUP($D13,Hulpvelden!$A:$D,4,FALSE)="O",SUM($F13:$J13),0)) -> 0 | W13: =IF($D13="",0,IF(VLOOKUP($D13,Hulpvelden!$A:$D,4,FALSE)="L1",SUM($F13:$J13),0)) -> 0 | X13: =IF($D13="",0,IF(VLOOKUP($D13,Hulpvelden!$A:$D,4,FALSE)="L2",SUM($F13:$J13),0)) -> 0 | Y13: =IF($D13="",0,IF(VLOOKUP($D13,Hulpvelden!$A:$D,4,FALSE)="H1",SUM($F13:$J13),0)) -> 0 | Z13: =IF($D13="",0,IF(VLOOKUP($D13,Hulpvelden!$A:$D,4,FALSE)="H2",SUM($F13:$J13),0)) -> 0 | AA13: =(VLOOKUP(211, Hulpvelden!$A:$F, 6,FALSE)/(1+VLOOKUP(211, Hulpvelden!$A:$F, 6,FALSE)))*$W13+(VLOOKUP(212, Hulpvelden!$A:$F, 6,FALSE)/(1 +VLOOKUP(212, Hulpvelden!$A:$F, 6,FALSE)))*$X13+(VLOOKUP(221, Hulpvelden!$A:$F, 6,FALSE)/(1+VLOOKUP(221, Hulpvelden!$A:$F, 6,FALSE)))*$Y13+(VLOOKUP(222, Hulpvelden!$A:$F, 6,FALSE)/(1+VLOOKUP(222, Hulpvelden!$A:$F, 6,FALSE)))*$Z13 -> 0 | AB13: 0 | AC13: =IF($D13="",0,IF(VLOOKUP($D13,Hulpvelden!$A:$D,4,FALSE)="U",SUM($F13:$I13),0)) -> 0
A14: 2019-11-15 | B14: 11 | C14: Test 11 | D14: 1 | E14: =IF(ISNUMBER($D14),VLOOKUP($D14,Hulpvelden!$A:$D,2,FALSE),"") -> Bureaukosten kantoorkosten | F14: 10 | G14: 1.9 | K14: 11.9 | L14: =$L$3-SUM($K$4:$K14) -> -130.9 | S14: =IF($D14="",0,IF(AND(VLOOKUP($D14,Hulpvelden!$A:$D,3,FALSE)="J",OR(VLOOKUP($D14,Hulpvelden!$A:$D,4,FALSE)="H",VLOOKUP($D14,Hulpvelden!$A:$D,4,FALSE)="L")),$F14+$I14+$J14,IF(VLOOKUP($D14,Hulpvelden!$A:$D,3,FALSE)="J",SUM($F14:$J14),0))) -> 10 | T14: =IF($D14="",0,IF(OR(VLOOKUP($D14,Hulpvelden!$A:$D,4,FALSE)="H",VLOOKUP($D14,Hulpvelden!$A:$D,4,FALSE)="L"),$G14,IF(VLOOKUP($D14,Hulpvelden!$A:$D,4,FALSE)="50",0.5*$G14,0))) -> 1.9 | U14: =IF($D14="",0,IF(VLOOKUP($D14,Hulpvelden!$A:$D,4,FALSE)="J",$H14,0)) -> 0 | V14: =IF($D14="",0,IF(VLOOKUP($D14,Hulpvelden!$A:$D,4,FALSE)="O",SUM($F14:$J14),0)) -> 0 | W14: =IF($D14="",0,IF(VLOOKUP($D14,Hulpvelden!$A:$D,4,FALSE)="L1",SUM($F14:$J14),0)) -> 0 | X14: =IF($D14="",0,IF(VLOOKUP($D14,Hulpvelden!$A:$D,4,FALSE)="L2",SUM($F14:$J14),0)) -> 0 | Y14: =IF($D14="",0,IF(VLOOKUP($D14,Hulpvelden!$A:$D,4,FALSE)="H1",SUM($F14:$J14),0)) -> 0 | Z14: =IF($D14="",0,IF(VLOOKUP($D14,Hulpvelden!$A:$D,4,FALSE)="H2",SUM($F14:$J14),0)) -> 0 | AA14: =(VLOOKUP(211, Hulpvelden!$A:$F, 6,FALSE)/(1+VLOOKUP(211, Hulpvelden!$A:$F, 6,FALSE)))*$W14+(VLOOKUP(212, Hulpvelden!$A:$F, 6,FALSE)/(1 +VLOOKUP(212, Hulpvelden!$A:$F, 6,FALSE)))*$X14+(VLOOKUP(221, Hulpvelden!$A:$F, 6,FALSE)/(1+VLOOKUP(221, Hulpvelden!$A:$F, 6,FALSE)))*$Y14+(VLOOKUP(222, Hulpvelden!$A:$F, 6,FALSE)/(1+VLOOKUP(222, Hulpvelden!$A:$F, 6,FALSE)))*$Z14 -> 0 | AB14: 0 | AC14: =IF($D14="",0,IF(VLOOKUP($D14,Hulpvelden!$A:$D,4,FALSE)="U",SUM($F14:$I14),0)) -> 0
A15: 2019-12-15 | B15: 12 | C15: Test 12 | D15: 1 | E15: =IF(ISNUMBER($D15),VLOOKUP($D15,Hulpvelden!$A:$D,2,FALSE),"") -> Bureaukosten kantoorkosten | F15: 10 | G15: 1.9 | K15: 11.9 | L15: =$L$3-SUM($K$4:$K15) -> -142.8 | S15: =IF($D15="",0,IF(AND(VLOOKUP($D15,Hulpvelden!$A:$D,3,FALSE)="J",OR(VLOOKUP($D15,Hulpvelden!$A:$D,4,FALSE)="H",VLOOKUP($D15,Hulpvelden!$A:$D,4,FALSE)="L")),$F15+$I15+$J15,IF(VLOOKUP($D15,Hulpvelden!$A:$D,3,FALSE)="J",SUM($F15:$J15),0))) -> 10 | T15: =IF($D15="",0,IF(OR(VLOOKUP($D15,Hulpvelden!$A:$D,4,FALSE)="H",VLOOKUP($D15,Hulpvelden!$A:$D,4,FALSE)="L"),$G15,IF(VLOOKUP($D15,Hulpvelden!$A:$D,4,FALSE)="50",0.5*$G15,0))) -> 1.9 | U15: =IF($D15="",0,IF(VLOOKUP($D15,Hulpvelden!$A:$D,4,FALSE)="J",$H15,0)) -> 0 | V15: =IF($D15="",0,IF(VLOOKUP($D15,Hulpvelden!$A:$D,4,FALSE)="O",SUM($F15:$J15),0)) -> 0 | W15: =IF($D15="",0,IF(VLOOKUP($D15,Hulpvelden!$A:$D,4,FALSE)="L1",SUM($F15:$J15),0)) -> 0 | X15: =IF($D15="",0,IF(VLOOKUP($D15,Hulpvelden!$A:$D,4,FALSE)="L2",SUM($F15:$J15),0)) -> 0 | Y15: =IF($D15="",0,IF(VLOOKUP($D15,Hulpvelden!$A:$D,4,FALSE)="H1",SUM($F15:$J15),0)) -> 0 | Z15: =IF($D15="",0,IF(VLOOKUP($D15,Hulpvelden!$A:$D,4,FALSE)="H2",SUM($F15:$J15),0)) -> 0 | AA15: =(VLOOKUP(211, Hulpvelden!$A:$F, 6,FALSE)/(1+VLOOKUP(211, Hulpvelden!$A:$F, 6,FALSE)))*$W15+(VLOOKUP(212, Hulpvelden!$A:$F, 6,FALSE)/(1 +VLOOKUP(212, Hulpvelden!$A:$F, 6,FALSE)))*$X15+(VLOOKUP(221, Hulpvelden!$A:$F, 6,FALSE)/(1+VLOOKUP(221, Hulpvelden!$A:$F, 6,FALSE)))*$Y15+(VLOOKUP(222, Hulpvelden!$A:$F, 6,FALSE)/(1+VLOOKUP(222, Hulpvelden!$A:$F, 6,FALSE)))*$Z15 -> 0 | AB15: 0 | AC15: =IF($D15="",0,IF(VLOOKUP($D15,Hulpvelden!$A:$D,4,FALSE)="U",SUM($F15:$I15),0)) -> 0
B16: 1 | E16: =IF(ISNUMBER($D16),VLOOKUP($D16,Hulpvelden!$A:$D,2,FALSE),"") ->  | K16: 0 | L16: =$L$3-SUM($K$4:$K16) -> -142.8 | S16: =IF($D16="",0,IF(AND(VLOOKUP($D16,Hulpvelden!$A:$D,3,FALSE)="J",OR(VLOOKUP($D16,Hulpvelden!$A:$D,4,FALSE)="H",VLOOKUP($D16,Hulpvelden!$A:$D,4,FALSE)="L")),$F16+$I16+$J16,IF(VLOOKUP($D16,Hulpvelden!$A:$D,3,FALSE)="J",SUM($F16:$J16),0))) -> 0 | T16: =IF($D16="",0,IF(OR(VLOOKUP($D16,Hulpvelden!$A:$D,4,FALSE)="H",VLOOKUP($D16,Hulpvelden!$A:$D,4,FALSE)="L"),$G16,IF(VLOOKUP($D16,Hulpvelden!$A:$D,4,FALSE)="50",0.5*$G16,0))) -> 0 | U16: =IF($D16="",0,IF(VLOOKUP($D16,Hulpvelden!$A:$D,4,FALSE)="J",$H16,0)) -> 0 | V16: =IF($D16="",0,IF(VLOOKUP($D16,Hulpvelden!$A:$D,4,FALSE)="O",SUM($F16:$J16),0)) -> 0 | W16: =IF($D16="",0,IF(VLOOKUP($D16,Hulpvelden!$A:$D,4,FALSE)="L1",SUM($F16:$J16),0)) -> 0 | X16: =IF($D16="",0,IF(VLOOKUP($D16,Hulpvelden!$A:$D,4,FALSE)="L2",SUM($F16:$J16),0)) -> 0 | Y16: =IF($D16="",0,IF(VLOOKUP($D16,Hulpvelden!$A:$D,4,FALSE)="H1",SUM($F16:$J16),0)) -> 0 | Z16: =IF($D16="",0,IF(VLOOKUP($D16,Hulpvelden!$A:$D,4,FALSE)="H2",SUM($F16:$J16),0)) -> 0 | AA16: =(VLOOKUP(211, Hulpvelden!$A:$F, 6,FALSE)/(1+VLOOKUP(211, Hulpvelden!$A:$F, 6,FALSE)))*$W16+(VLOOKUP(212, Hulpvelden!$A:$F, 6,FALSE)/(1 +VLOOKUP(212, Hulpvelden!$A:$F, 6,FALSE)))*$X16+(VLOOKUP(221, Hulpvelden!$A:$F, 6,FALSE)/(1+VLOOKUP(221, Hulpvelden!$A:$F, 6,FALSE)))*$Y16+(VLOOKUP(222, Hulpvelden!$A:$F, 6,FALSE)/(1+VLOOKUP(222, Hulpvelden!$A:$F, 6,FALSE)))*$Z16 -> 0 | AB16: 0 | AC16: =IF($D16="",0,IF(VLOOKUP($D16,Hulpvelden!$A:$D,4,FALSE)="U",SUM($F16:$I16),0)) -> 0
A17: 2019-01-15 | B17: 1 | C17: Test 1 | D17: 221 | E17: =IF(ISNUMBER($D17),VLOOKUP($D17,Hulpvelden!$A:$D,2,FALSE),"") -> Omzet hoog 1 | F17: -1210 | K17: -1210 | L17: =$L$3-SUM($K$4:$K17) -> 1067.2 | S17: =IF($D17="",0,IF(AND(VLOOKUP($D17,Hulpvelden!$A:$D,3,FALSE)="J",OR(VLOOKUP($D17,Hulpvelden!$A:$D,4,FALSE)="H",VLOOKUP($D17,Hulpvelden!$A:$D,4,FALSE)="L")),$F17+$I17+$J17,IF(VLOOKUP($D17,Hulpvelden!$A:$D,3,FALSE)="J",SUM($F17:$J17),0))) -> 0 | T17: =IF($D17="",0,IF(OR(VLOOKUP($D17,Hulpvelden!$A:$D,4,FALSE)="H",VLOOKUP($D17,Hulpvelden!$A:$D,4,FALSE)="L"),$G17,IF(VLOOKUP($D17,Hulpvelden!$A:$D,4,FALSE)="50",0.5*$G17,0))) -> 0 | U17: =IF($D17="",0,IF(VLOOKUP($D17,Hulpvelden!$A:$D,4,FALSE)="J",$H17,0)) -> 0 | V17: =IF($D17="",0,IF(VLOOKUP($D17,Hulpvelden!$A:$D,4,FALSE)="O",SUM($F17:$J17),0)) -> 0 | W17: =IF($D17="",0,IF(VLOOKUP($D17,Hulpvelden!$A:$D,4,FALSE)="L1",SUM($F17:$J17),0)) -> 0 | X17: =IF($D17="",0,IF(VLOOKUP($D17,Hulpvelden!$A:$D,4,FALSE)="L2",SUM($F17:$J17),0)) -> 0 | Y17: =IF($D17="",0,IF(VLOOKUP($D17,Hulpvelden!$A:$D,4,FALSE)="H1",SUM($F17:$J17),0)) -> -1210 | Z17: =IF($D17="",0,IF(VLOOKUP($D17,Hulpvelden!$A:$D,4,FALSE)="H2",SUM($F17:$J17),0)) -> 0 | AA17: =(VLOOKUP(211, Hulpvelden!$A:$F, 6,FALSE)/(1+VLOOKUP(211, Hulpvelden!$A:$F, 6,FALSE)))*$W17+(VLOOKUP(212, Hulpvelden!$A:$F, 6,FALSE)/(1 +VLOOKUP(212, Hulpvelden!$A:$F, 6,FALSE)))*$X17+(VLOOKUP(221, Hulpvelden!$A:$F, 6,FALSE)/(1+VLOOKUP(221, Hulpvelden!$A:$F, 6,FALSE)))*$Y17+(VLOOKUP(222, Hulpvelden!$A:$F, 6,FALSE)/(1+VLOOKUP(222, Hulpvelden!$A:$F, 6,FALSE)))*$Z17 -> -210 | AB17: 0 | AC17: =IF($D17="",0,IF(VLOOKUP($D17,Hulpvelden!$A:$D,4,FALSE)="U",SUM($F17:$I17),0)) -> 0
A18: 2019-02-15 | B18: 2 | C18: Test 2 | D18: 221 | E18: =IF(ISNUMBER($D18),VLOOKUP($D18,Hulpvelden!$A:$D,2,FALSE),"") -> Omzet hoog 1 | F18: -1210 | K18: -1210 | L18: =$L$3-SUM($K$4:$K18) -> 2277.2 | S18: =IF($D18="",0,IF(AND(VLOOKUP($D18,Hulpvelden!$A:$D,3,FALSE)="J",OR(VLOOKUP($D18,Hulpvelden!$A:$D,4,FALSE)="H",VLOOKUP($D18,Hulpvelden!$A:$D,4,FALSE)="L")),$F18+$I18+$J18,IF(VLOOKUP($D18,Hulpvelden!$A:$D,3,FALSE)="J",SUM($F18:$J18),0))) -> 0 | T18: =IF($D18="",0,IF(OR(VLOOKUP($D18,Hulpvelden!$A:$D,4,FALSE)="H",VLOOKUP($D18,Hulpvelden!$A:$D,4,FALSE)="L"),$G18,IF(VLOOKUP($D18,Hulpvelden!$A:$D,4,FALSE)="50",0.5*$G18,0))) -> 0 | U18: =IF($D18="",0,IF(VLOOKUP($D18,Hulpvelden!$A:$D,4,FALSE)="J",$H18,0)) -> 0 | V18: =IF($D18="",0,IF(VLOOKUP($D18,Hulpvelden!$A:$D,4,FALSE)="O",SUM($F18:$J18),0)) -> 0 | W18: =IF($D18="",0,IF(VLOOKUP($D18,Hulpvelden!$A:$D,4,FALSE)="L1",SUM($F18:$J18),0)) -> 0 | X18: =IF($D18="",0,IF(VLOOKUP($D18,Hulpvelden!$A:$D,4,FALSE)="L2",SUM($F18:$J18),0)) -> 0 | Y18: =IF($D18="",0,IF(VLOOKUP($D18,Hulpvelden!$A:$D,4,FALSE)="H1",SUM($F18:$J18),0)) -> -1210 | Z18: =IF($D18="",0,IF(VLOOKUP($D18,Hulpvelden!$A:$D,4,FALSE)="H2",SUM($F18:$J18),0)) -> 0 | AA18: =(VLOOKUP(211, Hulpvelden!$A:$F, 6,FALSE)/(1+VLOOKUP(211, Hulpvelden!$A:$F, 6,FALSE)))*$W18+(VLOOKUP(212, Hulpvelden!$A:$F, 6,FALSE)/(1 +VLOOKUP(212, Hulpvelden!$A:$F, 6,FALSE)))*$X18+(VLOOKUP(221, Hulpvelden!$A:$F, 6,FALSE)/(1+VLOOKUP(221, Hulpvelden!$A:$F, 6,FALSE)))*$Y18+(VLOOKUP(222, Hulpvelden!$A:$F, 6,FALSE)/(1+VLOOKUP(222, Hulpvelden!$A:$F, 6,FALSE)))*$Z18 -> -210 | AB18: 0 | AC18: =IF($D18="",0,IF(VLOOKUP($D18,Hulpvelden!$A:$D,4,FALSE)="U",SUM($F18:$I18),0)) -> 0
A19: 2019-03-15 | B19: 3 | C19: Test 3 | D19: 221 | E19: =IF(ISNUMBER($D19),VLOOKUP($D19,Hulpvelden!$A:$D,2,FALSE),"") -> Omzet hoog 1 | F19: -1210 | K19: -1210 | L19: =$L$3-SUM($K$4:$K19) -> 3487.2 | S19: =IF($D19="",0,IF(AND(VLOOKUP($D19,Hulpvelden!$A:$D,3,FALSE)="J",OR(VLOOKUP($D19,Hulpvelden!$A:$D,4,FALSE)="H",VLOOKUP($D19,Hulpvelden!$A:$D,4,FALSE)="L")),$F19+$I19+$J19,IF(VLOOKUP($D19,Hulpvelden!$A:$D,3,FALSE)="J",SUM($F19:$J19),0))) -> 0 | T19: =IF($D19="",0,IF(OR(VLOOKUP($D19,Hulpvelden!$A:$D,4,FALSE)="H",VLOOKUP($D19,Hulpvelden!$A:$D,4,FALSE)="L"),$G19,IF(VLOOKUP($D19,Hulpvelden!$A:$D,4,FALSE)="50",0.5*$G19,0))) -> 0 | U19: =IF($D19="",0,IF(VLOOKUP($D19,Hulpvelden!$A:$D,4,FALSE)="J",$H19,0)) -> 0 | V19: =IF($D19="",0,IF(VLOOKUP($D19,Hulpvelden!$A:$D,4,FALSE)="O",SUM($F19:$J19),0)) -> 0 | W19: =IF($D19="",0,IF(VLOOKUP($D19,Hulpvelden!$A:$D,4,FALSE)="L1",SUM($F19:$J19),0)) -> 0 | X19: =IF($D19="",0,IF(VLOOKUP($D19,Hulpvelden!$A:$D,4,FALSE)="L2",SUM($F19:$J19),0)) -> 0 | Y19: =IF($D19="",0,IF(VLOOKUP($D19,Hulpvelden!$A:$D,4,FALSE)="H1",SUM($F19:$J19),0)) -> -1210 | Z19: =IF($D19="",0,IF(VLOOKUP($D19,Hulpvelden!$A:$D,4,FALSE)="H2",SUM($F19:$J19),0)) -> 0 | AA19: =(VLOOKUP(211, Hulpvelden!$A:$F, 6,FALSE)/(1+VLOOKUP(211, Hulpvelden!$A:$F, 6,FALSE)))*$W19+(VLOOKUP(212, Hulpvelden!$A:$F, 6,FALSE)/(1 +VLOOKUP(212, Hulpvelden!$A:$F, 6,FALSE)))*$X19+(VLOOKUP(221, Hulpvelden!$A:$F, 6,FALSE)/(1+VLOOKUP(221, Hulpvelden!$A:$F, 6,FALSE)))*$Y19+(VLOOKUP(222, Hulpvelden!$A:$F, 6,FALSE)/(1+VLOOKUP(222, Hulpvelden!$A:$F, 6,FALSE)))*$Z19 -> -210 | AB19: 0 | AC19: =IF($D19="",0,IF(VLOOKUP($D19,Hulpvelden!$A:$D,4,FALSE)="U",SUM($F19:$I19),0)) -> 0
A20: 2019-04-15 | B20: 4 | C20: Test 4 | D20: 221 | E20: =IF(ISNUMBER($D20),VLOOKUP($D20,Hulpvelden!$A:$D,2,FALSE),"") -> Omzet hoog 1 | F20: -1210 | K20: -1210 | L20: =$L$3-SUM($K$4:$K20) -> 4697.2 | S20: =IF($D20="",0,IF(AND(VLOOKUP($D20,Hulpvelden!$A:$D,3,FALSE)="J",OR(VLOOKUP($D20,Hulpvelden!$A:$D,4,FALSE)="H",VLOOKUP($D20,Hulpvelden!$A:$D,4,FALSE)="L")),$F20+$I20+$J20,IF(VLOOKUP($D20,Hulpvelden!$A:$D,3,FALSE)="J",SUM($F20:$J20),0))) -> 0 | T20: =IF($D20="",0,IF(OR(VLOOKUP($D20,Hulpvelden!$A:$D,4,FALSE)="H",VLOOKUP($D20,Hulpvelden!$A:$D,4,FALSE)="L"),$G20,IF(VLOOKUP($D20,Hulpvelden!$A:$D,4,FALSE)="50",0.5*$G20,0))) -> 0 | U20: =IF($D20="",0,IF(VLOOKUP($D20,Hulpvelden!$A:$D,4,FALSE)="J",$H20,0)) -> 0 | V20: =IF($D20="",0,IF(VLOOKUP($D20,Hulpvelden!$A:$D,4,FALSE)="O",SUM($F20:$J20),0)) -> 0 | W20: =IF($D20="",0,IF(VLOOKUP($D20,Hulpvelden!$A:$D,4,FALSE)="L1",SUM($F20:$J20),0)) -> 0 | X20: =IF($D20="",0,IF(VLOOKUP($D20,Hulpvelden!$A:$D,4,FALSE)="L2",SUM($F20:$J20),0)) -> 0 | Y20: =IF($D20="",0,IF(VLOOKUP($D20,Hulpvelden!$A:$D,4,FALSE)="H1",SUM($F20:$J20),0)) -> -1210 | Z20: =IF($D20="",0,IF(VLOOKUP($D20,Hulpvelden!$A:$D,4,FALSE)="H2",SUM($F20:$J20),0)) -> 0 | AA20: =(VLOOKUP(211, Hulpvelden!$A:$F, 6,FALSE)/(1+VLOOKUP(211, Hulpvelden!$A:$F, 6,FALSE)))*$W20+(VLOOKUP(212, Hulpvelden!$A:$F, 6,FALSE)/(1 +VLOOKUP(212, Hulpvelden!$A:$F, 6,FALSE)))*$X20+(VLOOKUP(221, Hulpvelden!$A:$F, 6,FALSE)/(1+VLOOKUP(221, Hulpvelden!$A:$F, 6,FALSE)))*$Y20+(VLOOKUP(222, Hulpvelden!$A:$F, 6,FALSE)/(1+VLOOKUP(222, Hulpvelden!$A:$F, 6,FALSE)))*$Z20 -> -210 | AB20: 0 | AC20: =IF($D20="",0,IF(VLOOKUP($D20,Hulpvelden!$A:$D,4,FALSE)="U",SUM($F20:$I20),0)) -> 0
A21: 2019-05-15 | B21: 5 | C21: Test 5 | D21: 221 | E21: =IF(ISNUMBER($D21),VLOOKUP($D21,Hulpvelden!$A:$D,2,FALSE),"") -> Omzet hoog 1 | F21: -1210 | K21: -1210 | L21: =$L$3-SUM($K$4:$K21) -> 5907.2 | S21: =IF($D21="",0,IF(AND(VLOOKUP($D21,Hulpvelden!$A:$D,3,FALSE)="J",OR(VLOOKUP($D21,Hulpvelden!$A:$D,4,FALSE)="H",VLOOKUP($D21,Hulpvelden!$A:$D,4,FALSE)="L")),$F21+$I21+$J21,IF(VLOOKUP($D21,Hulpvelden!$A:$D,3,FALSE)="J",SUM($F21:$J21),0))) -> 0 | T21: =IF($D21="",0,IF(OR(VLOOKUP($D21,Hulpvelden!$A:$D,4,FALSE)="H",VLOOKUP($D21,Hulpvelden!$A:$D,4,FALSE)="L"),$G21,IF(VLOOKUP($D21,Hulpvelden!$A:$D,4,FALSE)="50",0.5*$G21,0))) -> 0 | U21: =IF($D21="",0,IF(VLOOKUP($D21,Hulpvelden!$A:$D,4,FALSE)="J",$H21,0)) -> 0 | V21: =IF($D21="",0,IF(VLOOKUP($D21,Hulpvelden!$A:$D,4,FALSE)="O",SUM($F21:$J21),0)) -> 0 | W21: =IF($D21="",0,IF(VLOOKUP($D21,Hulpvelden!$A:$D,4,FALSE)="L1",SUM($F21:$J21),0)) -> 0 | X21: =IF($D21="",0,IF(VLOOKUP($D21,Hulpvelden!$A:$D,4,FALSE)="L2",SUM($F21:$J21),0)) -> 0 | Y21: =IF($D21="",0,IF(VLOOKUP($D21,Hulpvelden!$A:$D,4,FALSE)="H1",SUM($F21:$J21),0)) -> -1210 | Z21: =IF($D21="",0,IF(VLOOKUP($D21,Hulpvelden!$A:$D,4,FALSE)="H2",SUM($F21:$J21),0)) -> 0 | AA21: =(VLOOKUP(211, Hulpvelden!$A:$F, 6,FALSE)/(1+VLOOKUP(211, Hulpvelden!$A:$F, 6,FALSE)))*$W21+(VLOOKUP(212, Hulpvelden!$A:$F, 6,FALSE)/(1 +VLOOKUP(212, Hulpvelden!$A:$F, 6,FALSE)))*$X21+(VLOOKUP(221, Hulpvelden!$A:$F, 6,FALSE)/(1+VLOOKUP(221, Hulpvelden!$A:$F, 6,FALSE)))*$Y21+(VLOOKUP(222, Hulpvelden!$A:$F, 6,FALSE)/(1+VLOOKUP(222, Hulpvelden!$A:$F, 6,FALSE)))*$Z21 -> -210 | AB21: 0 | AC21: =IF($D21="",0,IF(VLOOKUP($D21,Hulpvelden!$A:$D,4,FALSE)="U",SUM($F21:$I21),0)) -> 0
A22: 2019-06-15 | B22: 6 | C22: Test 6 | D22: 221 | E22: =IF(ISNUMBER($D22),VLOOKUP($D22,Hulpvelden!$A:$D,2,FALSE),"") -> Omzet hoog 1 | F22: -1210 | K22: -1210 | L22: =$L$3-SUM($K$4:$K22) -> 7117.2 | S22: =IF($D22="",0,IF(AND(VLOOKUP($D22,Hulpvelden!$A:$D,3,FALSE)="J",OR(VLOOKUP($D22,Hulpvelden!$A:$D,4,FALSE)="H",VLOOKUP($D22,Hulpvelden!$A:$D,4,FALSE)="L")),$F22+$I22+$J22,IF(VLOOKUP($D22,Hulpvelden!$A:$D,3,FALSE)="J",SUM($F22:$J22),0))) -> 0 | T22: =IF($D22="",0,IF(OR(VLOOKUP($D22,Hulpvelden!$A:$D,4,FALSE)="H",VLOOKUP($D22,Hulpvelden!$A:$D,4,FALSE)="L"),$G22,IF(VLOOKUP($D22,Hulpvelden!$A:$D,4,FALSE)="50",0.5*$G22,0))) -> 0 | U22: =IF($D22="",0,IF(VLOOKUP($D22,Hulpvelden!$A:$D,4,FALSE)="J",$H22,0)) -> 0 | V22: =IF($D22="",0,IF(VLOOKUP($D22,Hulpvelden!$A:$D,4,FALSE)="O",SUM($F22:$J22),0)) -> 0 | W22: =IF($D22="",0,IF(VLOOKUP($D22,Hulpvelden!$A:$D,4,FALSE)="L1",SUM($F22:$J22),0)) -> 0 | X22: =IF($D22="",0,IF(VLOOKUP($D22,Hulpvelden!$A:$D,4,FALSE)="L2",SUM($F22:$J22),0)) -> 0 | Y22: =IF($D22="",0,IF(VLOOKUP($D22,Hulpvelden!$A:$D,4,FALSE)="H1",SUM($F22:$J22),0)) -> -1210 | Z22: =IF($D22="",0,IF(VLOOKUP($D22,Hulpvelden!$A:$D,4,FALSE)="H2",SUM($F22:$J22),0)) -> 0 | AA22: =(VLOOKUP(211, Hulpvelden!$A:$F, 6,FALSE)/(1+VLOOKUP(211, Hulpvelden!$A:$F, 6,FALSE)))*$W22+(VLOOKUP(212, Hulpvelden!$A:$F, 6,FALSE)/(1 +VLOOKUP(212, Hulpvelden!$A:$F, 6,FALSE)))*$X22+(VLOOKUP(221, Hulpvelden!$A:$F, 6,FALSE)/(1+VLOOKUP(221, Hulpvelden!$A:$F, 6,FALSE)))*$Y22+(VLOOKUP(222, Hulpvelden!$A:$F, 6,FALSE)/(1+VLOOKUP(222, Hulpvelden!$A:$F, 6,FALSE)))*$Z22 -> -210 | AB22: 0 | AC22: =IF($D22="",0,IF(VLOOKUP($D22,Hulpvelden!$A:$D,4,FALSE)="U",SUM($F22:$I22),0)) -> 0
A23: 2019-07-15 | B23: 7 | C23: Test 7 | D23: 221 | E23: =IF(ISNUMBER($D23),VLOOKUP($D23,Hulpvelden!$A:$D,2,FALSE),"") -> Omzet hoog 1 | F23: -1210 | K23: -1210 | L23: =$L$3-SUM($K$4:$K23) -> 8327.2 | S23: =IF($D23="",0,IF(AND(VLOOKUP($D23,Hulpvelden!$A:$D,3,FALSE)="J",OR(VLOOKUP($D23,Hulpvelden!$A:$D,4,FALSE)="H",VLOOKUP($D23,Hulpvelden!$A:$D,4,FALSE)="L")),$F23+$I23+$J23,IF(VLOOKUP($D23,Hulpvelden!$A:$D,3,FALSE)="J",SUM($F23:$J23),0))) -> 0 | T23: =IF($D23="",0,IF(OR(VLOOKUP($D23,Hulpvelden!$A:$D,4,FALSE)="H",VLOOKUP($D23,Hulpvelden!$A:$D,4,FALSE)="L"),$G23,IF(VLOOKUP($D23,Hulpvelden!$A:$D,4,FALSE)="50",0.5*$G23,0))) -> 0 | U23: =IF($D23="",0,IF(VLOOKUP($D23,Hulpvelden!$A:$D,4,FALSE)="J",$H23,0)) -> 0 | V23: =IF($D23="",0,IF(VLOOKUP($D23,Hulpvelden!$A:$D,4,FALSE)="O",SUM($F23:$J23),0)) -> 0 | W23: =IF($D23="",0,IF(VLOOKUP($D23,Hulpvelden!$A:$D,4,FALSE)="L1",SUM($F23:$J23),0)) -> 0 | X23: =IF($D23="",0,IF(VLOOKUP($D23,Hulpvelden!$A:$D,4,FALSE)="L2",SUM($F23:$J23),0)) -> 0 | Y23: =IF($D23="",0,IF(VLOOKUP($D23,Hulpvelden!$A:$D,4,FALSE)="H1",SUM($F23:$J23),0)) -> -1210 | Z23: =IF($D23="",0,IF(VLOOKUP($D23,Hulpvelden!$A:$D,4,FALSE)="H2",SUM($F23:$J23),0)) -> 0 | AA23: =(VLOOKUP(211, Hulpvelden!$A:$F, 6,FALSE)/(1+VLOOKUP(211, Hulpvelden!$A:$F, 6,FALSE)))*$W23+(VLOOKUP(212, Hulpvelden!$A:$F, 6,FALSE)/(1 +VLOOKUP(212, Hulpvelden!$A:$F, 6,FALSE)))*$X23+(VLOOKUP(221, Hulpvelden!$A:$F, 6,FALSE)/(1+VLOOKUP(221, Hulpvelden!$A:$F, 6,FALSE)))*$Y23+(VLOOKUP(222, Hulpvelden!$A:$F, 6,FALSE)/(1+VLOOKUP(222, Hulpvelden!$A:$F, 6,FALSE)))*$Z23 -> -210 | AB23: 0 | AC23: =IF($D23="",0,IF(VLOOKUP($D23,Hulpvelden!$A:$D,4,FALSE)="U",SUM($F23:$I23),0)) -> 0
A24: 2019-08-15 | B24: 8 | C24: Test 8 | D24: 221 | E24: =IF(ISNUMBER($D24),VLOOKUP($D24,Hulpvelden!$A:$D,2,FALSE),"") -> Omzet hoog 1 | F24: -1210 | K24: -1210 | L24: =$L$3-SUM($K$4:$K24) -> 9537.2 | S24: =IF($D24="",0,IF(AND(VLOOKUP($D24,Hulpvelden!$A:$D,3,FALSE)="J",OR(VLOOKUP($D24,Hulpvelden!$A:$D,4,FALSE)="H",VLOOKUP($D24,Hulpvelden!$A:$D,4,FALSE)="L")),$F24+$I24+$J24,IF(VLOOKUP($D24,Hulpvelden!$A:$D,3,FALSE)="J",SUM($F24:$J24),0))) -> 0 | T24: =IF($D24="",0,IF(OR(VLOOKUP($D24,Hulpvelden!$A:$D,4,FALSE)="H",VLOOKUP($D24,Hulpvelden!$A:$D,4,FALSE)="L"),$G24,IF(VLOOKUP($D24,Hulpvelden!$A:$D,4,FALSE)="50",0.5*$G24,0))) -> 0 | U24: =IF($D24="",0,IF(VLOOKUP($D24,Hulpvelden!$A:$D,4,FALSE)="J",$H24,0)) -> 0 | V24: =IF($D24="",0,IF(VLOOKUP($D24,Hulpvelden!$A:$D,4,FALSE)="O",SUM($F24:$J24),0)) -> 0 | W24: =IF($D24="",0,IF(VLOOKUP($D24,Hulpvelden!$A:$D,4,FALSE)="L1",SUM($F24:$J24),0)) -> 0 | X24: =IF($D24="",0,IF(VLOOKUP($D24,Hulpvelden!$A:$D,4,FALSE)="L2",SUM($F24:$J24),0)) -> 0 | Y24: =IF($D24="",0,IF(VLOOKUP($D24,Hulpvelden!$A:$D,4,FALSE)="H1",SUM($F24:$J24),0)) -> -1210 | Z24: =IF($D24="",0,IF(VLOOKUP($D24,Hulpvelden!$A:$D,4,FALSE)="H2",SUM($F24:$J24),0)) -> 0 | AA24: =(VLOOKUP(211, Hulpvelden!$A:$F, 6,FALSE)/(1+VLOOKUP(211, Hulpvelden!$A:$F, 6,FALSE)))*$W24+(VLOOKUP(212, Hulpvelden!$A:$F, 6,FALSE)/(1 +VLOOKUP(212, Hulpvelden!$A:$F, 6,FALSE)))*$X24+(VLOOKUP(221, Hulpvelden!$A:$F, 6,FALSE)/(1+VLOOKUP(221, Hulpvelden!$A:$F, 6,FALSE)))*$Y24+(VLOOKUP(222, Hulpvelden!$A:$F, 6,FALSE)/(1+VLOOKUP(222, Hulpvelden!$A:$F, 6,FALSE)))*$Z24 -> -210 | AB24: 0 | AC24: =IF($D24="",0,IF(VLOOKUP($D24,Hulpvelden!$A:$D,4,FALSE)="U",SUM($F24:$I24),0)) -> 0
A25: 2019-09-15 | B25: 9 | C25: Test 9 | D25: 221 | E25: =IF(ISNUMBER($D25),VLOOKUP($D25,Hulpvelden!$A:$D,2,FALSE),"") -> Omzet hoog 1 | F25: -1210 | K25: -1210 | L25: =$L$3-SUM($K$4:$K25) -> 10747.2 | S25: =IF($D25="",0,IF(AND(VLOOKUP($D25,Hulpvelden!$A:$D,3,FALSE)="J",OR(VLOOKUP($D25,Hulpvelden!$A:$D,4,FALSE)="H",VLOOKUP($D25,Hulpvelden!$A:$D,4,FALSE)="L")),$F25+$I25+$J25,IF(VLOOKUP($D25,Hulpvelden!$A:$D,3,FALSE)="J",SUM($F25:$J25),0))) -> 0 | T25: =IF($D25="",0,IF(OR(VLOOKUP($D25,Hulpvelden!$A:$D,4,FALSE)="H",VLOOKUP($D25,Hulpvelden!$A:$D,4,FALSE)="L"),$G25,IF(VLOOKUP($D25,Hulpvelden!$A:$D,4,FALSE)="50",0.5*$G25,0))) -> 0 | U25: =IF($D25="",0,IF(VLOOKUP($D25,Hulpvelden!$A:$D,4,FALSE)="J",$H25,0)) -> 0 | V25: =IF($D25="",0,IF(VLOOKUP($D25,Hulpvelden!$A:$D,4,FALSE)="O",SUM($F25:$J25),0)) -> 0 | W25: =IF($D25="",0,IF(VLOOKUP($D25,Hulpvelden!$A:$D,4,FALSE)="L1",SUM($F25:$J25),0)) -> 0 | X25: =IF($D25="",0,IF(VLOOKUP($D25,Hulpvelden!$A:$D,4,FALSE)="L2",SUM($F25:$J25),0)) -> 0 | Y25: =IF($D25="",0,IF(VLOOKUP($D25,Hulpvelden!$A:$D,4,FALSE)="H1",SUM($F25:$J25),0)) -> -1210 | Z25: =IF($D25="",0,IF(VLOOKUP($D25,Hulpvelden!$A:$D,4,FALSE)="H2",SUM($F25:$J25),0)) -> 0 | AA25: =(VLOOKUP(211, Hulpvelden!$A:$F, 6,FALSE)/(1+VLOOKUP(211, Hulpvelden!$A:$F, 6,FALSE)))*$W25+(VLOOKUP(212, Hulpvelden!$A:$F, 6,FALSE)/(1 +VLOOKUP(212, Hulpvelden!$A:$F, 6,FALSE)))*$X25+(VLOOKUP(221, Hulpvelden!$A:$F, 6,FALSE)/(1+VLOOKUP(221, Hulpvelden!$A:$F, 6,FALSE)))*$Y25+(VLOOKUP(222, Hulpvelden!$A:$F, 6,FALSE)/(1+VLOOKUP(222, Hulpvelden!$A:$F, 6,FALSE)))*$Z25 -> -210 | AB25: 0 | AC25: =IF($D25="",0,IF(VLOOKUP($D25,Hulpvelden!$A:$D,4,FALSE)="U",SUM($F25:$I25),0)) -> 0
A26: 2019-10-15 | B26: 10 | C26: Test 10 | D26: 221 | E26: =IF(ISNUMBER($D26),VLOOKUP($D26,Hulpvelden!$A:$D,2,FALSE),"") -> Omzet hoog 1 | F26: -1210 | K26: -1210 | L26: =$L$3-SUM($K$4:$K26) -> 11957.2 | S26: =IF($D26="",0,IF(AND(VLOOKUP($D26,Hulpvelden!$A:$D,3,FALSE)="J",OR(VLOOKUP($D26,Hulpvelden!$A:$D,4,FALSE)="H",VLOOKUP($D26,Hulpvelden!$A:$D,4,FALSE)="L")),$F26+$I26+$J26,IF(VLOOKUP($D26,Hulpvelden!$A:$D,3,FALSE)="J",SUM($F26:$J26),0))) -> 0 | T26: =IF($D26="",0,IF(OR(VLOOKUP($D26,Hulpvelden!$A:$D,4,FALSE)="H",VLOOKUP($D26,Hulpvelden!$A:$D,4,FALSE)="L"),$G26,IF(VLOOKUP($D26,Hulpvelden!$A:$D,4,FALSE)="50",0.5*$G26,0))) -> 0 | U26: =IF($D26="",0,IF(VLOOKUP($D26,Hulpvelden!$A:$D,4,FALSE)="J",$H26,0)) -> 0 | V26: =IF($D26="",0,IF(VLOOKUP($D26,Hulpvelden!$A:$D,4,FALSE)="O",SUM($F26:$J26),0)) -> 0 | W26: =IF($D26="",0,IF(VLOOKUP($D26,Hulpvelden!$A:$D,4,FALSE)="L1",SUM($F26:$J26),0)) -> 0 | X26: =IF($D26="",0,IF(VLOOKUP($D26,Hulpvelden!$A:$D,4,FALSE)="L2",SUM($F26:$J26),0)) -> 0 | Y26: =IF($D26="",0,IF(VLOOKUP($D26,Hulpvelden!$A:$D,4,FALSE)="H1",SUM($F26:$J26),0)) -> -1210 | Z26: =IF($D26="",0,IF(VLOOKUP($D26,Hulpvelden!$A:$D,4,FALSE)="H2",SUM($F26:$J26),0)) -> 0 | AA26: =(VLOOKUP(211, Hulpvelden!$A:$F, 6,FALSE)/(1+VLOOKUP(211, Hulpvelden!$A:$F, 6,FALSE)))*$W26+(VLOOKUP(212, Hulpvelden!$A:$F, 6,FALSE)/(1 +VLOOKUP(212, Hulpvelden!$A:$F, 6,FALSE)))*$X26+(VLOOKUP(221, Hulpvelden!$A:$F, 6,FALSE)/(1+VLOOKUP(221, Hulpvelden!$A:$F, 6,FALSE)))*$Y26+(VLOOKUP(222, Hulpvelden!$A:$F, 6,FALSE)/(1+VLOOKUP(222, Hulpvelden!$A:$F, 6,FALSE)))*$Z26 -> -210 | AB26: 0 | AC26: =IF($D26="",0,IF(VLOOKUP($D26,Hulpvelden!$A:$D,4,FALSE)="U",SUM($F26:$I26),0)) -> 0
A27: 2019-11-15 | B27: 11 | C27: Test 11 | D27: 221 | E27: =IF(ISNUMBER($D27),VLOOKUP($D27,Hulpvelden!$A:$D,2,FALSE),"") -> Omzet hoog 1 | F27: -1210 | K27: -1210 | L27: =$L$3-SUM($K$4:$K27) -> 13167.2 | S27: =IF($D27="",0,IF(AND(VLOOKUP($D27,Hulpvelden!$A:$D,3,FALSE)="J",OR(VLOOKUP($D27,Hulpvelden!$A:$D,4,FALSE)="H",VLOOKUP($D27,Hulpvelden!$A:$D,4,FALSE)="L")),$F27+$I27+$J27,IF(VLOOKUP($D27,Hulpvelden!$A:$D,3,FALSE)="J",SUM($F27:$J27),0))) -> 0 | T27: =IF($D27="",0,IF(OR(VLOOKUP($D27,Hulpvelden!$A:$D,4,FALSE)="H",VLOOKUP($D27,Hulpvelden!$A:$D,4,FALSE)="L"),$G27,IF(VLOOKUP($D27,Hulpvelden!$A:$D,4,FALSE)="50",0.5*$G27,0))) -> 0 | U27: =IF($D27="",0,IF(VLOOKUP($D27,Hulpvelden!$A:$D,4,FALSE)="J",$H27,0)) -> 0 | V27: =IF($D27="",0,IF(VLOOKUP($D27,Hulpvelden!$A:$D,4,FALSE)="O",SUM($F27:$J27),0)) -> 0 | W27: =IF($D27="",0,IF(VLOOKUP($D27,Hulpvelden!$A:$D,4,FALSE)="L1",SUM($F27:$J27),0)) -> 0 | X27: =IF($D27="",0,IF(VLOOKUP($D27,Hulpvelden!$A:$D,4,FALSE)="L2",SUM($F27:$J27),0)) -> 0 | Y27: =IF($D27="",0,IF(VLOOKUP($D27,Hulpvelden!$A:$D,4,FALSE)="H1",SUM($F27:$J27),0)) -> -1210 | Z27: =IF($D27="",0,IF(VLOOKUP($D27,Hulpvelden!$A:$D,4,FALSE)="H2",SUM($F27:$J27),0)) -> 0 | AA27: =(VLOOKUP(211, Hulpvelden!$A:$F, 6,FALSE)/(1+VLOOKUP(211, Hulpvelden!$A:$F, 6,FALSE)))*$W27+(VLOOKUP(212, Hulpvelden!$A:$F, 6,FALSE)/(1 +VLOOKUP(212, Hulpvelden!$A:$F, 6,FALSE)))*$X27+(VLOOKUP(221, Hulpvelden!$A:$F, 6,FALSE)/(1+VLOOKUP(221, Hulpvelden!$A:$F, 6,FALSE)))*$Y27+(VLOOKUP(222, Hulpvelden!$A:$F, 6,FALSE)/(1+VLOOKUP(222, Hulpvelden!$A:$F, 6,FALSE)))*$Z27 -> -210 | AB27: 0 | AC27: =IF($D27="",0,IF(VLOOKUP($D27,Hulpvelden!$A:$D,4,FALSE)="U",SUM($F27:$I27),0)) -> 0
A28: 2019-12-15 | B28: 12 | C28: Test 12 | D28: 221 | E28: =IF(ISNUMBER($D28),VLOOKUP($D28,Hulpvelden!$A:$D,2,FALSE),"") -> Omzet hoog 1 | F28: -1210 | K28: -1210 | L28: =$L$3-SUM($K$4:$K28) -> 14377.2 | S28: =IF($D28="",0,IF(AND(VLOOKUP($D28,Hulpvelden!$A:$D,3,FALSE)="J",OR(VLOOKUP($D28,Hulpvelden!$A:$D,4,FALSE)="H",VLOOKUP($D28,Hulpvelden!$A:$D,4,FALSE)="L")),$F28+$I28+$J28,IF(VLOOKUP($D28,Hulpvelden!$A:$D,3,FALSE)="J",SUM($F28:$J28),0))) -> 0 | T28: =IF($D28="",0,IF(OR(VLOOKUP($D28,Hulpvelden!$A:$D,4,FALSE)="H",VLOOKUP($D28,Hulpvelden!$A:$D,4,FALSE)="L"),$G28,IF(VLOOKUP($D28,Hulpvelden!$A:$D,4,FALSE)="50",0.5*$G28,0))) -> 0 | U28: =IF($D28="",0,IF(VLOOKUP($D28,Hulpvelden!$A:$D,4,FALSE)="J",$H28,0)) -> 0 | V28: =IF($D28="",0,IF(VLOOKUP($D28,Hulpvelden!$A:$D,4,FALSE)="O",SUM($F28:$J28),0)) -> 0 | W28: =IF($D28="",0,IF(VLOOKUP($D28,Hulpvelden!$A:$D,4,FALSE)="L1",SUM($F28:$J28),0)) -> 0 | X28: =IF($D28="",0,IF(VLOOKUP($D28,Hulpvelden!$A:$D,4,FALSE)="L2",SUM($F28:$J28),0)) -> 0 | Y28: =IF($D28="",0,IF(VLOOKUP($D28,Hulpvelden!$A:$D,4,FALSE)="H1",SUM($F28:$J28),0)) -> -1210 | Z28: =IF($D28="",0,IF(VLOOKUP($D28,Hulpvelden!$A:$D,4,FALSE)="H2",SUM($F28:$J28),0)) -> 0 | AA28: =(VLOOKUP(211, Hulpvelden!$A:$F, 6,FALSE)/(1+VLOOKUP(211, Hulpvelden!$A:$F, 6,FALSE)))*$W28+(VLOOKUP(212, Hulpvelden!$A:$F, 6,FALSE)/(1 +VLOOKUP(212, Hulpvelden!$A:$F, 6,FALSE)))*$X28+(VLOOKUP(221, Hulpvelden!$A:$F, 6,FALSE)/(1+VLOOKUP(221, Hulpvelden!$A:$F, 6,FALSE)))*$Y28+(VLOOKUP(222, Hulpvelden!$A:$F, 6,FALSE)/(1+VLOOKUP(222, Hulpvelden!$A:$F, 6,FALSE)))*$Z28 -> -210 | AB28: 0 | AC28: =IF($D28="",0,IF(VLOOKUP($D28,Hulpvelden!$A:$D,4,FALSE)="U",SUM($F28:$I28),0)) -> 0
B29: 1 | E29: =IF(ISNUMBER($D29),VLOOKUP($D29,Hulpvelden!$A:$D,2,FALSE),"") ->  | K29: 0 | L29: =$L$3-SUM($K$4:$K29) -> 14377.2 | S29: =IF($D29="",0,IF(AND(VLOOKUP($D29,Hulpvelden!$A:$D,3,FALSE)="J",OR(VLOOKUP($D29,Hulpvelden!$A:$D,4,FALSE)="H",VLOOKUP($D29,Hulpvelden!$A:$D,4,FALSE)="L")),$F29+$I29+$J29,IF(VLOOKUP($D29,Hulpvelden!$A:$D,3,FALSE)="J",SUM($F29:$J29),0))) -> 0 | T29: =IF($D29="",0,IF(OR(VLOOKUP($D29,Hulpvelden!$A:$D,4,FALSE)="H",VLOOKUP($D29,Hulpvelden!$A:$D,4,FALSE)="L"),$G29,IF(VLOOKUP($D29,Hulpvelden!$A:$D,4,FALSE)="50",0.5*$G29,0))) -> 0 | U29: =IF($D29="",0,IF(VLOOKUP($D29,Hulpvelden!$A:$D,4,FALSE)="J",$H29,0)) -> 0 | V29: =IF($D29="",0,IF(VLOOKUP($D29,Hulpvelden!$A:$D,4,FALSE)="O",SUM($F29:$J29),0)) -> 0 | W29: =IF($D29="",0,IF(VLOOKUP($D29,Hulpvelden!$A:$D,4,FALSE)="L1",SUM($F29:$J29),0)) -> 0 | X29: =IF($D29="",0,IF(VLOOKUP($D29,Hulpvelden!$A:$D,4,FALSE)="L2",SUM($F29:$J29),0)) -> 0 | Y29: =IF($D29="",0,IF(VLOOKUP($D29,Hulpvelden!$A:$D,4,FALSE)="H1",SUM($F29:$J29),0)) -> 0 | Z29: =IF($D29="",0,IF(VLOOKUP($D29,Hulpvelden!$A:$D,4,FALSE)="H2",SUM($F29:$J29),0)) -> 0 | AA29: =(VLOOKUP(211, Hulpvelden!$A:$F, 6,FALSE)/(1+VLOOKUP(211, Hulpvelden!$A:$F, 6,FALSE)))*$W29+(VLOOKUP(212, Hulpvelden!$A:$F, 6,FALSE)/(1 +VLOOKUP(212, Hulpvelden!$A:$F, 6,FALSE)))*$X29+(VLOOKUP(221, Hulpvelden!$A:$F, 6,FALSE)/(1+VLOOKUP(221, Hulpvelden!$A:$F, 6,FALSE)))*$Y29+(VLOOKUP(222, Hulpvelden!$A:$F, 6,FALSE)/(1+VLOOKUP(222, Hulpvelden!$A:$F, 6,FALSE)))*$Z29 -> 0 | AB29: 0 | AC29: =IF($D29="",0,IF(VLOOKUP($D29,Hulpvelden!$A:$D,4,FALSE)="U",SUM($F29:$I29),0)) -> 0
B30: 1 | E30: =IF(ISNUMBER($D30),VLOOKUP($D30,Hulpvelden!$A:$D,2,FALSE),"") ->  | K30: 0 | L30: =$L$3-SUM($K$4:$K30) -> 14377.2 | S30: =IF($D30="",0,IF(AND(VLOOKUP($D30,Hulpvelden!$A:$D,3,FALSE)="J",OR(VLOOKUP($D30,Hulpvelden!$A:$D,4,FALSE)="H",VLOOKUP($D30,Hulpvelden!$A:$D,4,FALSE)="L")),$F30+$I30+$J30,IF(VLOOKUP($D30,Hulpvelden!$A:$D,3,FALSE)="J",SUM($F30:$J30),0))) -> 0 | T30: =IF($D30="",0,IF(OR(VLOOKUP($D30,Hulpvelden!$A:$D,4,FALSE)="H",VLOOKUP($D30,Hulpvelden!$A:$D,4,FALSE)="L"),$G30,IF(VLOOKUP($D30,Hulpvelden!$A:$D,4,FALSE)="50",0.5*$G30,0))) -> 0 | U30: =IF($D30="",0,IF(VLOOKUP($D30,Hulpvelden!$A:$D,4,FALSE)="J",$H30,0)) -> 0 | V30: =IF($D30="",0,IF(VLOOKUP($D30,Hulpvelden!$A:$D,4,FALSE)="O",SUM($F30:$J30),0)) -> 0 | W30: =IF($D30="",0,IF(VLOOKUP($D30,Hulpvelden!$A:$D,4,FALSE)="L1",SUM($F30:$J30),0)) -> 0 | X30: =IF($D30="",0,IF(VLOOKUP($D30,Hulpvelden!$A:$D,4,FALSE)="L2",SUM($F30:$J30),0)) -> 0 | Y30: =IF($D30="",0,IF(VLOOKUP($D30,Hulpvelden!$A:$D,4,FALSE)="H1",SUM($F30:$J30),0)) -> 0 | Z30: =IF($D30="",0,IF(VLOOKUP($D30,Hulpvelden!$A:$D,4,FALSE)="H2",SUM($F30:$J30),0)) -> 0 | AA30: =(VLOOKUP(211, Hulpvelden!$A:$F, 6,FALSE)/(1+VLOOKUP(211, Hulpvelden!$A:$F, 6,FALSE)))*$W30+(VLOOKUP(212, Hulpvelden!$A:$F, 6,FALSE)/(1 +VLOOKUP(212, Hulpvelden!$A:$F, 6,FALSE)))*$X30+(VLOOKUP(221, Hulpvelden!$A:$F, 6,FALSE)/(1+VLOOKUP(221, Hulpvelden!$A:$F, 6,FALSE)))*$Y30+(VLOOKUP(222, Hulpvelden!$A:$F, 6,FALSE)/(1+VLOOKUP(222, Hulpvelden!$A:$F, 6,FALSE)))*$Z30 -> 0 | AB30: 0 | AC30: =IF($D30="",0,IF(VLOOKUP($D30,Hulpvelden!$A:$D,4,FALSE)="U",SUM($F30:$I30),0)) -> 0
B31: 1 | E31: =IF(ISNUMBER($D31),VLOOKUP($D31,Hulpvelden!$A:$D,2,FALSE),"") ->  | K31: 0 | L31: =$L$3-SUM($K$4:$K31) -> 14377.2 | S31: =IF($D31="",0,IF(AND(VLOOKUP($D31,Hulpvelden!$A:$D,3,FALSE)="J",OR(VLOOKUP($D31,Hulpvelden!$A:$D,4,FALSE)="H",VLOOKUP($D31,Hulpvelden!$A:$D,4,FALSE)="L")),$F31+$I31+$J31,IF(VLOOKUP($D31,Hulpvelden!$A:$D,3,FALSE)="J",SUM($F31:$J31),0))) -> 0 | T31: =IF($D31="",0,IF(OR(VLOOKUP($D31,Hulpvelden!$A:$D,4,FALSE)="H",VLOOKUP($D31,Hulpvelden!$A:$D,4,FALSE)="L"),$G31,IF(VLOOKUP($D31,Hulpvelden!$A:$D,4,FALSE)="50",0.5*$G31,0))) -> 0 | U31: =IF($D31="",0,IF(VLOOKUP($D31,Hulpvelden!$A:$D,4,FALSE)="J",$H31,0)) -> 0 | V31: =IF($D31="",0,IF(VLOOKUP($D31,Hulpvelden!$A:$D,4,FALSE)="O",SUM($F31:$J31),0)) -> 0 | W31: =IF($D31="",0,IF(VLOOKUP($D31,Hulpvelden!$A:$D,4,FALSE)="L1",SUM($F31:$J31),0)) -> 0 | X31: =IF($D31="",0,IF(VLOOKUP($D31,Hulpvelden!$A:$D,4,FALSE)="L2",SUM($F31:$J31),0)) -> 0 | Y31: =IF($D31="",0,IF(VLOOKUP($D31,Hulpvelden!$A:$D,4,FALSE)="H1",SUM($F31:$J31),0)) -> 0 | Z31: =IF($D31="",0,IF(VLOOKUP($D31,Hulpvelden!$A:$D,4,FALSE)="H2",SUM($F31:$J31),0)) -> 0 | AA31: =(VLOOKUP(211, Hulpvelden!$A:$F, 6,FALSE)/(1+VLOOKUP(211, Hulpvelden!$A:$F, 6,FALSE)))*$W31+(VLOOKUP(212, Hulpvelden!$A:$F, 6,FALSE)/(1 +VLOOKUP(212, Hulpvelden!$A:$F, 6,FALSE)))*$X31+(VLOOKUP(221, Hulpvelden!$A:$F, 6,FALSE)/(1+VLOOKUP(221, Hulpvelden!$A:$F, 6,FALSE)))*$Y31+(VLOOKUP(222, Hulpvelden!$A:$F, 6,FALSE)/(1+VLOOKUP(222, Hulpvelden!$A:$F, 6,FALSE)))*$Z31 -> 0 | AB31: 0 | AC31: =IF($D31="",0,IF(VLOOKUP($D31,Hulpvelden!$A:$D,4,FALSE)="U",SUM($F31:$I31),0)) -> 0
B32: 1 | E32: =IF(ISNUMBER($D32),VLOOKUP($D32,Hulpvelden!$A:$D,2,FALSE),"") ->  | K32: 0 | L32: =$L$3-SUM($K$4:$K32) -> 14377.2 | S32: =IF($D32="",0,IF(AND(VLOOKUP($D32,Hulpvelden!$A:$D,3,FALSE)="J",OR(VLOOKUP($D32,Hulpvelden!$A:$D,4,FALSE)="H",VLOOKUP($D32,Hulpvelden!$A:$D,4,FALSE)="L")),$F32+$I32+$J32,IF(VLOOKUP($D32,Hulpvelden!$A:$D,3,FALSE)="J",SUM($F32:$J32),0))) -> 0 | T32: =IF($D32="",0,IF(OR(VLOOKUP($D32,Hulpvelden!$A:$D,4,FALSE)="H",VLOOKUP($D32,Hulpvelden!$A:$D,4,FALSE)="L"),$G32,IF(VLOOKUP($D32,Hulpvelden!$A:$D,4,FALSE)="50",0.5*$G32,0))) -> 0 | U32: =IF($D32="",0,IF(VLOOKUP($D32,Hulpvelden!$A:$D,4,FALSE)="J",$H32,0)) -> 0 | V32: =IF($D32="",0,IF(VLOOKUP($D32,Hulpvelden!$A:$D,4,FALSE)="O",SUM($F32:$J32),0)) -> 0 | W32: =IF($D32="",0,IF(VLOOKUP($D32,Hulpvelden!$A:$D,4,FALSE)="L1",SUM($F32:$J32),0)) -> 0 | X32: =IF($D32="",0,IF(VLOOKUP($D32,Hulpvelden!$A:$D,4,FALSE)="L2",SUM($F32:$J32),0)) -> 0 | Y32: =IF($D32="",0,IF(VLOOKUP($D32,Hulpvelden!$A:$D,4,FALSE)="H1",SUM($F32:$J32),0)) -> 0 | Z32: =IF($D32="",0,IF(VLOOKUP($D32,Hulpvelden!$A:$D,4,FALSE)="H2",SUM($F32:$J32),0)) -> 0 | AA32: =(VLOOKUP(211, Hulpvelden!$A:$F, 6,FALSE)/(1+VLOOKUP(211, Hulpvelden!$A:$F, 6,FALSE)))*$W32+(VLOOKUP(212, Hulpvelden!$A:$F, 6,FALSE)/(1 +VLOOKUP(212, Hulpvelden!$A:$F, 6,FALSE)))*$X32+(VLOOKUP(221, Hulpvelden!$A:$F, 6,FALSE)/(1+VLOOKUP(221, Hulpvelden!$A:$F, 6,FALSE)))*$Y32+(VLOOKUP(222, Hulpvelden!$A:$F, 6,FALSE)/(1+VLOOKUP(222, Hulpvelden!$A:$F, 6,FALSE)))*$Z32 -> 0 | AB32: 0 | AC32: =IF($D32="",0,IF(VLOOKUP($D32,Hulpvelden!$A:$D,4,FALSE)="U",SUM($F32:$I32),0)) -> 0
B33: 1 | E33: =IF(ISNUMBER($D33),VLOOKUP($D33,Hulpvelden!$A:$D,2,FALSE),"") ->  | K33: 0 | L33: =$L$3-SUM($K$4:$K33) -> 14377.2 | S33: =IF($D33="",0,IF(AND(VLOOKUP($D33,Hulpvelden!$A:$D,3,FALSE)="J",OR(VLOOKUP($D33,Hulpvelden!$A:$D,4,FALSE)="H",VLOOKUP($D33,Hulpvelden!$A:$D,4,FALSE)="L")),$F33+$I33+$J33,IF(VLOOKUP($D33,Hulpvelden!$A:$D,3,FALSE)="J",SUM($F33:$J33),0))) -> 0 | T33: =IF($D33="",0,IF(OR(VLOOKUP($D33,Hulpvelden!$A:$D,4,FALSE)="H",VLOOKUP($D33,Hulpvelden!$A:$D,4,FALSE)="L"),$G33,IF(VLOOKUP($D33,Hulpvelden!$A:$D,4,FALSE)="50",0.5*$G33,0))) -> 0 | U33: =IF($D33="",0,IF(VLOOKUP($D33,Hulpvelden!$A:$D,4,FALSE)="J",$H33,0)) -> 0 | V33: =IF($D33="",0,IF(VLOOKUP($D33,Hulpvelden!$A:$D,4,FALSE)="O",SUM($F33:$J33),0)) -> 0 | W33: =IF($D33="",0,IF(VLOOKUP($D33,Hulpvelden!$A:$D,4,FALSE)="L1",SUM($F33:$J33),0)) -> 0 | X33: =IF($D33="",0,IF(VLOOKUP($D33,Hulpvelden!$A:$D,4,FALSE)="L2",SUM($F33:$J33),0)) -> 0 | Y33: =IF($D33="",0,IF(VLOOKUP($D33,Hulpvelden!$A:$D,4,FALSE)="H1",SUM($F33:$J33),0)) -> 0 | Z33: =IF($D33="",0,IF(VLOOKUP($D33,Hulpvelden!$A:$D,4,FALSE)="H2",SUM($F33:$J33),0)) -> 0 | AA33: =(VLOOKUP(211, Hulpvelden!$A:$F, 6,FALSE)/(1+VLOOKUP(211, Hulpvelden!$A:$F, 6,FALSE)))*$W33+(VLOOKUP(212, Hulpvelden!$A:$F, 6,FALSE)/(1 +VLOOKUP(212, Hulpvelden!$A:$F, 6,FALSE)))*$X33+(VLOOKUP(221, Hulpvelden!$A:$F, 6,FALSE)/(1+VLOOKUP(221, Hulpvelden!$A:$F, 6,FALSE)))*$Y33+(VLOOKUP(222, Hulpvelden!$A:$F, 6,FALSE)/(1+VLOOKUP(222, Hulpvelden!$A:$F, 6,FALSE)))*$Z33 -> 0 | AB33: 0 | AC33: =IF($D33="",0,IF(VLOOKUP($D33,Hulpvelden!$A:$D,4,FALSE)="U",SUM($F33:$I33),0)) -> 0
B34: 1 | E34: =IF(ISNUMBER($D34),VLOOKUP($D34,Hulpvelden!$A:$D,2,FALSE),"") ->  | K34: 0 | L34: =$L$3-SUM($K$4:$K34) -> 14377.2 | S34: =IF($D34="",0,IF(AND(VLOOKUP($D34,Hulpvelden!$A:$D,3,FALSE)="J",OR(VLOOKUP($D34,Hulpvelden!$A:$D,4,FALSE)="H",VLOOKUP($D34,Hulpvelden!$A:$D,4,FALSE)="L")),$F34+$I34+$J34,IF(VLOOKUP($D34,Hulpvelden!$A:$D,3,FALSE)="J",SUM($F34:$J34),0))) -> 0 | T34: =IF($D34="",0,IF(OR(VLOOKUP($D34,Hulpvelden!$A:$D,4,FALSE)="H",VLOOKUP($D34,Hulpvelden!$A:$D,4,FALSE)="L"),$G34,IF(VLOOKUP($D34,Hulpvelden!$A:$D,4,FALSE)="50",0.5*$G34,0))) -> 0 | U34: =IF($D34="",0,IF(VLOOKUP($D34,Hulpvelden!$A:$D,4,FALSE)="J",$H34,0)) -> 0 | V34: =IF($D34="",0,IF(VLOOKUP($D34,Hulpvelden!$A:$D,4,FALSE)="O",SUM($F34:$J34),0)) -> 0 | W34: =IF($D34="",0,IF(VLOOKUP($D34,Hulpvelden!$A:$D,4,FALSE)="L1",SUM($F34:$J34),0)) -> 0 | X34: =IF($D34="",0,IF(VLOOKUP($D34,Hulpvelden!$A:$D,4,FALSE)="L2",SUM($F34:$J34),0)) -> 0 | Y34: =IF($D34="",0,IF(VLOOKUP($D34,Hulpvelden!$A:$D,4,FALSE)="H1",SUM($F34:$J34),0)) -> 0 | Z34: =IF($D34="",0,IF(VLOOKUP($D34,Hulpvelden!$A:$D,4,FALSE)="H2",SUM($F34:$J34),0)) -> 0 | AA34: =(VLOOKUP(211, Hulpvelden!$A:$F, 6,FALSE)/(1+VLOOKUP(211, Hulpvelden!$A:$F, 6,FALSE)))*$W34+(VLOOKUP(212, Hulpvelden!$A:$F, 6,FALSE)/(1 +VLOOKUP(212, Hulpvelden!$A:$F, 6,FALSE)))*$X34+(VLOOKUP(221, Hulpvelden!$A:$F, 6,FALSE)/(1+VLOOKUP(221, Hulpvelden!$A:$F, 6,FALSE)))*$Y34+(VLOOKUP(222, Hulpvelden!$A:$F, 6,FALSE)/(1+VLOOKUP(222, Hulpvelden!$A:$F, 6,FALSE)))*$Z34 -> 0 | AB34: 0 | AC34: =IF($D34="",0,IF(VLOOKUP($D34,Hulpvelden!$A:$D,4,FALSE)="U",SUM($F34:$I34),0)) -> 0
B35: 1 | E35: =IF(ISNUMBER($D35),VLOOKUP($D35,Hulpvelden!$A:$D,2,FALSE),"") ->  | K35: 0 | L35: =$L$3-SUM($K$4:$K35) -> 14377.2 | S35: =IF($D35="",0,IF(AND(VLOOKUP($D35,Hulpvelden!$A:$D,3,FALSE)="J",OR(VLOOKUP($D35,Hulpvelden!$A:$D,4,FALSE)="H",VLOOKUP($D35,Hulpvelden!$A:$D,4,FALSE)="L")),$F35+$I35+$J35,IF(VLOOKUP($D35,Hulpvelden!$A:$D,3,FALSE)="J",SUM($F35:$J35),0))) -> 0 | T35: =IF($D35="",0,IF(OR(VLOOKUP($D35,Hulpvelden!$A:$D,4,FALSE)="H",VLOOKUP($D35,Hulpvelden!$A:$D,4,FALSE)="L"),$G35,IF(VLOOKUP($D35,Hulpvelden!$A:$D,4,FALSE)="50",0.5*$G35,0))) -> 0 | U35: =IF($D35="",0,IF(VLOOKUP($D35,Hulpvelden!$A:$D,4,FALSE)="J",$H35,0)) -> 0 | V35: =IF($D35="",0,IF(VLOOKUP($D35,Hulpvelden!$A:$D,4,FALSE)="O",SUM($F35:$J35),0)) -> 0 | W35: =IF($D35="",0,IF(VLOOKUP($D35,Hulpvelden!$A:$D,4,FALSE)="L1",SUM($F35:$J35),0)) -> 0 | X35: =IF($D35="",0,IF(VLOOKUP($D35,Hulpvelden!$A:$D,4,FALSE)="L2",SUM($F35:$J35),0)) -> 0 | Y35: =IF($D35="",0,IF(VLOOKUP($D35,Hulpvelden!$A:$D,4,FALSE)="H1",SUM($F35:$J35),0)) -> 0 | Z35: =IF($D35="",0,IF(VLOOKUP($D35,Hulpvelden!$A:$D,4,FALSE)="H2",SUM($F35:$J35),0)) -> 0 | AA35: =(VLOOKUP(211, Hulpvelden!$A:$F, 6,FALSE)/(1+VLOOKUP(211, Hulpvelden!$A:$F, 6,FALSE)))*$W35+(VLOOKUP(212, Hulpvelden!$A:$F, 6,FALSE)/(1 +VLOOKUP(212, Hulpvelden!$A:$F, 6,FALSE)))*$X35+(VLOOKUP(221, Hulpvelden!$A:$F, 6,FALSE)/(1+VLOOKUP(221, Hulpvelden!$A:$F, 6,FALSE)))*$Y35+(VLOOKUP(222, Hulpvelden!$A:$F, 6,FALSE)/(1+VLOOKUP(222, Hulpvelden!$A:$F, 6,FALSE)))*$Z35 -> 0 | AB35: 0 | AC35: =IF($D35="",0,IF(VLOOKUP($D35,Hulpvelden!$A:$D,4,FALSE)="U",SUM($F35:$I35),0)) -> 0
B36: =MONTH(A36) -> 1 | E36: =IF(ISNUMBER($D36),VLOOKUP($D36,Hulpvelden!$A:$D,2,FALSE),"") ->  | K36: =IF(ISNUMBER($D36),SUM($F36:$J36),0) -> 0 | L36: =$L$3-SUM($K$4:$K36) -> 14377.2 | S36: =IF($D36="",0,IF(AND(VLOOKUP($D36,Hulpvelden!$A:$D,3,FALSE)="J",OR(VLOOKUP($D36,Hulpvelden!$A:$D,4,FALSE)="H",VLOOKUP($D36,Hulpvelden!$A:$D,4,FALSE)="L")),$F36+$I36+$J36,IF(VLOOKUP($D36,Hulpvelden!$A:$D,3,FALSE)="J",SUM($F36:$J36),0))) -> 0 | T36: =IF($D36="",0,IF(OR(VLOOKUP($D36,Hulpvelden!$A:$D,4,FALSE)="H",VLOOKUP($D36,Hulpvelden!$A:$D,4,FALSE)="L"),$G36,IF(VLOOKUP($D36,Hulpvelden!$A:$D,4,FALSE)="50",0.5*$G36,0))) -> 0 | U36: =IF($D36="",0,IF(VLOOKUP($D36,Hulpvelden!$A:$D,4,FALSE)="J",$H36,0)) -> 0 | V36: =IF($D36="",0,IF(VLOOKUP($D36,Hulpvelden!$A:$D,4,FALSE)="O",SUM($F36:$J36),0)) -> 0 | W36: =IF($D36="",0,IF(VLOOKUP($D36,Hulpvelden!$A:$D,4,FALSE)="L1",SUM($F36:$J36),0)) -> 0 | X36: =IF($D36="",0,IF(VLOOKUP($D36,Hulpvelden!$A:$D,4,FALSE)="L2",SUM($F36:$J36),0)) -> 0 | Y36: =IF($D36="",0,IF(VLOOKUP($D36,Hulpvelden!$A:$D,4,FALSE)="H1",SUM($F36:$J36),0)) -> 0 | Z36: =IF($D36="",0,IF(VLOOKUP($D36,Hulpvelden!$A:$D,4,FALSE)="H2",SUM($F36:$J36),0)) -> 0 | AA36: =(VLOOKUP(211, Hulpvelden!$A:$F, 6,FALSE)/(1+VLOOKUP(211, Hulpvelden!$A:$F, 6,FALSE)))*$W36+(VLOOKUP(212, Hulpvelden!$A:$F, 6,FALSE)/(1 +VLOOKUP(212, Hulpvelden!$A:$F, 6,FALSE)))*$X36+(VLOOKUP(221, Hulpvelden!$A:$F, 6,FALSE)/(1+VLOOKUP(221, Hulpvelden!$A:$F, 6,FALSE)))*$Y36+(VLOOKUP(222, Hulpvelden!$A:$F, 6,FALSE)/(1+VLOOKUP(222, Hulpvelden!$A:$F, 6,FALSE)))*$Z36 -> 0 | AB36: =IF(OR($D36=73,$D36=74,$D36=75),$F36+$J36,0) -> 0 | AC36: =IF($D36="",0,IF(VLOOKUP($D36,Hulpvelden!$A:$D,4,FALSE)="U",SUM($F36:$I36),0)) -> 0
B37: 1 | E37: =IF(ISNUMBER($D37),VLOOKUP($D37,Hulpvelden!$A:$D,2,FALSE),"") ->  | K37: 0 | L37: =$L$3-SUM($K$4:$K37) -> 14377.2 | S37: =IF($D37="",0,IF(AND(VLOOKUP($D37,Hulpvelden!$A:$D,3,FALSE)="J",OR(VLOOKUP($D37,Hulpvelden!$A:$D,4,FALSE)="H",VLOOKUP($D37,Hulpvelden!$A:$D,4,FALSE)="L")),$F37+$I37+$J37,IF(VLOOKUP($D37,Hulpvelden!$A:$D,3,FALSE)="J",SUM($F37:$J37),0))) -> 0 | T37: =IF($D37="",0,IF(OR(VLOOKUP($D37,Hulpvelden!$A:$D,4,FALSE)="H",VLOOKUP($D37,Hulpvelden!$A:$D,4,FALSE)="L"),$G37,IF(VLOOKUP($D37,Hulpvelden!$A:$D,4,FALSE)="50",0.5*$G37,0))) -> 0 | U37: =IF($D37="",0,IF(VLOOKUP($D37,Hulpvelden!$A:$D,4,FALSE)="J",$H37,0)) -> 0 | V37: =IF($D37="",0,IF(VLOOKUP($D37,Hulpvelden!$A:$D,4,FALSE)="O",SUM($F37:$J37),0)) -> 0 | W37: =IF($D37="",0,IF(VLOOKUP($D37,Hulpvelden!$A:$D,4,FALSE)="L1",SUM($F37:$J37),0)) -> 0 | X37: =IF($D37="",0,IF(VLOOKUP($D37,Hulpvelden!$A:$D,4,FALSE)="L2",SUM($F37:$J37),0)) -> 0 | Y37: =IF($D37="",0,IF(VLOOKUP($D37,Hulpvelden!$A:$D,4,FALSE)="H1",SUM($F37:$J37),0)) -> 0 | Z37: =IF($D37="",0,IF(VLOOKUP($D37,Hulpvelden!$A:$D,4,FALSE)="H2",SUM($F37:$J37),0)) -> 0 | AA37: =(VLOOKUP(211, Hulpvelden!$A:$F, 6,FALSE)/(1+VLOOKUP(211, Hulpvelden!$A:$F, 6,FALSE)))*$W37+(VLOOKUP(212, Hulpvelden!$A:$F, 6,FALSE)/(1 +VLOOKUP(212, Hulpvelden!$A:$F, 6,FALSE)))*$X37+(VLOOKUP(221, Hulpvelden!$A:$F, 6,FALSE)/(1+VLOOKUP(221, Hulpvelden!$A:$F, 6,FALSE)))*$Y37+(VLOOKUP(222, Hulpvelden!$A:$F, 6,FALSE)/(1+VLOOKUP(222, Hulpvelden!$A:$F, 6,FALSE)))*$Z37 -> 0 | AB37: 0 | AC37: =IF($D37="",0,IF(VLOOKUP($D37,Hulpvelden!$A:$D,4,FALSE)="U",SUM($F37:$I37),0)) -> 0
B38: 1 | E38: =IF(ISNUMBER($D38),VLOOKUP($D38,Hulpvelden!$A:$D,2,FALSE),"") ->  | K38: 0 | L38: =$L$3-SUM($K$4:$K38) -> 14377.2 | S38: =IF($D38="",0,IF(AND(VLOOKUP($D38,Hulpvelden!$A:$D,3,FALSE)="J",OR(VLOOKUP($D38,Hulpvelden!$A:$D,4,FALSE)="H",VLOOKUP($D38,Hulpvelden!$A:$D,4,FALSE)="L")),$F38+$I38+$J38,IF(VLOOKUP($D38,Hulpvelden!$A:$D,3,FALSE)="J",SUM($F38:$J38),0))) -> 0 | T38: =IF($D38="",0,IF(OR(VLOOKUP($D38,Hulpvelden!$A:$D,4,FALSE)="H",VLOOKUP($D38,Hulpvelden!$A:$D,4,FALSE)="L"),$G38,IF(VLOOKUP($D38,Hulpvelden!$A:$D,4,FALSE)="50",0.5*$G38,0))) -> 0 | U38: =IF($D38="",0,IF(VLOOKUP($D38,Hulpvelden!$A:$D,4,FALSE)="J",$H38,0)) -> 0 | V38: =IF($D38="",0,IF(VLOOKUP($D38,Hulpvelden!$A:$D,4,FALSE)="O",SUM($F38:$J38),0)) -> 0 | W38: =IF($D38="",0,IF(VLOOKUP($D38,Hulpvelden!$A:$D,4,FALSE)="L1",SUM($F38:$J38),0)) -> 0 | X38: =IF($D38="",0,IF(VLOOKUP($D38,Hulpvelden!$A:$D,4,FALSE)="L2",SUM($F38:$J38),0)) -> 0 | Y38: =IF($D38="",0,IF(VLOOKUP($D38,Hulpvelden!$A:$D,4,FALSE)="H1",SUM($F38:$J38),0)) -> 0 | Z38: =IF($D38="",0,IF(VLOOKUP($D38,Hulpvelden!$A:$D,4,FALSE)="H2",SUM($F38:$J38),0)) -> 0 | AA38: =(VLOOKUP(211, Hulpvelden!$A:$F, 6,FALSE)/(1+VLOOKUP(211, Hulpvelden!$A:$F, 6,FALSE)))*$W38+(VLOOKUP(212, Hulpvelden!$A:$F, 6,FALSE)/(1 +VLOOKUP(212, Hulpvelden!$A:$F, 6,FALSE)))*$X38+(VLOOKUP(221, Hulpvelden!$A:$F, 6,FALSE)/(1+VLOOKUP(221, Hulpvelden!$A:$F, 6,FALSE)))*$Y38+(VLOOKUP(222, Hulpvelden!$A:$F, 6,FALSE)/(1+VLOOKUP(222, Hulpvelden!$A:$F, 6,FALSE)))*$Z38 -> 0 | AB38: 0 | AC38: =IF($D38="",0,IF(VLOOKUP($D38,Hulpvelden!$A:$D,4,FALSE)="U",SUM($F38:$I38),0)) -> 0
B39: 1 | E39: =IF(ISNUMBER($D39),VLOOKUP($D39,Hulpvelden!$A:$D,2,FALSE),"") ->  | K39: 0 | L39: =$L$3-SUM($K$4:$K39) -> 14377.2 | S39: =IF($D39="",0,IF(AND(VLOOKUP($D39,Hulpvelden!$A:$D,3,FALSE)="J",OR(VLOOKUP($D39,Hulpvelden!$A:$D,4,FALSE)="H",VLOOKUP($D39,Hulpvelden!$A:$D,4,FALSE)="L")),$F39+$I39+$J39,IF(VLOOKUP($D39,Hulpvelden!$A:$D,3,FALSE)="J",SUM($F39:$J39),0))) -> 0 | T39: =IF($D39="",0,IF(OR(VLOOKUP($D39,Hulpvelden!$A:$D,4,FALSE)="H",VLOOKUP($D39,Hulpvelden!$A:$D,4,FALSE)="L"),$G39,IF(VLOOKUP($D39,Hulpvelden!$A:$D,4,FALSE)="50",0.5*$G39,0))) -> 0 | U39: =IF($D39="",0,IF(VLOOKUP($D39,Hulpvelden!$A:$D,4,FALSE)="J",$H39,0)) -> 0 | V39: =IF($D39="",0,IF(VLOOKUP($D39,Hulpvelden!$A:$D,4,FALSE)="O",SUM($F39:$J39),0)) -> 0 | W39: =IF($D39="",0,IF(VLOOKUP($D39,Hulpvelden!$A:$D,4,FALSE)="L1",SUM($F39:$J39),0)) -> 0 | X39: =IF($D39="",0,IF(VLOOKUP($D39,Hulpvelden!$A:$D,4,FALSE)="L2",SUM($F39:$J39),0)) -> 0 | Y39: =IF($D39="",0,IF(VLOOKUP($D39,Hulpvelden!$A:$D,4,FALSE)="H1",SUM($F39:$J39),0)) -> 0 | Z39: =IF($D39="",0,IF(VLOOKUP($D39,Hulpvelden!$A:$D,4,FALSE)="H2",SUM($F39:$J39),0)) -> 0 | AA39: =(VLOOKUP(211, Hulpvelden!$A:$F, 6,FALSE)/(1+VLOOKUP(211, Hulpvelden!$A:$F, 6,FALSE)))*$W39+(VLOOKUP(212, Hulpvelden!$A:$F, 6,FALSE)/(1 +VLOOKUP(212, Hulpvelden!$A:$F, 6,FALSE)))*$X39+(VLOOKUP(221, Hulpvelden!$A:$F, 6,FALSE)/(1+VLOOKUP(221, Hulpvelden!$A:$F, 6,FALSE)))*$Y39+(VLOOKUP(222, Hulpvelden!$A:$F, 6,FALSE)/(1+VLOOKUP(222, Hulpvelden!$A:$F, 6,FALSE)))*$Z39 -> 0 | AB39: 0 | AC39: =IF($D39="",0,IF(VLOOKUP($D39,Hulpvelden!$A:$D,4,FALSE)="U",SUM($F39:$I39),0)) -> 0
B40: 1 | E40: =IF(ISNUMBER($D40),VLOOKUP($D40,Hulpvelden!$A:$D,2,FALSE),"") ->  | K40: 0 | L40: =$L$3-SUM($K$4:$K40) -> 14377.2 | S40: =IF($D40="",0,IF(AND(VLOOKUP($D40,Hulpvelden!$A:$D,3,FALSE)="J",OR(VLOOKUP($D40,Hulpvelden!$A:$D,4,FALSE)="H",VLOOKUP($D40,Hulpvelden!$A:$D,4,FALSE)="L")),$F40+$I40+$J40,IF(VLOOKUP($D40,Hulpvelden!$A:$D,3,FALSE)="J",SUM($F40:$J40),0))) -> 0 | T40: =IF($D40="",0,IF(OR(VLOOKUP($D40,Hulpvelden!$A:$D,4,FALSE)="H",VLOOKUP($D40,Hulpvelden!$A:$D,4,FALSE)="L"),$G40,IF(VLOOKUP($D40,Hulpvelden!$A:$D,4,FALSE)="50",0.5*$G40,0))) -> 0 | U40: =IF($D40="",0,IF(VLOOKUP($D40,Hulpvelden!$A:$D,4,FALSE)="J",$H40,0)) -> 0 | V40: =IF($D40="",0,IF(VLOOKUP($D40,Hulpvelden!$A:$D,4,FALSE)="O",SUM($F40:$J40),0)) -> 0 | W40: =IF($D40="",0,IF(VLOOKUP($D40,Hulpvelden!$A:$D,4,FALSE)="L1",SUM($F40:$J40),0)) -> 0 | X40: =IF($D40="",0,IF(VLOOKUP($D40,Hulpvelden!$A:$D,4,FALSE)="L2",SUM($F40:$J40),0)) -> 0 | Y40: =IF($D40="",0,IF(VLOOKUP($D40,Hulpvelden!$A:$D,4,FALSE)="H1",SUM($F40:$J40),0)) -> 0 | Z40: =IF($D40="",0,IF(VLOOKUP($D40,Hulpvelden!$A:$D,4,FALSE)="H2",SUM($F40:$J40),0)) -> 0 | AA40: =(VLOOKUP(211, Hulpvelden!$A:$F, 6,FALSE)/(1+VLOOKUP(211, Hulpvelden!$A:$F, 6,FALSE)))*$W40+(VLOOKUP(212, Hulpvelden!$A:$F, 6,FALSE)/(1 +VLOOKUP(212, Hulpvelden!$A:$F, 6,FALSE)))*$X40+(VLOOKUP(221, Hulpvelden!$A:$F, 6,FALSE)/(1+VLOOKUP(221, Hulpvelden!$A:$F, 6,FALSE)))*$Y40+(VLOOKUP(222, Hulpvelden!$A:$F, 6,FALSE)/(1+VLOOKUP(222, Hulpvelden!$A:$F, 6,FALSE)))*$Z40 -> 0 | AB40: 0 | AC40: =IF($D40="",0,IF(VLOOKUP($D40,Hulpvelden!$A:$D,4,FALSE)="U",SUM($F40:$I40),0)) -> 0
B41: 1 | E41: =IF(ISNUMBER($D41),VLOOKUP($D41,Hulpvelden!$A:$D,2,FALSE),"") ->  | K41: 0 | L41: =$L$3-SUM($K$4:$K41) -> 14377.2 | S41: =IF($D41="",0,IF(AND(VLOOKUP($D41,Hulpvelden!$A:$D,3,FALSE)="J",OR(VLOOKUP($D41,Hulpvelden!$A:$D,4,FALSE)="H",VLOOKUP($D41,Hulpvelden!$A:$D,4,FALSE)="L")),$F41+$I41+$J41,IF(VLOOKUP($D41,Hulpvelden!$A:$D,3,FALSE)="J",SUM($F41:$J41),0))) -> 0 | T41: =IF($D41="",0,IF(OR(VLOOKUP($D41,Hulpvelden!$A:$D,4,FALSE)="H",VLOOKUP($D41,Hulpvelden!$A:$D,4,FALSE)="L"),$G41,IF(VLOOKUP($D41,Hulpvelden!$A:$D,4,FALSE)="50",0.5*$G41,0))) -> 0 | U41: =IF($D41="",0,IF(VLOOKUP($D41,Hulpvelden!$A:$D,4,FALSE)="J",$H41,0)) -> 0 | V41: =IF($D41="",0,IF(VLOOKUP($D41,Hulpvelden!$A:$D,4,FALSE)="O",SUM($F41:$J41),0)) -> 0 | W41: =IF($D41="",0,IF(VLOOKUP($D41,Hulpvelden!$A:$D,4,FALSE)="L1",SUM($F41:$J41),0)) -> 0 | X41: =IF($D41="",0,IF(VLOOKUP($D41,Hulpvelden!$A:$D,4,FALSE)="L2",SUM($F41:$J41),0)) -> 0 | Y41: =IF($D41="",0,IF(VLOOKUP($D41,Hulpvelden!$A:$D,4,FALSE)="H1",SUM($F41:$J41),0)) -> 0 | Z41: =IF($D41="",0,IF(VLOOKUP($D41,Hulpvelden!$A:$D,4,FALSE)="H2",SUM($F41:$J41),0)) -> 0 | AA41: =(VLOOKUP(211, Hulpvelden!$A:$F, 6,FALSE)/(1+VLOOKUP(211, Hulpvelden!$A:$F, 6,FALSE)))*$W41+(VLOOKUP(212, Hulpvelden!$A:$F, 6,FALSE)/(1 +VLOOKUP(212, Hulpvelden!$A:$F, 6,FALSE)))*$X41+(VLOOKUP(221, Hulpvelden!$A:$F, 6,FALSE)/(1+VLOOKUP(221, Hulpvelden!$A:$F, 6,FALSE)))*$Y41+(VLOOKUP(222, Hulpvelden!$A:$F, 6,FALSE)/(1+VLOOKUP(222, Hulpvelden!$A:$F, 6,FALSE)))*$Z41 -> 0 | AB41: 0 | AC41: =IF($D41="",0,IF(VLOOKUP($D41,Hulpvelden!$A:$D,4,FALSE)="U",SUM($F41:$I41),0)) -> 0
B42: 1 | E42: =IF(ISNUMBER($D42),VLOOKUP($D42,Hulpvelden!$A:$D,2,FALSE),"") ->  | K42: 0 | L42: =$L$3-SUM($K$4:$K42) -> 14377.2 | S42: =IF($D42="",0,IF(AND(VLOOKUP($D42,Hulpvelden!$A:$D,3,FALSE)="J",OR(VLOOKUP($D42,Hulpvelden!$A:$D,4,FALSE)="H",VLOOKUP($D42,Hulpvelden!$A:$D,4,FALSE)="L")),$F42+$I42+$J42,IF(VLOOKUP($D42,Hulpvelden!$A:$D,3,FALSE)="J",SUM($F42:$J42),0))) -> 0 | T42: =IF($D42="",0,IF(OR(VLOOKUP($D42,Hulpvelden!$A:$D,4,FALSE)="H",VLOOKUP($D42,Hulpvelden!$A:$D,4,FALSE)="L"),$G42,IF(VLOOKUP($D42,Hulpvelden!$A:$D,4,FALSE)="50",0.5*$G42,0))) -> 0 | U42: =IF($D42="",0,IF(VLOOKUP($D42,Hulpvelden!$A:$D,4,FALSE)="J",$H42,0)) -> 0 | V42: =IF($D42="",0,IF(VLOOKUP($D42,Hulpvelden!$A:$D,4,FALSE)="O",SUM($F42:$J42),0)) -> 0 | W42: =IF($D42="",0,IF(VLOOKUP($D42,Hulpvelden!$A:$D,4,FALSE)="L1",SUM($F42:$J42),0)) -> 0 | X42: =IF($D42="",0,IF(VLOOKUP($D42,Hulpvelden!$A:$D,4,FALSE)="L2",SUM($F42:$J42),0)) -> 0 | Y42: =IF($D42="",0,IF(VLOOKUP($D42,Hulpvelden!$A:$D,4,FALSE)="H1",SUM($F42:$J42),0)) -> 0 | Z42: =IF($D42="",0,IF(VLOOKUP($D42,Hulpvelden!$A:$D,4,FALSE)="H2",SUM($F42:$J42),0)) -> 0 | AA42: =(VLOOKUP(211, Hulpvelden!$A:$F, 6,FALSE)/(1+VLOOKUP(211, Hulpvelden!$A:$F, 6,FALSE)))*$W42+(VLOOKUP(212, Hulpvelden!$A:$F, 6,FALSE)/(1 +VLOOKUP(212, Hulpvelden!$A:$F, 6,FALSE)))*$X42+(VLOOKUP(221, Hulpvelden!$A:$F, 6,FALSE)/(1+VLOOKUP(221, Hulpvelden!$A:$F, 6,FALSE)))*$Y42+(VLOOKUP(222, Hulpvelden!$A:$F, 6,FALSE)/(1+VLOOKUP(222, Hulpvelden!$A:$F, 6,FALSE)))*$Z42 -> 0 | AB42: 0 | AC42: =IF($D42="",0,IF(VLOOKUP($D42,Hulpvelden!$A:$D,4,FALSE)="U",SUM($F42:$I42),0)) -> 0
B43: 1 | E43: =IF(ISNUMBER($D43),VLOOKUP($D43,Hulpvelden!$A:$D,2,FALSE),"") ->  | K43: 0 | L43: =$L$3-SUM($K$4:$K43) -> 14377.2 | S43: =IF($D43="",0,IF(AND(VLOOKUP($D43,Hulpvelden!$A:$D,3,FALSE)="J",OR(VLOOKUP($D43,Hulpvelden!$A:$D,4,FALSE)="H",VLOOKUP($D43,Hulpvelden!$A:$D,4,FALSE)="L")),$F43+$I43+$J43,IF(VLOOKUP($D43,Hulpvelden!$A:$D,3,FALSE)="J",SUM($F43:$J43),0))) -> 0 | T43: =IF($D43="",0,IF(OR(VLOOKUP($D43,Hulpvelden!$A:$D,4,FALSE)="H",VLOOKUP($D43,Hulpvelden!$A:$D,4,FALSE)="L"),$G43,IF(VLOOKUP($D43,Hulpvelden!$A:$D,4,FALSE)="50",0.5*$G43,0))) -> 0 | U43: =IF($D43="",0,IF(VLOOKUP($D43,Hulpvelden!$A:$D,4,FALSE)="J",$H43,0)) -> 0 | V43: =IF($D43="",0,IF(VLOOKUP($D43,Hulpvelden!$A:$D,4,FALSE)="O",SUM($F43:$J43),0)) -> 0 | W43: =IF($D43="",0,IF(VLOOKUP($D43,Hulpvelden!$A:$D,4,FALSE)="L1",SUM($F43:$J43),0)) -> 0 | X43: =IF($D43="",0,IF(VLOOKUP($D43,Hulpvelden!$A:$D,4,FALSE)="L2",SUM($F43:$J43),0)) -> 0 | Y43: =IF($D43="",0,IF(VLOOKUP($D43,Hulpvelden!$A:$D,4,FALSE)="H1",SUM($F43:$J43),0)) -> 0 | Z43: =IF($D43="",0,IF(VLOOKUP($D43,Hulpvelden!$A:$D,4,FALSE)="H2",SUM($F43:$J43),0)) -> 0 | AA43: =(VLOOKUP(211, Hulpvelden!$A:$F, 6,FALSE)/(1+VLOOKUP(211, Hulpvelden!$A:$F, 6,FALSE)))*$W43+(VLOOKUP(212, Hulpvelden!$A:$F, 6,FALSE)/(1 +VLOOKUP(212, Hulpvelden!$A:$F, 6,FALSE)))*$X43+(VLOOKUP(221, Hulpvelden!$A:$F, 6,FALSE)/(1+VLOOKUP(221, Hulpvelden!$A:$F, 6,FALSE)))*$Y43+(VLOOKUP(222, Hulpvelden!$A:$F, 6,FALSE)/(1+VLOOKUP(222, Hulpvelden!$A:$F, 6,FALSE)))*$Z43 -> 0 | AB43: 0 | AC43: =IF($D43="",0,IF(VLOOKUP($D43,Hulpvelden!$A:$D,4,FALSE)="U",SUM($F43:$I43),0)) -> 0
B44: 1 | E44: =IF(ISNUMBER($D44),VLOOKUP($D44,Hulpvelden!$A:$D,2,FALSE),"") ->  | K44: 0 | L44: =$L$3-SUM($K$4:$K44) -> 14377.2 | S44: =IF($D44="",0,IF(AND(VLOOKUP($D44,Hulpvelden!$A:$D,3,FALSE)="J",OR(VLOOKUP($D44,Hulpvelden!$A:$D,4,FALSE)="H",VLOOKUP($D44,Hulpvelden!$A:$D,4,FALSE)="L")),$F44+$I44+$J44,IF(VLOOKUP($D44,Hulpvelden!$A:$D,3,FALSE)="J",SUM($F44:$J44),0))) -> 0 | T44: =IF($D44="",0,IF(OR(VLOOKUP($D44,Hulpvelden!$A:$D,4,FALSE)="H",VLOOKUP($D44,Hulpvelden!$A:$D,4,FALSE)="L"),$G44,IF(VLOOKUP($D44,Hulpvelden!$A:$D,4,FALSE)="50",0.5*$G44,0))) -> 0 | U44: =IF($D44="",0,IF(VLOOKUP($D44,Hulpvelden!$A:$D,4,FALSE)="J",$H44,0)) -> 0 | V44: =IF($D44="",0,IF(VLOOKUP($D44,Hulpvelden!$A:$D,4,FALSE)="O",SUM($F44:$J44),0)) -> 0 | W44: =IF($D44="",0,IF(VLOOKUP($D44,Hulpvelden!$A:$D,4,FALSE)="L1",SUM($F44:$J44),0)) -> 0 | X44: =IF($D44="",0,IF(VLOOKUP($D44,Hulpvelden!$A:$D,4,FALSE)="L2",SUM($F44:$J44),0)) -> 0 | Y44: =IF($D44="",0,IF(VLOOKUP($D44,Hulpvelden!$A:$D,4,FALSE)="H1",SUM($F44:$J44),0)) -> 0 | Z44: =IF($D44="",0,IF(VLOOKUP($D44,Hulpvelden!$A:$D,4,FALSE)="H2",SUM($F44:$J44),0)) -> 0 | AA44: =(VLOOKUP(211, Hulpvelden!$A:$F, 6,FALSE)/(1+VLOOKUP(211, Hulpvelden!$A:$F, 6,FALSE)))*$W44+(VLOOKUP(212, Hulpvelden!$A:$F, 6,FALSE)/(1 +VLOOKUP(212, Hulpvelden!$A:$F, 6,FALSE)))*$X44+(VLOOKUP(221, Hulpvelden!$A:$F, 6,FALSE)/(1+VLOOKUP(221, Hulpvelden!$A:$F, 6,FALSE)))*$Y44+(VLOOKUP(222, Hulpvelden!$A:$F, 6,FALSE)/(1+VLOOKUP(222, Hulpvelden!$A:$F, 6,FALSE)))*$Z44 -> 0 | AB44: 0 | AC44: =IF($D44="",0,IF(VLOOKUP($D44,Hulpvelden!$A:$D,4,FALSE)="U",SUM($F44:$I44),0)) -> 0
B45: 1 | E45: =IF(ISNUMBER($D45),VLOOKUP($D45,Hulpvelden!$A:$D,2,FALSE),"") ->  | K45: 0 | L45: =$L$3-SUM($K$4:$K45) -> 14377.2 | S45: =IF($D45="",0,IF(AND(VLOOKUP($D45,Hulpvelden!$A:$D,3,FALSE)="J",OR(VLOOKUP($D45,Hulpvelden!$A:$D,4,FALSE)="H",VLOOKUP($D45,Hulpvelden!$A:$D,4,FALSE)="L")),$F45+$I45+$J45,IF(VLOOKUP($D45,Hulpvelden!$A:$D,3,FALSE)="J",SUM($F45:$J45),0))) -> 0 | T45: =IF($D45="",0,IF(OR(VLOOKUP($D45,Hulpvelden!$A:$D,4,FALSE)="H",VLOOKUP($D45,Hulpvelden!$A:$D,4,FALSE)="L"),$G45,IF(VLOOKUP($D45,Hulpvelden!$A:$D,4,FALSE)="50",0.5*$G45,0))) -> 0 | U45: =IF($D45="",0,IF(VLOOKUP($D45,Hulpvelden!$A:$D,4,FALSE)="J",$H45,0)) -> 0 | V45: =IF($D45="",0,IF(VLOOKUP($D45,Hulpvelden!$A:$D,4,FALSE)="O",SUM($F45:$J45),0)) -> 0 | W45: =IF($D45="",0,IF(VLOOKUP($D45,Hulpvelden!$A:$D,4,FALSE)="L1",SUM($F45:$J45),0)) -> 0 | X45: =IF($D45="",0,IF(VLOOKUP($D45,Hulpvelden!$A:$D,4,FALSE)="L2",SUM($F45:$J45),0)) -> 0 | Y45: =IF($D45="",0,IF(VLOOKUP($D45,Hulpvelden!$A:$D,4,FALSE)="H1",SUM($F45:$J45),0)) -> 0 | Z45: =IF($D45="",0,IF(VLOOKUP($D45,Hulpvelden!$A:$D,4,FALSE)="H2",SUM($F45:$J45),0)) -> 0 | AA45: =(VLOOKUP(211, Hulpvelden!$A:$F, 6,FALSE)/(1+VLOOKUP(211, Hulpvelden!$A:$F, 6,FALSE)))*$W45+(VLOOKUP(212, Hulpvelden!$A:$F, 6,FALSE)/(1 +VLOOKUP(212, Hulpvelden!$A:$F, 6,FALSE)))*$X45+(VLOOKUP(221, Hulpvelden!$A:$F, 6,FALSE)/(1+VLOOKUP(221, Hulpvelden!$A:$F, 6,FALSE)))*$Y45+(VLOOKUP(222, Hulpvelden!$A:$F, 6,FALSE)/(1+VLOOKUP(222, Hulpvelden!$A:$F, 6,FALSE)))*$Z45 -> 0 | AB45: 0 | AC45: =IF($D45="",0,IF(VLOOKUP($D45,Hulpvelden!$A:$D,4,FALSE)="U",SUM($F45:$I45),0)) -> 0
B46: 1 | E46: =IF(ISNUMBER($D46),VLOOKUP($D46,Hulpvelden!$A:$D,2,FALSE),"") ->  | K46: 0 | L46: =$L$3-SUM($K$4:$K46) -> 14377.2 | S46: =IF($D46="",0,IF(AND(VLOOKUP($D46,Hulpvelden!$A:$D,3,FALSE)="J",OR(VLOOKUP($D46,Hulpvelden!$A:$D,4,FALSE)="H",VLOOKUP($D46,Hulpvelden!$A:$D,4,FALSE)="L")),$F46+$I46+$J46,IF(VLOOKUP($D46,Hulpvelden!$A:$D,3,FALSE)="J",SUM($F46:$J46),0))) -> 0 | T46: =IF($D46="",0,IF(OR(VLOOKUP($D46,Hulpvelden!$A:$D,4,FALSE)="H",VLOOKUP($D46,Hulpvelden!$A:$D,4,FALSE)="L"),$G46,IF(VLOOKUP($D46,Hulpvelden!$A:$D,4,FALSE)="50",0.5*$G46,0))) -> 0 | U46: =IF($D46="",0,IF(VLOOKUP($D46,Hulpvelden!$A:$D,4,FALSE)="J",$H46,0)) -> 0 | V46: =IF($D46="",0,IF(VLOOKUP($D46,Hulpvelden!$A:$D,4,FALSE)="O",SUM($F46:$J46),0)) -> 0 | W46: =IF($D46="",0,IF(VLOOKUP($D46,Hulpvelden!$A:$D,4,FALSE)="L1",SUM($F46:$J46),0)) -> 0 | X46: =IF($D46="",0,IF(VLOOKUP($D46,Hulpvelden!$A:$D,4,FALSE)="L2",SUM($F46:$J46),0)) -> 0 | Y46: =IF($D46="",0,IF(VLOOKUP($D46,Hulpvelden!$A:$D,4,FALSE)="H1",SUM($F46:$J46),0)) -> 0 | Z46: =IF($D46="",0,IF(VLOOKUP($D46,Hulpvelden!$A:$D,4,FALSE)="H2",SUM($F46:$J46),0)) -> 0 | AA46: =(VLOOKUP(211, Hulpvelden!$A:$F, 6,FALSE)/(1+VLOOKUP(211, Hulpvelden!$A:$F, 6,FALSE)))*$W46+(VLOOKUP(212, Hulpvelden!$A:$F, 6,FALSE)/(1 +VLOOKUP(212, Hulpvelden!$A:$F, 6,FALSE)))*$X46+(VLOOKUP(221, Hulpvelden!$A:$F, 6,FALSE)/(1+VLOOKUP(221, Hulpvelden!$A:$F, 6,FALSE)))*$Y46+(VLOOKUP(222, Hulpvelden!$A:$F, 6,FALSE)/(1+VLOOKUP(222, Hulpvelden!$A:$F, 6,FALSE)))*$Z46 -> 0 | AB46: 0 | AC46: =IF($D46="",0,IF(VLOOKUP($D46,Hulpvelden!$A:$D,4,FALSE)="U",SUM($F46:$I46),0)) -> 0
B47: 1 | E47: =IF(ISNUMBER($D47),VLOOKUP($D47,Hulpvelden!$A:$D,2,FALSE),"") ->  | K47: 0 | L47: =$L$3-SUM($K$4:$K47) -> 14377.2 | S47: =IF($D47="",0,IF(AND(VLOOKUP($D47,Hulpvelden!$A:$D,3,FALSE)="J",OR(VLOOKUP($D47,Hulpvelden!$A:$D,4,FALSE)="H",VLOOKUP($D47,Hulpvelden!$A:$D,4,FALSE)="L")),$F47+$I47+$J47,IF(VLOOKUP($D47,Hulpvelden!$A:$D,3,FALSE)="J",SUM($F47:$J47),0))) -> 0 | T47: =IF($D47="",0,IF(OR(VLOOKUP($D47,Hulpvelden!$A:$D,4,FALSE)="H",VLOOKUP($D47,Hulpvelden!$A:$D,4,FALSE)="L"),$G47,IF(VLOOKUP($D47,Hulpvelden!$A:$D,4,FALSE)="50",0.5*$G47,0))) -> 0 | U47: =IF($D47="",0,IF(VLOOKUP($D47,Hulpvelden!$A:$D,4,FALSE)="J",$H47,0)) -> 0 | V47: =IF($D47="",0,IF(VLOOKUP($D47,Hulpvelden!$A:$D,4,FALSE)="O",SUM($F47:$J47),0)) -> 0 | W47: =IF($D47="",0,IF(VLOOKUP($D47,Hulpvelden!$A:$D,4,FALSE)="L1",SUM($F47:$J47),0)) -> 0 | X47: =IF($D47="",0,IF(VLOOKUP($D47,Hulpvelden!$A:$D,4,FALSE)="L2",SUM($F47:$J47),0)) -> 0 | Y47: =IF($D47="",0,IF(VLOOKUP($D47,Hulpvelden!$A:$D,4,FALSE)="H1",SUM($F47:$J47),0)) -> 0 | Z47: =IF($D47="",0,IF(VLOOKUP($D47,Hulpvelden!$A:$D,4,FALSE)="H2",SUM($F47:$J47),0)) -> 0 | AA47: =(VLOOKUP(211, Hulpvelden!$A:$F, 6,FALSE)/(1+VLOOKUP(211, Hulpvelden!$A:$F, 6,FALSE)))*$W47+(VLOOKUP(212, Hulpvelden!$A:$F, 6,FALSE)/(1 +VLOOKUP(212, Hulpvelden!$A:$F, 6,FALSE)))*$X47+(VLOOKUP(221, Hulpvelden!$A:$F, 6,FALSE)/(1+VLOOKUP(221, Hulpvelden!$A:$F, 6,FALSE)))*$Y47+(VLOOKUP(222, Hulpvelden!$A:$F, 6,FALSE)/(1+VLOOKUP(222, Hulpvelden!$A:$F, 6,FALSE)))*$Z47 -> 0 | AB47: 0 | AC47: =IF($D47="",0,IF(VLOOKUP($D47,Hulpvelden!$A:$D,4,FALSE)="U",SUM($F47:$I47),0)) -> 0
B48: 1 | E48: =IF(ISNUMBER($D48),VLOOKUP($D48,Hulpvelden!$A:$D,2,FALSE),"") ->  | K48: 0 | L48: =$L$3-SUM($K$4:$K48) -> 14377.2 | S48: =IF($D48="",0,IF(AND(VLOOKUP($D48,Hulpvelden!$A:$D,3,FALSE)="J",OR(VLOOKUP($D48,Hulpvelden!$A:$D,4,FALSE)="H",VLOOKUP($D48,Hulpvelden!$A:$D,4,FALSE)="L")),$F48+$I48+$J48,IF(VLOOKUP($D48,Hulpvelden!$A:$D,3,FALSE)="J",SUM($F48:$J48),0))) -> 0 | T48: =IF($D48="",0,IF(OR(VLOOKUP($D48,Hulpvelden!$A:$D,4,FALSE)="H",VLOOKUP($D48,Hulpvelden!$A:$D,4,FALSE)="L"),$G48,IF(VLOOKUP($D48,Hulpvelden!$A:$D,4,FALSE)="50",0.5*$G48,0))) -> 0 | U48: =IF($D48="",0,IF(VLOOKUP($D48,Hulpvelden!$A:$D,4,FALSE)="J",$H48,0)) -> 0 | V48: =IF($D48="",0,IF(VLOOKUP($D48,Hulpvelden!$A:$D,4,FALSE)="O",SUM($F48:$J48),0)) -> 0 | W48: =IF($D48="",0,IF(VLOOKUP($D48,Hulpvelden!$A:$D,4,FALSE)="L1",SUM($F48:$J48),0)) -> 0 | X48: =IF($D48="",0,IF(VLOOKUP($D48,Hulpvelden!$A:$D,4,FALSE)="L2",SUM($F48:$J48),0)) -> 0 | Y48: =IF($D48="",0,IF(VLOOKUP($D48,Hulpvelden!$A:$D,4,FALSE)="H1",SUM($F48:$J48),0)) -> 0 | Z48: =IF($D48="",0,IF(VLOOKUP($D48,Hulpvelden!$A:$D,4,FALSE)="H2",SUM($F48:$J48),0)) -> 0 | AA48: =(VLOOKUP(211, Hulpvelden!$A:$F, 6,FALSE)/(1+VLOOKUP(211, Hulpvelden!$A:$F, 6,FALSE)))*$W48+(VLOOKUP(212, Hulpvelden!$A:$F, 6,FALSE)/(1 +VLOOKUP(212, Hulpvelden!$A:$F, 6,FALSE)))*$X48+(VLOOKUP(221, Hulpvelden!$A:$F, 6,FALSE)/(1+VLOOKUP(221, Hulpvelden!$A:$F, 6,FALSE)))*$Y48+(VLOOKUP(222, Hulpvelden!$A:$F, 6,FALSE)/(1+VLOOKUP(222, Hulpvelden!$A:$F, 6,FALSE)))*$Z48 -> 0 | AB48: 0 | AC48: =IF($D48="",0,IF(VLOOKUP($D48,Hulpvelden!$A:$D,4,FALSE)="U",SUM($F48:$I48),0)) -> 0
B49: 1 | E49: =IF(ISNUMBER($D49),VLOOKUP($D49,Hulpvelden!$A:$D,2,FALSE),"") ->  | K49: 0 | L49: =$L$3-SUM($K$4:$K49) -> 14377.2 | S49: =IF($D49="",0,IF(AND(VLOOKUP($D49,Hulpvelden!$A:$D,3,FALSE)="J",OR(VLOOKUP($D49,Hulpvelden!$A:$D,4,FALSE)="H",VLOOKUP($D49,Hulpvelden!$A:$D,4,FALSE)="L")),$F49+$I49+$J49,IF(VLOOKUP($D49,Hulpvelden!$A:$D,3,FALSE)="J",SUM($F49:$J49),0))) -> 0 | T49: =IF($D49="",0,IF(OR(VLOOKUP($D49,Hulpvelden!$A:$D,4,FALSE)="H",VLOOKUP($D49,Hulpvelden!$A:$D,4,FALSE)="L"),$G49,IF(VLOOKUP($D49,Hulpvelden!$A:$D,4,FALSE)="50",0.5*$G49,0))) -> 0 | U49: =IF($D49="",0,IF(VLOOKUP($D49,Hulpvelden!$A:$D,4,FALSE)="J",$H49,0)) -> 0 | V49: =IF($D49="",0,IF(VLOOKUP($D49,Hulpvelden!$A:$D,4,FALSE)="O",SUM($F49:$J49),0)) -> 0 | W49: =IF($D49="",0,IF(VLOOKUP($D49,Hulpvelden!$A:$D,4,FALSE)="L1",SUM($F49:$J49),0)) -> 0 | X49: =IF($D49="",0,IF(VLOOKUP($D49,Hulpvelden!$A:$D,4,FALSE)="L2",SUM($F49:$J49),0)) -> 0 | Y49: =IF($D49="",0,IF(VLOOKUP($D49,Hulpvelden!$A:$D,4,FALSE)="H1",SUM($F49:$J49),0)) -> 0 | Z49: =IF($D49="",0,IF(VLOOKUP($D49,Hulpvelden!$A:$D,4,FALSE)="H2",SUM($F49:$J49),0)) -> 0 | AA49: =(VLOOKUP(211, Hulpvelden!$A:$F, 6,FALSE)/(1+VLOOKUP(211, Hulpvelden!$A:$F, 6,FALSE)))*$W49+(VLOOKUP(212, Hulpvelden!$A:$F, 6,FALSE)/(1 +VLOOKUP(212, Hulpvelden!$A:$F, 6,FALSE)))*$X49+(VLOOKUP(221, Hulpvelden!$A:$F, 6,FALSE)/(1+VLOOKUP(221, Hulpvelden!$A:$F, 6,FALSE)))*$Y49+(VLOOKUP(222, Hulpvelden!$A:$F, 6,FALSE)/(1+VLOOKUP(222, Hulpvelden!$A:$F, 6,FALSE)))*$Z49 -> 0 | AB49: 0 | AC49: =IF($D49="",0,IF(VLOOKUP($D49,Hulpvelden!$A:$D,4,FALSE)="U",SUM($F49:$I49),0)) -> 0
B50: 1 | E50: =IF(ISNUMBER($D50),VLOOKUP($D50,Hulpvelden!$A:$D,2,FALSE),"") ->  | K50: 0 | L50: =$L$3-SUM($K$4:$K50) -> 14377.2 | S50: =IF($D50="",0,IF(AND(VLOOKUP($D50,Hulpvelden!$A:$D,3,FALSE)="J",OR(VLOOKUP($D50,Hulpvelden!$A:$D,4,FALSE)="H",VLOOKUP($D50,Hulpvelden!$A:$D,4,FALSE)="L")),$F50+$I50+$J50,IF(VLOOKUP($D50,Hulpvelden!$A:$D,3,FALSE)="J",SUM($F50:$J50),0))) -> 0 | T50: =IF($D50="",0,IF(OR(VLOOKUP($D50,Hulpvelden!$A:$D,4,FALSE)="H",VLOOKUP($D50,Hulpvelden!$A:$D,4,FALSE)="L"),$G50,IF(VLOOKUP($D50,Hulpvelden!$A:$D,4,FALSE)="50",0.5*$G50,0))) -> 0 | U50: =IF($D50="",0,IF(VLOOKUP($D50,Hulpvelden!$A:$D,4,FALSE)="J",$H50,0)) -> 0 | V50: =IF($D50="",0,IF(VLOOKUP($D50,Hulpvelden!$A:$D,4,FALSE)="O",SUM($F50:$J50),0)) -> 0 | W50: =IF($D50="",0,IF(VLOOKUP($D50,Hulpvelden!$A:$D,4,FALSE)="L1",SUM($F50:$J50),0)) -> 0 | X50: =IF($D50="",0,IF(VLOOKUP($D50,Hulpvelden!$A:$D,4,FALSE)="L2",SUM($F50:$J50),0)) -> 0 | Y50: =IF($D50="",0,IF(VLOOKUP($D50,Hulpvelden!$A:$D,4,FALSE)="H1",SUM($F50:$J50),0)) -> 0 | Z50: =IF($D50="",0,IF(VLOOKUP($D50,Hulpvelden!$A:$D,4,FALSE)="H2",SUM($F50:$J50),0)) -> 0 | AA50: =(VLOOKUP(211, Hulpvelden!$A:$F, 6,FALSE)/(1+VLOOKUP(211, Hulpvelden!$A:$F, 6,FALSE)))*$W50+(VLOOKUP(212, Hulpvelden!$A:$F, 6,FALSE)/(1 +VLOOKUP(212, Hulpvelden!$A:$F, 6,FALSE)))*$X50+(VLOOKUP(221, Hulpvelden!$A:$F, 6,FALSE)/(1+VLOOKUP(221, Hulpvelden!$A:$F, 6,FALSE)))*$Y50+(VLOOKUP(222, Hulpvelden!$A:$F, 6,FALSE)/(1+VLOOKUP(222, Hulpvelden!$A:$F, 6,FALSE)))*$Z50 -> 0 | AB50: 0 | AC50: =IF($D50="",0,IF(VLOOKUP($D50,Hulpvelden!$A:$D,4,FALSE)="U",SUM($F50:$I50),0)) -> 0
B51: 1 | E51: =IF(ISNUMBER($D51),VLOOKUP($D51,Hulpvelden!$A:$D,2,FALSE),"") ->  | K51: 0 | L51: =$L$3-SUM($K$4:$K51) -> 14377.2 | S51: =IF($D51="",0,IF(AND(VLOOKUP($D51,Hulpvelden!$A:$D,3,FALSE)="J",OR(VLOOKUP($D51,Hulpvelden!$A:$D,4,FALSE)="H",VLOOKUP($D51,Hulpvelden!$A:$D,4,FALSE)="L")),$F51+$I51+$J51,IF(VLOOKUP($D51,Hulpvelden!$A:$D,3,FALSE)="J",SUM($F51:$J51),0))) -> 0 | T51: =IF($D51="",0,IF(OR(VLOOKUP($D51,Hulpvelden!$A:$D,4,FALSE)="H",VLOOKUP($D51,Hulpvelden!$A:$D,4,FALSE)="L"),$G51,IF(VLOOKUP($D51,Hulpvelden!$A:$D,4,FALSE)="50",0.5*$G51,0))) -> 0 | U51: =IF($D51="",0,IF(VLOOKUP($D51,Hulpvelden!$A:$D,4,FALSE)="J",$H51,0)) -> 0 | V51: =IF($D51="",0,IF(VLOOKUP($D51,Hulpvelden!$A:$D,4,FALSE)="O",SUM($F51:$J51),0)) -> 0 | W51: =IF($D51="",0,IF(VLOOKUP($D51,Hulpvelden!$A:$D,4,FALSE)="L1",SUM($F51:$J51),0)) -> 0 | X51: =IF($D51="",0,IF(VLOOKUP($D51,Hulpvelden!$A:$D,4,FALSE)="L2",SUM($F51:$J51),0)) -> 0 | Y51: =IF($D51="",0,IF(VLOOKUP($D51,Hulpvelden!$A:$D,4,FALSE)="H1",SUM($F51:$J51),0)) -> 0 | Z51: =IF($D51="",0,IF(VLOOKUP($D51,Hulpvelden!$A:$D,4,FALSE)="H2",SUM($F51:$J51),0)) -> 0 | AA51: =(VLOOKUP(211, Hulpvelden!$A:$F, 6,FALSE)/(1+VLOOKUP(211, Hulpvelden!$A:$F, 6,FALSE)))*$W51+(VLOOKUP(212, Hulpvelden!$A:$F, 6,FALSE)/(1 +VLOOKUP(212, Hulpvelden!$A:$F, 6,FALSE)))*$X51+(VLOOKUP(221, Hulpvelden!$A:$F, 6,FALSE)/(1+VLOOKUP(221, Hulpvelden!$A:$F, 6,FALSE)))*$Y51+(VLOOKUP(222, Hulpvelden!$A:$F, 6,FALSE)/(1+VLOOKUP(222, Hulpvelden!$A:$F, 6,FALSE)))*$Z51 -> 0 | AB51: 0 | AC51: =IF($D51="",0,IF(VLOOKUP($D51,Hulpvelden!$A:$D,4,FALSE)="U",SUM($F51:$I51),0)) -> 0
B52: 1 | E52: =IF(ISNUMBER($D52),VLOOKUP($D52,Hulpvelden!$A:$D,2,FALSE),"") ->  | K52: 0 | L52: =$L$3-SUM($K$4:$K52) -> 14377.2 | S52: =IF($D52="",0,IF(AND(VLOOKUP($D52,Hulpvelden!$A:$D,3,FALSE)="J",OR(VLOOKUP($D52,Hulpvelden!$A:$D,4,FALSE)="H",VLOOKUP($D52,Hulpvelden!$A:$D,4,FALSE)="L")),$F52+$I52+$J52,IF(VLOOKUP($D52,Hulpvelden!$A:$D,3,FALSE)="J",SUM($F52:$J52),0))) -> 0 | T52: =IF($D52="",0,IF(OR(VLOOKUP($D52,Hulpvelden!$A:$D,4,FALSE)="H",VLOOKUP($D52,Hulpvelden!$A:$D,4,FALSE)="L"),$G52,IF(VLOOKUP($D52,Hulpvelden!$A:$D,4,FALSE)="50",0.5*$G52,0))) -> 0 | U52: =IF($D52="",0,IF(VLOOKUP($D52,Hulpvelden!$A:$D,4,FALSE)="J",$H52,0)) -> 0 | V52: =IF($D52="",0,IF(VLOOKUP($D52,Hulpvelden!$A:$D,4,FALSE)="O",SUM($F52:$J52),0)) -> 0 | W52: =IF($D52="",0,IF(VLOOKUP($D52,Hulpvelden!$A:$D,4,FALSE)="L1",SUM($F52:$J52),0)) -> 0 | X52: =IF($D52="",0,IF(VLOOKUP($D52,Hulpvelden!$A:$D,4,FALSE)="L2",SUM($F52:$J52),0)) -> 0 | Y52: =IF($D52="",0,IF(VLOOKUP($D52,Hulpvelden!$A:$D,4,FALSE)="H1",SUM($F52:$J52),0)) -> 0 | Z52: =IF($D52="",0,IF(VLOOKUP($D52,Hulpvelden!$A:$D,4,FALSE)="H2",SUM($F52:$J52),0)) -> 0 | AA52: =(VLOOKUP(211, Hulpvelden!$A:$F, 6,FALSE)/(1+VLOOKUP(211, Hulpvelden!$A:$F, 6,FALSE)))*$W52+(VLOOKUP(212, Hulpvelden!$A:$F, 6,FALSE)/(1 +VLOOKUP(212, Hulpvelden!$A:$F, 6,FALSE)))*$X52+(VLOOKUP(221, Hulpvelden!$A:$F, 6,FALSE)/(1+VLOOKUP(221, Hulpvelden!$A:$F, 6,FALSE)))*$Y52+(VLOOKUP(222, Hulpvelden!$A:$F, 6,FALSE)/(1+VLOOKUP(222, Hulpvelden!$A:$F, 6,FALSE)))*$Z52 -> 0 | AB52: 0 | AC52: =IF($D52="",0,IF(VLOOKUP($D52,Hulpvelden!$A:$D,4,FALSE)="U",SUM($F52:$I52),0)) -> 0
B53: 1 | E53: =IF(ISNUMBER($D53),VLOOKUP($D53,Hulpvelden!$A:$D,2,FALSE),"") ->  | K53: 0 | L53: =$L$3-SUM($K$4:$K53) -> 14377.2 | S53: =IF($D53="",0,IF(AND(VLOOKUP($D53,Hulpvelden!$A:$D,3,FALSE)="J",OR(VLOOKUP($D53,Hulpvelden!$A:$D,4,FALSE)="H",VLOOKUP($D53,Hulpvelden!$A:$D,4,FALSE)="L")),$F53+$I53+$J53,IF(VLOOKUP($D53,Hulpvelden!$A:$D,3,FALSE)="J",SUM($F53:$J53),0))) -> 0 | T53: =IF($D53="",0,IF(OR(VLOOKUP($D53,Hulpvelden!$A:$D,4,FALSE)="H",VLOOKUP($D53,Hulpvelden!$A:$D,4,FALSE)="L"),$G53,IF(VLOOKUP($D53,Hulpvelden!$A:$D,4,FALSE)="50",0.5*$G53,0))) -> 0 | U53: =IF($D53="",0,IF(VLOOKUP($D53,Hulpvelden!$A:$D,4,FALSE)="J",$H53,0)) -> 0 | V53: =IF($D53="",0,IF(VLOOKUP($D53,Hulpvelden!$A:$D,4,FALSE)="O",SUM($F53:$J53),0)) -> 0 | W53: =IF($D53="",0,IF(VLOOKUP($D53,Hulpvelden!$A:$D,4,FALSE)="L1",SUM($F53:$J53),0)) -> 0 | X53: =IF($D53="",0,IF(VLOOKUP($D53,Hulpvelden!$A:$D,4,FALSE)="L2",SUM($F53:$J53),0)) -> 0 | Y53: =IF($D53="",0,IF(VLOOKUP($D53,Hulpvelden!$A:$D,4,FALSE)="H1",SUM($F53:$J53),0)) -> 0 | Z53: =IF($D53="",0,IF(VLOOKUP($D53,Hulpvelden!$A:$D,4,FALSE)="H2",SUM($F53:$J53),0)) -> 0 | AA53: =(VLOOKUP(211, Hulpvelden!$A:$F, 6,FALSE)/(1+VLOOKUP(211, Hulpvelden!$A:$F, 6,FALSE)))*$W53+(VLOOKUP(212, Hulpvelden!$A:$F, 6,FALSE)/(1 +VLOOKUP(212, Hulpvelden!$A:$F, 6,FALSE)))*$X53+(VLOOKUP(221, Hulpvelden!$A:$F, 6,FALSE)/(1+VLOOKUP(221, Hulpvelden!$A:$F, 6,FALSE)))*$Y53+(VLOOKUP(222, Hulpvelden!$A:$F, 6,FALSE)/(1+VLOOKUP(222, Hulpvelden!$A:$F, 6,FALSE)))*$Z53 -> 0 | AB53: 0 | AC53: =IF($D53="",0,IF(VLOOKUP($D53,Hulpvelden!$A:$D,4,FALSE)="U",SUM($F53:$I53),0)) -> 0
B54: 1 | E54: =IF(ISNUMBER($D54),VLOOKUP($D54,Hulpvelden!$A:$D,2,FALSE),"") ->  | K54: 0 | L54: =$L$3-SUM($K$4:$K54) -> 14377.2 | S54: =IF($D54="",0,IF(AND(VLOOKUP($D54,Hulpvelden!$A:$D,3,FALSE)="J",OR(VLOOKUP($D54,Hulpvelden!$A:$D,4,FALSE)="H",VLOOKUP($D54,Hulpvelden!$A:$D,4,FALSE)="L")),$F54+$I54+$J54,IF(VLOOKUP($D54,Hulpvelden!$A:$D,3,FALSE)="J",SUM($F54:$J54),0))) -> 0 | T54: =IF($D54="",0,IF(OR(VLOOKUP($D54,Hulpvelden!$A:$D,4,FALSE)="H",VLOOKUP($D54,Hulpvelden!$A:$D,4,FALSE)="L"),$G54,IF(VLOOKUP($D54,Hulpvelden!$A:$D,4,FALSE)="50",0.5*$G54,0))) -> 0 | U54: =IF($D54="",0,IF(VLOOKUP($D54,Hulpvelden!$A:$D,4,FALSE)="J",$H54,0)) -> 0 | V54: =IF($D54="",0,IF(VLOOKUP($D54,Hulpvelden!$A:$D,4,FALSE)="O",SUM($F54:$J54),0)) -> 0 | W54: =IF($D54="",0,IF(VLOOKUP($D54,Hulpvelden!$A:$D,4,FALSE)="L1",SUM($F54:$J54),0)) -> 0 | X54: =IF($D54="",0,IF(VLOOKUP($D54,Hulpvelden!$A:$D,4,FALSE)="L2",SUM($F54:$J54),0)) -> 0 | Y54: =IF($D54="",0,IF(VLOOKUP($D54,Hulpvelden!$A:$D,4,FALSE)="H1",SUM($F54:$J54),0)) -> 0 | Z54: =IF($D54="",0,IF(VLOOKUP($D54,Hulpvelden!$A:$D,4,FALSE)="H2",SUM($F54:$J54),0)) -> 0 | AA54: =(VLOOKUP(211, Hulpvelden!$A:$F, 6,FALSE)/(1+VLOOKUP(211, Hulpvelden!$A:$F, 6,FALSE)))*$W54+(VLOOKUP(212, Hulpvelden!$A:$F, 6,FALSE)/(1 +VLOOKUP(212, Hulpvelden!$A:$F, 6,FALSE)))*$X54+(VLOOKUP(221, Hulpvelden!$A:$F, 6,FALSE)/(1+VLOOKUP(221, Hulpvelden!$A:$F, 6,FALSE)))*$Y54+(VLOOKUP(222, Hulpvelden!$A:$F, 6,FALSE)/(1+VLOOKUP(222, Hulpvelden!$A:$F, 6,FALSE)))*$Z54 -> 0 | AB54: 0 | AC54: =IF($D54="",0,IF(VLOOKUP($D54,Hulpvelden!$A:$D,4,FALSE)="U",SUM($F54:$I54),0)) -> 0
B55: 1 | E55: =IF(ISNUMBER($D55),VLOOKUP($D55,Hulpvelden!$A:$D,2,FALSE),"") ->  | K55: 0 | L55: =$L$3-SUM($K$4:$K55) -> 14377.2 | S55: =IF($D55="",0,IF(AND(VLOOKUP($D55,Hulpvelden!$A:$D,3,FALSE)="J",OR(VLOOKUP($D55,Hulpvelden!$A:$D,4,FALSE)="H",VLOOKUP($D55,Hulpvelden!$A:$D,4,FALSE)="L")),$F55+$I55+$J55,IF(VLOOKUP($D55,Hulpvelden!$A:$D,3,FALSE)="J",SUM($F55:$J55),0))) -> 0 | T55: =IF($D55="",0,IF(OR(VLOOKUP($D55,Hulpvelden!$A:$D,4,FALSE)="H",VLOOKUP($D55,Hulpvelden!$A:$D,4,FALSE)="L"),$G55,IF(VLOOKUP($D55,Hulpvelden!$A:$D,4,FALSE)="50",0.5*$G55,0))) -> 0 | U55: =IF($D55="",0,IF(VLOOKUP($D55,Hulpvelden!$A:$D,4,FALSE)="J",$H55,0)) -> 0 | V55: =IF($D55="",0,IF(VLOOKUP($D55,Hulpvelden!$A:$D,4,FALSE)="O",SUM($F55:$J55),0)) -> 0 | W55: =IF($D55="",0,IF(VLOOKUP($D55,Hulpvelden!$A:$D,4,FALSE)="L1",SUM($F55:$J55),0)) -> 0 | X55: =IF($D55="",0,IF(VLOOKUP($D55,Hulpvelden!$A:$D,4,FALSE)="L2",SUM($F55:$J55),0)) -> 0 | Y55: =IF($D55="",0,IF(VLOOKUP($D55,Hulpvelden!$A:$D,4,FALSE)="H1",SUM($F55:$J55),0)) -> 0 | Z55: =IF($D55="",0,IF(VLOOKUP($D55,Hulpvelden!$A:$D,4,FALSE)="H2",SUM($F55:$J55),0)) -> 0 | AA55: =(VLOOKUP(211, Hulpvelden!$A:$F, 6,FALSE)/(1+VLOOKUP(211, Hulpvelden!$A:$F, 6,FALSE)))*$W55+(VLOOKUP(212, Hulpvelden!$A:$F, 6,FALSE)/(1 +VLOOKUP(212, Hulpvelden!$A:$F, 6,FALSE)))*$X55+(VLOOKUP(221, Hulpvelden!$A:$F, 6,FALSE)/(1+VLOOKUP(221, Hulpvelden!$A:$F, 6,FALSE)))*$Y55+(VLOOKUP(222, Hulpvelden!$A:$F, 6,FALSE)/(1+VLOOKUP(222, Hulpvelden!$A:$F, 6,FALSE)))*$Z55 -> 0 | AB55: 0 | AC55: =IF($D55="",0,IF(VLOOKUP($D55,Hulpvelden!$A:$D,4,FALSE)="U",SUM($F55:$I55),0)) -> 0
B56: 1 | E56: =IF(ISNUMBER($D56),VLOOKUP($D56,Hulpvelden!$A:$D,2,FALSE),"") ->  | K56: 0 | L56: =$L$3-SUM($K$4:$K56) -> 14377.2 | S56: =IF($D56="",0,IF(AND(VLOOKUP($D56,Hulpvelden!$A:$D,3,FALSE)="J",OR(VLOOKUP($D56,Hulpvelden!$A:$D,4,FALSE)="H",VLOOKUP($D56,Hulpvelden!$A:$D,4,FALSE)="L")),$F56+$I56+$J56,IF(VLOOKUP($D56,Hulpvelden!$A:$D,3,FALSE)="J",SUM($F56:$J56),0))) -> 0 | T56: =IF($D56="",0,IF(OR(VLOOKUP($D56,Hulpvelden!$A:$D,4,FALSE)="H",VLOOKUP($D56,Hulpvelden!$A:$D,4,FALSE)="L"),$G56,IF(VLOOKUP($D56,Hulpvelden!$A:$D,4,FALSE)="50",0.5*$G56,0))) -> 0 | U56: =IF($D56="",0,IF(VLOOKUP($D56,Hulpvelden!$A:$D,4,FALSE)="J",$H56,0)) -> 0 | V56: =IF($D56="",0,IF(VLOOKUP($D56,Hulpvelden!$A:$D,4,FALSE)="O",SUM($F56:$J56),0)) -> 0 | W56: =IF($D56="",0,IF(VLOOKUP($D56,Hulpvelden!$A:$D,4,FALSE)="L1",SUM($F56:$J56),0)) -> 0 | X56: =IF($D56="",0,IF(VLOOKUP($D56,Hulpvelden!$A:$D,4,FALSE)="L2",SUM($F56:$J56),0)) -> 0 | Y56: =IF($D56="",0,IF(VLOOKUP($D56,Hulpvelden!$A:$D,4,FALSE)="H1",SUM($F56:$J56),0)) -> 0 | Z56: =IF($D56="",0,IF(VLOOKUP($D56,Hulpvelden!$A:$D,4,FALSE)="H2",SUM($F56:$J56),0)) -> 0 | AA56: =(VLOOKUP(211, Hulpvelden!$A:$F, 6,FALSE)/(1+VLOOKUP(211, Hulpvelden!$A:$F, 6,FALSE)))*$W56+(VLOOKUP(212, Hulpvelden!$A:$F, 6,FALSE)/(1 +VLOOKUP(212, Hulpvelden!$A:$F, 6,FALSE)))*$X56+(VLOOKUP(221, Hulpvelden!$A:$F, 6,FALSE)/(1+VLOOKUP(221, Hulpvelden!$A:$F, 6,FALSE)))*$Y56+(VLOOKUP(222, Hulpvelden!$A:$F, 6,FALSE)/(1+VLOOKUP(222, Hulpvelden!$A:$F, 6,FALSE)))*$Z56 -> 0 | AB56: 0 | AC56: =IF($D56="",0,IF(VLOOKUP($D56,Hulpvelden!$A:$D,4,FALSE)="U",SUM($F56:$I56),0)) -> 0
B57: 1 | E57: =IF(ISNUMBER($D57),VLOOKUP($D57,Hulpvelden!$A:$D,2,FALSE),"") ->  | K57: 0 | L57: =$L$3-SUM($K$4:$K57) -> 14377.2 | S57: =IF($D57="",0,IF(AND(VLOOKUP($D57,Hulpvelden!$A:$D,3,FALSE)="J",OR(VLOOKUP($D57,Hulpvelden!$A:$D,4,FALSE)="H",VLOOKUP($D57,Hulpvelden!$A:$D,4,FALSE)="L")),$F57+$I57+$J57,IF(VLOOKUP($D57,Hulpvelden!$A:$D,3,FALSE)="J",SUM($F57:$J57),0))) -> 0 | T57: =IF($D57="",0,IF(OR(VLOOKUP($D57,Hulpvelden!$A:$D,4,FALSE)="H",VLOOKUP($D57,Hulpvelden!$A:$D,4,FALSE)="L"),$G57,IF(VLOOKUP($D57,Hulpvelden!$A:$D,4,FALSE)="50",0.5*$G57,0))) -> 0 | U57: =IF($D57="",0,IF(VLOOKUP($D57,Hulpvelden!$A:$D,4,FALSE)="J",$H57,0)) -> 0 | V57: =IF($D57="",0,IF(VLOOKUP($D57,Hulpvelden!$A:$D,4,FALSE)="O",SUM($F57:$J57),0)) -> 0 | W57: =IF($D57="",0,IF(VLOOKUP($D57,Hulpvelden!$A:$D,4,FALSE)="L1",SUM($F57:$J57),0)) -> 0 | X57: =IF($D57="",0,IF(VLOOKUP($D57,Hulpvelden!$A:$D,4,FALSE)="L2",SUM($F57:$J57),0)) -> 0 | Y57: =IF($D57="",0,IF(VLOOKUP($D57,Hulpvelden!$A:$D,4,FALSE)="H1",SUM($F57:$J57),0)) -> 0 | Z57: =IF($D57="",0,IF(VLOOKUP($D57,Hulpvelden!$A:$D,4,FALSE)="H2",SUM($F57:$J57),0)) -> 0 | AA57: =(VLOOKUP(211, Hulpvelden!$A:$F, 6,FALSE)/(1+VLOOKUP(211, Hulpvelden!$A:$F, 6,FALSE)))*$W57+(VLOOKUP(212, Hulpvelden!$A:$F, 6,FALSE)/(1 +VLOOKUP(212, Hulpvelden!$A:$F, 6,FALSE)))*$X57+(VLOOKUP(221, Hulpvelden!$A:$F, 6,FALSE)/(1+VLOOKUP(221, Hulpvelden!$A:$F, 6,FALSE)))*$Y57+(VLOOKUP(222, Hulpvelden!$A:$F, 6,FALSE)/(1+VLOOKUP(222, Hulpvelden!$A:$F, 6,FALSE)))*$Z57 -> 0 | AB57: 0 | AC57: =IF($D57="",0,IF(VLOOKUP($D57,Hulpvelden!$A:$D,4,FALSE)="U",SUM($F57:$I57),0)) -> 0
B58: 1 | E58: =IF(ISNUMBER($D58),VLOOKUP($D58,Hulpvelden!$A:$D,2,FALSE),"") ->  | K58: 0 | L58: =$L$3-SUM($K$4:$K58) -> 14377.2 | S58: =IF($D58="",0,IF(AND(VLOOKUP($D58,Hulpvelden!$A:$D,3,FALSE)="J",OR(VLOOKUP($D58,Hulpvelden!$A:$D,4,FALSE)="H",VLOOKUP($D58,Hulpvelden!$A:$D,4,FALSE)="L")),$F58+$I58+$J58,IF(VLOOKUP($D58,Hulpvelden!$A:$D,3,FALSE)="J",SUM($F58:$J58),0))) -> 0 | T58: =IF($D58="",0,IF(OR(VLOOKUP($D58,Hulpvelden!$A:$D,4,FALSE)="H",VLOOKUP($D58,Hulpvelden!$A:$D,4,FALSE)="L"),$G58,IF(VLOOKUP($D58,Hulpvelden!$A:$D,4,FALSE)="50",0.5*$G58,0))) -> 0 | U58: =IF($D58="",0,IF(VLOOKUP($D58,Hulpvelden!$A:$D,4,FALSE)="J",$H58,0)) -> 0 | V58: =IF($D58="",0,IF(VLOOKUP($D58,Hulpvelden!$A:$D,4,FALSE)="O",SUM($F58:$J58),0)) -> 0 | W58: =IF($D58="",0,IF(VLOOKUP($D58,Hulpvelden!$A:$D,4,FALSE)="L1",SUM($F58:$J58),0)) -> 0 | X58: =IF($D58="",0,IF(VLOOKUP($D58,Hulpvelden!$A:$D,4,FALSE)="L2",SUM($F58:$J58),0)) -> 0 | Y58: =IF($D58="",0,IF(VLOOKUP($D58,Hulpvelden!$A:$D,4,FALSE)="H1",SUM($F58:$J58),0)) -> 0 | Z58: =IF($D58="",0,IF(VLOOKUP($D58,Hulpvelden!$A:$D,4,FALSE)="H2",SUM($F58:$J58),0)) -> 0 | AA58: =(VLOOKUP(211, Hulpvelden!$A:$F, 6,FALSE)/(1+VLOOKUP(211, Hulpvelden!$A:$F, 6,FALSE)))*$W58+(VLOOKUP(212, Hulpvelden!$A:$F, 6,FALSE)/(1 +VLOOKUP(212, Hulpvelden!$A:$F, 6,FALSE)))*$X58+(VLOOKUP(221, Hulpvelden!$A:$F, 6,FALSE)/(1+VLOOKUP(221, Hulpvelden!$A:$F, 6,FALSE)))*$Y58+(VLOOKUP(222, Hulpvelden!$A:$F, 6,FALSE)/(1+VLOOKUP(222, Hulpvelden!$A:$F, 6,FALSE)))*$Z58 -> 0 | AB58: 0 | AC58: =IF($D58="",0,IF(VLOOKUP($D58,Hulpvelden!$A:$D,4,FALSE)="U",SUM($F58:$I58),0)) -> 0
B59: 1 | E59: =IF(ISNUMBER($D59),VLOOKUP($D59,Hulpvelden!$A:$D,2,FALSE),"") ->  | K59: 0 | L59: =$L$3-SUM($K$4:$K59) -> 14377.2 | S59: =IF($D59="",0,IF(AND(VLOOKUP($D59,Hulpvelden!$A:$D,3,FALSE)="J",OR(VLOOKUP($D59,Hulpvelden!$A:$D,4,FALSE)="H",VLOOKUP($D59,Hulpvelden!$A:$D,4,FALSE)="L")),$F59+$I59+$J59,IF(VLOOKUP($D59,Hulpvelden!$A:$D,3,FALSE)="J",SUM($F59:$J59),0))) -> 0 | T59: =IF($D59="",0,IF(OR(VLOOKUP($D59,Hulpvelden!$A:$D,4,FALSE)="H",VLOOKUP($D59,Hulpvelden!$A:$D,4,FALSE)="L"),$G59,IF(VLOOKUP($D59,Hulpvelden!$A:$D,4,FALSE)="50",0.5*$G59,0))) -> 0 | U59: =IF($D59="",0,IF(VLOOKUP($D59,Hulpvelden!$A:$D,4,FALSE)="J",$H59,0)) -> 0 | V59: =IF($D59="",0,IF(VLOOKUP($D59,Hulpvelden!$A:$D,4,FALSE)="O",SUM($F59:$J59),0)) -> 0 | W59: =IF($D59="",0,IF(VLOOKUP($D59,Hulpvelden!$A:$D,4,FALSE)="L1",SUM($F59:$J59),0)) -> 0 | X59: =IF($D59="",0,IF(VLOOKUP($D59,Hulpvelden!$A:$D,4,FALSE)="L2",SUM($F59:$J59),0)) -> 0 | Y59: =IF($D59="",0,IF(VLOOKUP($D59,Hulpvelden!$A:$D,4,FALSE)="H1",SUM($F59:$J59),0)) -> 0 | Z59: =IF($D59="",0,IF(VLOOKUP($D59,Hulpvelden!$A:$D,4,FALSE)="H2",SUM($F59:$J59),0)) -> 0 | AA59: =(VLOOKUP(211, Hulpvelden!$A:$F, 6,FALSE)/(1+VLOOKUP(211, Hulpvelden!$A:$F, 6,FALSE)))*$W59+(VLOOKUP(212, Hulpvelden!$A:$F, 6,FALSE)/(1 +VLOOKUP(212, Hulpvelden!$A:$F, 6,FALSE)))*$X59+(VLOOKUP(221, Hulpvelden!$A:$F, 6,FALSE)/(1+VLOOKUP(221, Hulpvelden!$A:$F, 6,FALSE)))*$Y59+(VLOOKUP(222, Hulpvelden!$A:$F, 6,FALSE)/(1+VLOOKUP(222, Hulpvelden!$A:$F, 6,FALSE)))*$Z59 -> 0 | AB59: 0 | AC59: =IF($D59="",0,IF(VLOOKUP($D59,Hulpvelden!$A:$D,4,FALSE)="U",SUM($F59:$I59),0)) -> 0
B60: 1 | E60: =IF(ISNUMBER($D60),VLOOKUP($D60,Hulpvelden!$A:$D,2,FALSE),"") ->  | K60: 0 | L60: =$L$3-SUM($K$4:$K60) -> 14377.2 | S60: =IF($D60="",0,IF(AND(VLOOKUP($D60,Hulpvelden!$A:$D,3,FALSE)="J",OR(VLOOKUP($D60,Hulpvelden!$A:$D,4,FALSE)="H",VLOOKUP($D60,Hulpvelden!$A:$D,4,FALSE)="L")),$F60+$I60+$J60,IF(VLOOKUP($D60,Hulpvelden!$A:$D,3,FALSE)="J",SUM($F60:$J60),0))) -> 0 | T60: =IF($D60="",0,IF(OR(VLOOKUP($D60,Hulpvelden!$A:$D,4,FALSE)="H",VLOOKUP($D60,Hulpvelden!$A:$D,4,FALSE)="L"),$G60,IF(VLOOKUP($D60,Hulpvelden!$A:$D,4,FALSE)="50",0.5*$G60,0))) -> 0 | U60: =IF($D60="",0,IF(VLOOKUP($D60,Hulpvelden!$A:$D,4,FALSE)="J",$H60,0)) -> 0 | V60: =IF($D60="",0,IF(VLOOKUP($D60,Hulpvelden!$A:$D,4,FALSE)="O",SUM($F60:$J60),0)) -> 0 | W60: =IF($D60="",0,IF(VLOOKUP($D60,Hulpvelden!$A:$D,4,FALSE)="L1",SUM($F60:$J60),0)) -> 0 | X60: =IF($D60="",0,IF(VLOOKUP($D60,Hulpvelden!$A:$D,4,FALSE)="L2",SUM($F60:$J60),0)) -> 0 | Y60: =IF($D60="",0,IF(VLOOKUP($D60,Hulpvelden!$A:$D,4,FALSE)="H1",SUM($F60:$J60),0)) -> 0 | Z60: =IF($D60="",0,IF(VLOOKUP($D60,Hulpvelden!$A:$D,4,FALSE)="H2",SUM($F60:$J60),0)) -> 0 | AA60: =(VLOOKUP(211, Hulpvelden!$A:$F, 6,FALSE)/(1+VLOOKUP(211, Hulpvelden!$A:$F, 6,FALSE)))*$W60+(VLOOKUP(212, Hulpvelden!$A:$F, 6,FALSE)/(1 +VLOOKUP(212, Hulpvelden!$A:$F, 6,FALSE)))*$X60+(VLOOKUP(221, Hulpvelden!$A:$F, 6,FALSE)/(1+VLOOKUP(221, Hulpvelden!$A:$F, 6,FALSE)))*$Y60+(VLOOKUP(222, Hulpvelden!$A:$F, 6,FALSE)/(1+VLOOKUP(222, Hulpvelden!$A:$F, 6,FALSE)))*$Z60 -> 0 | AB60: 0 | AC60: =IF($D60="",0,IF(VLOOKUP($D60,Hulpvelden!$A:$D,4,FALSE)="U",SUM($F60:$I60),0)) -> 0
B61: 1 | E61: =IF(ISNUMBER($D61),VLOOKUP($D61,Hulpvelden!$A:$D,2,FALSE),"") ->  | K61: 0 | L61: =$L$3-SUM($K$4:$K61) -> 14377.2 | S61: =IF($D61="",0,IF(AND(VLOOKUP($D61,Hulpvelden!$A:$D,3,FALSE)="J",OR(VLOOKUP($D61,Hulpvelden!$A:$D,4,FALSE)="H",VLOOKUP($D61,Hulpvelden!$A:$D,4,FALSE)="L")),$F61+$I61+$J61,IF(VLOOKUP($D61,Hulpvelden!$A:$D,3,FALSE)="J",SUM($F61:$J61),0))) -> 0 | T61: =IF($D61="",0,IF(OR(VLOOKUP($D61,Hulpvelden!$A:$D,4,FALSE)="H",VLOOKUP($D61,Hulpvelden!$A:$D,4,FALSE)="L"),$G61,IF(VLOOKUP($D61,Hulpvelden!$A:$D,4,FALSE)="50",0.5*$G61,0))) -> 0 | U61: =IF($D61="",0,IF(VLOOKUP($D61,Hulpvelden!$A:$D,4,FALSE)="J",$H61,0)) -> 0 | V61: =IF($D61="",0,IF(VLOOKUP($D61,Hulpvelden!$A:$D,4,FALSE)="O",SUM($F61:$J61),0)) -> 0 | W61: =IF($D61="",0,IF(VLOOKUP($D61,Hulpvelden!$A:$D,4,FALSE)="L1",SUM($F61:$J61),0)) -> 0 | X61: =IF($D61="",0,IF(VLOOKUP($D61,Hulpvelden!$A:$D,4,FALSE)="L2",SUM($F61:$J61),0)) -> 0 | Y61: =IF($D61="",0,IF(VLOOKUP($D61,Hulpvelden!$A:$D,4,FALSE)="H1",SUM($F61:$J61),0)) -> 0 | Z61: =IF($D61="",0,IF(VLOOKUP($D61,Hulpvelden!$A:$D,4,FALSE)="H2",SUM($F61:$J61),0)) -> 0 | AA61: =(VLOOKUP(211, Hulpvelden!$A:$F, 6,FALSE)/(1+VLOOKUP(211, Hulpvelden!$A:$F, 6,FALSE)))*$W61+(VLOOKUP(212, Hulpvelden!$A:$F, 6,FALSE)/(1 +VLOOKUP(212, Hulpvelden!$A:$F, 6,FALSE)))*$X61+(VLOOKUP(221, Hulpvelden!$A:$F, 6,FALSE)/(1+VLOOKUP(221, Hulpvelden!$A:$F, 6,FALSE)))*$Y61+(VLOOKUP(222, Hulpvelden!$A:$F, 6,FALSE)/(1+VLOOKUP(222, Hulpvelden!$A:$F, 6,FALSE)))*$Z61 -> 0 | AB61: 0 | AC61: =IF($D61="",0,IF(VLOOKUP($D61,Hulpvelden!$A:$D,4,FALSE)="U",SUM($F61:$I61),0)) -> 0
B62: 1 | E62: =IF(ISNUMBER($D62),VLOOKUP($D62,Hulpvelden!$A:$D,2,FALSE),"") ->  | K62: 0 | L62: =$L$3-SUM($K$4:$K62) -> 14377.2 | S62: =IF($D62="",0,IF(AND(VLOOKUP($D62,Hulpvelden!$A:$D,3,FALSE)="J",OR(VLOOKUP($D62,Hulpvelden!$A:$D,4,FALSE)="H",VLOOKUP($D62,Hulpvelden!$A:$D,4,FALSE)="L")),$F62+$I62+$J62,IF(VLOOKUP($D62,Hulpvelden!$A:$D,3,FALSE)="J",SUM($F62:$J62),0))) -> 0 | T62: =IF($D62="",0,IF(OR(VLOOKUP($D62,Hulpvelden!$A:$D,4,FALSE)="H",VLOOKUP($D62,Hulpvelden!$A:$D,4,FALSE)="L"),$G62,IF(VLOOKUP($D62,Hulpvelden!$A:$D,4,FALSE)="50",0.5*$G62,0))) -> 0 | U62: =IF($D62="",0,IF(VLOOKUP($D62,Hulpvelden!$A:$D,4,FALSE)="J",$H62,0)) -> 0 | V62: =IF($D62="",0,IF(VLOOKUP($D62,Hulpvelden!$A:$D,4,FALSE)="O",SUM($F62:$J62),0)) -> 0 | W62: =IF($D62="",0,IF(VLOOKUP($D62,Hulpvelden!$A:$D,4,FALSE)="L1",SUM($F62:$J62),0)) -> 0 | X62: =IF($D62="",0,IF(VLOOKUP($D62,Hulpvelden!$A:$D,4,FALSE)="L2",SUM($F62:$J62),0)) -> 0 | Y62: =IF($D62="",0,IF(VLOOKUP($D62,Hulpvelden!$A:$D,4,FALSE)="H1",SUM($F62:$J62),0)) -> 0 | Z62: =IF($D62="",0,IF(VLOOKUP($D62,Hulpvelden!$A:$D,4,FALSE)="H2",SUM($F62:$J62),0)) -> 0 | AA62: =(VLOOKUP(211, Hulpvelden!$A:$F, 6,FALSE)/(1+VLOOKUP(211, Hulpvelden!$A:$F, 6,FALSE)))*$W62+(VLOOKUP(212, Hulpvelden!$A:$F, 6,FALSE)/(1 +VLOOKUP(212, Hulpvelden!$A:$F, 6,FALSE)))*$X62+(VLOOKUP(221, Hulpvelden!$A:$F, 6,FALSE)/(1+VLOOKUP(221, Hulpvelden!$A:$F, 6,FALSE)))*$Y62+(VLOOKUP(222, Hulpvelden!$A:$F, 6,FALSE)/(1+VLOOKUP(222, Hulpvelden!$A:$F, 6,FALSE)))*$Z62 -> 0 | AB62: 0 | AC62: =IF($D62="",0,IF(VLOOKUP($D62,Hulpvelden!$A:$D,4,FALSE)="U",SUM($F62:$I62),0)) -> 0
B63: 1 | E63: =IF(ISNUMBER($D63),VLOOKUP($D63,Hulpvelden!$A:$D,2,FALSE),"") ->  | K63: 0 | L63: =$L$3-SUM($K$4:$K63) -> 14377.2 | S63: =IF($D63="",0,IF(AND(VLOOKUP($D63,Hulpvelden!$A:$D,3,FALSE)="J",OR(VLOOKUP($D63,Hulpvelden!$A:$D,4,FALSE)="H",VLOOKUP($D63,Hulpvelden!$A:$D,4,FALSE)="L")),$F63+$I63+$J63,IF(VLOOKUP($D63,Hulpvelden!$A:$D,3,FALSE)="J",SUM($F63:$J63),0))) -> 0 | T63: =IF($D63="",0,IF(OR(VLOOKUP($D63,Hulpvelden!$A:$D,4,FALSE)="H",VLOOKUP($D63,Hulpvelden!$A:$D,4,FALSE)="L"),$G63,IF(VLOOKUP($D63,Hulpvelden!$A:$D,4,FALSE)="50",0.5*$G63,0))) -> 0 | U63: =IF($D63="",0,IF(VLOOKUP($D63,Hulpvelden!$A:$D,4,FALSE)="J",$H63,0)) -> 0 | V63: =IF($D63="",0,IF(VLOOKUP($D63,Hulpvelden!$A:$D,4,FALSE)="O",SUM($F63:$J63),0)) -> 0 | W63: =IF($D63="",0,IF(VLOOKUP($D63,Hulpvelden!$A:$D,4,FALSE)="L1",SUM($F63:$J63),0)) -> 0 | X63: =IF($D63="",0,IF(VLOOKUP($D63,Hulpvelden!$A:$D,4,FALSE)="L2",SUM($F63:$J63),0)) -> 0 | Y63: =IF($D63="",0,IF(VLOOKUP($D63,Hulpvelden!$A:$D,4,FALSE)="H1",SUM($F63:$J63),0)) -> 0 | Z63: =IF($D63="",0,IF(VLOOKUP($D63,Hulpvelden!$A:$D,4,FALSE)="H2",SUM($F63:$J63),0)) -> 0 | AA63: =(VLOOKUP(211, Hulpvelden!$A:$F, 6,FALSE)/(1+VLOOKUP(211, Hulpvelden!$A:$F, 6,FALSE)))*$W63+(VLOOKUP(212, Hulpvelden!$A:$F, 6,FALSE)/(1 +VLOOKUP(212, Hulpvelden!$A:$F, 6,FALSE)))*$X63+(VLOOKUP(221, Hulpvelden!$A:$F, 6,FALSE)/(1+VLOOKUP(221, Hulpvelden!$A:$F, 6,FALSE)))*$Y63+(VLOOKUP(222, Hulpvelden!$A:$F, 6,FALSE)/(1+VLOOKUP(222, Hulpvelden!$A:$F, 6,FALSE)))*$Z63 -> 0 | AB63: 0 | AC63: =IF($D63="",0,IF(VLOOKUP($D63,Hulpvelden!$A:$D,4,FALSE)="U",SUM($F63:$I63),0)) -> 0
B64: 1 | E64: =IF(ISNUMBER($D64),VLOOKUP($D64,Hulpvelden!$A:$D,2,FALSE),"") ->  | K64: 0 | L64: =$L$3-SUM($K$4:$K64) -> 14377.2 | S64: =IF($D64="",0,IF(AND(VLOOKUP($D64,Hulpvelden!$A:$D,3,FALSE)="J",OR(VLOOKUP($D64,Hulpvelden!$A:$D,4,FALSE)="H",VLOOKUP($D64,Hulpvelden!$A:$D,4,FALSE)="L")),$F64+$I64+$J64,IF(VLOOKUP($D64,Hulpvelden!$A:$D,3,FALSE)="J",SUM($F64:$J64),0))) -> 0 | T64: =IF($D64="",0,IF(OR(VLOOKUP($D64,Hulpvelden!$A:$D,4,FALSE)="H",VLOOKUP($D64,Hulpvelden!$A:$D,4,FALSE)="L"),$G64,IF(VLOOKUP($D64,Hulpvelden!$A:$D,4,FALSE)="50",0.5*$G64,0))) -> 0 | U64: =IF($D64="",0,IF(VLOOKUP($D64,Hulpvelden!$A:$D,4,FALSE)="J",$H64,0)) -> 0 | V64: =IF($D64="",0,IF(VLOOKUP($D64,Hulpvelden!$A:$D,4,FALSE)="O",SUM($F64:$J64),0)) -> 0 | W64: =IF($D64="",0,IF(VLOOKUP($D64,Hulpvelden!$A:$D,4,FALSE)="L1",SUM($F64:$J64),0)) -> 0 | X64: =IF($D64="",0,IF(VLOOKUP($D64,Hulpvelden!$A:$D,4,FALSE)="L2",SUM($F64:$J64),0)) -> 0 | Y64: =IF($D64="",0,IF(VLOOKUP($D64,Hulpvelden!$A:$D,4,FALSE)="H1",SUM($F64:$J64),0)) -> 0 | Z64: =IF($D64="",0,IF(VLOOKUP($D64,Hulpvelden!$A:$D,4,FALSE)="H2",SUM($F64:$J64),0)) -> 0 | AA64: =(VLOOKUP(211, Hulpvelden!$A:$F, 6,FALSE)/(1+VLOOKUP(211, Hulpvelden!$A:$F, 6,FALSE)))*$W64+(VLOOKUP(212, Hulpvelden!$A:$F, 6,FALSE)/(1 +VLOOKUP(212, Hulpvelden!$A:$F, 6,FALSE)))*$X64+(VLOOKUP(221, Hulpvelden!$A:$F, 6,FALSE)/(1+VLOOKUP(221, Hulpvelden!$A:$F, 6,FALSE)))*$Y64+(VLOOKUP(222, Hulpvelden!$A:$F, 6,FALSE)/(1+VLOOKUP(222, Hulpvelden!$A:$F, 6,FALSE)))*$Z64 -> 0 | AB64: 0 | AC64: =IF($D64="",0,IF(VLOOKUP($D64,Hulpvelden!$A:$D,4,FALSE)="U",SUM($F64:$I64),0)) -> 0
B65: 1 | E65: =IF(ISNUMBER($D65),VLOOKUP($D65,Hulpvelden!$A:$D,2,FALSE),"") ->  | K65: 0 | L65: =$L$3-SUM($K$4:$K65) -> 14377.2 | S65: =IF($D65="",0,IF(AND(VLOOKUP($D65,Hulpvelden!$A:$D,3,FALSE)="J",OR(VLOOKUP($D65,Hulpvelden!$A:$D,4,FALSE)="H",VLOOKUP($D65,Hulpvelden!$A:$D,4,FALSE)="L")),$F65+$I65+$J65,IF(VLOOKUP($D65,Hulpvelden!$A:$D,3,FALSE)="J",SUM($F65:$J65),0))) -> 0 | T65: =IF($D65="",0,IF(OR(VLOOKUP($D65,Hulpvelden!$A:$D,4,FALSE)="H",VLOOKUP($D65,Hulpvelden!$A:$D,4,FALSE)="L"),$G65,IF(VLOOKUP($D65,Hulpvelden!$A:$D,4,FALSE)="50",0.5*$G65,0))) -> 0 | U65: =IF($D65="",0,IF(VLOOKUP($D65,Hulpvelden!$A:$D,4,FALSE)="J",$H65,0)) -> 0 | V65: =IF($D65="",0,IF(VLOOKUP($D65,Hulpvelden!$A:$D,4,FALSE)="O",SUM($F65:$J65),0)) -> 0 | W65: =IF($D65="",0,IF(VLOOKUP($D65,Hulpvelden!$A:$D,4,FALSE)="L1",SUM($F65:$J65),0)) -> 0 | X65: =IF($D65="",0,IF(VLOOKUP($D65,Hulpvelden!$A:$D,4,FALSE)="L2",SUM($F65:$J65),0)) -> 0 | Y65: =IF($D65="",0,IF(VLOOKUP($D65,Hulpvelden!$A:$D,4,FALSE)="H1",SUM($F65:$J65),0)) -> 0 | Z65: =IF($D65="",0,IF(VLOOKUP($D65,Hulpvelden!$A:$D,4,FALSE)="H2",SUM($F65:$J65),0)) -> 0 | AA65: =(VLOOKUP(211, Hulpvelden!$A:$F, 6,FALSE)/(1+VLOOKUP(211, Hulpvelden!$A:$F, 6,FALSE)))*$W65+(VLOOKUP(212, Hulpvelden!$A:$F, 6,FALSE)/(1 +VLOOKUP(212, Hulpvelden!$A:$F, 6,FALSE)))*$X65+(VLOOKUP(221, Hulpvelden!$A:$F, 6,FALSE)/(1+VLOOKUP(221, Hulpvelden!$A:$F, 6,FALSE)))*$Y65+(VLOOKUP(222, Hulpvelden!$A:$F, 6,FALSE)/(1+VLOOKUP(222, Hulpvelden!$A:$F, 6,FALSE)))*$Z65 -> 0 | AB65: 0 | AC65: =IF($D65="",0,IF(VLOOKUP($D65,Hulpvelden!$A:$D,4,FALSE)="U",SUM($F65:$I65),0)) -> 0
B66: 1 | E66: =IF(ISNUMBER($D66),VLOOKUP($D66,Hulpvelden!$A:$D,2,FALSE),"") ->  | K66: 0 | L66: =$L$3-SUM($K$4:$K66) -> 14377.2 | S66: =IF($D66="",0,IF(AND(VLOOKUP($D66,Hulpvelden!$A:$D,3,FALSE)="J",OR(VLOOKUP($D66,Hulpvelden!$A:$D,4,FALSE)="H",VLOOKUP($D66,Hulpvelden!$A:$D,4,FALSE)="L")),$F66+$I66+$J66,IF(VLOOKUP($D66,Hulpvelden!$A:$D,3,FALSE)="J",SUM($F66:$J66),0))) -> 0 | T66: =IF($D66="",0,IF(OR(VLOOKUP($D66,Hulpvelden!$A:$D,4,FALSE)="H",VLOOKUP($D66,Hulpvelden!$A:$D,4,FALSE)="L"),$G66,IF(VLOOKUP($D66,Hulpvelden!$A:$D,4,FALSE)="50",0.5*$G66,0))) -> 0 | U66: =IF($D66="",0,IF(VLOOKUP($D66,Hulpvelden!$A:$D,4,FALSE)="J",$H66,0)) -> 0 | V66: =IF($D66="",0,IF(VLOOKUP($D66,Hulpvelden!$A:$D,4,FALSE)="O",SUM($F66:$J66),0)) -> 0 | W66: =IF($D66="",0,IF(VLOOKUP($D66,Hulpvelden!$A:$D,4,FALSE)="L1",SUM($F66:$J66),0)) -> 0 | X66: =IF($D66="",0,IF(VLOOKUP($D66,Hulpvelden!$A:$D,4,FALSE)="L2",SUM($F66:$J66),0)) -> 0 | Y66: =IF($D66="",0,IF(VLOOKUP($D66,Hulpvelden!$A:$D,4,FALSE)="H1",SUM($F66:$J66),0)) -> 0 | Z66: =IF($D66="",0,IF(VLOOKUP($D66,Hulpvelden!$A:$D,4,FALSE)="H2",SUM($F66:$J66),0)) -> 0 | AA66: =(VLOOKUP(211, Hulpvelden!$A:$F, 6,FALSE)/(1+VLOOKUP(211, Hulpvelden!$A:$F, 6,FALSE)))*$W66+(VLOOKUP(212, Hulpvelden!$A:$F, 6,FALSE)/(1 +VLOOKUP(212, Hulpvelden!$A:$F, 6,FALSE)))*$X66+(VLOOKUP(221, Hulpvelden!$A:$F, 6,FALSE)/(1+VLOOKUP(221, Hulpvelden!$A:$F, 6,FALSE)))*$Y66+(VLOOKUP(222, Hulpvelden!$A:$F, 6,FALSE)/(1+VLOOKUP(222, Hulpvelden!$A:$F, 6,FALSE)))*$Z66 -> 0 | AB66: 0 | AC66: =IF($D66="",0,IF(VLOOKUP($D66,Hulpvelden!$A:$D,4,FALSE)="U",SUM($F66:$I66),0)) -> 0
B67: 1 | E67: =IF(ISNUMBER($D67),VLOOKUP($D67,Hulpvelden!$A:$D,2,FALSE),"") ->  | K67: 0 | L67: =$L$3-SUM($K$4:$K67) -> 14377.2 | S67: =IF($D67="",0,IF(AND(VLOOKUP($D67,Hulpvelden!$A:$D,3,FALSE)="J",OR(VLOOKUP($D67,Hulpvelden!$A:$D,4,FALSE)="H",VLOOKUP($D67,Hulpvelden!$A:$D,4,FALSE)="L")),$F67+$I67+$J67,IF(VLOOKUP($D67,Hulpvelden!$A:$D,3,FALSE)="J",SUM($F67:$J67),0))) -> 0 | T67: =IF($D67="",0,IF(OR(VLOOKUP($D67,Hulpvelden!$A:$D,4,FALSE)="H",VLOOKUP($D67,Hulpvelden!$A:$D,4,FALSE)="L"),$G67,IF(VLOOKUP($D67,Hulpvelden!$A:$D,4,FALSE)="50",0.5*$G67,0))) -> 0 | U67: =IF($D67="",0,IF(VLOOKUP($D67,Hulpvelden!$A:$D,4,FALSE)="J",$H67,0)) -> 0 | V67: =IF($D67="",0,IF(VLOOKUP($D67,Hulpvelden!$A:$D,4,FALSE)="O",SUM($F67:$J67),0)) -> 0 | W67: =IF($D67="",0,IF(VLOOKUP($D67,Hulpvelden!$A:$D,4,FALSE)="L1",SUM($F67:$J67),0)) -> 0 | X67: =IF($D67="",0,IF(VLOOKUP($D67,Hulpvelden!$A:$D,4,FALSE)="L2",SUM($F67:$J67),0)) -> 0 | Y67: =IF($D67="",0,IF(VLOOKUP($D67,Hulpvelden!$A:$D,4,FALSE)="H1",SUM($F67:$J67),0)) -> 0 | Z67: =IF($D67="",0,IF(VLOOKUP($D67,Hulpvelden!$A:$D,4,FALSE)="H2",SUM($F67:$J67),0)) -> 0 | AA67: =(VLOOKUP(211, Hulpvelden!$A:$F, 6,FALSE)/(1+VLOOKUP(211, Hulpvelden!$A:$F, 6,FALSE)))*$W67+(VLOOKUP(212, Hulpvelden!$A:$F, 6,FALSE)/(1 +VLOOKUP(212, Hulpvelden!$A:$F, 6,FALSE)))*$X67+(VLOOKUP(221, Hulpvelden!$A:$F, 6,FALSE)/(1+VLOOKUP(221, Hulpvelden!$A:$F, 6,FALSE)))*$Y67+(VLOOKUP(222, Hulpvelden!$A:$F, 6,FALSE)/(1+VLOOKUP(222, Hulpvelden!$A:$F, 6,FALSE)))*$Z67 -> 0 | AB67: 0 | AC67: =IF($D67="",0,IF(VLOOKUP($D67,Hulpvelden!$A:$D,4,FALSE)="U",SUM($F67:$I67),0)) -> 0
B68: =MONTH(A68) -> 1 | E68: =IF(ISNUMBER($D68),VLOOKUP($D68,Hulpvelden!$A:$D,2,FALSE),"") ->  | K68: =IF(ISNUMBER($D68),SUM($F68:$J68),0) -> 0 | L68: =$L$3-SUM($K$4:$K68) -> 14377.2 | S68: =IF($D68="",0,IF(AND(VLOOKUP($D68,Hulpvelden!$A:$D,3,FALSE)="J",OR(VLOOKUP($D68,Hulpvelden!$A:$D,4,FALSE)="H",VLOOKUP($D68,Hulpvelden!$A:$D,4,FALSE)="L")),$F68+$I68+$J68,IF(VLOOKUP($D68,Hulpvelden!$A:$D,3,FALSE)="J",SUM($F68:$J68),0))) -> 0 | T68: =IF($D68="",0,IF(OR(VLOOKUP($D68,Hulpvelden!$A:$D,4,FALSE)="H",VLOOKUP($D68,Hulpvelden!$A:$D,4,FALSE)="L"),$G68,IF(VLOOKUP($D68,Hulpvelden!$A:$D,4,FALSE)="50",0.5*$G68,0))) -> 0 | U68: =IF($D68="",0,IF(VLOOKUP($D68,Hulpvelden!$A:$D,4,FALSE)="J",$H68,0)) -> 0 | V68: =IF($D68="",0,IF(VLOOKUP($D68,Hulpvelden!$A:$D,4,FALSE)="O",SUM($F68:$J68),0)) -> 0 | W68: =IF($D68="",0,IF(VLOOKUP($D68,Hulpvelden!$A:$D,4,FALSE)="L1",SUM($F68:$J68),0)) -> 0 | X68: =IF($D68="",0,IF(VLOOKUP($D68,Hulpvelden!$A:$D,4,FALSE)="L2",SUM($F68:$J68),0)) -> 0 | Y68: =IF($D68="",0,IF(VLOOKUP($D68,Hulpvelden!$A:$D,4,FALSE)="H1",SUM($F68:$J68),0)) -> 0 | Z68: =IF($D68="",0,IF(VLOOKUP($D68,Hulpvelden!$A:$D,4,FALSE)="H2",SUM($F68:$J68),0)) -> 0 | AA68: =(VLOOKUP(211, Hulpvelden!$A:$F, 6,FALSE)/(1+VLOOKUP(211, Hulpvelden!$A:$F, 6,FALSE)))*$W68+(VLOOKUP(212, Hulpvelden!$A:$F, 6,FALSE)/(1 +VLOOKUP(212, Hulpvelden!$A:$F, 6,FALSE)))*$X68+(VLOOKUP(221, Hulpvelden!$A:$F, 6,FALSE)/(1+VLOOKUP(221, Hulpvelden!$A:$F, 6,FALSE)))*$Y68+(VLOOKUP(222, Hulpvelden!$A:$F, 6,FALSE)/(1+VLOOKUP(222, Hulpvelden!$A:$F, 6,FALSE)))*$Z68 -> 0 | AB68: =IF(OR($D68=73,$D68=74,$D68=75),$F68+$J68,0) -> 0 | AC68: =IF($D68="",0,IF(VLOOKUP($D68,Hulpvelden!$A:$D,4,FALSE)="U",SUM($F68:$I68),0)) -> 0
B69: 1 | E69: =IF(ISNUMBER($D69),VLOOKUP($D69,Hulpvelden!$A:$D,2,FALSE),"") ->  | K69: 0 | L69: =$L$3-SUM($K$4:$K69) -> 14377.2 | S69: =IF($D69="",0,IF(AND(VLOOKUP($D69,Hulpvelden!$A:$D,3,FALSE)="J",OR(VLOOKUP($D69,Hulpvelden!$A:$D,4,FALSE)="H",VLOOKUP($D69,Hulpvelden!$A:$D,4,FALSE)="L")),$F69+$I69+$J69,IF(VLOOKUP($D69,Hulpvelden!$A:$D,3,FALSE)="J",SUM($F69:$J69),0))) -> 0 | T69: =IF($D69="",0,IF(OR(VLOOKUP($D69,Hulpvelden!$A:$D,4,FALSE)="H",VLOOKUP($D69,Hulpvelden!$A:$D,4,FALSE)="L"),$G69,IF(VLOOKUP($D69,Hulpvelden!$A:$D,4,FALSE)="50",0.5*$G69,0))) -> 0 | U69: =IF($D69="",0,IF(VLOOKUP($D69,Hulpvelden!$A:$D,4,FALSE)="J",$H69,0)) -> 0 | V69: =IF($D69="",0,IF(VLOOKUP($D69,Hulpvelden!$A:$D,4,FALSE)="O",SUM($F69:$J69),0)) -> 0 | W69: =IF($D69="",0,IF(VLOOKUP($D69,Hulpvelden!$A:$D,4,FALSE)="L1",SUM($F69:$J69),0)) -> 0 | X69: =IF($D69="",0,IF(VLOOKUP($D69,Hulpvelden!$A:$D,4,FALSE)="L2",SUM($F69:$J69),0)) -> 0 | Y69: =IF($D69="",0,IF(VLOOKUP($D69,Hulpvelden!$A:$D,4,FALSE)="H1",SUM($F69:$J69),0)) -> 0 | Z69: =IF($D69="",0,IF(VLOOKUP($D69,Hulpvelden!$A:$D,4,FALSE)="H2",SUM($F69:$J69),0)) -> 0 | AA69: =(VLOOKUP(211, Hulpvelden!$A:$F, 6,FALSE)/(1+VLOOKUP(211, Hulpvelden!$A:$F, 6,FALSE)))*$W69+(VLOOKUP(212, Hulpvelden!$A:$F, 6,FALSE)/(1 +VLOOKUP(212, Hulpvelden!$A:$F, 6,FALSE)))*$X69+(VLOOKUP(221, Hulpvelden!$A:$F, 6,FALSE)/(1+VLOOKUP(221, Hulpvelden!$A:$F, 6,FALSE)))*$Y69+(VLOOKUP(222, Hulpvelden!$A:$F, 6,FALSE)/(1+VLOOKUP(222, Hulpvelden!$A:$F, 6,FALSE)))*$Z69 -> 0 | AB69: 0 | AC69: =IF($D69="",0,IF(VLOOKUP($D69,Hulpvelden!$A:$D,4,FALSE)="U",SUM($F69:$I69),0)) -> 0
B70: 1 | E70: =IF(ISNUMBER($D70),VLOOKUP($D70,Hulpvelden!$A:$D,2,FALSE),"") ->  | K70: 0 | L70: =$L$3-SUM($K$4:$K70) -> 14377.2 | S70: =IF($D70="",0,IF(AND(VLOOKUP($D70,Hulpvelden!$A:$D,3,FALSE)="J",OR(VLOOKUP($D70,Hulpvelden!$A:$D,4,FALSE)="H",VLOOKUP($D70,Hulpvelden!$A:$D,4,FALSE)="L")),$F70+$I70+$J70,IF(VLOOKUP($D70,Hulpvelden!$A:$D,3,FALSE)="J",SUM($F70:$J70),0))) -> 0 | T70: =IF($D70="",0,IF(OR(VLOOKUP($D70,Hulpvelden!$A:$D,4,FALSE)="H",VLOOKUP($D70,Hulpvelden!$A:$D,4,FALSE)="L"),$G70,IF(VLOOKUP($D70,Hulpvelden!$A:$D,4,FALSE)="50",0.5*$G70,0))) -> 0 | U70: =IF($D70="",0,IF(VLOOKUP($D70,Hulpvelden!$A:$D,4,FALSE)="J",$H70,0)) -> 0 | V70: =IF($D70="",0,IF(VLOOKUP($D70,Hulpvelden!$A:$D,4,FALSE)="O",SUM($F70:$J70),0)) -> 0 | W70: =IF($D70="",0,IF(VLOOKUP($D70,Hulpvelden!$A:$D,4,FALSE)="L1",SUM($F70:$J70),0)) -> 0 | X70: =IF($D70="",0,IF(VLOOKUP($D70,Hulpvelden!$A:$D,4,FALSE)="L2",SUM($F70:$J70),0)) -> 0 | Y70: =IF($D70="",0,IF(VLOOKUP($D70,Hulpvelden!$A:$D,4,FALSE)="H1",SUM($F70:$J70),0)) -> 0 | Z70: =IF($D70="",0,IF(VLOOKUP($D70,Hulpvelden!$A:$D,4,FALSE)="H2",SUM($F70:$J70),0)) -> 0 | AA70: =(VLOOKUP(211, Hulpvelden!$A:$F, 6,FALSE)/(1+VLOOKUP(211, Hulpvelden!$A:$F, 6,FALSE)))*$W70+(VLOOKUP(212, Hulpvelden!$A:$F, 6,FALSE)/(1 +VLOOKUP(212, Hulpvelden!$A:$F, 6,FALSE)))*$X70+(VLOOKUP(221, Hulpvelden!$A:$F, 6,FALSE)/(1+VLOOKUP(221, Hulpvelden!$A:$F, 6,FALSE)))*$Y70+(VLOOKUP(222, Hulpvelden!$A:$F, 6,FALSE)/(1+VLOOKUP(222, Hulpvelden!$A:$F, 6,FALSE)))*$Z70 -> 0 | AB70: 0 | AC70: =IF($D70="",0,IF(VLOOKUP($D70,Hulpvelden!$A:$D,4,FALSE)="U",SUM($F70:$I70),0)) -> 0
